Workbook

Sheet HOME
A1: =IF(AND(ISNUMBER(F13),ISNUMBER(F14),F15=""),"s",IF(AND(ISNUMBER(F15),F13="",F14=""),"w","k")) -> s
B2: ADATBEVITEL | AW2: EREDMÉNYEK | BJ2: =FIGURE_V2!AL178 -> label | BK2: =FIGURE_V2!AM178 -> x | BL2: =FIGURE_V2!AN178 -> y
B3: MÉRTÉKEGYSÉGEK | K3: KONCENTRÁLT ERŐK | AH3: KONCENTRÁLT NYOMATÉKOK | AW3: támasztóerők | BI3: 1 | BJ3: =FIGURE_V2!AL179 -> 1 | BK3: =FIGURE_V2!AM179 -> 250 | BL3: =FIGURE_V2!AN179 -> -250
B4: hossz | D4: m | F4: erő | H4: N | L4: erő definiálása | Y4: erőkar definiálása | AI4: értéke | AM4: helye | AW4: =IF(A1="k","","F"&IF(A1="s",E13,IF(A1="w",E15))&"x=") -> FAx= | AY4: =IF($A$1="k","",IF($A$1="s",CALC!F19,IF(HOME!$A$1="w",CALC!D19))) -> -1 | BB4: =IF(A1="k","",H4) -> N | BI4: 2 | BJ4: =FIGURE_V2!AL180 -> 0 | BK4: =FIGURE_V2!AM180 -> 1000 | BL4: =FIGURE_V2!AN180 -> -350
M5: D→Fx | Q5: D→Fy | Z5: D→x | AD5: D→y | AH5: M1 | AI5: 2 | AL5: =$H$4&$D$4 -> Nm | AM5: 4 | AP5: =$D$4 -> m | AQ5: D | AW5: =IF(A1="k","","F"&IF(A1="s",E13,IF(A1="w",E15))&"y=") -> FAy= | AY5: =IF($A$1="k","",IF($A$1="s",CALC!F20,IF(HOME!$A$1="w",CALC!D20))) -> 8.5 | BB5: =IF(A1="k","",H4) -> N | BI5: 3 | BJ5: =FIGURE_V2!AL181 -> 0 | BK5: =FIGURE_V2!AM181 -> 0 | BL5: =FIGURE_V2!AN181 -> -688.2352941
L6: KR | M6: H→F | Q6: H→α | U6: helye | Y6: KR | Z6: H→r | AD6: H→α | AH6: M2 | AL6: =$H$4&$D$4 -> Nm | AP6: =$D$4 -> m | AQ6: D | AW6: =IF(A1="k","",IF(A1="s","F"&E14&"y=",IF(A1="w","M"&E15&"z="))) -> FBy= | AY6: =IF($A$1="k","",IF($A$1="s",CALC!F21,IF(HOME!$A$1="w",CALC!D21))) -> 5.5 | BB6: =IF(A1="k","",IF(A1="s",H4,IF(A1="w",H4&D4))) -> N | BI6: 4 | BJ6: =FIGURE_V2!AL182 -> -2 | BK6: =FIGURE_V2!AM182 -> 125 | BL6: =FIGURE_V2!AN182 -> -794.1176471
B7: A= | F7: mm2 | K7: F1 | L7: D | M7: 1 | P7: =$H$4 -> N | Q7: -2 | T7: =IF(L7="D",$H$4,"fok") -> N | U7: 8 | X7: =$D$4 -> m | Y7: D | AC7: =$D$4 -> m | AG7: =IF(Y7="D",$D$4,"fok") -> m | AH7: M3 | AL7: Nm | AP7: m | AQ7: D | BI7: 5 | BJ7: =FIGURE_V2!AL183 -> -4 | BK7: =FIGURE_V2!AM183 -> 250 | BL7: =FIGURE_V2!AN183 -> -900
B8: Iz= | F8: mm4 | K8: F2 | L8: D | P8: =$H$4 -> N | T8: =IF(L8="D",$H$4,"fok") -> N | X8: =$D$4 -> m | Y8: D | AC8: =$D$4 -> m | AG8: =IF(Y8="D",$D$4,"fok") -> m | AH8: M4 | AL8: Nm | AP8: m | AQ8: D | AW8: max igénybevételek | BI8: 6 | BJ8: =FIGURE_V2!AL184 -> 4.5 | BK8: =FIGURE_V2!AM184 -> 250 | BL8: =FIGURE_V2!AN184 -> -450
B9: E= | F9: MPa | K9: F3 | L9: D | P9: N | T9: N | X9: m | Y9: D | AC9: m | AG9: m | AH9: M5 | AL9: Nm | AP9: m | AQ9: D | AX9: értéke | BB9: helye | BI9: 7 | BJ9: =FIGURE_V2!AL185 -> 2.5 | BK9: =FIGURE_V2!AM185 -> 375 | BL9: =FIGURE_V2!AN185 -> -555.8823529
B10: l= | C10: 8 | F10: =D4 -> m | K10: F4 | L10: D | P10: N | T10: N | X10: m | Y10: D | AC10: m | AG10: m | AH10: MEGOSZLÓ TERHELÉSEK | AW10: N | AX10: =Munka1!L2 -> 1 | BA10: =H4 -> N | BB10: =Munka1!H13 -> 2 | BE10: =$D$4 -> m | BI10: 8 | BJ10: =FIGURE_V2!AL186 -> 0.5 | BK10: =FIGURE_V2!AM186 -> 500 | BL10: =FIGURE_V2!AN186 -> -661.7647059
K11: F5 | L11: D | P11: N | T11: N | X11: m | Y11: D | AC11: m | AG11: m | AI11: értéke | AM11: eleje | AQ11: vége | AW11: Ty | AX11: =Munka1!L3 -> 4.5 | BA11: =H4 -> N | BB11: =Munka1!I13 -> 2 | BE11: =$D$4 -> m | BI11: 9 | BJ11: =FIGURE_V2!AL187 -> -1.5 | BK11: =FIGURE_V2!AM187 -> 625 | BL11: =FIGURE_V2!AN187 -> -767.6470588
B12: MEGTÁMASZTÁSOK | K12: F6 | L12: D | P12: N | T12: N | X12: m | Y12: D | AC12: m | AG12: m | AH12: q1 | AI12: -2 | AL12: =$H$4&"/"&$D$4 -> N/m | AM12: 0 | AP12: =$D$4 -> m | AQ12: 6 | AT12: =$D$4 -> m | AW12: Mh | AX12: =Munka1!L4 -> 4 | BA12: =H4&D4 -> Nm | BB12: =Munka1!J13 -> 6 | BE12: m | BI12: 10 | BJ12: =FIGURE_V2!AL188 -> -3.5 | BK12: =FIGURE_V2!AM188 -> 750 | BL12: =FIGURE_V2!AN188 -> -873.5294118
B13: csukló: | E13: A | F13: 2 | I13: =D4 -> m | K13: F7 | L13: D | P13: N | T13: N | X13: m | Y13: D | AC13: m | AG13: m | AH13: q2 | AL13: =$H$4&"/"&$D$4 -> N/m | AP13: =$D$4 -> m | AT13: =$D$4 -> m | BI13: 11 | BJ13: =FIGURE_V2!AL189 -> 2 | BK13: =FIGURE_V2!AM189 -> 750 | BL13: =FIGURE_V2!AN189 -> -582.3529412
B14: görgő: | E14: B | F14: 6 | I14: =D4 -> m | K14: F8 | L14: D | P14: N | T14: N | X14: m | Y14: D | AC14: m | AG14: m | AH14: q3 | AL14: N/m | AP14: m | AT14: m | BI14: 12 | BJ14: =FIGURE_V2!AL190 -> 2 | BK14: =FIGURE_V2!AM190 -> 1000 | BL14: =FIGURE_V2!AN190 -> -582.3529412
B15: fal: | E15: A | I15: =D4 -> m | K15: F9 | L15: D | P15: N | T15: N | X15: m | Y15: D | AC15: m | AG15: m | AH15: q4 | AL15: N/m | AP15: m | AT15: m | BI15: 13 | BJ15: =FIGURE_V2!AL191 -> 0 | BK15: =FIGURE_V2!AM191 -> 0 | BL15: =FIGURE_V2!AN191 -> -1360
B16: =IF(A1="s","kéttámaszú tartó",IF(A1="w","befalazott tartó","nem támogatott")) -> kéttámaszú tartó | K16: F10 | L16: D | P16: N | T16: N | X16: m | Y16: D | AC16: m | AG16: m | AH16: q5 | AL16: N/m | AP16: m | AT16: m | BI16: 14 | BJ16: =FIGURE_V2!AL192 -> 1 | BK16: =FIGURE_V2!AM192 -> 125 | BL16: =FIGURE_V2!AN192 -> -1270
BI17: 15 | BJ17: =FIGURE_V2!AL193 -> 4 | BK17: =FIGURE_V2!AM193 -> 250 | BL17: =FIGURE_V2!AN193 -> -1000
B18: MEGJELENÍTÉS | BI18: 16 | BJ18: =FIGURE_V2!AL194 -> 0.5 | BK18: =FIGURE_V2!AM194 -> 375 | BL18: =FIGURE_V2!AN194 -> -1315
BI19: 17 | BJ19: =FIGURE_V2!AL195 -> -1 | BK19: =FIGURE_V2!AM195 -> 500 | BL19: =FIGURE_V2!AN195 -> -1450
B20: vízszintes eltolás | H20: 0 | BI20: 18 | BJ20: =FIGURE_V2!AL196 -> 1 | BK20: =FIGURE_V2!AM196 -> 500 | BL20: =FIGURE_V2!AN196 -> -1270
B21: függőleges eltolás | H21: 0 | BI21: 19 | BJ21: =FIGURE_V2!AL197 -> 1.5 | BK21: =FIGURE_V2!AM197 -> 625 | BL21: =FIGURE_V2!AN197 -> -1225
B22: zoomolás | H22: 1 | BI22: 20 | BJ22: =FIGURE_V2!AL198 -> 4 | BK22: =FIGURE_V2!AM198 -> 750 | BL22: =FIGURE_V2!AN198 -> -1000
BI23: 21 | BJ23: =FIGURE_V2!AL199 -> 0 | BK23: =FIGURE_V2!AM199 -> 125 | BL23: =FIGURE_V2!AN199 -> -1360
BI24: 22 | BJ24: =FIGURE_V2!AL200 -> -0.5 | BK24: =FIGURE_V2!AM200 -> 375 | BL24: =FIGURE_V2!AN200 -> -1405
BI25: 23 | BJ25: =FIGURE_V2!AL201 -> -1 | BK25: =FIGURE_V2!AM201 -> 500 | BL25: =FIGURE_V2!AN201 -> -1450
BI26: 24 | BJ26: =FIGURE_V2!AL202 -> 0.5 | BK26: =FIGURE_V2!AM202 -> 625 | BL26: =FIGURE_V2!AN202 -> -1315
BI27: 25 | BJ27: =FIGURE_V2!AL203 ->  | BK27: =FIGURE_V2!AM203 -> 0 | BL27: =FIGURE_V2!AN203 -> 0
BI28: 26 | BJ28: =FIGURE_V2!AL204 ->  | BK28: =FIGURE_V2!AM204 -> 0 | BL28: =FIGURE_V2!AN204 -> 0
BI29: 27 | BJ29: =FIGURE_V2!AL205 ->  | BK29: =FIGURE_V2!AM205 -> 0 | BL29: =FIGURE_V2!AN205 -> 0
BI30: 28 | BJ30: =FIGURE_V2!AL206 ->  | BK30: =FIGURE_V2!AM206 -> 0 | BL30: =FIGURE_V2!AN206 -> 0
BI31: 29 | BJ31: =FIGURE_V2!AL207 ->  | BK31: =FIGURE_V2!AM207 -> 0 | BL31: =FIGURE_V2!AN207 -> 0
BI32: 30 | BJ32: =FIGURE_V2!AL208 ->  | BK32: =FIGURE_V2!AM208 -> 0 | BL32: =FIGURE_V2!AN208 -> 0
BI33: 31 | BJ33: =FIGURE_V2!AL209 ->  | BK33: =FIGURE_V2!AM209 -> 0 | BL33: =FIGURE_V2!AN209 -> 0
BI34: 32 | BJ34: =FIGURE_V2!AL210 ->  | BK34: =FIGURE_V2!AM210 -> 0 | BL34: =FIGURE_V2!AN210 -> 0
BI35: 33 | BJ35: =FIGURE_V2!AL211 ->  | BK35: =FIGURE_V2!AM211 -> 0 | BL35: =FIGURE_V2!AN211 -> 0
BI36: 34 | BJ36: =FIGURE_V2!AL212 ->  | BK36: =FIGURE_V2!AM212 -> 0 | BL36: =FIGURE_V2!AN212 -> 0
BI37: 35 | BJ37: =FIGURE_V2!AL213 ->  | BK37: =FIGURE_V2!AM213 -> 0 | BL37: =FIGURE_V2!AN213 -> 0
BI38: 36 | BJ38: =FIGURE_V2!AL214 ->  | BK38: =FIGURE_V2!AM214 -> 0 | BL38: =FIGURE_V2!AN214 -> 0
BI39: 37 | BJ39: =FIGURE_V2!AL215 ->  | BK39: =FIGURE_V2!AM215 -> 0 | BL39: =FIGURE_V2!AN215 -> 0
BI40: 38 | BJ40: =FIGURE_V2!AL216 ->  | BK40: =FIGURE_V2!AM216 -> 0 | BL40: =FIGURE_V2!AN216 -> 0
BI41: 39 | BJ41: =FIGURE_V2!AL217 ->  | BK41: =FIGURE_V2!AM217 -> 0 | BL41: =FIGURE_V2!AN217 -> 0
BI42: 40 | BJ42: =FIGURE_V2!AL218 ->  | BK42: =FIGURE_V2!AM218 -> 0 | BL42: =FIGURE_V2!AN218 -> 0
BI43: 41 | BJ43: =FIGURE_V2!AL219 ->  | BK43: =FIGURE_V2!AM219 -> 0 | BL43: =FIGURE_V2!AN219 -> 0
BI44: 42 | BJ44: =FIGURE_V2!AL220 ->  | BK44: =FIGURE_V2!AM220 -> 0 | BL44: =FIGURE_V2!AN220 -> 0
BI45: 43 | BJ45: =FIGURE_V2!AL221 ->  | BK45: =FIGURE_V2!AM221 -> 0 | BL45: =FIGURE_V2!AN221 -> 0
BI46: 44 | BJ46: =FIGURE_V2!AL222 ->  | BK46: =FIGURE_V2!AM222 -> 0 | BL46: =FIGURE_V2!AN222 -> 0
BI47: 45 | BJ47: =FIGURE_V2!AL223 ->  | BK47: =FIGURE_V2!AM223 -> 0 | BL47: =FIGURE_V2!AN223 -> 0
BI48: 46 | BJ48: =FIGURE_V2!AL224 ->  | BK48: =FIGURE_V2!AM224 -> 0 | BL48: =FIGURE_V2!AN224 -> 0
BI49: 47 | BJ49: =FIGURE_V2!AL225 ->  | BK49: =FIGURE_V2!AM225 -> 0 | BL49: =FIGURE_V2!AN225 -> 0
BI50: 48 | BJ50: =FIGURE_V2!AL226 ->  | BK50: =FIGURE_V2!AM226 -> 0 | BL50: =FIGURE_V2!AN226 -> 0
BI51: 49 | BJ51: =FIGURE_V2!AL227 ->  | BK51: =FIGURE_V2!AM227 -> 0 | BL51: =FIGURE_V2!AN227 -> 0
BI52: 50 | BJ52: =FIGURE_V2!AL228 ->  | BK52: =FIGURE_V2!AM228 -> 0 | BL52: =FIGURE_V2!AN228 -> 0
BI53: 51 | BJ53: =FIGURE_V2!AL229 ->  | BK53: =FIGURE_V2!AM229 -> 0 | BL53: =FIGURE_V2!AN229 -> 0
BI54: 52 | BJ54: =FIGURE_V2!AL230 ->  | BK54: =FIGURE_V2!AM230 -> 0 | BL54: =FIGURE_V2!AN230 -> 0
BI55: 53 | BJ55: =FIGURE_V2!AL231 ->  | BK55: =FIGURE_V2!AM231 -> 0 | BL55: =FIGURE_V2!AN231 -> 0
BI56: 54 | BJ56: =FIGURE_V2!AL232 ->  | BK56: =FIGURE_V2!AM232 -> 0 | BL56: =FIGURE_V2!AN232 -> 0
BI57: 55 | BJ57: =FIGURE_V2!AL233 ->  | BK57: =FIGURE_V2!AM233 -> 0 | BL57: =FIGURE_V2!AN233 -> 0
BI58: 56 | BJ58: =FIGURE_V2!AL234 ->  | BK58: =FIGURE_V2!AM234 -> 0 | BL58: =FIGURE_V2!AN234 -> 0
BI59: 57 | BJ59: =FIGURE_V2!AL235 ->  | BK59: =FIGURE_V2!AM235 -> 0 | BL59: =FIGURE_V2!AN235 -> 0
BI60: 58 | BJ60: =FIGURE_V2!AL236 ->  | BK60: =FIGURE_V2!AM236 -> 0 | BL60: =FIGURE_V2!AN236 -> 0
BI61: 59 | BJ61: =FIGURE_V2!AL237 ->  | BK61: =FIGURE_V2!AM237 -> 0 | BL61: =FIGURE_V2!AN237 -> 0
BI62: 60 | BJ62: =FIGURE_V2!AL238 ->  | BK62: =FIGURE_V2!AM238 -> 0 | BL62: =FIGURE_V2!AN238 -> 0
BI63: 61 | BJ63: =FIGURE_V2!AL239 ->  | BK63: =FIGURE_V2!AM239 -> 0 | BL63: =FIGURE_V2!AN239 -> 0
BI64: 62 | BJ64: =FIGURE_V2!AL240 ->  | BK64: =FIGURE_V2!AM240 -> 0 | BL64: =FIGURE_V2!AN240 -> 0
BI65: 63 | BJ65: =FIGURE_V2!AL241 ->  | BK65: =FIGURE_V2!AM241 -> 0 | BL65: =FIGURE_V2!AN241 -> 0
BI66: 64 | BJ66: =FIGURE_V2!AL242 ->  | BK66: =FIGURE_V2!AM242 -> 0 | BL66: =FIGURE_V2!AN242 -> 0
BI67: 65 | BJ67: =FIGURE_V2!AL243 ->  | BK67: =FIGURE_V2!AM243 -> 0 | BL67: =FIGURE_V2!AN243 -> 0
BI68: 66 | BJ68: =FIGURE_V2!AL244 ->  | BK68: =FIGURE_V2!AM244 -> 0 | BL68: =FIGURE_V2!AN244 -> 0
BI69: 67 | BJ69: =FIGURE_V2!AL245 ->  | BK69: =FIGURE_V2!AM245 -> 0 | BL69: =FIGURE_V2!AN245 -> 0
BI70: 68 | BJ70: =FIGURE_V2!AL246 ->  | BK70: =FIGURE_V2!AM246 -> 0 | BL70: =FIGURE_V2!AN246 -> 0
BI71: 69 | BJ71: =FIGURE_V2!AL247 ->  | BK71: =FIGURE_V2!AM247 -> 0 | BL71: =FIGURE_V2!AN247 -> 0
BI72: 70 | BJ72: =FIGURE_V2!AL248 ->  | BK72: =FIGURE_V2!AM248 -> 0 | BL72: =FIGURE_V2!AN248 -> 0
BI73: 71 | BJ73: =FIGURE_V2!AL249 ->  | BK73: =FIGURE_V2!AM249 -> 0 | BL73: =FIGURE_V2!AN249 -> 0
BI74: 72 | BJ74: =FIGURE_V2!AL250 ->  | BK74: =FIGURE_V2!AM250 -> 0 | BL74: =FIGURE_V2!AN250 -> 0
BI75: 73 | BJ75: =FIGURE_V2!AL251 ->  | BK75: =FIGURE_V2!AM251 -> 0 | BL75: =FIGURE_V2!AN251 -> 0
BI76: 74 | BJ76: =FIGURE_V2!AL252 ->  | BK76: =FIGURE_V2!AM252 -> 0 | BL76: =FIGURE_V2!AN252 -> 0
BI77: 75 | BJ77: =FIGURE_V2!AL253 ->  | BK77: =FIGURE_V2!AM253 -> 0 | BL77: =FIGURE_V2!AN253 -> 0
BI78: 76 | BJ78: =FIGURE_V2!AL254 ->  | BK78: =FIGURE_V2!AM254 -> 0 | BL78: =FIGURE_V2!AN254 -> 0
BI79: 77 | BJ79: =FIGURE_V2!AL255 ->  | BK79: =FIGURE_V2!AM255 -> 0 | BL79: =FIGURE_V2!AN255 -> 0
BI80: 78 | BJ80: =FIGURE_V2!AL256 ->  | BK80: =FIGURE_V2!AM256 -> 0 | BL80: =FIGURE_V2!AN256 -> 0
BI81: 79 | BJ81: =FIGURE_V2!AL257 ->  | BK81: =FIGURE_V2!AM257 -> 0 | BL81: =FIGURE_V2!AN257 -> 0
BI82: 80 | BJ82: =FIGURE_V2!AL258 ->  | BK82: =FIGURE_V2!AM258 -> 0 | BL82: =FIGURE_V2!AN258 -> 0
BI83: 81 | BJ83: =FIGURE_V2!AL259 ->  | BK83: =FIGURE_V2!AM259 -> 0 | BL83: =FIGURE_V2!AN259 -> 0
BI84: 82 | BJ84: =FIGURE_V2!AL260 ->  | BK84: =FIGURE_V2!AM260 -> 0 | BL84: =FIGURE_V2!AN260 -> 0
BI85: 83 | BJ85: =FIGURE_V2!AL261 ->  | BK85: =FIGURE_V2!AM261 -> 0 | BL85: =FIGURE_V2!AN261 -> 0
BI86: 84 | BJ86: =FIGURE_V2!AL262 ->  | BK86: =FIGURE_V2!AM262 -> 0 | BL86: =FIGURE_V2!AN262 -> 0
BI87: 85 | BJ87: =FIGURE_V2!AL263 ->  | BK87: =FIGURE_V2!AM263 -> 0 | BL87: =FIGURE_V2!AN263 -> 0
BI88: 86 | BJ88: =FIGURE_V2!AL264 ->  | BK88: =FIGURE_V2!AM264 -> 0 | BL88: =FIGURE_V2!AN264 -> 0
BI89: 87 | BJ89: =FIGURE_V2!AL265 ->  | BK89: =FIGURE_V2!AM265 -> 0 | BL89: =FIGURE_V2!AN265 -> 0
BI90: 88 | BJ90: =FIGURE_V2!AL266 ->  | BK90: =FIGURE_V2!AM266 -> 0 | BL90: =FIGURE_V2!AN266 -> 0
BI91: 89 | BJ91: =FIGURE_V2!AL267 ->  | BK91: =FIGURE_V2!AM267 -> 0 | BL91: =FIGURE_V2!AN267 -> 0
BI92: 90 | BJ92: =FIGURE_V2!AL268 ->  | BK92: =FIGURE_V2!AM268 -> 0 | BL92: =FIGURE_V2!AN268 -> 0
BI93: 91 | BJ93: =FIGURE_V2!AL269 ->  | BK93: =FIGURE_V2!AM269 -> 0 | BL93: =FIGURE_V2!AN269 -> 0
BI94: 92 | BJ94: =FIGURE_V2!AL270 ->  | BK94: =FIGURE_V2!AM270 -> 0 | BL94: =FIGURE_V2!AN270 -> 0
BI95: 93 | BJ95: =FIGURE_V2!AL271 ->  | BK95: =FIGURE_V2!AM271 -> 0 | BL95: =FIGURE_V2!AN271 -> 0
BI96: 94 | BJ96: =FIGURE_V2!AL272 ->  | BK96: =FIGURE_V2!AM272 -> 0 | BL96: =FIGURE_V2!AN272 -> 0
BI97: 95 | BJ97: =FIGURE_V2!AL273 ->  | BK97: =FIGURE_V2!AM273 -> 0 | BL97: =FIGURE_V2!AN273 -> 0
BI98: 96 | BJ98: =FIGURE_V2!AL274 ->  | BK98: =FIGURE_V2!AM274 -> 0 | BL98: =FIGURE_V2!AN274 -> 0
BI99: 97 | BJ99: =FIGURE_V2!AL275 ->  | BK99: =FIGURE_V2!AM275 -> 0 | BL99: =FIGURE_V2!AN275 -> 0
BI100: 98 | BJ100: =FIGURE_V2!AL276 ->  | BK100: =FIGURE_V2!AM276 -> 0 | BL100: =FIGURE_V2!AN276 -> 0
BI101: 99 | BJ101: =FIGURE_V2!AL277 ->  | BK101: =FIGURE_V2!AM277 -> 0 | BL101: =FIGURE_V2!AN277 -> 0
BI102: 100 | BJ102: =FIGURE_V2!AL278 ->  | BK102: =FIGURE_V2!AM278 -> 0 | BL102: =FIGURE_V2!AN278 -> 0
BI103: 101 | BJ103: =FIGURE_V2!AL279 ->  | BK103: =FIGURE_V2!AM279 -> 0 | BL103: =FIGURE_V2!AN279 -> 0
BI104: 102 | BJ104: =FIGURE_V2!AL280 ->  | BK104: =FIGURE_V2!AM280 -> 0 | BL104: =FIGURE_V2!AN280 -> 0
BI105: 103 | BJ105: =FIGURE_V2!AL281 ->  | BK105: =FIGURE_V2!AM281 -> 0 | BL105: =FIGURE_V2!AN281 -> 0
BI106: 104 | BJ106: =FIGURE_V2!AL282 ->  | BK106: =FIGURE_V2!AM282 -> 0 | BL106: =FIGURE_V2!AN282 -> 0
BI107: 105 | BJ107: =FIGURE_V2!AL283 ->  | BK107: =FIGURE_V2!AM283 -> 0 | BL107: =FIGURE_V2!AN283 -> 0
BI108: 106 | BJ108: =FIGURE_V2!AL284 ->  | BK108: =FIGURE_V2!AM284 -> 0 | BL108: =FIGURE_V2!AN284 -> 0
BI109: 107 | BJ109: =FIGURE_V2!AL285 ->  | BK109: =FIGURE_V2!AM285 -> 0 | BL109: =FIGURE_V2!AN285 -> 0
BI110: 108 | BJ110: =FIGURE_V2!AL286 ->  | BK110: =FIGURE_V2!AM286 -> 0 | BL110: =FIGURE_V2!AN286 -> 0
BI111: 109 | BJ111: =FIGURE_V2!AL287 ->  | BK111: =FIGURE_V2!AM287 -> 0 | BL111: =FIGURE_V2!AN287 -> 0
BI112: 110 | BJ112: =FIGURE_V2!AL288 ->  | BK112: =FIGURE_V2!AM288 -> 0 | BL112: =FIGURE_V2!AN288 -> 0
BI113: 111 | BJ113: =FIGURE_V2!AL289 ->  | BK113: =FIGURE_V2!AM289 -> 0 | BL113: =FIGURE_V2!AN289 -> 0
BI114: 112 | BJ114: =FIGURE_V2!AL290 ->  | BK114: =FIGURE_V2!AM290 -> 0 | BL114: =FIGURE_V2!AN290 -> 0
BI115: 113 | BJ115: =FIGURE_V2!AL291 ->  | BK115: =FIGURE_V2!AM291 -> 0 | BL115: =FIGURE_V2!AN291 -> 0
BI116: 114 | BJ116: =FIGURE_V2!AL292 ->  | BK116: =FIGURE_V2!AM292 -> 0 | BL116: =FIGURE_V2!AN292 -> 0
BI117: 115 | BJ117: =FIGURE_V2!AL293 ->  | BK117: =FIGURE_V2!AM293 -> 0 | BL117: =FIGURE_V2!AN293 -> 0
BI118: 116 | BJ118: =FIGURE_V2!AL294 ->  | BK118: =FIGURE_V2!AM294 -> 0 | BL118: =FIGURE_V2!AN294 -> 0
BI119: 117 | BJ119: =FIGURE_V2!AL295 ->  | BK119: =FIGURE_V2!AM295 -> 0 | BL119: =FIGURE_V2!AN295 -> 0
BI120: 118 | BJ120: =FIGURE_V2!AL296 ->  | BK120: =FIGURE_V2!AM296 -> 0 | BL120: =FIGURE_V2!AN296 -> 0
BI121: 119 | BJ121: =FIGURE_V2!AL297 ->  | BK121: =FIGURE_V2!AM297 -> 0 | BL121: =FIGURE_V2!AN297 -> 0
BI122: 120 | BJ122: =FIGURE_V2!AL298 ->  | BK122: =FIGURE_V2!AM298 -> 0 | BL122: =FIGURE_V2!AN298 -> 0
BI123: 121 | BJ123: =FIGURE_V2!AL299 ->  | BK123: =FIGURE_V2!AM299 -> 0 | BL123: =FIGURE_V2!AN299 -> 0
BI124: 122 | BJ124: =FIGURE_V2!AL300 ->  | BK124: =FIGURE_V2!AM300 -> 0 | BL124: =FIGURE_V2!AN300 -> 0
BI125: 123 | BJ125: =FIGURE_V2!AL301 ->  | BK125: =FIGURE_V2!AM301 -> 0 | BL125: =FIGURE_V2!AN301 -> 0
BI126: 124 | BJ126: =FIGURE_V2!AL302 ->  | BK126: =FIGURE_V2!AM302 -> 0 | BL126: =FIGURE_V2!AN302 -> 0
BI127: 125 | BJ127: =FIGURE_V2!AL303 ->  | BK127: =FIGURE_V2!AM303 -> 0 | BL127: =FIGURE_V2!AN303 -> 0
BI128: 126 | BJ128: =FIGURE_V2!AL304 ->  | BK128: =FIGURE_V2!AM304 -> 0 | BL128: =FIGURE_V2!AN304 -> 0
BI129: 127 | BJ129: =FIGURE_V2!AL305 ->  | BK129: =FIGURE_V2!AM305 -> 0 | BL129: =FIGURE_V2!AN305 -> 0
BI130: 128 | BJ130: =FIGURE_V2!AL306 ->  | BK130: =FIGURE_V2!AM306 -> 0 | BL130: =FIGURE_V2!AN306 -> 0
BI131: 129 | BJ131: =FIGURE_V2!AL307 ->  | BK131: =FIGURE_V2!AM307 -> 0 | BL131: =FIGURE_V2!AN307 -> 0
BI132: 130 | BJ132: =FIGURE_V2!AL308 ->  | BK132: =FIGURE_V2!AM308 -> 0 | BL132: =FIGURE_V2!AN308 -> 0
BI133: 131 | BJ133: =FIGURE_V2!AL309 ->  | BK133: =FIGURE_V2!AM309 -> 0 | BL133: =FIGURE_V2!AN309 -> 0
BI134: 132 | BJ134: =FIGURE_V2!AL310 ->  | BK134: =FIGURE_V2!AM310 -> 0 | BL134: =FIGURE_V2!AN310 -> 0
BI135: 133 | BJ135: =FIGURE_V2!AL311 ->  | BK135: =FIGURE_V2!AM311 -> 0 | BL135: =FIGURE_V2!AN311 -> 0
BI136: 134 | BJ136: =FIGURE_V2!AL312 ->  | BK136: =FIGURE_V2!AM312 -> 0 | BL136: =FIGURE_V2!AN312 -> 0
BI137: 135 | BJ137: =FIGURE_V2!AL313 ->  | BK137: =FIGURE_V2!AM313 -> 0 | BL137: =FIGURE_V2!AN313 -> 0
BI138: 136 | BJ138: =FIGURE_V2!AL314 ->  | BK138: =FIGURE_V2!AM314 -> 0 | BL138: =FIGURE_V2!AN314 -> 0
BI139: 137 | BJ139: =FIGURE_V2!AL315 ->  | BK139: =FIGURE_V2!AM315 -> 0 | BL139: =FIGURE_V2!AN315 -> 0
BI140: 138 | BJ140: =FIGURE_V2!AL316 ->  | BK140: =FIGURE_V2!AM316 -> 0 | BL140: =FIGURE_V2!AN316 -> 0
BI141: 139 | BJ141: =FIGURE_V2!AL317 ->  | BK141: =FIGURE_V2!AM317 -> 0 | BL141: =FIGURE_V2!AN317 -> 0
BI142: 140 | BJ142: =FIGURE_V2!AL318 ->  | BK142: =FIGURE_V2!AM318 -> 0 | BL142: =FIGURE_V2!AN318 -> 0
BI143: 141 | BJ143: =FIGURE_V2!AL319 ->  | BK143: =FIGURE_V2!AM319 -> 0 | BL143: =FIGURE_V2!AN319 -> 0
BI144: 142 | BJ144: =FIGURE_V2!AL320 ->  | BK144: =FIGURE_V2!AM320 -> 0 | BL144: =FIGURE_V2!AN320 -> 0
BI145: 143 | BJ145: =FIGURE_V2!AL321 ->  | BK145: =FIGURE_V2!AM321 -> 0 | BL145: =FIGURE_V2!AN321 -> 0
BI146: 144 | BJ146: =FIGURE_V2!AL322 ->  | BK146: =FIGURE_V2!AM322 -> 0 | BL146: =FIGURE_V2!AN322 -> 0
BI147: 145 | BJ147: =FIGURE_V2!AL323 ->  | BK147: =FIGURE_V2!AM323 -> 0 | BL147: =FIGURE_V2!AN323 -> 0
BI148: 146 | BJ148: =FIGURE_V2!AL324 ->  | BK148: =FIGURE_V2!AM324 -> 0 | BL148: =FIGURE_V2!AN324 -> 0
BI149: 147 | BJ149: =FIGURE_V2!AL325 ->  | BK149: =FIGURE_V2!AM325 -> 0 | BL149: =FIGURE_V2!AN325 -> 0
BI150: 148 | BJ150: =FIGURE_V2!AL326 ->  | BK150: =FIGURE_V2!AM326 -> 0 | BL150: =FIGURE_V2!AN326 -> 0
BI151: 149 | BJ151: =FIGURE_V2!AL327 ->  | BK151: =FIGURE_V2!AM327 -> 0 | BL151: =FIGURE_V2!AN327 -> 0
BI152: 150 | BJ152: =FIGURE_V2!AL328 ->  | BK152: =FIGURE_V2!AM328 -> 0 | BL152: =FIGURE_V2!AN328 -> 0
BI153: 151 | BJ153: =FIGURE_V2!AL329 ->  | BK153: =FIGURE_V2!AM329 -> 0 | BL153: =FIGURE_V2!AN329 -> 0
BI154: 152 | BJ154: =FIGURE_V2!AL330 ->  | BK154: =FIGURE_V2!AM330 -> 0 | BL154: =FIGURE_V2!AN330 -> 0
BI155: 153 | BJ155: =FIGURE_V2!AL331 ->  | BK155: =FIGURE_V2!AM331 -> 0 | BL155: =FIGURE_V2!AN331 -> 0
BI156: 154 | BJ156: =FIGURE_V2!AL332 ->  | BK156: =FIGURE_V2!AM332 -> 0 | BL156: =FIGURE_V2!AN332 -> 0
BI157: 155 | BJ157: =FIGURE_V2!AL333 ->  | BK157: =FIGURE_V2!AM333 -> 0 | BL157: =FIGURE_V2!AN333 -> 0
BI158: 156 | BJ158: =FIGURE_V2!AL334 ->  | BK158: =FIGURE_V2!AM334 -> 0 | BL158: =FIGURE_V2!AN334 -> 0
BI159: 157 | BJ159: =FIGURE_V2!AL335 ->  | BK159: =FIGURE_V2!AM335 -> 0 | BL159: =FIGURE_V2!AN335 -> 0
BI160: 158 | BJ160: =FIGURE_V2!AL336 ->  | BK160: =FIGURE_V2!AM336 -> 0 | BL160: =FIGURE_V2!AN336 -> 0
BI161: 159 | BJ161: =FIGURE_V2!AL337 ->  | BK161: =FIGURE_V2!AM337 -> 0 | BL161: =FIGURE_V2!AN337 -> 0
BI162: 160 | BJ162: =FIGURE_V2!AL338 ->  | BK162: =FIGURE_V2!AM338 -> 0 | BL162: =FIGURE_V2!AN338 -> 0
BI163: 161 | BJ163: =FIGURE_V2!AL339 ->  | BK163: =FIGURE_V2!AM339 -> 0 | BL163: =FIGURE_V2!AN339 -> 0
BI164: 162 | BJ164: =FIGURE_V2!AL340 ->  | BK164: =FIGURE_V2!AM340 -> 0 | BL164: =FIGURE_V2!AN340 -> 0
BI165: 163 | BJ165: =FIGURE_V2!AL341 ->  | BK165: =FIGURE_V2!AM341 -> 0 | BL165: =FIGURE_V2!AN341 -> 0
BI166: 164 | BJ166: =FIGURE_V2!AL342 ->  | BK166: =FIGURE_V2!AM342 -> 0 | BL166: =FIGURE_V2!AN342 -> 0
BI167: 165 | BJ167: =FIGURE_V2!AL343 ->  | BK167: =FIGURE_V2!AM343 -> 0 | BL167: =FIGURE_V2!AN343 -> 0
BI168: 166 | BJ168: =FIGURE_V2!AL344 ->  | BK168: =FIGURE_V2!AM344 -> 0 | BL168: =FIGURE_V2!AN344 -> 0
BI169: 167 | BJ169: =FIGURE_V2!AL345 ->  | BK169: =FIGURE_V2!AM345 -> 0 | BL169: =FIGURE_V2!AN345 -> 0
BI170: 168 | BJ170: =FIGURE_V2!AL346 ->  | BK170: =FIGURE_V2!AM346 -> 0 | BL170: =FIGURE_V2!AN346 -> 0
BI171: 169 | BJ171: =FIGURE_V2!AL347 ->  | BK171: =FIGURE_V2!AM347 -> 0 | BL171: =FIGURE_V2!AN347 -> 0
BI172: 170 | BJ172: =FIGURE_V2!AL348 ->  | BK172: =FIGURE_V2!AM348 -> 0 | BL172: =FIGURE_V2!AN348 -> 0
BI173: 171 | BJ173: =FIGURE_V2!AL349 ->  | BK173: =FIGURE_V2!AM349 -> 0 | BL173: =FIGURE_V2!AN349 -> 0
BI174: 172 | BJ174: =FIGURE_V2!AL350 ->  | BK174: =FIGURE_V2!AM350 -> 0 | BL174: =FIGURE_V2!AN350 -> 0
BI175: 173 | BJ175: =FIGURE_V2!AL351 ->  | BK175: =FIGURE_V2!AM351 -> 0 | BL175: =FIGURE_V2!AN351 -> 0
BI176: 174 | BJ176: =FIGURE_V2!AL352 ->  | BK176: =FIGURE_V2!AM352 -> 0 | BL176: =FIGURE_V2!AN352 -> 0
BI177: 175 | BJ177: =FIGURE_V2!AL353 ->  | BK177: =FIGURE_V2!AM353 -> 0 | BL177: =FIGURE_V2!AN353 -> 0
BI178: 176 | BJ178: =FIGURE_V2!AL354 ->  | BK178: =FIGURE_V2!AM354 -> 0 | BL178: =FIGURE_V2!AN354 -> 0
BI179: 177 | BJ179: =FIGURE_V2!AL355 ->  | BK179: =FIGURE_V2!AM355 -> 0 | BL179: =FIGURE_V2!AN355 -> 0
BI180: 178 | BJ180: =FIGURE_V2!AL356 ->  | BK180: =FIGURE_V2!AM356 -> 0 | BL180: =FIGURE_V2!AN356 -> 0
BI181: 179 | BJ181: =FIGURE_V2!AL357 ->  | BK181: =FIGURE_V2!AM357 -> 0 | BL181: =FIGURE_V2!AN357 -> 0
BI182: 180 | BJ182: =FIGURE_V2!AL358 ->  | BK182: =FIGURE_V2!AM358 -> 0 | BL182: =FIGURE_V2!AN358 -> 0
BI183: 181 | BJ183: =FIGURE_V2!AL359 ->  | BK183: =FIGURE_V2!AM359 -> 0 | BL183: =FIGURE_V2!AN359 -> 0
BI184: 182 | BJ184: =FIGURE_V2!AL360 ->  | BK184: =FIGURE_V2!AM360 -> 0 | BL184: =FIGURE_V2!AN360 -> 0
BI185: 183 | BJ185: =FIGURE_V2!AL361 ->  | BK185: =FIGURE_V2!AM361 -> 0 | BL185: =FIGURE_V2!AN361 -> 0
BI186: 184 | BJ186: =FIGURE_V2!AL362 ->  | BK186: =FIGURE_V2!AM362 -> 0 | BL186: =FIGURE_V2!AN362 -> 0
BI187: 185 | BJ187: =FIGURE_V2!AL363 ->  | BK187: =FIGURE_V2!AM363 -> 0 | BL187: =FIGURE_V2!AN363 -> 0
BI188: 186 | BJ188: =FIGURE_V2!AL364 ->  | BK188: =FIGURE_V2!AM364 -> 0 | BL188: =FIGURE_V2!AN364 -> 0
BI189: 187 | BJ189: =FIGURE_V2!AL365 ->  | BK189: =FIGURE_V2!AM365 -> 0 | BL189: =FIGURE_V2!AN365 -> 0
BI190: 188 | BJ190: =FIGURE_V2!AL366 ->  | BK190: =FIGURE_V2!AM366 -> 0 | BL190: =FIGURE_V2!AN366 -> 0
BI191: 189 | BJ191: =FIGURE_V2!AL367 ->  | BK191: =FIGURE_V2!AM367 -> 0 | BL191: =FIGURE_V2!AN367 -> 0
BI192: 190 | BJ192: =FIGURE_V2!AL368 ->  | BK192: =FIGURE_V2!AM368 -> 0 | BL192: =FIGURE_V2!AN368 -> 0
BI193: 191 | BJ193: =FIGURE_V2!AL369 ->  | BK193: =FIGURE_V2!AM369 -> 0 | BL193: =FIGURE_V2!AN369 -> 0
BI194: 192 | BJ194: =FIGURE_V2!AL370 ->  | BK194: =FIGURE_V2!AM370 -> 0 | BL194: =FIGURE_V2!AN370 -> 0
BI195: 193 | BJ195: =FIGURE_V2!AL371 ->  | BK195: =FIGURE_V2!AM371 -> 0 | BL195: =FIGURE_V2!AN371 -> 0
BI196: 194 | BJ196: =FIGURE_V2!AL372 ->  | BK196: =FIGURE_V2!AM372 -> 0 | BL196: =FIGURE_V2!AN372 -> 0
BI197: 195 | BJ197: =FIGURE_V2!AL373 ->  | BK197: =FIGURE_V2!AM373 -> 0 | BL197: =FIGURE_V2!AN373 -> 0
BI198: 196 | BJ198: =FIGURE_V2!AL374 ->  | BK198: =FIGURE_V2!AM374 -> 0 | BL198: =FIGURE_V2!AN374 -> 0
BI199: 197 | BJ199: =FIGURE_V2!AL375 ->  | BK199: =FIGURE_V2!AM375 -> 0 | BL199: =FIGURE_V2!AN375 -> 0
BI200: 198 | BJ200: =FIGURE_V2!AL376 ->  | BK200: =FIGURE_V2!AM376 -> 0 | BL200: =FIGURE_V2!AN376 -> 0
... 53 more rows

Sheet CALC (hidden)
C1: DATA INPUT | F1: w: fal, s: kéttámaszú
C2: wall | D2: =HOME!F15 -> 0 | F2: =HOME!A1 -> s | G2: hossz: | H2: =HOME!C10 -> 8
C3: sup1_csA | D3: =HOME!F13 -> 2
C4: sup2_gB | D4: =HOME!F14 -> 6 | AL4: q1* | AR4: q2* | AX4: q3* | BD4: q4* | BJ4: q5*
D5: Fx | E5: Fy | F5: loc | G5: x | H5: y | I5: MfromF | J5: locMfF | N5: mag | O5: loc | Q5: x | U5: y | Y5: loc1 | Z5: loc2 | AA5: mag | AB5: med | AC5: Fq | AF5: F | AG5: M | AH5: M_F | AI5: q1 | AJ5: q2 | AK5: mag | AL5: q1 | AM5: q2 | AN5: mag | AO5: med | AP5: Fq | AR5: q1 | AS5: q2 | AT5: mag | AU5: med | AV5: Fq | AX5: q1 | AY5: q2 | AZ5: mag | BA5: med | BB5: Fq | BD5: q1 | BE5: q2 | BF5: mag | BG5: med | BH5: Fq | BJ5: q1 | BK5: q2 | BL5: mag | BM5: med | BN5: Fq | BV5: 0 | BX5: =BX6 -> 1 | BY5: 0
C6: F1 | D6: =IF(HOME!L7="D",HOME!M7,HOME!M7*COS(HOME!Q7*PI()/180)) -> 1 | E6: =IF(HOME!L7="D",HOME!Q7,HOME!M7*SIN(HOME!Q7*PI()/180)) -> -2 | F6: =HOME!U7 -> 8 | G6: =IF(HOME!Y7="D",HOME!Z7,HOME!Z7*COS(HOME!AD7*PI()/180)) -> 0 | H6: =IF(HOME!Y7="D",HOME!AD7,HOME!Z7*SIN(HOME!AD7*PI()/180)) -> 0 | I6: =IF(OR(ISNUMBER(G6),ISNUMBER(H6)),E6*G6-D6*H6,"") -> 0 | J6: =IF(AND(G6=0,H6=0),"",IF(ISNUMBER(I6),F6,"")) ->  | M6: M1 | N6: =HOME!AI5 -> 2 | O6: =HOME!AM5 -> 4 | X6: q1 | Y6: =HOME!AM12 -> 0 | Z6: =HOME!AQ12 -> 6 | AA6: =HOME!AI12 -> -2 | AB6: =Y6+(Z6-Y6)/2 -> 3 | AC6: =(Z6-Y6)*AA6 -> -12 | AF6: =IF(E6<>0,F6,"") -> 8 | AG6: =IF(ISNUMBER(O6),O6,"") -> 4 | AH6: =IF(ISNUMBER(J6),J6,"") ->  | AI6: =Y6 -> 0 | AJ6: =Z6 -> 6 | AK6: =AA6 -> -2 | AL6: =IF(AND(AI6=0,AJ6=0),NA(),AI6) -> 0 | AM6: =IF(AL6="","",IF(SMALL($BS$6:$BS$43,$AH$21+BQ6)<$AJ$6,SMALL($BS$6:$BS$43,$AH$21+BQ6),$AJ$6)) -> 2 | AN6: =IF(ISNUMBER(AL6),$AK$6,"") -> -2 | AO6: =IF(ISNUMBER(AL6),AL6+(AM6-AL6)/2,"") -> 1 | AP6: =IF(ISNUMBER(AL6),(AM6-AL6)*AN6,"") -> -4 | AR6: =IF(AND(AI7=0,AJ7=0),NA(),AI7) ->  | AS6: =IF(AR6="","",IF(SMALL($BS$6:$BS$43,$AH$22+BQ6)<$AJ$7,SMALL($BS$6:$BS$43,$AH$22+BQ6),$AJ$7)) ->  | AT6: =IF(ISNUMBER(AR6),$AK$7,"") ->  | AU6: =IF(ISNUMBER(AR6),AR6+(AS6-AR6)/2,"") ->  | AV6: =IF(ISNUMBER(AR6),(AS6-AR6)*AT6,"") ->  | AX6: =IF(AND(AI8=0,AJ8=0),NA(),AI8) ->  | AY6: =IF(AX6="","",IF(SMALL($BS$6:$BS$43,$AH$23+BQ6)<$AJ$8,SMALL($BS$6:$BS$43,$AH$23+BQ6),$AJ$8)) ->  | AZ6: =IF(ISNUMBER(AX6),$AK$8,"") ->  | BA6: =IF(ISNUMBER(AX6),AX6+(AY6-AX6)/2,"") ->  | BB6: =IF(ISNUMBER(AX6),(AY6-AX6)*AZ6,"") ->  | BD6: =IF(AND(AI9=0,AJ9=0),NA(),AI9) ->  | BE6: =IF(BD6="","",IF(SMALL($BS$6:$BS$43,$AH$24+BQ6)<$AJ$9,SMALL($BS$6:$BS$43,$AH$24+BQ6),$AJ$9)) ->  | BF6: =IF(ISNUMBER(BD6),$AK$9,"") ->  | BG6: =IF(ISNUMBER(BD6),BD6+(BE6-BD6)/2,"") ->  | BH6: =IF(ISNUMBER(BD6),(BE6-BD6)*BF6,"") ->  | BJ6: =IF(AND(AI10=0,AJ10=0),NA(),AI10) ->  | BK6: =IF(BJ6="","",IF(SMALL($BS$6:$BS$43,$AH$25+BQ6)<$AJ$10,SMALL($BS$6:$BS$43,$AH$25+BQ6),$AJ$10)) ->  | BL6: =IF(ISNUMBER(BJ6),$AK$10,"") ->  | BM6: =IF(ISNUMBER(BJ6),BJ6+(BK6-BJ6)/2,"") ->  | BN6: =IF(ISNUMBER(BJ6),(BK6-BJ6)*BL6,"") ->  | BQ6: 1 | BR6: =SMALL($AF$6:$AJ$17,BQ6) -> 0 | BS6: =IF(ISNUMBER(BR6),BR6,"") -> 0 | BU6: =IF(OR(BS6=0,BS6=""),"",BS6) ->  | BV6: =SMALL($BU$6:$BU$43,BQ6) -> 2 | BX6: =(BV5+BV6)/2 -> 1 | BY6: =INDEX($J$23:$J$1100,MATCH(BX6,$D$23:$D$1100,0)) -> 0
C7: F2 | D7: =IF(HOME!L8="D",HOME!M8,HOME!M8*COS(HOME!Q8*PI()/180)) -> 0 | E7: =IF(HOME!L8="D",HOME!Q8,HOME!M8*SIN(HOME!Q8*PI()/180)) -> 0 | F7: =HOME!U8 -> 0 | G7: =IF(HOME!Y8="D",HOME!Z8,HOME!Z8*COS(HOME!AD8*PI()/180)) -> 0 | H7: =IF(HOME!Y8="D",HOME!AD8,HOME!Z8*SIN(HOME!AD8*PI()/180)) -> 0 | I7: =IF(OR(ISNUMBER(G7),ISNUMBER(H7)),E7*G7-D7*H7,"") -> 0 | J7: =IF(AND(G7=0,H7=0),"",IF(ISNUMBER(I7),F7,"")) ->  | M7: M2 | N7: =HOME!AI6 -> 0 | O7: =HOME!AM6 -> 0 | X7: q2 | Y7: =HOME!AM13 -> 0 | Z7: =HOME!AQ13 -> 0 | AA7: =HOME!AI13 -> 0 | AB7: =Y7+(Z7-Y7)/2 -> 0 | AC7: =(Z7-Y7)*AA7 -> 0 | AF7: =IF(E7<>0,F7,"") ->  | AG7: =IF(ISNUMBER(O7),O7,"") -> 0 | AH7: =IF(ISNUMBER(J7),J7,"") ->  | AI7: =Y7 -> 0 | AJ7: =Z7 -> 0 | AK7: =AA7 -> 0 | AL7: =IF(AM6<$AJ$6,AM6,"") -> 2 | AM7: 4 | AN7: -2 | AO7: =IF(ISNUMBER(AL7),AL7+(AM7-AL7)/2,"") -> 3 | AP7: -4 | AR7: =IF(AS6<$AJ$7,AS6,"") ->  | AT7: =IF(ISNUMBER(AR7),$AK$7,"") ->  | AU7: =IF(ISNUMBER(AR7),AR7+(AS7-AR7)/2,"") ->  | AV7: =IF(ISNUMBER(AR7),(AS7-AR7)*AT7,"") ->  | AX7: =IF(AY6<$AJ$8,AY6,"") ->  | AZ7: =IF(ISNUMBER(AX7),$AK$8,"") ->  | BA7: =IF(ISNUMBER(AX7),AX7+(AY7-AX7)/2,"") ->  | BB7: =IF(ISNUMBER(AX7),(AY7-AX7)*AZ7,"") ->  | BD7: =IF(BE6<$AJ$9,BE6,"") ->  | BE7: =IF(BD7="","",IF(SMALL($BS$6:$BS$43,$AH$24+BQ7)<$AJ$9,SMALL($BS$6:$BS$43,$AH$24+BQ7),$AJ$9)) ->  | BF7: =IF(ISNUMBER(BD7),$AK$9,"") ->  | BG7: =IF(ISNUMBER(BD7),BD7+(BE7-BD7)/2,"") ->  | BH7: =IF(ISNUMBER(BD7),(BE7-BD7)*BF7,"") ->  | BJ7: =IF(BK6<$AJ$10,BK6,"") ->  | BK7: =IF(BJ7="","",IF(SMALL($BS$6:$BS$43,$AH$25+BQ7)<$AJ$10,SMALL($BS$6:$BS$43,$AH$25+BQ7),$AJ$10)) ->  | BL7: =IF(ISNUMBER(BJ7),$AK$10,"") ->  | BM7: =IF(ISNUMBER(BJ7),BJ7+(BK7-BJ7)/2,"") ->  | BN7: =IF(ISNUMBER(BJ7),(BK7-BJ7)*BL7,"") ->  | BQ7: 2 | BR7: =SMALL($AF$6:$AJ$17,BQ7) -> 0 | BS7: 0 | BU7: =IF(OR(BS7=0,BS7=""),"",BS7) ->  | BV7: =SMALL($BU$6:$BU$43,BQ7) -> 4
C8: F3 | D8: =IF(HOME!L9="D",HOME!M9,HOME!M9*COS(HOME!Q9*PI()/180)) -> 0 | E8: =IF(HOME!L9="D",HOME!Q9,HOME!M9*SIN(HOME!Q9*PI()/180)) -> 0 | F8: =HOME!U9 -> 0 | G8: =IF(HOME!Y9="D",HOME!Z9,HOME!Z9*COS(HOME!AD9*PI()/180)) -> 0 | H8: =IF(HOME!Y9="D",HOME!AD9,HOME!Z9*SIN(HOME!AD9*PI()/180)) -> 0 | I8: =IF(OR(ISNUMBER(G8),ISNUMBER(H8)),E8*G8-D8*H8,"") -> 0 | M8: M3 | N8: =HOME!AI7 -> 0 | O8: =HOME!AM7 -> 0 | X8: q3 | Y8: =HOME!AM14 -> 0 | Z8: =HOME!AQ14 -> 0 | AA8: =HOME!AI14 -> 0 | AB8: 0 | AC8: =(Z8-Y8)*AA8 -> 0 | AG8: 0 | AI8: 0 | AJ8: 0 | AK8: 0 | AL8: 4 | AM8: 6 | AN8: -2 | AO8: 5 | AP8: -4 | AR8: =IF(AS7<$AJ$7,AS7,"") ->  | AT8: =IF(ISNUMBER(AR8),$AK$7,"") ->  | AU8: =IF(ISNUMBER(AR8),AR8+(AS8-AR8)/2,"") ->  | AV8: =IF(ISNUMBER(AR8),(AS8-AR8)*AT8,"") ->  | AX8: =IF(AY7<$AJ$8,AY7,"") ->  | AZ8: =IF(ISNUMBER(AX8),$AK$8,"") ->  | BD8: =IF(BE7<$AJ$9,BE7,"") ->  | BJ8: =IF(BK7<$AJ$10,BK7,"") ->  | BQ8: 3 | BR8: 0 | BS8: 0 | BV8: 6 | BX8: =BX9 -> 2 | BY8: 0
C9: F4 | D9: =IF(HOME!L10="D",HOME!M10,HOME!M10*COS(HOME!Q10*PI()/180)) -> 0 | E9: =IF(HOME!L10="D",HOME!Q10,HOME!M10*SIN(HOME!Q10*PI()/180)) -> 0 | F9: =HOME!U10 -> 0 | G9: =IF(HOME!Y10="D",HOME!Z10,HOME!Z10*COS(HOME!AD10*PI()/180)) -> 0 | H9: =IF(HOME!Y10="D",HOME!AD10,HOME!Z10*SIN(HOME!AD10*PI()/180)) -> 0 | I9: =IF(OR(ISNUMBER(G9),ISNUMBER(H9)),E9*G9-D9*H9,"") -> 0 | M9: M4 | N9: =HOME!AI8 -> 0 | O9: =HOME!AM8 -> 0 | X9: q4 | Y9: =HOME!AM15 -> 0 | Z9: =HOME!AQ15 -> 0 | AA9: =HOME!AI15 -> 0 | AB9: 0 | AC9: =(Z9-Y9)*AA9 -> 0 | AG9: 0 | AI9: 0 | AJ9: 0 | AK9: 0 | BQ9: 4 | BR9: 0 | BS9: 0 | BV9: 6 | BX9: =BV6 -> 2 | BY9: =INDEX($J$23:$J$1100,MATCH(BX9,$D$23:$D$1100,0)) -> -4
C10: F5 | D10: =IF(HOME!L11="D",HOME!M11,HOME!M11*COS(HOME!Q11*PI()/180)) -> 0 | E10: =IF(HOME!L11="D",HOME!Q11,HOME!M11*SIN(HOME!Q11*PI()/180)) -> 0 | F10: =HOME!U11 -> 0 | G10: =IF(HOME!Y11="D",HOME!Z11,HOME!Z11*COS(HOME!AD11*PI()/180)) -> 0 | H10: =IF(HOME!Y11="D",HOME!AD11,HOME!Z11*SIN(HOME!AD11*PI()/180)) -> 0 | I10: =IF(OR(ISNUMBER(G10),ISNUMBER(H10)),E10*G10-D10*H10,"") -> 0 | M10: M5 | N10: =HOME!AI9 -> 0 | O10: =HOME!AM9 -> 0 | X10: q5 | Y10: =HOME!AM16 -> 0 | Z10: =HOME!AQ16 -> 0 | AA10: =HOME!AI16 -> 0 | AB10: 0 | AC10: =(Z10-Y10)*AA10 -> 0 | AG10: 0 | AI10: 0 | AJ10: 0 | AK10: 0 | BQ10: 5 | BR10: 0 | BS10: 0 | BV10: 8
C11: F6 | D11: =IF(HOME!L12="D",HOME!M12,HOME!M12*COS(HOME!Q12*PI()/180)) -> 0 | E11: =IF(HOME!L12="D",HOME!Q12,HOME!M12*SIN(HOME!Q12*PI()/180)) -> 0 | F11: =HOME!U12 -> 0 | G11: =IF(HOME!Y12="D",HOME!Z12,HOME!Z12*COS(HOME!AD12*PI()/180)) -> 0 | H11: =IF(HOME!Y12="D",HOME!AD12,HOME!Z12*SIN(HOME!AD12*PI()/180)) -> 0 | I11: =IF(OR(ISNUMBER(G11),ISNUMBER(H11)),E11*G11-D11*H11,"") -> 0 | M11: MA | N11: =IF(F2="w",D21,IF(F2="s","")) ->  | O11: =IF(F2="w",D2,IF(F2="s","")) ->  | AF11: =IF(E11<>0,F11,"") ->  | AG11: =IF(ISNUMBER(O11),O11,"") ->  | AK11: 0 | BQ11: 6 | BR11: 0 | BS11: 0 | BX11: =BX12 -> 3 | BY11: 0
C12: F7 | D12: =IF(HOME!L13="D",HOME!M13,HOME!M13*COS(HOME!Q13*PI()/180)) -> 0 | E12: =IF(HOME!L13="D",HOME!Q13,HOME!M13*SIN(HOME!Q13*PI()/180)) -> 0 | F12: =HOME!U13 -> 0 | G12: =IF(HOME!Y13="D",HOME!Z13,HOME!Z13*COS(HOME!AD13*PI()/180)) -> 0 | H12: =IF(HOME!Y13="D",HOME!AD13,HOME!Z13*SIN(HOME!AD13*PI()/180)) -> 0 | I12: 0 | AK12: 0 | BQ12: 7 | BR12: 0 | BS12: 0 | BX12: =(BV6+BV7)/2 -> 3 | BY12: 4.5
C13: F8 | D13: =IF(HOME!L14="D",HOME!M14,HOME!M14*COS(HOME!Q14*PI()/180)) -> 0 | E13: =IF(HOME!L14="D",HOME!Q14,HOME!M14*SIN(HOME!Q14*PI()/180)) -> 0 | F13: =HOME!U14 -> 0 | G13: =IF(HOME!Y14="D",HOME!Z14,HOME!Z14*COS(HOME!AD14*PI()/180)) -> 0 | H13: =IF(HOME!Y14="D",HOME!AD14,HOME!Z14*SIN(HOME!AD14*PI()/180)) -> 0 | I13: 0 | BQ13: 8 | BR13: 0 | BS13: 0
C14: F9 | D14: =IF(HOME!L15="D",HOME!M15,HOME!M15*COS(HOME!Q15*PI()/180)) -> 0 | E14: =IF(HOME!L15="D",HOME!Q15,HOME!M15*SIN(HOME!Q15*PI()/180)) -> 0 | F14: =HOME!U15 -> 0 | G14: =IF(HOME!Y15="D",HOME!Z15,HOME!Z15*COS(HOME!AD15*PI()/180)) -> 0 | H14: =IF(HOME!Y15="D",HOME!AD15,HOME!Z15*SIN(HOME!AD15*PI()/180)) -> 0 | I14: 0 | BQ14: 9 | BR14: 0 | BS14: 0 | BX14: =BX15 -> 4 | BY14: 0
C15: F10 | D15: =IF(HOME!L16="D",HOME!M16,HOME!M16*COS(HOME!Q16*PI()/180)) -> 0 | E15: =IF(HOME!L16="D",HOME!Q16,HOME!M16*SIN(HOME!Q16*PI()/180)) -> 0 | F15: =HOME!U16 -> 0 | G15: =IF(HOME!Y16="D",HOME!Z16,HOME!Z16*COS(HOME!AD16*PI()/180)) -> 0 | H15: =IF(HOME!Y16="D",HOME!AD16,HOME!Z16*SIN(HOME!AD16*PI()/180)) -> 0 | I15: 0 | AA15: q | BQ15: 10 | BR15: 0 | BS15: 0 | BX15: =BV7 -> 4 | BY15: 0.5
C16: FA | D16: =IF(F2="s",F19,IF(F2="w",D19)) -> -1 | E16: =IF(F2="s",F20,IF(F2="w",D20)) -> 8.5 | F16: =IF(F2="w",D2,D3) -> 2 | AA16: =AI6 -> 0 | AB16: =IF(AND(MIN(AF6:AG7)>AI6,MIN(AF6:AG7)<AJ6),MIN(AF6:AG7),AJ6) -> 6 | AF16: 2 | AH16: =IF(ISNUMBER(J16),J16,"") ->  | BQ16: 11 | BR16: 0 | BS16: 0
C17: FB | E17: =IF(F2="s",F21,IF(F2="w","")) -> 5.5 | F17: =IF(F2="w",D2,D4) -> 6 | AA17: =IF(AB16<AJ6,AB16,AI7) -> 0 | AB17: =IF(AND(SMALL(AF6:AG7,2)>AI6,SMALL(AF6:AG7,2)<AJ6),SMALL(AF6:AG7,2),AJ6) -> 4 | AF17: 6 | AL17: =IF(AM16<$AJ$6,AM16,"") ->  | BQ17: 12 | BR17: 0 | BS17: 0 | BX17: =BX18 -> 5 | BY17: 0
C18: wall | E18: sup | AA18: =IF(AB17<AJ6,AB17,AI7) -> 4 | AB18: =IF(AND(SMALL(AF6:AG7,3)>AI6,SMALL(AF6:AG7,3)<AJ6),SMALL(AF6:AG7,3),AJ6) -> 6 | BQ18: 13 | BR18: 0 | BS18: 0 | BX18: =(BV7+BV8)/2 -> 5 | BY18: 0.5
C19: Fax | D19: =-1*SUM(D6:D15) -> -1 | E19: FAX | F19: =-1*SUM(D6:D15) -> -1 | H19: step | I19: 1000 | O19: =MAX(Q23:Q1100) -> 4 | AA19: =IF(AB18<AJ6,AB17,AI7) -> 0 | BQ19: 14 | BR19: 2 | BS19: 2 | BU19: 2
C20: Fay | D20: =-1*(SUM(E6:E15)+SUM(AC6:AC10)) -> 14 | E20: FAY | F20: =((SUM(I6:I15)+SUM(N6:N10)+(F6-D4)*E6+(F7-D4)*E7+(F8-D4)*E8+(F9-D4)*E9+(F10-D4)*E10+(F11-D4)*E11+(F12-D4)*E12+(F13-D4)*E13+(F14-D4)*E14+(F15-D4)*E15+(AB6-D4)*AC6+(AB7-D4)*AC7+(AB8-D4)*AC8+(AB9-D4)*AC9+(AB10-D4)*AC10))/(D4-D3) -> 8.5 | H20: =H2/I19 -> 0.008 | O20: =MIN(Q23:Q1100) -> -1 | P20: 10 | R20: points on | S20: 1 | AH20: q1 | AI20: q2 | BQ20: 15 | BR20: 4 | BS20: 4 | BU20: 4 | BX20: =BX21 -> 6 | BY20: 0
C21: MA | D21: =-1*(SUM(I6:I15)+SUM(N6:N10)+(F6-D2)*E6+(F7-D2)*E7+(F8-D2)*E8+(F9-D2)*E9+(F10-D2)*E10+(F11-D2)*E11+(F12-D2)*E12+(F13-D2)*E13+(F14-D2)*E14+(F15-D2)*E15+(AB6-D2)*AC6+(AB7-D2)*AC7+(AB8-D2)*AC8+(AB9-D2)*AC9+(AB10-D2)*AC10) -> 50 | E21: FBy | F21: =((SUM(I6:I15)+SUM(N6:N10)+(F6-D3)*E6+(F7-D3)*E7+(F8-D3)*E8+(F9-D3)*E9+(F10-D3)*E10+(F11-D3)*E11+(F12-D3)*E12+(F13-D3)*E13+(F14-D3)*E14+(F15-D3)*E15+(AB6-D3)*AC6+(AB7-D3)*AC7+(AB8-D3)*AC8+(AB9-D3)*AC9+(AB10-D3)*AC10))/(D3-D4) -> 5.5 | U21: N_points | AH21: =MATCH(AI6,$BS$6:$BS$43) -> 13 | AI21: 17 | BQ21: 16 | BR21: 6 | BS21: 6 | BU21: 6 | BX21: =BV8 -> 6 | BY21: -3.5
D22: 1 | E22: Fx | F22: N | G22: Fy | H22: q | I22: Fq | J22: Ty_simp | K22: Ty_simp_d | L22: Ty_real | M22: M | N22: Mhz | O22: Mhz_simp | P22: Mhz_simp_d | R22: Ty real points | S22: Mhz points | T22: MHZSIMP_points | AH22: 13 | AI22: 13 | BQ22: 17 | BR22: 6 | BS22: 6 | BU22: 6
A23: 0 | B23: =A23*$H$20 -> 0 | C23: 1 | D23: =IF(ISNUMBER(SMALL($B$23:$B$10407,C23)),SMALL($B$23:$B$10407,C23),NA()) -> 0 | E23: =IF(AND(D24=D23,COUNTIF($V$28:$V$39,D23)>0),SUMIF($V$28:$V$39,D23,$W$28:$W$39),0) -> 0 | F23: 0 | G23: =IF(AND(D24=D23,COUNTIF($Y$28:$Y$39,D23)>0),SUMIF($Y$28:$Y$39,D23,$Z$28:$Z$39),0) -> 0 | H23: 0 | I23: =IF(AND(D24=D23,COUNTIF($Y$40:$Y$179,D23)>0),SUMIF($Y$40:$Y$179,D23,$Z$40:$Z$179),0) -> 0 | J23: 0 | K23: =IF(ROUND(J23,$P$20)=ROUND(L23,$P$20),NA(),J23) ->  | L23: 0 | M23: =IF(AND(D24=D23,COUNTIF($AG$28:$AG$43,D23)>0),SUMIF($AG$28:$AG$43,D23,$AH$28:$AH$43),0) -> 0 | N23: 0 | O23: 0 | P23: =IF(ROUND(N23,$P$20)=ROUND(O23,$P$20),NA(),O23) ->  | Q23: =IF(ISNUMBER(N23),N23,"") -> 0 | AH23: 13 | AI23: 13 | BQ23: 18 | BR23: 8 | BS23: 8 | BU23: 8 | BX23: =BX24 -> 6 | BY23: 0
A24: 1 | B24: =A24*$H$20 -> 0.008 | C24: 1 | D24: =IF(ISNUMBER(SMALL($B$23:$B$10407,C24)),SMALL($B$23:$B$10407,C24),NA()) -> 0 | E24: 0 | F24: =F23-E23 -> 0 | G24: 0 | H24: =IF(AND(COUNTIF($AC$28:$AC$33,D24)>0,COUNTIF($AD$28:$AD$33,D24)>0),IF(D23=D24,INDEX($AE$28:$AE$33,MATCH(D24,$AC$28:$AC$33,0)),INDEX($AE$28:$AE$33,MATCH(D24,$AD$28:$AD$33,0))),IF(AND(COUNTIF($AC$28:$AC$33,D24)>0,D24=D25),0,IF(AND(COUNTIF($AD$28:$AD$33,D24)>0,D23=D24),0,IF(AND(D24>=$AC$28,D24<=$AD$28),$AE$28,IF(AND(D24>=$AC$29,D24<=$AD$29),$AE$29,IF(AND(D24>=$AC$30,D24<=$AD$30),$AE$30,IF(AND(D24>=$AC$31,D24<=$AD$31),$AE$31,IF(AND(D24>=$AC$32,D24<=$AD$32),$AE$32,IF(AND(D24>=$AC$33,D24<=$AD$33),$AE$33,0))))))))) -> -2 | I24: =IF(AND(D25=D24,COUNTIF($Y$40:$Y$179,D24)>0),SUMIF($Y$40:$Y$179,D24,$Z$40:$Z$179),0) -> 0 | J24: =J23+G23+I23 -> 0 | K24: =IF(ROUND(J24,$P$20)=ROUND(L24,$P$20),NA(),J24) ->  | L24: =G23+L23+(D24-D23)*H23 -> 0 | M24: 0 | N24: =M23+N23-(D24-D23)*(L23+L24)/2 -> 0 | O24: =M23+O23-(D24-D23)*(J23+J24)/2 -> 0 | P24: =IF(ROUND(N24,$P$20)=ROUND(O24,$P$20),NA(),O24) ->  | Q24: =IF(ISNUMBER(N24),N24,"") -> 0 | R24: =IF($S$20=0,NA(),ROUND(IF(OR(AND(D23=D24,L23=L24),G23<>0,G24<>0),L24,NA()),8)) -> 0 | S24: =IF($S$20=0,NA(),ROUND(IF(OR(AND(D23=D24,N23=N24),M23<>0,M24<>0),N24,NA()),8)) -> 0 | T24: =IF($S$20=0,NA(),ROUND(IF(N24=O24,NA(),IF(OR(AND(D23=D24,O23=O24),M23<>0,M24<>0),O24,NA())),8)) ->  | U24: =IF($S$20=0,NA(),ROUND(IF(AND(D23=D24,F23<>F24),F24,NA()),8)) ->  | AH24: 13 | AI24: 13 | BQ24: 19 | BX24: =(BV8+BV9)/2 -> 6 | BY24: -3.5
A25: 2 | B25: 0.016 | C25: 2 | D25: 0.008 | E25: 0 | F25: =F24-E24 -> 0 | G25: 0 | H25: -2 | I25: 0 | J25: =J24+G24+I24 -> 0 | K25: 0 | L25: =G24+L24+(D25-D24)*H24 -> -0.016 | M25: 0 | N25: =M24+N24-(D25-D24)*(L24+L25)/2 -> 6.4e-05 | O25: =M24+O24-(D25-D24)*(J24+J25)/2 -> 0 | P25: 0 | Q25: 6.4e-05 | R25: =IF($S$20=0,NA(),ROUND(IF(OR(AND(D24=D25,L24=L25),G24<>0,G25<>0),L25,NA()),8)) ->  | S25: =IF($S$20=0,NA(),ROUND(IF(OR(AND(D24=D25,N24=N25),M24<>0,M25<>0),N25,NA()),8)) ->  | T25: =IF($S$20=0,NA(),ROUND(IF(N25=O25,NA(),IF(OR(AND(D24=D25,O24=O25),M24<>0,M25<>0),O25,NA())),8)) ->  | U25: =IF($S$20=0,NA(),ROUND(IF(AND(D24=D25,F24<>F25),F25,NA()),8)) ->  | V25: length | AH25: 13 | AI25: 13 | BQ25: 20
A26: 3 | B26: 0.024 | C26: 3 | D26: 0.016 | E26: 0 | F26: 0 | G26: 0 | H26: -2 | I26: 0 | J26: 0 | K26: 0 | L26: -0.032 | M26: 0 | N26: 0.000256 | O26: 0 | P26: 0 | Q26: 0.000256 | V26: =H2 -> 8 | W26: m | BQ26: 21 | BX26: =BX27 -> 6 | BY26: 0
A27: 4 | B27: 0.032 | C27: 4 | D27: 0.024 | E27: 0 | F27: 0 | G27: 0 | H27: -2 | I27: 0 | J27: 0 | K27: 0 | L27: -0.048 | M27: 0 | N27: 0.000576 | O27: 0 | P27: 0 | Q27: 0.000576 | V27: loc | W27: mag | X27: Fy | Y27: loc | Z27: mag | AC27: loc1 | AD27: loc2 | AE27: mag | AG27: loc | AH27: mag | AJ27: fulloc | BQ27: 22 | BX27: =BV9 -> 6 | BY27: -3.5
A28: 5 | B28: 0.04 | C28: 5 | D28: 0.032 | E28: 0 | F28: 0 | G28: 0 | H28: -2 | I28: 0 | J28: 0 | K28: 0 | L28: -0.064 | M28: 0 | N28: 0.001024 | O28: 0 | P28: 0 | Q28: 0.001024 | V28: =IF(D6="",-9999999,F6) -> 8 | W28: =IF(OR(D6="",D6=0),0,D6) -> 1 | X28: Fy1 | Y28: =IF(E6="",-9999999,F6) -> 8 | Z28: =IF(E6="",-999999,E6) -> -2 | AB28: q1 | AC28: =IF(OR(Y6="",Y6=0),-999999,Y6) -> -999999 | AD28: =IF(OR(Z6="",Z6=0),-999999,Z6) -> 6 | AE28: =IF(OR(AA6="",AA6=0),-999999,AA6) -> -2 | AF28: M1 | AG28: =IF(O6="",-999999,O6) -> 4 | AH28: =IF(N6="",-999999,N6) -> 2 | AI28: =V28 -> 8 | AJ28: =IF(SMALL($AI$28:$AI$219,AK28)>0,SMALL($AI$28:$AI$219,AK28),"") ->  | AK28: 1 | BQ28: 23
A29: 6 | B29: 0.048 | C29: 6 | D29: 0.04 | E29: 0 | F29: 0 | G29: 0 | H29: -2 | I29: 0 | J29: 0 | K29: 0 | L29: -0.08 | M29: 0 | N29: 0.0016 | O29: 0 | P29: 0 | Q29: 0.0016 | V29: =IF(D7="",-9999999,F7) -> 0 | W29: =IF(OR(D7="",D7=0),0,D7) -> 0 | X29: Fy2 | Y29: =IF(E7="",-9999999,F7) -> 0 | Z29: =IF(E7="",-999999,E7) -> 0 | AB29: q2 | AC29: =IF(OR(Y7="",Y7=0),-999999,Y7) -> -999999 | AD29: -999999 | AE29: -999999 | AF29: M2 | AG29: 0 | AH29: 0 | AI29: 0 | AJ29: =IF(SMALL($AI$28:$AI$219,AK29)>0,SMALL($AI$28:$AI$219,AK29),"") ->  | AK29: 2 | BQ29: 24 | BX29: =BX30 -> 7 | BY29: 0
A30: 7 | B30: 0.056 | C30: 7 | D30: 0.048 | E30: 0 | F30: 0 | G30: 0 | H30: -2 | I30: 0 | J30: 0 | K30: 0 | L30: -0.096 | M30: 0 | N30: 0.002304 | O30: 0 | P30: 0 | Q30: 0.002304 | V30: 0 | W30: 0 | X30: Fy3 | Y30: 0 | Z30: 0 | AB30: q3 | AC30: =IF(OR(Y8="",Y8=0),-999999,Y8) -> -999999 | AD30: -999999 | AE30: -999999 | AF30: M3 | AG30: 0 | AH30: 0 | AI30: 0 | AK30: 3 | BQ30: 25 | BX30: =(BV9+BV10)/2 -> 7 | BY30: 2
A31: 8 | B31: 0.064 | C31: 8 | D31: 0.056 | E31: 0 | F31: 0 | G31: 0 | H31: -2 | I31: 0 | J31: 0 | K31: 0 | L31: -0.112 | M31: 0 | N31: 0.003136 | O31: 0 | P31: 0 | Q31: 0.003136 | V31: 0 | W31: 0 | X31: Fy4 | Y31: 0 | Z31: 0 | AB31: q4 | AC31: =IF(OR(Y9="",Y9=0),-999999,Y9) -> -999999 | AD31: -999999 | AE31: -999999 | AF31: M4 | AG31: 0 | AH31: 0 | AI31: 0 | AK31: 4 | AL31: =IF(AM30<$AJ$6,AM30,"") ->  | AN31: =IF(ISNUMBER(AL31),$AK$6,"") ->  | AO31: =IF(ISNUMBER(AL31),AL31+(AM31-AL31)/2,"") ->  | AP31: =IF(ISNUMBER(AL31),(AM31-AL31)*AN31,"") ->  | AR31: =IF(AS30<$AJ$7,AS30,"") ->  | AT31: =IF(ISNUMBER(AR31),$AK$7,"") ->  | AU31: =IF(ISNUMBER(AR31),AR31+(AS31-AR31)/2,"") ->  | AV31: =IF(ISNUMBER(AR31),(AS31-AR31)*AT31,"") ->  | AX31: =IF(AY30<$AJ$8,AY30,"") ->  | AZ31: =IF(ISNUMBER(AX31),$AK$8,"") ->  | BA31: =IF(ISNUMBER(AX31),AX31+(AY31-AX31)/2,"") ->  | BB31: =IF(ISNUMBER(AX31),(AY31-AX31)*AZ31,"") ->  | BQ31: 26
A32: 9 | B32: 0.072 | C32: 9 | D32: 0.064 | E32: 0 | F32: 0 | G32: 0 | H32: -2 | I32: 0 | J32: 0 | K32: 0 | L32: -0.128 | M32: 0 | N32: 0.004096 | O32: 0 | P32: 0 | Q32: 0.004096 | V32: 0 | W32: 0 | X32: Fy5 | Y32: 0 | Z32: 0 | AB32: q5 | AC32: =IF(OR(Y10="",Y10=0),-999999,Y10) -> -999999 | AD32: -999999 | AE32: -999999 | AF32: M5 | AG32: 0 | AH32: 0 | AI32: 0 | AK32: 5 | BQ32: 27 | BX32: =BX33 -> 8 | BY32: 0
A33: 10 | B33: 0.08 | C33: 10 | D33: 0.072 | E33: 0 | F33: 0 | G33: 0 | H33: -2 | I33: 0 | J33: 0 | K33: 0 | L33: -0.144 | M33: 0 | N33: 0.005184 | O33: 0 | P33: 0 | Q33: 0.005184 | V33: 0 | W33: 0 | X33: Fy6 | Y33: 0 | Z33: 0 | AB33: q6 | AC33: =IF(OR(Y11="",Y11=0),-999999,Y11) -> -999999 | AD33: -999999 | AE33: -999999 | AF33: M6 | AG33: -999999 | AH33: -999999 | AI33: 0 | AK33: 6 | BQ33: 28 | BX33: =BV10 -> 8 | BY33: 2
A34: 11 | B34: 0.088 | C34: 11 | D34: 0.08 | E34: 0 | F34: 0 | G34: 0 | H34: -2 | I34: 0 | J34: 0 | K34: 0 | L34: -0.16 | M34: 0 | N34: 0.0064 | O34: 0 | P34: 0 | Q34: 0.0064 | V34: 0 | W34: 0 | X34: Fy7 | Y34: 0 | Z34: 0 | AF34: M7 | AG34: =IF(J6="",-999999,J6) -> -999999 | AH34: =IF(I6="",-999999,I6) -> 0 | AI34: 0 | AK34: 7 | BQ34: 29 | BS34: =IF(ISNUMBER(BR34),BR34,"") -> 
A35: 12 | B35: 0.096 | C35: 12 | D35: 0.088 | E35: 0 | F35: 0 | G35: 0 | H35: -2 | I35: 0 | J35: 0 | K35: 0 | L35: -0.176 | M35: 0 | N35: 0.007744 | O35: 0 | P35: 0 | Q35: 0.007744 | V35: 0 | W35: 0 | X35: Fy8 | Y35: 0 | Z35: 0 | AF35: M8 | AG35: -999999 | AH35: 0 | AI35: 0 | AK35: 8 | BQ35: 30 | BX35: =(BV10+BV11)/2 ->  | BY35: 0
A36: 13 | B36: 0.104 | C36: 13 | D36: 0.096 | E36: 0 | F36: 0 | G36: 0 | H36: -2 | I36: 0 | J36: 0 | K36: 0 | L36: -0.192 | M36: 0 | N36: 0.009216 | O36: 0 | P36: 0 | Q36: 0.009216 | V36: 0 | W36: 0 | X36: Fy9 | Y36: 0 | Z36: 0 | AF36: M9 | AG36: -999999 | AH36: 0 | AI36: 0 | AK36: 9 | BQ36: 31 | BX36: =BX35 -> 
A37: 14 | B37: 0.112 | C37: 14 | D37: 0.104 | E37: 0 | F37: 0 | G37: 0 | H37: -2 | I37: 0 | J37: 0 | K37: 0 | L37: -0.208 | M37: 0 | N37: 0.010816 | O37: 0 | P37: 0 | Q37: 0.010816 | V37: 0 | W37: 0 | X37: Fy10 | Y37: 0 | Z37: 0 | AF37: M10 | AG37: -999999 | AH37: 0 | AI37: 0 | AK37: 10 | BQ37: 32
A38: 15 | B38: 0.12 | C38: 15 | D38: 0.112 | E38: 0 | F38: 0 | G38: 0 | H38: -2 | I38: 0 | J38: 0 | K38: 0 | L38: -0.224 | M38: 0 | N38: 0.012544 | O38: 0 | P38: 0 | Q38: 0.012544 | V38: =IF(D16="",-9999999,F16) -> 2 | W38: =IF(OR(D16="",D16=0),0,D16) -> -1 | X38: Fy11 | Y38: =IF(E16="",-9999999,F16) -> 2 | Z38: =IF(E16="",-999999,E16) -> 8.5 | AF38: M11 | AG38: -999999 | AH38: 0 | AI38: 2 | AK38: 11 | BQ38: 33 | BX38: =BV11 ->  | BY38: 0
A39: 16 | B39: 0.128 | C39: 16 | D39: 0.12 | E39: 0 | F39: 0 | G39: 0 | H39: -2 | I39: 0 | J39: 0 | K39: 0 | L39: -0.24 | M39: 0 | N39: 0.0144 | O39: 0 | P39: 0 | Q39: 0.0144 | V39: =IF(D17="",-9999999,F17) -> -9999999 | W39: =IF(OR(D17="",D17=0),0,D17) -> 0 | X39: Fy12 | Y39: =IF(E17="",-9999999,F17) -> 6 | Z39: =IF(E17="",-999999,E17) -> 5.5 | AF39: M12 | AG39: -999999 | AH39: 0 | AI39: -9999999 | AK39: 12 | BQ39: 34 | BX39: =BX38 -> 
A40: 17 | B40: 0.136 | C40: 17 | D40: 0.128 | E40: 0 | F40: 0 | G40: 0 | H40: -2 | I40: 0 | J40: 0 | K40: 0 | L40: -0.256 | M40: 0 | N40: 0.016384 | O40: 0 | P40: 0 | Q40: 0.016384 | W40: 1 | X40: Fq1 | Y40: =IF(AO6="",-9999999,AO6) -> 1 | Z40: =IF(AP6="",0,AP6) -> -4 | AF40: M13 | AG40: -999999 | AH40: 0 | AI40: =Y28 -> 8 | AK40: 13 | BQ40: 35
A41: 18 | B41: 0.144 | C41: 18 | D41: 0.136 | E41: 0 | F41: 0 | G41: 0 | H41: -2 | I41: 0 | J41: 0 | K41: 0 | L41: -0.272 | M41: 0 | N41: 0.018496 | O41: 0 | P41: 0 | Q41: 0.018496 | W41: 2 | X41: Fq2 | Y41: 3 | Z41: -4 | AF41: M14 | AG41: -999999 | AH41: 0 | AI41: 0 | AK41: 14 | BQ41: 36 | BX41: =(BV11+BV12)/2 ->  | BY41: 0
A42: 19 | B42: 0.152 | C42: 19 | D42: 0.144 | E42: 0 | F42: 0 | G42: 0 | H42: -2 | I42: 0 | J42: 0 | K42: 0 | L42: -0.288 | M42: 0 | N42: 0.020736 | O42: 0 | P42: 0 | Q42: 0.020736 | W42: 3 | X42: Fq3 | Y42: 5 | Z42: -4 | AF42: M15 | AG42: -999999 | AH42: 0 | AI42: 0 | AK42: 15 | BQ42: 37 | BX42: =BX41 -> 
A43: 20 | B43: 0.16 | C43: 20 | D43: 0.152 | E43: 0 | F43: 0 | G43: 0 | H43: -2 | I43: 0 | J43: 0 | K43: 0 | L43: -0.304 | M43: 0 | N43: 0.023104 | O43: 0 | P43: 0 | Q43: 0.023104 | W43: 4 | X43: Fq4 | Y43: -9999999 | Z43: 0 | AF43: M16 | AG43: -999999 | AH43: 0 | AI43: 0 | AK43: 16 | BQ43: 38
A44: 21 | B44: 0.168 | C44: 21 | D44: 0.16 | E44: 0 | F44: 0 | G44: 0 | H44: -2 | I44: 0 | J44: 0 | K44: 0 | L44: -0.32 | M44: 0 | N44: 0.0256 | O44: 0 | P44: 0 | Q44: 0.0256 | V44: Fx1 | W44: 5 | X44: Fq5 | Y44: -9999999 | Z44: 0 | AI44: 0 | AK44: 17 | BX44: =BV12 ->  | BY44: 0
A45: 22 | B45: 0.176 | C45: 22 | D45: 0.168 | E45: 0 | F45: 0 | G45: 0 | H45: -2 | I45: 0 | J45: 0 | K45: 0 | L45: -0.336 | M45: 0 | N45: 0.028224 | O45: 0 | P45: 0 | Q45: 0.028224 | V45: Fx2 | W45: 6 | X45: Fq6 | Y45: -9999999 | Z45: 0 | AI45: 0 | AK45: 18 | BX45: =BX44 -> 
A46: 23 | B46: 0.184 | C46: 23 | D46: 0.176 | E46: 0 | F46: 0 | G46: 0 | H46: -2 | I46: 0 | J46: 0 | K46: 0 | L46: -0.352 | M46: 0 | N46: 0.030976 | O46: 0 | P46: 0 | Q46: 0.030976 | V46: Fx3 | W46: 7 | X46: Fq7 | Y46: -9999999 | Z46: 0 | AI46: 0 | AK46: 19
A47: 24 | B47: 0.192 | C47: 24 | D47: 0.184 | E47: 0 | F47: 0 | G47: 0 | H47: -2 | I47: 0 | J47: 0 | K47: 0 | L47: -0.368 | M47: 0 | N47: 0.033856 | O47: 0 | P47: 0 | Q47: 0.033856 | V47: Fx4 | W47: 8 | X47: Fq8 | Y47: -9999999 | Z47: 0 | AI47: 0 | AK47: 20 | BX47: =(BV12+BV13)/2 ->  | BY47: 0
A48: 25 | B48: 0.2 | C48: 25 | D48: 0.192 | E48: 0 | F48: 0 | G48: 0 | H48: -2 | I48: 0 | J48: 0 | K48: 0 | L48: -0.384 | M48: 0 | N48: 0.036864 | O48: 0 | P48: 0 | Q48: 0.036864 | V48: Fx5 | W48: 9 | X48: Fq9 | Y48: -9999999 | Z48: 0 | AF48: 1000 | AG48: =MIN(IF(AJ28:AJ219>AF48,AJ28:AJ219)) -> 0 | AH48: 311 | AI48: 0 | AK48: 21 | BX48: =BX47 -> 
A49: 26 | B49: 0.208 | C49: 26 | D49: 0.2 | E49: 0 | F49: 0 | G49: 0 | H49: -2 | I49: 0 | J49: 0 | K49: 0 | L49: -0.4 | M49: 0 | N49: 0.04 | O49: 0 | P49: 0 | Q49: 0.04 | V49: Fx6 | W49: 10 | X49: Fq10 | Y49: -9999999 | Z49: 0 | AI49: 0 | AK49: 22 | BE49: lengthratio | BF49: 40
A50: 27 | B50: 0.216 | C50: 27 | D50: 0.208 | E50: 0 | F50: 0 | G50: 0 | H50: -2 | I50: 0 | J50: 0 | K50: 0 | L50: -0.416 | M50: 0 | N50: 0.043264 | O50: 0 | P50: 0 | Q50: 0.043264 | V50: Fx7 | W50: 11 | X50: Fq11 | Y50: -9999999 | Z50: 0 | AI50: 2 | AK50: 23 | BA50: =AL6 -> 0 | BB50: =INDEX($N$23:$N$10407,MATCH(BA50,$D$23:$D$10407,0)+1) -> 0 | BC50: =AO6 -> 1 | BD50: =INDEX($O$23:$O$10407,MATCH(BC50,$D$23:$D$10407,0)) -> 0 | BE50: =BC50-(BC50-BA50)*($BF$49/100) -> 0.6 | BF50: =((BB51-BB50)/(BA51-BA50))*(BE50-BA50)+BB50+(BD50-BD51)/2 -> 0.2 | BX50: =BV13 ->  | BY50: 0
A51: 28 | B51: 0.224 | C51: 28 | D51: 0.216 | E51: 0 | F51: 0 | G51: 0 | H51: -2 | I51: 0 | J51: 0 | K51: 0 | L51: -0.432 | M51: 0 | N51: 0.046656 | O51: 0 | P51: 0 | Q51: 0.046656 | V51: Fx8 | W51: 12 | X51: Fq12 | Y51: -9999999 | Z51: 0 | AI51: 6 | AK51: 24 | BA51: =AM6 -> 2 | BB51: =INDEX($N$23:$N$10407,MATCH(BA51,$D$23:$D$10407,0)) -> 4 | BC51: =AO6 -> 1 | BD51: =((BB51-BB50)/(BA51-BA50))*(BC51-BA50)+BB50 -> 2 | BE51: =BC51-(BC51-BA51)*($BF$49/100) -> 1.4 | BF51: =((BB51-BB50)/(BA51-BA50))*(BE51-BA50)+BB50+(BD50-BD51)/2 -> 1.8 | BX51: =BX50 -> 
A52: 29 | B52: 0.232 | C52: 29 | D52: 0.224 | E52: 0 | F52: 0 | G52: 0 | H52: -2 | I52: 0 | J52: 0 | K52: 0 | L52: -0.448 | M52: 0 | N52: 0.050176 | O52: 0 | P52: 0 | Q52: 0.050176 | V52: Fx9 | W52: 13 | X52: Fq13 | Y52: -9999999 | Z52: 0 | AI52: 1 | AK52: 25
A53: 30 | B53: 0.24 | C53: 30 | D53: 0.232 | E53: 0 | F53: 0 | G53: 0 | H53: -2 | I53: 0 | J53: 0 | K53: 0 | L53: -0.464 | M53: 0 | N53: 0.053824 | O53: 0 | P53: 0 | Q53: 0.053824 | V53: Fx10 | W53: 14 | X53: Fq14 | Y53: -9999999 | Z53: 0 | AI53: 3 | AK53: 26 | BA53: =IF(AL7="",NA(),AL7) -> 2 | BB53: =INDEX($N$23:$N$10407,MATCH(BA53,$D$23:$D$10407,0)+1) -> 4 | BC53: =IF(AO7="",NA(),AO7) -> 3 | BD53: =INDEX($O$23:$O$10407,MATCH(BC53,$D$23:$D$10407,0)) -> -0.5 | BE53: =BC53-(BC53-BA53)*($BF$49/100) -> 2.6 | BF53: =((BB54-BB53)/(BA54-BA53))*(BE53-BA53)+BB53+(BD53-BD54)/2 -> 1.5 | BX53: =(BV13+BV14)/2 ->  | BY53: 0
A54: 31 | B54: 0.248 | C54: 31 | D54: 0.24 | E54: 0 | F54: 0 | G54: 0 | H54: -2 | I54: 0 | J54: 0 | K54: 0 | L54: -0.48 | M54: 0 | N54: 0.0576 | O54: 0 | P54: 0 | Q54: 0.0576 | V54: Fx11 | W54: 15 | X54: Fq15 | Y54: -9999999 | Z54: 0 | AI54: 5 | AK54: 27 | BA54: =IF(AM7="",NA(),AM7) -> 4 | BB54: =INDEX($N$23:$N$10407,MATCH(BA54,$D$23:$D$10407,0)) -> -1 | BC54: =IF(AO7="",NA(),AO7) -> 3 | BD54: =((BB54-BB53)/(BA54-BA53))*(BC54-BA53)+BB53 -> 1.5 | BE54: =BC54-(BC54-BA54)*($BF$49/100) -> 3.4 | BF54: =((BB54-BB53)/(BA54-BA53))*(BE54-BA53)+BB53+(BD53-BD54)/2 -> -0.5 | BX54: =BX53 -> 
A55: 32 | B55: 0.256 | C55: 32 | D55: 0.248 | E55: 0 | F55: 0 | G55: 0 | H55: -2 | I55: 0 | J55: 0 | K55: 0 | L55: -0.496 | M55: 0 | N55: 0.061504 | O55: 0 | P55: 0 | Q55: 0.061504 | V55: Fx12 | W55: 16 | X55: Fq16 | Y55: -9999999 | Z55: 0 | AI55: -9999999 | AK55: 28
A56: 33 | B56: 0.264 | C56: 33 | D56: 0.256 | E56: 0 | F56: 0 | G56: 0 | H56: -2 | I56: 0 | J56: 0 | K56: 0 | L56: -0.512 | M56: 0 | N56: 0.065536 | O56: 0 | P56: 0 | Q56: 0.065536 | W56: 17 | X56: Fq17 | Y56: -9999999 | Z56: 0 | AI56: -9999999 | AK56: 29 | BA56: =IF(AL8="",NA(),AL8) -> 4 | BB56: =INDEX($N$23:$N$10407,MATCH(BA56,$D$23:$D$10407,0)+1) -> 1 | BC56: =IF(AO8="",NA(),AO8) -> 5 | BD56: 0.5 | BE56: =BC56-(BC56-BA56)*($BF$49/100) -> 4.6 | BF56: =((BB57-BB56)/(BA57-BA56))*(BE56-BA56)+BB56+(BD56-BD57)/2 -> 0.9 | BX56: =BV14 ->  | BY56: 0
A57: 34 | B57: 0.272 | C57: 34 | D57: 0.264 | E57: 0 | F57: 0 | G57: 0 | H57: -2 | I57: 0 | J57: 0 | K57: 0 | L57: -0.528 | M57: 0 | N57: 0.069696 | O57: 0 | P57: 0 | Q57: 0.069696 | W57: 18 | X57: Fq18 | Y57: -9999999 | Z57: 0 | AI57: -9999999 | AK57: 30 | BA57: =IF(AM8="",NA(),AM8) -> 6 | BB57: =INDEX($N$23:$N$10407,MATCH(BA57,$D$23:$D$10407,0)) -> 4 | BC57: =IF(AO8="",NA(),AO8) -> 5 | BD57: =((BB57-BB56)/(BA57-BA56))*(BC57-BA56)+BB56 -> 2.5 | BE57: =BC57-(BC57-BA57)*($BF$49/100) -> 5.4 | BF57: =((BB57-BB56)/(BA57-BA56))*(BE57-BA56)+BB56+(BD56-BD57)/2 -> 2.1 | BX57: =BX56 -> 
A58: 35 | B58: 0.28 | C58: 35 | D58: 0.272 | E58: 0 | F58: 0 | G58: 0 | H58: -2 | I58: 0 | J58: 0 | K58: 0 | L58: -0.544 | M58: 0 | N58: 0.073984 | O58: 0 | P58: 0 | Q58: 0.073984 | W58: 19 | X58: Fq19 | Y58: -9999999 | Z58: 0 | AI58: -9999999 | AK58: 31
A59: 36 | B59: 0.288 | C59: 36 | D59: 0.28 | E59: 0 | F59: 0 | G59: 0 | H59: -2 | I59: 0 | J59: 0 | K59: 0 | L59: -0.56 | M59: 0 | N59: 0.0784 | O59: 0 | P59: 0 | Q59: 0.0784 | W59: 20 | X59: Fq20 | Y59: -9999999 | Z59: 0 | AI59: -9999999 | AK59: 32 | BA59: =IF(AL9="",NA(),AL9) ->  | BB59: =INDEX($N$23:$N$10407,MATCH(BA59,$D$23:$D$10407,0)+1) ->  | BC59: =IF(AO9="",NA(),AO9) ->  | BE59: =BC59-(BC59-BA59)*($BF$49/100) ->  | BF59: =((BB60-BB59)/(BA60-BA59))*(BE59-BA59)+BB59+(BD59-BD60)/2 ->  | BX59: =(BV14+BV15)/2 ->  | BY59: 0
A60: 37 | B60: 0.296 | C60: 37 | D60: 0.288 | E60: 0 | F60: 0 | G60: 0 | H60: -2 | I60: 0 | J60: 0 | K60: 0 | L60: -0.576 | M60: 0 | N60: 0.082944 | O60: 0 | P60: 0 | Q60: 0.082944 | W60: 21 | X60: Fq21 | Y60: -9999999 | Z60: 0 | AI60: -9999999 | AK60: 33 | BA60: =IF(AM9="",NA(),AM9) ->  | BB60: =INDEX($N$23:$N$10407,MATCH(BA60,$D$23:$D$10407,0)) ->  | BC60: =IF(AO9="",NA(),AO9) ->  | BD60: =((BB60-BB59)/(BA60-BA59))*(BC60-BA59)+BB59 ->  | BE60: =BC60-(BC60-BA60)*($BF$49/100) ->  | BF60: =((BB60-BB59)/(BA60-BA59))*(BE60-BA59)+BB59+(BD59-BD60)/2 ->  | BX60: =BX59 -> 
A61: 38 | B61: 0.304 | C61: 38 | D61: 0.296 | E61: 0 | F61: 0 | G61: 0 | H61: -2 | I61: 0 | J61: 0 | K61: 0 | L61: -0.592 | M61: 0 | N61: 0.087616 | O61: 0 | P61: 0 | Q61: 0.087616 | W61: 22 | X61: Fq22 | Y61: -9999999 | Z61: 0 | AI61: -9999999 | AK61: 34
A62: 39 | B62: 0.312 | C62: 39 | D62: 0.304 | E62: 0 | F62: 0 | G62: 0 | H62: -2 | I62: 0 | J62: 0 | K62: 0 | L62: -0.608 | M62: 0 | N62: 0.092416 | O62: 0 | P62: 0 | Q62: 0.092416 | W62: 23 | X62: Fq23 | Y62: -9999999 | Z62: 0 | AI62: -9999999 | AK62: 35 | BA62: =IF(AL10="",NA(),AL10) ->  | BC62: =IF(AO10="",NA(),AO10) ->  | BE62: =BC62-(BC62-BA62)*($BF$49/100) ->  | BF62: =((BB63-BB62)/(BA63-BA62))*(BE62-BA62)+BB62+(BD62-BD63)/2 ->  | BX62: =BV15 ->  | BY62: 0
A63: 40 | B63: 0.32 | C63: 40 | D63: 0.312 | E63: 0 | F63: 0 | G63: 0 | H63: -2 | I63: 0 | J63: 0 | K63: 0 | L63: -0.624 | M63: 0 | N63: 0.097344 | O63: 0 | P63: 0 | Q63: 0.097344 | W63: 24 | X63: Fq24 | Y63: -9999999 | Z63: 0 | AI63: -9999999 | AK63: 36 | BA63: =IF(AM10="",NA(),AM10) ->  | BB63: =INDEX($N$23:$N$10407,MATCH(BA63,$D$23:$D$10407,0)) ->  | BC63: =IF(AO10="",NA(),AO10) ->  | BD63: =((BB63-BB62)/(BA63-BA62))*(BC63-BA62)+BB62 ->  | BE63: =BC63-(BC63-BA63)*($BF$49/100) ->  | BF63: =((BB63-BB62)/(BA63-BA62))*(BE63-BA62)+BB62+(BD62-BD63)/2 ->  | BX63: =BX62 -> 
A64: 41 | B64: 0.328 | C64: 41 | D64: 0.32 | E64: 0 | F64: 0 | G64: 0 | H64: -2 | I64: 0 | J64: 0 | K64: 0 | L64: -0.64 | M64: 0 | N64: 0.1024 | O64: 0 | P64: 0 | Q64: 0.1024 | W64: 25 | X64: Fq25 | Y64: -9999999 | Z64: 0 | AI64: -9999999 | AK64: 37
A65: 42 | B65: 0.336 | C65: 42 | D65: 0.328 | E65: 0 | F65: 0 | G65: 0 | H65: -2 | I65: 0 | J65: 0 | K65: 0 | L65: -0.656 | M65: 0 | N65: 0.107584 | O65: 0 | P65: 0 | Q65: 0.107584 | W65: 26 | X65: Fq26 | Y65: -9999999 | Z65: 0 | AI65: -9999999 | AK65: 38 | BA65: =AR6 ->  | BC65: =AU6 ->  | BE65: =BC65-(BC65-BA65)*($BF$49/100) ->  | BF65: =((BB66-BB65)/(BA66-BA65))*(BE65-BA65)+BB65+(BD65-BD66)/2 -> 
A66: 43 | B66: 0.344 | C66: 43 | D66: 0.336 | E66: 0 | F66: 0 | G66: 0 | H66: -2 | I66: 0 | J66: 0 | K66: 0 | L66: -0.672 | M66: 0 | N66: 0.112896 | O66: 0 | P66: 0 | Q66: 0.112896 | W66: 27 | X66: Fq27 | Y66: -9999999 | Z66: 0 | AI66: -9999999 | AK66: 39 | BA66: =AS6 ->  | BB66: =INDEX($N$23:$N$10407,MATCH(BA66,$D$23:$D$10407,0)) ->  | BC66: =AU6 ->  | BD66: =((BB66-BB65)/(BA66-BA65))*(BC66-BA65)+BB65 ->  | BE66: =BC66-(BC66-BA66)*($BF$49/100) ->  | BF66: =((BB66-BB65)/(BA66-BA65))*(BE66-BA65)+BB65+(BD65-BD66)/2 -> 
A67: 44 | B67: 0.352 | C67: 44 | D67: 0.344 | E67: 0 | F67: 0 | G67: 0 | H67: -2 | I67: 0 | J67: 0 | K67: 0 | L67: -0.688 | M67: 0 | N67: 0.118336 | O67: 0 | P67: 0 | Q67: 0.118336 | W67: 28 | X67: Fq28 | Y67: -9999999 | Z67: 0 | AI67: -9999999 | AK67: 40
A68: 45 | B68: 0.36 | C68: 45 | D68: 0.352 | E68: 0 | F68: 0 | G68: 0 | H68: -2 | I68: 0 | J68: 0 | K68: 0 | L68: -0.704 | M68: 0 | N68: 0.123904 | O68: 0 | P68: 0 | Q68: 0.123904 | W68: 29 | X68: Fq1 | Y68: =IF(AU6="",-9999999,AU6) -> -9999999 | Z68: =IF(AV6="",0,AV6) -> 0 | AI68: -9999999 | AK68: 41 | BA68: =IF(AR7="",NA(),AR7) ->  | BC68: =IF(AU7="",NA(),AU7) ->  | BE68: =BC68-(BC68-BA68)*($BF$49/100) ->  | BF68: =((BB69-BB68)/(BA69-BA68))*(BE68-BA68)+BB68+(BD68-BD69)/2 -> 
A69: 46 | B69: 0.368 | C69: 46 | D69: 0.36 | E69: 0 | F69: 0 | G69: 0 | H69: -2 | I69: 0 | J69: 0 | K69: 0 | L69: -0.72 | M69: 0 | N69: 0.1296 | O69: 0 | P69: 0 | Q69: 0.1296 | W69: 30 | X69: Fq2 | Y69: -9999999 | Z69: 0 | AI69: -9999999 | AK69: 42 | BA69: =IF(AS7="",NA(),AS7) ->  | BB69: =INDEX($N$23:$N$10407,MATCH(BA69,$D$23:$D$10407,0)) ->  | BC69: =IF(AU7="",NA(),AU7) ->  | BD69: =((BB69-BB68)/(BA69-BA68))*(BC69-BA68)+BB68 ->  | BE69: =BC69-(BC69-BA69)*($BF$49/100) ->  | BF69: =((BB69-BB68)/(BA69-BA68))*(BE69-BA68)+BB68+(BD68-BD69)/2 -> 
A70: 47 | B70: 0.376 | C70: 47 | D70: 0.368 | E70: 0 | F70: 0 | G70: 0 | H70: -2 | I70: 0 | J70: 0 | K70: 0 | L70: -0.736 | M70: 0 | N70: 0.135424 | O70: 0 | P70: 0 | Q70: 0.135424 | W70: 31 | X70: Fq3 | Y70: -9999999 | Z70: 0 | AI70: -9999999 | AK70: 43
A71: 48 | B71: 0.384 | C71: 48 | D71: 0.376 | E71: 0 | F71: 0 | G71: 0 | H71: -2 | I71: 0 | J71: 0 | K71: 0 | L71: -0.752 | M71: 0 | N71: 0.141376 | O71: 0 | P71: 0 | Q71: 0.141376 | W71: 32 | X71: Fq4 | Y71: -9999999 | Z71: 0 | AI71: -9999999 | AK71: 44 | BA71: =IF(AR8="",NA(),AR8) ->  | BC71: =IF(AU8="",NA(),AU8) ->  | BE71: =BC71-(BC71-BA71)*($BF$49/100) ->  | BF71: =((BB72-BB71)/(BA72-BA71))*(BE71-BA71)+BB71+(BD71-BD72)/2 -> 
A72: 49 | B72: 0.392 | C72: 49 | D72: 0.384 | E72: 0 | F72: 0 | G72: 0 | H72: -2 | I72: 0 | J72: 0 | K72: 0 | L72: -0.768 | M72: 0 | N72: 0.147456 | O72: 0 | P72: 0 | Q72: 0.147456 | W72: 33 | X72: Fq5 | Y72: -9999999 | Z72: 0 | AI72: =Y60 -> -9999999 | AK72: 45 | BA72: =IF(AS8="",NA(),AS8) ->  | BB72: =INDEX($N$23:$N$10407,MATCH(BA72,$D$23:$D$10407,0)) ->  | BC72: =IF(AU8="",NA(),AU8) ->  | BD72: =((BB72-BB71)/(BA72-BA71))*(BC72-BA71)+BB71 ->  | BE72: =BC72-(BC72-BA72)*($BF$49/100) ->  | BF72: =((BB72-BB71)/(BA72-BA71))*(BE72-BA71)+BB71+(BD71-BD72)/2 -> 
A73: 50 | B73: 0.4 | C73: 50 | D73: 0.392 | E73: 0 | F73: 0 | G73: 0 | H73: -2 | I73: 0 | J73: 0 | K73: 0 | L73: -0.784 | M73: 0 | N73: 0.153664 | O73: 0 | P73: 0 | Q73: 0.153664 | W73: 34 | X73: Fq6 | Y73: -9999999 | Z73: 0 | AI73: -9999999 | AK73: 46
A74: 51 | B74: 0.408 | C74: 51 | D74: 0.4 | E74: 0 | F74: 0 | G74: 0 | H74: -2 | I74: 0 | J74: 0 | K74: 0 | L74: -0.8 | M74: 0 | N74: 0.16 | O74: 0 | P74: 0 | Q74: 0.16 | W74: 35 | X74: Fq7 | Y74: -9999999 | Z74: 0 | AI74: -9999999 | AK74: 47 | BA74: =IF(AR9="",NA(),AR9) ->  | BC74: =IF(AU9="",NA(),AU9) ->  | BE74: =BC74-(BC74-BA74)*($BF$49/100) ->  | BF74: =((BB75-BB74)/(BA75-BA74))*(BE74-BA74)+BB74+(BD74-BD75)/2 -> 
A75: 52 | B75: 0.416 | C75: 52 | D75: 0.408 | E75: 0 | F75: 0 | G75: 0 | H75: -2 | I75: 0 | J75: 0 | K75: 0 | L75: -0.816 | M75: 0 | N75: 0.166464 | O75: 0 | P75: 0 | Q75: 0.166464 | W75: 36 | X75: Fq8 | Y75: -9999999 | Z75: 0 | AI75: -9999999 | AK75: 48 | BA75: =IF(AS9="",NA(),AS9) ->  | BB75: =INDEX($N$23:$N$10407,MATCH(BA75,$D$23:$D$10407,0)) ->  | BC75: =IF(AU9="",NA(),AU9) ->  | BD75: =((BB75-BB74)/(BA75-BA74))*(BC75-BA74)+BB74 ->  | BE75: =BC75-(BC75-BA75)*($BF$49/100) ->  | BF75: =((BB75-BB74)/(BA75-BA74))*(BE75-BA74)+BB74+(BD74-BD75)/2 -> 
A76: 53 | B76: 0.424 | C76: 53 | D76: 0.416 | E76: 0 | F76: 0 | G76: 0 | H76: -2 | I76: 0 | J76: 0 | K76: 0 | L76: -0.832 | M76: 0 | N76: 0.173056 | O76: 0 | P76: 0 | Q76: 0.173056 | W76: 37 | X76: Fq9 | Y76: -9999999 | Z76: 0 | AI76: -9999999 | AK76: 49
A77: 54 | B77: 0.432 | C77: 54 | D77: 0.424 | E77: 0 | F77: 0 | G77: 0 | H77: -2 | I77: 0 | J77: 0 | K77: 0 | L77: -0.848 | M77: 0 | N77: 0.179776 | O77: 0 | P77: 0 | Q77: 0.179776 | W77: 38 | X77: Fq10 | Y77: -9999999 | Z77: 0 | AI77: -9999999 | AK77: 50 | BA77: =IF(AR10="",NA(),AR10) ->  | BC77: =IF(AU10="",NA(),AU10) ->  | BE77: =BC77-(BC77-BA77)*($BF$49/100) ->  | BF77: =((BB78-BB77)/(BA78-BA77))*(BE77-BA77)+BB77+(BD77-BD78)/2 -> 
A78: 55 | B78: 0.44 | C78: 55 | D78: 0.432 | E78: 0 | F78: 0 | G78: 0 | H78: -2 | I78: 0 | J78: 0 | K78: 0 | L78: -0.864 | M78: 0 | N78: 0.186624 | O78: 0 | P78: 0 | Q78: 0.186624 | W78: 39 | X78: Fq11 | Y78: -9999999 | Z78: 0 | AI78: -9999999 | AK78: 51 | BA78: =IF(AS10="",NA(),AS10) ->  | BB78: =INDEX($N$23:$N$10407,MATCH(BA78,$D$23:$D$10407,0)) ->  | BC78: =IF(AU10="",NA(),AU10) ->  | BD78: =((BB78-BB77)/(BA78-BA77))*(BC78-BA77)+BB77 ->  | BE78: =BC78-(BC78-BA78)*($BF$49/100) ->  | BF78: =((BB78-BB77)/(BA78-BA77))*(BE78-BA77)+BB77+(BD77-BD78)/2 -> 
A79: 56 | B79: 0.448 | C79: 56 | D79: 0.44 | E79: 0 | F79: 0 | G79: 0 | H79: -2 | I79: 0 | J79: 0 | K79: 0 | L79: -0.88 | M79: 0 | N79: 0.1936 | O79: 0 | P79: 0 | Q79: 0.1936 | W79: 40 | X79: Fq12 | Y79: -9999999 | Z79: 0 | AI79: -9999999 | AK79: 52
A80: 57 | B80: 0.456 | C80: 57 | D80: 0.448 | E80: 0 | F80: 0 | G80: 0 | H80: -2 | I80: 0 | J80: 0 | K80: 0 | L80: -0.896 | M80: 0 | N80: 0.200704 | O80: 0 | P80: 0 | Q80: 0.200704 | W80: 41 | X80: Fq13 | Y80: -9999999 | Z80: 0 | AI80: -9999999 | AK80: 53 | BA80: =AX6 ->  | BC80: =BA6 ->  | BE80: =BC80-(BC80-BA80)*($BF$49/100) ->  | BF80: =((BB81-BB80)/(BA81-BA80))*(BE80-BA80)+BB80+(BD80-BD81)/2 -> 
A81: 58 | B81: 0.464 | C81: 58 | D81: 0.456 | E81: 0 | F81: 0 | G81: 0 | H81: -2 | I81: 0 | J81: 0 | K81: 0 | L81: -0.912 | M81: 0 | N81: 0.207936 | O81: 0 | P81: 0 | Q81: 0.207936 | W81: 42 | X81: Fq14 | Y81: -9999999 | Z81: 0 | AI81: -9999999 | AK81: 54 | BA81: =AY6 ->  | BB81: =INDEX($N$23:$N$10407,MATCH(BA81,$D$23:$D$10407,0)) ->  | BC81: =BA6 ->  | BD81: =((BB81-BB80)/(BA81-BA80))*(BC81-BA80)+BB80 ->  | BE81: =BC81-(BC81-BA81)*($BF$49/100) ->  | BF81: =((BB81-BB80)/(BA81-BA80))*(BE81-BA80)+BB80+(BD80-BD81)/2 -> 
A82: 59 | B82: 0.472 | C82: 59 | D82: 0.464 | E82: 0 | F82: 0 | G82: 0 | H82: -2 | I82: 0 | J82: 0 | K82: 0 | L82: -0.928 | M82: 0 | N82: 0.215296 | O82: 0 | P82: 0 | Q82: 0.215296 | W82: 43 | X82: Fq15 | Y82: -9999999 | Z82: 0 | AI82: -9999999 | AK82: 55
A83: 60 | B83: 0.48 | C83: 60 | D83: 0.472 | E83: 0 | F83: 0 | G83: 0 | H83: -2 | I83: 0 | J83: 0 | K83: 0 | L83: -0.944 | M83: 0 | N83: 0.222784 | O83: 0 | P83: 0 | Q83: 0.222784 | W83: 44 | X83: Fq16 | Y83: -9999999 | Z83: 0 | AI83: -9999999 | AK83: 56 | BA83: =IF(AX7="",NA(),AX7) ->  | BC83: =IF(BA7="",NA(),BA7) ->  | BE83: =BC83-(BC83-BA83)*($BF$49/100) ->  | BF83: =((BB84-BB83)/(BA84-BA83))*(BE83-BA83)+BB83+(BD83-BD84)/2 -> 
A84: 61 | B84: 0.488 | C84: 61 | D84: 0.48 | E84: 0 | F84: 0 | G84: 0 | H84: -2 | I84: 0 | J84: 0 | K84: 0 | L84: -0.96 | M84: 0 | N84: 0.2304 | O84: 0 | P84: 0 | Q84: 0.2304 | W84: 45 | X84: Fq17 | Y84: -9999999 | Z84: 0 | AI84: -9999999 | AK84: 57 | BA84: =IF(AY7="",NA(),AY7) ->  | BB84: =INDEX($N$23:$N$10407,MATCH(BA84,$D$23:$D$10407,0)) ->  | BC84: =IF(BA7="",NA(),BA7) ->  | BD84: =((BB84-BB83)/(BA84-BA83))*(BC84-BA83)+BB83 ->  | BE84: =BC84-(BC84-BA84)*($BF$49/100) ->  | BF84: =((BB84-BB83)/(BA84-BA83))*(BE84-BA83)+BB83+(BD83-BD84)/2 -> 
A85: 62 | B85: 0.496 | C85: 62 | D85: 0.488 | E85: 0 | F85: 0 | G85: 0 | H85: -2 | I85: 0 | J85: 0 | K85: 0 | L85: -0.976 | M85: 0 | N85: 0.238144 | O85: 0 | P85: 0 | Q85: 0.238144 | W85: 46 | X85: Fq18 | Y85: -9999999 | Z85: 0 | AI85: -9999999 | AK85: 58
A86: 63 | B86: 0.504 | C86: 63 | D86: 0.496 | E86: 0 | F86: 0 | G86: 0 | H86: -2 | I86: 0 | J86: 0 | K86: 0 | L86: -0.992 | M86: 0 | N86: 0.246016 | O86: 0 | P86: 0 | Q86: 0.246016 | W86: 47 | X86: Fq19 | Y86: -9999999 | Z86: 0 | AI86: -9999999 | AK86: 59 | BA86: =IF(AX8="",NA(),AX8) ->  | BC86: =IF(BA8="",NA(),BA8) ->  | BE86: =BC86-(BC86-BA86)*($BF$49/100) ->  | BF86: =((BB87-BB86)/(BA87-BA86))*(BE86-BA86)+BB86+(BD86-BD87)/2 -> 
A87: 64 | B87: 0.512 | C87: 64 | D87: 0.504 | E87: =IF(AND(D88=D87,COUNTIF($V$28:$V$39,D87)>0),SUMIF($V$28:$V$39,D87,$W$28:$W$39),0) -> 0 | F87: 0 | G87: =IF(AND(D88=D87,COUNTIF($Y$28:$Y$39,D87)>0),SUMIF($Y$28:$Y$39,D87,$Z$28:$Z$39),0) -> 0 | H87: -2 | I87: 0 | J87: 0 | K87: 0 | L87: -1.008 | M87: =IF(AND(D88=D87,COUNTIF($AG$28:$AG$43,D87)>0),SUMIF($AG$28:$AG$43,D87,$AH$28:$AH$43),0) -> 0 | N87: 0.254016 | O87: 0 | P87: 0 | Q87: 0.254016 | W87: 48 | X87: Fq20 | Y87: -9999999 | Z87: 0 | AI87: -9999999 | AK87: 60 | BA87: =IF(AY8="",NA(),AY8) ->  | BB87: =INDEX($N$23:$N$10407,MATCH(BA87,$D$23:$D$10407,0)) ->  | BC87: =IF(BA8="",NA(),BA8) ->  | BD87: =((BB87-BB86)/(BA87-BA86))*(BC87-BA86)+BB86 ->  | BE87: =BC87-(BC87-BA87)*($BF$49/100) ->  | BF87: =((BB87-BB86)/(BA87-BA86))*(BE87-BA86)+BB86+(BD86-BD87)/2 -> 
A88: 65 | B88: =A88*$H$20 -> 0.52 | C88: 65 | D88: =IF(ISNUMBER(SMALL($B$23:$B$10407,C88)),SMALL($B$23:$B$10407,C88),NA()) -> 0.512 | E88: 0 | F88: 0 | G88: 0 | H88: =IF(AND(COUNTIF($AC$28:$AC$33,D88)>0,COUNTIF($AD$28:$AD$33,D88)>0),IF(D87=D88,INDEX($AE$28:$AE$33,MATCH(D88,$AC$28:$AC$33,0)),INDEX($AE$28:$AE$33,MATCH(D88,$AD$28:$AD$33,0))),IF(AND(COUNTIF($AC$28:$AC$33,D88)>0,D88=D89),0,IF(AND(COUNTIF($AD$28:$AD$33,D88)>0,D87=D88),0,IF(AND(D88>=$AC$28,D88<=$AD$28),$AE$28,IF(AND(D88>=$AC$29,D88<=$AD$29),$AE$29,IF(AND(D88>=$AC$30,D88<=$AD$30),$AE$30,IF(AND(D88>=$AC$31,D88<=$AD$31),$AE$31,IF(AND(D88>=$AC$32,D88<=$AD$32),$AE$32,IF(AND(D88>=$AC$33,D88<=$AD$33),$AE$33,0))))))))) -> -2 | I88: =IF(AND(D89=D88,COUNTIF($Y$40:$Y$179,D88)>0),SUMIF($Y$40:$Y$179,D88,$Z$40:$Z$179),0) -> 0 | J88: 0 | K88: =IF(ROUND(J88,$P$20)=ROUND(L88,$P$20),NA(),J88) -> 0 | L88: -1.024 | M88: 0 | N88: 0.262144 | O88: 0 | P88: =IF(ROUND(N88,$P$20)=ROUND(O88,$P$20),NA(),O88) -> 0 | Q88: =IF(ISNUMBER(N88),N88,"") -> 0.262144 | W88: 49 | X88: Fq21 | Y88: -9999999 | Z88: 0 | AI88: -9999999 | AK88: 61
A89: 66 | B89: 0.528 | C89: 66 | D89: 0.52 | E89: 0 | F89: =F88-E88 -> 0 | G89: 0 | H89: -2 | I89: 0 | J89: =J88+G88+I88 -> 0 | K89: 0 | L89: =G88+L88+(D89-D88)*H88 -> -1.04 | M89: 0 | N89: =M88+N88-(D89-D88)*(L88+L89)/2 -> 0.2704 | O89: =M88+O88-(D89-D88)*(J88+J89)/2 -> 0 | P89: 0 | Q89: 0.2704 | R89: =IF($S$20=0,NA(),ROUND(IF(OR(AND(D88=D89,L88=L89),G88<>0,G89<>0),L89,NA()),8)) ->  | S89: =IF($S$20=0,NA(),ROUND(IF(OR(AND(D88=D89,N88=N89),M88<>0,M89<>0),N89,NA()),8)) ->  | T89: =IF($S$20=0,NA(),ROUND(IF(N89=O89,NA(),IF(OR(AND(D88=D89,O88=O89),M88<>0,M89<>0),O89,NA())),8)) ->  | U89: =IF($S$20=0,NA(),ROUND(IF(AND(D88=D89,F88<>F89),F89,NA()),8)) ->  | W89: 50 | X89: Fq22 | Y89: -9999999 | Z89: 0 | AI89: -9999999 | AK89: 62 | BA89: =IF(AX9="",NA(),AX9) ->  | BC89: =IF(BA9="",NA(),BA9) ->  | BE89: =BC89-(BC89-BA89)*($BF$49/100) ->  | BF89: =((BB90-BB89)/(BA90-BA89))*(BE89-BA89)+BB89+(BD89-BD90)/2 -> 
A90: 67 | B90: 0.536 | C90: 67 | D90: 0.528 | E90: 0 | F90: 0 | G90: 0 | H90: -2 | I90: 0 | J90: 0 | K90: 0 | L90: -1.056 | M90: 0 | N90: 0.278784 | O90: 0 | P90: 0 | Q90: 0.278784 | W90: 51 | X90: Fq23 | Y90: -9999999 | Z90: 0 | AI90: -9999999 | AK90: 63 | BA90: =IF(AY9="",NA(),AY9) ->  | BB90: =INDEX($N$23:$N$10407,MATCH(BA90,$D$23:$D$10407,0)) ->  | BC90: =IF(BA9="",NA(),BA9) ->  | BD90: =((BB90-BB89)/(BA90-BA89))*(BC90-BA89)+BB89 ->  | BE90: =BC90-(BC90-BA90)*($BF$49/100) ->  | BF90: =((BB90-BB89)/(BA90-BA89))*(BE90-BA89)+BB89+(BD89-BD90)/2 -> 
A91: 68 | B91: 0.544 | C91: 68 | D91: 0.536 | E91: 0 | F91: 0 | G91: 0 | H91: -2 | I91: 0 | J91: 0 | K91: 0 | L91: -1.072 | M91: 0 | N91: 0.287296 | O91: 0 | P91: 0 | Q91: 0.287296 | W91: 52 | X91: Fq24 | Y91: -9999999 | Z91: 0 | AI91: -9999999 | AK91: 64
A92: 69 | B92: 0.552 | C92: 69 | D92: 0.544 | E92: 0 | F92: 0 | G92: 0 | H92: -2 | I92: 0 | J92: 0 | K92: 0 | L92: -1.088 | M92: 0 | N92: 0.295936 | O92: 0 | P92: 0 | Q92: 0.295936 | W92: 53 | X92: Fq25 | Y92: -9999999 | Z92: 0 | AI92: -9999999 | AK92: 65 | BA92: =IF(AX10="",NA(),AX10) ->  | BC92: =IF(BA10="",NA(),BA10) ->  | BE92: =BC92-(BC92-BA92)*($BF$49/100) ->  | BF92: =((BB93-BB92)/(BA93-BA92))*(BE92-BA92)+BB92+(BD92-BD93)/2 -> 
A93: 70 | B93: 0.56 | C93: 70 | D93: 0.552 | E93: 0 | F93: 0 | G93: 0 | H93: -2 | I93: 0 | J93: 0 | K93: 0 | L93: -1.104 | M93: 0 | N93: 0.304704 | O93: 0 | P93: 0 | Q93: 0.304704 | W93: 54 | X93: Fq26 | Y93: -9999999 | Z93: 0 | AI93: -9999999 | AJ93: =IF(SMALL($AI$28:$AI$219,AK93)>0,SMALL($AI$28:$AI$219,AK93),"") ->  | AK93: 66 | BA93: =IF(AY10="",NA(),AY10) ->  | BB93: =INDEX($N$23:$N$10407,MATCH(BA93,$D$23:$D$10407,0)) ->  | BC93: =IF(BA10="",NA(),BA10) ->  | BD93: =((BB93-BB92)/(BA93-BA92))*(BC93-BA92)+BB92 ->  | BE93: =BC93-(BC93-BA93)*($BF$49/100) ->  | BF93: =((BB93-BB92)/(BA93-BA92))*(BE93-BA92)+BB92+(BD92-BD93)/2 -> 
A94: 71 | B94: 0.568 | C94: 71 | D94: 0.56 | E94: 0 | F94: 0 | G94: 0 | H94: -2 | I94: 0 | J94: 0 | K94: 0 | L94: -1.12 | M94: 0 | N94: 0.3136 | O94: 0 | P94: 0 | Q94: 0.3136 | W94: 55 | X94: Fq27 | Y94: -9999999 | Z94: 0 | AI94: -9999999 | AK94: 67
A95: 72 | B95: 0.576 | C95: 72 | D95: 0.568 | E95: 0 | F95: 0 | G95: 0 | H95: -2 | I95: 0 | J95: 0 | K95: 0 | L95: -1.136 | M95: 0 | N95: 0.322624 | O95: 0 | P95: 0 | Q95: 0.322624 | W95: 56 | X95: Fq28 | Y95: -9999999 | Z95: 0 | AI95: -9999999 | AK95: 68 | BA95: =BD6 ->  | BC95: =BG6 ->  | BE95: =BC95-(BC95-BA95)*($BF$49/100) ->  | BF95: =((BB96-BB95)/(BA96-BA95))*(BE95-BA95)+BB95+(BD95-BD96)/2 -> 
A96: 73 | B96: 0.584 | C96: 73 | D96: 0.576 | E96: 0 | F96: 0 | G96: 0 | H96: -2 | I96: 0 | J96: 0 | K96: 0 | L96: -1.152 | M96: 0 | N96: 0.331776 | O96: 0 | P96: 0 | Q96: 0.331776 | W96: 57 | X96: Fq1 | Y96: =IF(BA6="",-9999999,BA6) -> -9999999 | Z96: =IF(BB6="",0,BB6) -> 0 | AI96: -9999999 | AK96: 69 | BA96: =BE6 ->  | BB96: =INDEX($N$23:$N$10407,MATCH(BA96,$D$23:$D$10407,0)) ->  | BC96: =BG6 ->  | BD96: =((BB96-BB95)/(BA96-BA95))*(BC96-BA95)+BB95 ->  | BE96: =BC96-(BC96-BA96)*($BF$49/100) ->  | BF96: =((BB96-BB95)/(BA96-BA95))*(BE96-BA95)+BB95+(BD95-BD96)/2 -> 
A97: 74 | B97: 0.592 | C97: 74 | D97: 0.584 | E97: 0 | F97: 0 | G97: 0 | H97: -2 | I97: 0 | J97: 0 | K97: 0 | L97: -1.168 | M97: 0 | N97: 0.341056 | O97: 0 | P97: 0 | Q97: 0.341056 | W97: 58 | X97: Fq2 | Y97: -9999999 | Z97: 0 | AI97: -9999999 | AK97: 70
A98: 75 | B98: 0.6 | C98: 75 | D98: 0.592 | E98: 0 | F98: 0 | G98: 0 | H98: -2 | I98: 0 | J98: 0 | K98: 0 | L98: -1.184 | M98: 0 | N98: 0.350464 | O98: 0 | P98: 0 | Q98: 0.350464 | W98: 59 | X98: Fq3 | Y98: -9999999 | Z98: 0 | AI98: -9999999 | AK98: 71 | BA98: =IF(BD7="",NA(),BD7) ->  | BC98: =IF(BG7="",NA(),BG7) ->  | BE98: =BC98-(BC98-BA98)*($BF$49/100) ->  | BF98: =((BB99-BB98)/(BA99-BA98))*(BE98-BA98)+BB98+(BD98-BD99)/2 -> 
A99: 76 | B99: 0.608 | C99: 76 | D99: 0.6 | E99: 0 | F99: 0 | G99: 0 | H99: -2 | I99: 0 | J99: 0 | K99: 0 | L99: -1.2 | M99: 0 | N99: 0.36 | O99: 0 | P99: 0 | Q99: 0.36 | W99: 60 | X99: Fq4 | Y99: -9999999 | Z99: 0 | AI99: -9999999 | AK99: 72 | BA99: =IF(BE7="",NA(),BE7) ->  | BB99: =INDEX($N$23:$N$10407,MATCH(BA99,$D$23:$D$10407,0)) ->  | BC99: =IF(BG7="",NA(),BG7) ->  | BD99: =((BB99-BB98)/(BA99-BA98))*(BC99-BA98)+BB98 ->  | BE99: =BC99-(BC99-BA99)*($BF$49/100) ->  | BF99: =((BB99-BB98)/(BA99-BA98))*(BE99-BA98)+BB98+(BD98-BD99)/2 -> 
A100: 77 | B100: 0.616 | C100: 77 | D100: 0.608 | E100: 0 | F100: 0 | G100: 0 | H100: -2 | I100: 0 | J100: 0 | K100: 0 | L100: -1.216 | M100: 0 | N100: 0.369664 | O100: 0 | P100: 0 | Q100: 0.369664 | W100: 61 | X100: Fq5 | Y100: -9999999 | Z100: 0 | AI100: -9999999 | AK100: 73
A101: 78 | B101: 0.624 | C101: 78 | D101: 0.616 | E101: 0 | F101: 0 | G101: 0 | H101: -2 | I101: 0 | J101: 0 | K101: 0 | L101: -1.232 | M101: 0 | N101: 0.379456 | O101: 0 | P101: 0 | Q101: 0.379456 | W101: 62 | X101: Fq6 | Y101: -9999999 | Z101: 0 | AI101: -9999999 | AK101: 74 | BA101: =IF(BD8="",NA(),BD8) ->  | BC101: =IF(BG8="",NA(),BG8) ->  | BE101: =BC101-(BC101-BA101)*($BF$49/100) ->  | BF101: =((BB102-BB101)/(BA102-BA101))*(BE101-BA101)+BB101+(BD101-BD102)/2 -> 
A102: 79 | B102: 0.632 | C102: 79 | D102: 0.624 | E102: 0 | F102: 0 | G102: 0 | H102: -2 | I102: 0 | J102: 0 | K102: 0 | L102: -1.248 | M102: 0 | N102: 0.389376 | O102: 0 | P102: 0 | Q102: 0.389376 | W102: 63 | X102: Fq7 | Y102: -9999999 | Z102: 0 | AI102: -9999999 | AK102: 75 | BA102: =IF(BE8="",NA(),BE8) ->  | BB102: =INDEX($N$23:$N$10407,MATCH(BA102,$D$23:$D$10407,0)) ->  | BC102: =IF(BG8="",NA(),BG8) ->  | BD102: =((BB102-BB101)/(BA102-BA101))*(BC102-BA101)+BB101 ->  | BE102: =BC102-(BC102-BA102)*($BF$49/100) ->  | BF102: =((BB102-BB101)/(BA102-BA101))*(BE102-BA101)+BB101+(BD101-BD102)/2 -> 
A103: 80 | B103: 0.64 | C103: 80 | D103: 0.632 | E103: 0 | F103: 0 | G103: 0 | H103: -2 | I103: 0 | J103: 0 | K103: 0 | L103: -1.264 | M103: 0 | N103: 0.399424 | O103: 0 | P103: 0 | Q103: 0.399424 | W103: 64 | X103: Fq8 | Y103: -9999999 | Z103: 0 | AI103: -9999999 | AK103: 76
A104: 81 | B104: 0.648 | C104: 81 | D104: 0.64 | E104: 0 | F104: 0 | G104: 0 | H104: -2 | I104: 0 | J104: 0 | K104: 0 | L104: -1.28 | M104: 0 | N104: 0.4096 | O104: 0 | P104: 0 | Q104: 0.4096 | W104: 65 | X104: Fq9 | Y104: -9999999 | Z104: 0 | AI104: =Y92 -> -9999999 | AK104: 77 | BA104: =IF(BD9="",NA(),BD9) ->  | BC104: =IF(BG9="",NA(),BG9) ->  | BE104: =BC104-(BC104-BA104)*($BF$49/100) ->  | BF104: =((BB105-BB104)/(BA105-BA104))*(BE104-BA104)+BB104+(BD104-BD105)/2 -> 
A105: 82 | B105: 0.656 | C105: 82 | D105: 0.648 | E105: 0 | F105: 0 | G105: 0 | H105: -2 | I105: 0 | J105: 0 | K105: 0 | L105: -1.296 | M105: 0 | N105: 0.419904 | O105: 0 | P105: 0 | Q105: 0.419904 | W105: 66 | X105: Fq10 | Y105: -9999999 | Z105: 0 | AI105: -9999999 | AK105: 78 | BA105: =IF(BE9="",NA(),BE9) ->  | BB105: =INDEX($N$23:$N$10407,MATCH(BA105,$D$23:$D$10407,0)) ->  | BC105: =IF(BG9="",NA(),BG9) ->  | BD105: =((BB105-BB104)/(BA105-BA104))*(BC105-BA104)+BB104 ->  | BE105: =BC105-(BC105-BA105)*($BF$49/100) ->  | BF105: =((BB105-BB104)/(BA105-BA104))*(BE105-BA104)+BB104+(BD104-BD105)/2 -> 
A106: 83 | B106: 0.664 | C106: 83 | D106: 0.656 | E106: 0 | F106: 0 | G106: 0 | H106: -2 | I106: 0 | J106: 0 | K106: 0 | L106: -1.312 | M106: 0 | N106: 0.430336 | O106: 0 | P106: 0 | Q106: 0.430336 | W106: 67 | X106: Fq11 | Y106: -9999999 | Z106: 0 | AI106: -9999999 | AK106: 79
A107: 84 | B107: 0.672 | C107: 84 | D107: 0.664 | E107: 0 | F107: 0 | G107: 0 | H107: -2 | I107: 0 | J107: 0 | K107: 0 | L107: -1.328 | M107: 0 | N107: 0.440896 | O107: 0 | P107: 0 | Q107: 0.440896 | W107: 68 | X107: Fq12 | Y107: -9999999 | Z107: 0 | AI107: -9999999 | AK107: 80 | BA107: =IF(BD10="",NA(),BD10) ->  | BC107: =IF(BG10="",NA(),BG10) ->  | BE107: =BC107-(BC107-BA107)*($BF$49/100) ->  | BF107: =((BB108-BB107)/(BA108-BA107))*(BE107-BA107)+BB107+(BD107-BD108)/2 -> 
A108: 85 | B108: 0.68 | C108: 85 | D108: 0.672 | E108: 0 | F108: 0 | G108: 0 | H108: -2 | I108: 0 | J108: 0 | K108: 0 | L108: -1.344 | M108: 0 | N108: 0.451584 | O108: 0 | P108: 0 | Q108: 0.451584 | W108: 69 | X108: Fq13 | Y108: -9999999 | Z108: 0 | AB108: max | AI108: -9999999 | AK108: 81 | BA108: =IF(BE10="",NA(),BE10) ->  | BB108: =INDEX($N$23:$N$10407,MATCH(BA108,$D$23:$D$10407,0)) ->  | BC108: =IF(BG10="",NA(),BG10) ->  | BD108: =((BB108-BB107)/(BA108-BA107))*(BC108-BA107)+BB107 ->  | BE108: =BC108-(BC108-BA108)*($BF$49/100) ->  | BF108: =((BB108-BB107)/(BA108-BA107))*(BE108-BA107)+BB107+(BD107-BD108)/2 -> 
A109: 86 | B109: 0.688 | C109: 86 | D109: 0.68 | E109: 0 | F109: 0 | G109: 0 | H109: -2 | I109: 0 | J109: 0 | K109: 0 | L109: -1.36 | M109: 0 | N109: 0.4624 | O109: 0 | P109: 0 | Q109: 0.4624 | W109: 70 | X109: Fq14 | Y109: -9999999 | Z109: 0 | AB109: =V26 -> 8 | AI109: -9999999 | AK109: 82
A110: 87 | B110: 0.696 | C110: 87 | D110: 0.688 | E110: 0 | F110: 0 | G110: 0 | H110: -2 | I110: 0 | J110: 0 | K110: 0 | L110: -1.376 | M110: 0 | N110: 0.473344 | O110: 0 | P110: 0 | Q110: 0.473344 | W110: 71 | X110: Fq15 | Y110: -9999999 | Z110: 0 | AB110: 0.2 | AI110: -9999999 | AK110: 83 | BA110: =BJ6 ->  | BC110: =BM6 ->  | BE110: =BC110-(BC110-BA110)*($BF$49/100) ->  | BF110: =((BB111-BB110)/(BA111-BA110))*(BE110-BA110)+BB110+(BD110-BD111)/2 -> 
A111: 88 | B111: 0.704 | C111: 88 | D111: 0.696 | E111: 0 | F111: 0 | G111: 0 | H111: -2 | I111: 0 | J111: 0 | K111: 0 | L111: -1.392 | M111: 0 | N111: 0.484416 | O111: 0 | P111: 0 | Q111: 0.484416 | W111: 72 | X111: Fq16 | Y111: -9999999 | Z111: 0 | AA111: 1 | AB111: vertical_lines | AI111: -9999999 | AK111: 84 | BA111: =BK6 ->  | BB111: =INDEX($N$23:$N$10407,MATCH(BA111,$D$23:$D$10407,0)) ->  | BC111: =BM6 ->  | BD111: =((BB111-BB110)/(BA111-BA110))*(BC111-BA110)+BB110 ->  | BE111: =BC111-(BC111-BA111)*($BF$49/100) ->  | BF111: =((BB111-BB110)/(BA111-BA110))*(BE111-BA110)+BB110+(BD110-BD111)/2 -> 
A112: 89 | B112: 0.712 | C112: 89 | D112: 0.704 | E112: 0 | F112: 0 | G112: 0 | H112: -2 | I112: 0 | J112: 0 | K112: 0 | L112: -1.408 | M112: 0 | N112: 0.495616 | O112: 0 | P112: 0 | Q112: 0.495616 | W112: 73 | X112: Fq17 | Y112: -9999999 | Z112: 0 | AA112: 2 | AB112: 0 | AC112: 0 | AI112: -9999999 | AK112: 85
A113: 90 | B113: 0.72 | C113: 90 | D113: 0.712 | E113: 0 | F113: 0 | G113: 0 | H113: -2 | I113: 0 | J113: 0 | K113: 0 | L113: -1.424 | M113: 0 | N113: 0.506944 | O113: 0 | P113: 0 | Q113: 0.506944 | W113: 74 | X113: Fq18 | Y113: -9999999 | Z113: 0 | AA113: 3 | AB113: 0 | AC113: 0 | AD113: 0 | AE113: 0 | AF113: 0 | AI113: -9999999 | AK113: 86 | BA113: =IF(BJ7="",NA(),BJ7) ->  | BC113: =IF(BM7="",NA(),BM7) ->  | BE113: =BC113-(BC113-BA113)*($BF$49/100) ->  | BF113: =((BB114-BB113)/(BA114-BA113))*(BE113-BA113)+BB113+(BD113-BD114)/2 -> 
A114: 91 | B114: 0.728 | C114: 91 | D114: 0.72 | E114: 0 | F114: 0 | G114: 0 | H114: -2 | I114: 0 | J114: 0 | K114: 0 | L114: -1.44 | M114: 0 | N114: 0.5184 | O114: 0 | P114: 0 | Q114: 0.5184 | W114: 75 | X114: Fq19 | Y114: -9999999 | Z114: 0 | AA114: 4 | AB114: 0 | AC114: 0 | AD114: =L24 -> 0 | AE114: =N24 -> 0 | AF114: =F24 -> 0 | AI114: -9999999 | AK114: 87 | BA114: =IF(BK7="",NA(),BK7) ->  | BB114: =INDEX($N$23:$N$10407,MATCH(BA114,$D$23:$D$10407,0)) ->  | BC114: =IF(BM7="",NA(),BM7) ->  | BD114: =((BB114-BB113)/(BA114-BA113))*(BC114-BA113)+BB113 ->  | BE114: =BC114-(BC114-BA114)*($BF$49/100) ->  | BF114: =((BB114-BB113)/(BA114-BA113))*(BE114-BA113)+BB113+(BD113-BD114)/2 -> 
A115: 92 | B115: 0.736 | C115: 92 | D115: 0.728 | E115: 0 | F115: 0 | G115: 0 | H115: -2 | I115: 0 | J115: 0 | K115: 0 | L115: -1.456 | M115: 0 | N115: 0.529984 | O115: 0 | P115: 0 | Q115: 0.529984 | W115: 76 | X115: Fq20 | Y115: -9999999 | Z115: 0 | AA115: 5 | AB115: =IF(MOD(AA114,3)=0,AB114+$AB$110,0) -> 0 | AC115: =IF(AC114>=$AB$109,NA(),AC114+AB116) -> 0 | AD115: 0 | AE115: 0 | AF115: 0 | AI115: -9999999 | AK115: 88
A116: 93 | B116: 0.744 | C116: 93 | D116: 0.736 | E116: 0 | F116: 0 | G116: 0 | H116: -2 | I116: 0 | J116: 0 | K116: 0 | L116: -1.472 | M116: 0 | N116: 0.541696 | O116: 0 | P116: 0 | Q116: 0.541696 | W116: 77 | X116: Fq21 | Y116: -9999999 | Z116: 0 | AA116: 6 | AB116: =IF(MOD(AA115,3)=0,AB115+$AB$110,0) -> 0 | AC116: =IF(AC115>=$AB$109,NA(),AC115+AB117) -> 0.2 | AD116: =IF(ISNUMBER(AC116),IF(AB116=0,0,VLOOKUP(AC116,$D$23:$L$1100,9)),NA()) -> 0 | AE116: =IF(ISNUMBER(AC116),IF(AB116=0,0,VLOOKUP(AC116,$D$23:$N$1100,11)),NA()) -> 0 | AF116: =IF(ISNUMBER(AC116),IF(AB116=0,0,VLOOKUP(AC116,$D$23:$N$1100,3)),NA()) -> 0 | AI116: -9999999 | AK116: 89 | BA116: =IF(BJ8="",NA(),BJ8) ->  | BB116: =INDEX($N$23:$N$10407,MATCH(BA116,$D$23:$D$10407,0)+1) ->  | BC116: =IF(BM8="",NA(),BM8) ->  | BD116: =INDEX($O$23:$O$10407,MATCH(BC116,$D$23:$D$10407,0)) ->  | BE116: =BC116-(BC116-BA116)*($BF$49/100) ->  | BF116: =((BB117-BB116)/(BA117-BA116))*(BE116-BA116)+BB116+(BD116-BD117)/2 -> 
A117: 94 | B117: 0.752 | C117: 94 | D117: 0.744 | E117: 0 | F117: 0 | G117: 0 | H117: -2 | I117: 0 | J117: 0 | K117: 0 | L117: -1.488 | M117: 0 | N117: 0.553536 | O117: 0 | P117: 0 | Q117: 0.553536 | W117: 78 | X117: Fq22 | Y117: -9999999 | Z117: 0 | AA117: 7 | AB117: 0.2 | AC117: 0.2 | AD117: =IF(ISNUMBER(AC117),IF(AB117=0,0,VLOOKUP(AC117,$D$23:$L$1100,9)),NA()) -> -0.4 | AE117: =IF(ISNUMBER(AC117),IF(AB117=0,0,VLOOKUP(AC117,$D$23:$N$1100,11)),NA()) -> 0.04 | AF117: =IF(ISNUMBER(AC117),IF(AB117=0,0,VLOOKUP(AC117,$D$23:$N$1100,3)),NA()) -> 0 | AI117: -9999999 | AK117: 90 | BA117: =IF(BK8="",NA(),BK8) ->  | BB117: =INDEX($N$23:$N$10407,MATCH(BA117,$D$23:$D$10407,0)) ->  | BC117: =IF(BM8="",NA(),BM8) ->  | BD117: =((BB117-BB116)/(BA117-BA116))*(BC117-BA116)+BB116 ->  | BE117: =BC117-(BC117-BA117)*($BF$49/100) ->  | BF117: =((BB117-BB116)/(BA117-BA116))*(BE117-BA116)+BB116+(BD116-BD117)/2 -> 
A118: 95 | B118: 0.76 | C118: 95 | D118: 0.752 | E118: 0 | F118: 0 | G118: 0 | H118: -2 | I118: 0 | J118: 0 | K118: 0 | L118: -1.504 | M118: 0 | N118: 0.565504 | O118: 0 | P118: 0 | Q118: 0.565504 | W118: 79 | X118: Fq23 | Y118: -9999999 | Z118: 0 | AA118: 8 | AB118: 0 | AC118: 0.2 | AD118: 0 | AE118: 0 | AF118: 0 | AI118: -9999999 | AK118: 91
A119: 96 | B119: 0.768 | C119: 96 | D119: 0.76 | E119: 0 | F119: 0 | G119: 0 | H119: -2 | I119: 0 | J119: 0 | K119: 0 | L119: -1.52 | M119: 0 | N119: 0.5776 | O119: 0 | P119: 0 | Q119: 0.5776 | W119: 80 | X119: Fq24 | Y119: -9999999 | Z119: 0 | AA119: 9 | AB119: 0 | AC119: 0.4 | AD119: 0 | AE119: 0 | AF119: 0 | AI119: -9999999 | AK119: 92 | BA119: =IF(BJ9="",NA(),BJ9) ->  | BC119: =IF(BM9="",NA(),BM9) ->  | BE119: =BC119-(BC119-BA119)*($BF$49/100) ->  | BF119: =((BB120-BB119)/(BA120-BA119))*(BE119-BA119)+BB119+(BD119-BD120)/2 -> 
A120: 97 | B120: 0.776 | C120: 97 | D120: 0.768 | E120: 0 | F120: 0 | G120: 0 | H120: -2 | I120: 0 | J120: 0 | K120: 0 | L120: -1.536 | M120: 0 | N120: 0.589824 | O120: 0 | P120: 0 | Q120: 0.589824 | W120: 81 | X120: Fq25 | Y120: -9999999 | Z120: 0 | AA120: 10 | AB120: 0.2 | AC120: 0.4 | AD120: -0.8 | AE120: 0.16 | AF120: 0 | AI120: -9999999 | AK120: 93 | BA120: =IF(BK9="",NA(),BK9) ->  | BB120: =INDEX($N$23:$N$10407,MATCH(BA120,$D$23:$D$10407,0)) ->  | BC120: =IF(BM9="",NA(),BM9) ->  | BD120: =((BB120-BB119)/(BA120-BA119))*(BC120-BA119)+BB119 ->  | BE120: =BC120-(BC120-BA120)*($BF$49/100) ->  | BF120: =((BB120-BB119)/(BA120-BA119))*(BE120-BA119)+BB119+(BD119-BD120)/2 -> 
A121: 98 | B121: 0.784 | C121: 98 | D121: 0.776 | E121: 0 | F121: 0 | G121: 0 | H121: -2 | I121: 0 | J121: 0 | K121: 0 | L121: -1.552 | M121: 0 | N121: 0.602176 | O121: 0 | P121: 0 | Q121: 0.602176 | W121: 82 | X121: Fq26 | Y121: -9999999 | Z121: 0 | AA121: 11 | AB121: 0 | AC121: 0.4 | AD121: 0 | AE121: 0 | AF121: 0 | AI121: -9999999 | AK121: 94
A122: 99 | B122: 0.792 | C122: 99 | D122: 0.784 | E122: 0 | F122: 0 | G122: 0 | H122: -2 | I122: 0 | J122: 0 | K122: 0 | L122: -1.568 | M122: 0 | N122: 0.614656 | O122: 0 | P122: 0 | Q122: 0.614656 | W122: 83 | X122: Fq27 | Y122: -9999999 | Z122: 0 | AA122: 12 | AB122: 0 | AC122: 0.6 | AD122: 0 | AE122: 0 | AF122: 0 | AI122: -9999999 | AK122: 95 | BA122: =IF(BJ10="",NA(),BJ10) ->  | BC122: =IF(BM10="",NA(),BM10) ->  | BE122: =BC122-(BC122-BA122)*($BF$49/100) ->  | BF122: =((BB123-BB122)/(BA123-BA122))*(BE122-BA122)+BB122+(BD122-BD123)/2 -> 
A123: 100 | B123: 0.8 | C123: 100 | D123: 0.792 | E123: 0 | F123: 0 | G123: 0 | H123: -2 | I123: 0 | J123: 0 | K123: 0 | L123: -1.584 | M123: 0 | N123: 0.627264 | O123: 0 | P123: 0 | Q123: 0.627264 | W123: 84 | X123: Fq28 | Y123: -9999999 | Z123: 0 | AA123: 13 | AB123: 0.2 | AC123: 0.6 | AD123: -1.2 | AE123: 0.36 | AF123: 0 | AI123: -9999999 | AK123: 96 | BA123: =IF(BK10="",NA(),BK10) ->  | BB123: =INDEX($N$23:$N$10407,MATCH(BA123,$D$23:$D$10407,0)) ->  | BC123: =IF(BM10="",NA(),BM10) ->  | BD123: =((BB123-BB122)/(BA123-BA122))*(BC123-BA122)+BB122 ->  | BE123: =BC123-(BC123-BA123)*($BF$49/100) ->  | BF123: =((BB123-BB122)/(BA123-BA122))*(BE123-BA122)+BB122+(BD122-BD123)/2 -> 
A124: 101 | B124: 0.808 | C124: 101 | D124: 0.8 | E124: 0 | F124: 0 | G124: 0 | H124: -2 | I124: 0 | J124: 0 | K124: 0 | L124: -1.6 | M124: 0 | N124: 0.64 | O124: 0 | P124: 0 | Q124: 0.64 | W124: 85 | X124: Fq1 | Y124: =IF(BG6="",-9999999,BG6) -> -9999999 | Z124: =IF(BH6="",0,BH6) -> 0 | AA124: 14 | AB124: 0 | AC124: 0.6 | AD124: 0 | AE124: 0 | AF124: 0 | AI124: -9999999 | AK124: 97
A125: 102 | B125: 0.816 | C125: 102 | D125: 0.808 | E125: 0 | F125: 0 | G125: 0 | H125: -2 | I125: 0 | J125: 0 | K125: 0 | L125: -1.616 | M125: 0 | N125: 0.652864 | O125: 0 | P125: 0 | Q125: 0.652864 | W125: 86 | X125: Fq2 | Y125: -9999999 | Z125: 0 | AA125: 15 | AB125: 0 | AC125: 0.8 | AD125: 0 | AE125: 0 | AF125: 0 | AI125: -9999999 | AK125: 98
A126: 103 | B126: 0.824 | C126: 103 | D126: 0.816 | E126: 0 | F126: 0 | G126: 0 | H126: -2 | I126: 0 | J126: 0 | K126: 0 | L126: -1.632 | M126: 0 | N126: 0.665856 | O126: 0 | P126: 0 | Q126: 0.665856 | W126: 87 | X126: Fq3 | Y126: -9999999 | Z126: 0 | AA126: 16 | AB126: 0.2 | AC126: 0.8 | AD126: -1.6 | AE126: 0.64 | AF126: 0 | AI126: -9999999 | AK126: 99
A127: 104 | B127: 0.832 | C127: 104 | D127: 0.824 | E127: 0 | F127: 0 | G127: 0 | H127: -2 | I127: 0 | J127: 0 | K127: 0 | L127: -1.648 | M127: 0 | N127: 0.678976 | O127: 0 | P127: 0 | Q127: 0.678976 | W127: 88 | X127: Fq4 | Y127: -9999999 | Z127: 0 | AA127: 17 | AB127: 0 | AC127: 0.8 | AD127: 0 | AE127: 0 | AF127: 0 | AI127: -9999999 | AK127: 100
A128: 105 | B128: 0.84 | C128: 105 | D128: 0.832 | E128: 0 | F128: 0 | G128: 0 | H128: -2 | I128: 0 | J128: 0 | K128: 0 | L128: -1.664 | M128: 0 | N128: 0.692224 | O128: 0 | P128: 0 | Q128: 0.692224 | W128: 89 | X128: Fq5 | Y128: -9999999 | Z128: 0 | AA128: 18 | AB128: 0 | AC128: 1 | AD128: 0 | AE128: 0 | AF128: 0 | AI128: -9999999 | AK128: 101
A129: 106 | B129: 0.848 | C129: 106 | D129: 0.84 | E129: 0 | F129: 0 | G129: 0 | H129: -2 | I129: 0 | J129: 0 | K129: 0 | L129: -1.68 | M129: 0 | N129: 0.7056 | O129: 0 | P129: 0 | Q129: 0.7056 | W129: 90 | X129: Fq6 | Y129: -9999999 | Z129: 0 | AA129: 19 | AB129: 0.2 | AC129: 1 | AD129: -2 | AE129: 1 | AF129: 0 | AI129: -9999999 | AK129: 102
A130: 107 | B130: 0.856 | C130: 107 | D130: 0.848 | E130: 0 | F130: 0 | G130: 0 | H130: -2 | I130: 0 | J130: 0 | K130: 0 | L130: -1.696 | M130: 0 | N130: 0.719104 | O130: 0 | P130: 0 | Q130: 0.719104 | W130: 91 | X130: Fq7 | Y130: -9999999 | Z130: 0 | AA130: 20 | AB130: 0 | AC130: 1 | AD130: 0 | AE130: 0 | AF130: 0 | AI130: -9999999 | AK130: 103
A131: 108 | B131: 0.864 | C131: 108 | D131: 0.856 | E131: 0 | F131: 0 | G131: 0 | H131: -2 | I131: 0 | J131: 0 | K131: 0 | L131: -1.712 | M131: 0 | N131: 0.732736 | O131: 0 | P131: 0 | Q131: 0.732736 | W131: 92 | X131: Fq8 | Y131: -9999999 | Z131: 0 | AA131: 21 | AB131: 0 | AC131: 1.2 | AD131: 0 | AE131: 0 | AF131: 0 | AI131: -9999999 | AK131: 104
A132: 109 | B132: 0.872 | C132: 109 | D132: 0.864 | E132: 0 | F132: 0 | G132: 0 | H132: -2 | I132: 0 | J132: 0 | K132: 0 | L132: -1.728 | M132: 0 | N132: 0.746496 | O132: 0 | P132: 0 | Q132: 0.746496 | W132: 93 | X132: Fq9 | Y132: -9999999 | Z132: 0 | AA132: 22 | AB132: 0.2 | AC132: 1.2 | AD132: -2.4 | AE132: 1.44 | AF132: 0 | AI132: -9999999 | AK132: 105
A133: 110 | B133: 0.88 | C133: 110 | D133: 0.872 | E133: 0 | F133: 0 | G133: 0 | H133: -2 | I133: 0 | J133: 0 | K133: 0 | L133: -1.744 | M133: 0 | N133: 0.760384 | O133: 0 | P133: 0 | Q133: 0.760384 | W133: 94 | X133: Fq10 | Y133: -9999999 | Z133: 0 | AA133: 23 | AB133: 0 | AC133: 1.2 | AD133: 0 | AE133: 0 | AF133: 0 | AI133: -9999999 | AK133: 106
A134: 111 | B134: 0.888 | C134: 111 | D134: 0.88 | E134: 0 | F134: 0 | G134: 0 | H134: -2 | I134: 0 | J134: 0 | K134: 0 | L134: -1.76 | M134: 0 | N134: 0.7744 | O134: 0 | P134: 0 | Q134: 0.7744 | W134: 95 | X134: Fq11 | Y134: -9999999 | Z134: 0 | AA134: 24 | AB134: 0 | AC134: 1.4 | AD134: 0 | AE134: 0 | AF134: 0 | AI134: -9999999 | AK134: 107
A135: 112 | B135: 0.896 | C135: 112 | D135: 0.888 | E135: 0 | F135: 0 | G135: 0 | H135: -2 | I135: 0 | J135: 0 | K135: 0 | L135: -1.776 | M135: 0 | N135: 0.788544 | O135: 0 | P135: 0 | Q135: 0.788544 | W135: 96 | X135: Fq12 | Y135: -9999999 | Z135: 0 | AA135: 25 | AB135: 0.2 | AC135: 1.4 | AD135: -2.784 | AE135: 1.937664 | AF135: 0 | AI135: -9999999 | AK135: 108
A136: 113 | B136: 0.904 | C136: 113 | D136: 0.896 | E136: 0 | F136: 0 | G136: 0 | H136: -2 | I136: 0 | J136: 0 | K136: 0 | L136: -1.792 | M136: 0 | N136: 0.802816 | O136: 0 | P136: 0 | Q136: 0.802816 | W136: 97 | X136: Fq13 | Y136: -9999999 | Z136: 0 | AA136: 26 | AB136: 0 | AC136: 1.4 | AD136: 0 | AE136: 0 | AF136: 0 | AI136: =Y124 -> -9999999 | AK136: 109
A137: 114 | B137: 0.912 | C137: 114 | D137: 0.904 | E137: 0 | F137: 0 | G137: 0 | H137: -2 | I137: 0 | J137: 0 | K137: 0 | L137: -1.808 | M137: 0 | N137: 0.817216 | O137: 0 | P137: 0 | Q137: 0.817216 | W137: 98 | X137: Fq14 | Y137: -9999999 | Z137: 0 | AA137: 27 | AB137: 0 | AC137: 1.6 | AD137: 0 | AE137: 0 | AF137: 0 | AI137: -9999999 | AK137: 110
A138: 115 | B138: 0.92 | C138: 115 | D138: 0.912 | E138: 0 | F138: 0 | G138: 0 | H138: -2 | I138: 0 | J138: 0 | K138: 0 | L138: -1.824 | M138: 0 | N138: 0.831744 | O138: 0 | P138: 0 | Q138: 0.831744 | W138: 99 | X138: Fq15 | Y138: -9999999 | Z138: 0 | AA138: 28 | AB138: 0.2 | AC138: 1.6 | AD138: -3.184 | AE138: 2.534464 | AF138: 0 | AI138: -9999999 | AK138: 111
A139: 116 | B139: 0.928 | C139: 116 | D139: 0.92 | E139: 0 | F139: 0 | G139: 0 | H139: -2 | I139: 0 | J139: 0 | K139: 0 | L139: -1.84 | M139: 0 | N139: 0.8464 | O139: 0 | P139: 0 | Q139: 0.8464 | W139: 100 | X139: Fq16 | Y139: -9999999 | Z139: 0 | AA139: 29 | AB139: 0 | AC139: 1.6 | AD139: 0 | AE139: 0 | AF139: 0 | AI139: -9999999 | AK139: 112
A140: 117 | B140: 0.936 | C140: 117 | D140: 0.928 | E140: 0 | F140: 0 | G140: 0 | H140: -2 | I140: 0 | J140: 0 | K140: 0 | L140: -1.856 | M140: 0 | N140: 0.861184 | O140: 0 | P140: 0 | Q140: 0.861184 | W140: 101 | X140: Fq17 | Y140: -9999999 | Z140: 0 | AA140: 30 | AB140: 0 | AC140: 1.8 | AD140: 0 | AE140: 0 | AF140: 0 | AI140: -9999999 | AK140: 113
A141: 118 | B141: 0.944 | C141: 118 | D141: 0.936 | E141: 0 | F141: 0 | G141: 0 | H141: -2 | I141: 0 | J141: 0 | K141: 0 | L141: -1.872 | M141: 0 | N141: 0.876096 | O141: 0 | P141: 0 | Q141: 0.876096 | W141: 102 | X141: Fq18 | Y141: -9999999 | Z141: 0 | AA141: 31 | AB141: 0.2 | AC141: 1.8 | AD141: -3.584 | AE141: 3.211264 | AF141: 0 | AI141: -9999999 | AK141: 114
A142: 119 | B142: 0.952 | C142: 119 | D142: 0.944 | E142: 0 | F142: 0 | G142: 0 | H142: -2 | I142: 0 | J142: 0 | K142: 0 | L142: -1.888 | M142: 0 | N142: 0.891136 | O142: 0 | P142: 0 | Q142: 0.891136 | W142: 103 | X142: Fq19 | Y142: -9999999 | Z142: 0 | AA142: 32 | AB142: 0 | AC142: 1.8 | AD142: 0 | AE142: 0 | AF142: 0 | AI142: -9999999 | AK142: 115
A143: 120 | B143: 0.96 | C143: 120 | D143: 0.952 | E143: 0 | F143: 0 | G143: 0 | H143: -2 | I143: 0 | J143: 0 | K143: 0 | L143: -1.904 | M143: 0 | N143: 0.906304 | O143: 0 | P143: 0 | Q143: 0.906304 | W143: 104 | X143: Fq20 | Y143: -9999999 | Z143: 0 | AA143: 33 | AB143: 0 | AC143: 2 | AD143: 0 | AE143: 0 | AF143: 0 | AI143: -9999999 | AK143: 116
A144: 121 | B144: 0.968 | C144: 121 | D144: 0.96 | E144: 0 | F144: 0 | G144: 0 | H144: -2 | I144: 0 | J144: 0 | K144: 0 | L144: -1.92 | M144: 0 | N144: 0.9216 | O144: 0 | P144: 0 | Q144: 0.9216 | W144: 105 | X144: Fq21 | Y144: -9999999 | Z144: 0 | AA144: 34 | AB144: 0.2 | AC144: 2 | AD144: -3.984 | AE144: 3.968064 | AF144: 0 | AI144: -9999999 | AK144: 117
A145: 122 | B145: 0.976 | C145: 122 | D145: 0.968 | E145: 0 | F145: 0 | G145: 0 | H145: -2 | I145: 0 | J145: 0 | K145: 0 | L145: -1.936 | M145: 0 | N145: 0.937024 | O145: 0 | P145: 0 | Q145: 0.937024 | W145: 106 | X145: Fq22 | Y145: -9999999 | Z145: 0 | AA145: 35 | AB145: 0 | AC145: 2 | AD145: 0 | AE145: 0 | AF145: 0 | AI145: -9999999 | AK145: 118
A146: 123 | B146: 0.984 | C146: 123 | D146: 0.976 | E146: 0 | F146: 0 | G146: 0 | H146: -2 | I146: 0 | J146: 0 | K146: 0 | L146: -1.952 | M146: 0 | N146: 0.952576 | O146: 0 | P146: 0 | Q146: 0.952576 | W146: 107 | X146: Fq23 | Y146: -9999999 | Z146: 0 | AA146: 36 | AB146: 0 | AC146: 2.2 | AD146: 0 | AE146: 0 | AF146: 0 | AI146: -9999999 | AK146: 119
A147: 124 | B147: 0.992 | C147: 124 | D147: 0.984 | E147: 0 | F147: 0 | G147: 0 | H147: -2 | I147: 0 | J147: 0 | K147: 0 | L147: -1.968 | M147: 0 | N147: 0.968256 | O147: 0 | P147: 0 | Q147: 0.968256 | W147: 108 | X147: Fq24 | Y147: -9999999 | Z147: 0 | AA147: 37 | AB147: 0.2 | AC147: 2.2 | AD147: 4.116 | AE147: 3.172864 | AF147: 1 | AI147: -9999999 | AK147: 120
A148: 125 | B148: 1 | C148: 125 | D148: 0.992 | E148: 0 | F148: 0 | G148: 0 | H148: -2 | I148: 0 | J148: 0 | K148: 0 | L148: -1.984 | M148: 0 | N148: 0.984064 | O148: 0 | P148: 0 | Q148: 0.984064 | W148: 109 | X148: Fq25 | Y148: -9999999 | Z148: 0 | AA148: 38 | AB148: 0 | AC148: 2.2 | AD148: 0 | AE148: 0 | AF148: 0 | AI148: -9999999 | AK148: 121
A149: 126 | B149: 1.008 | C149: 126 | D149: 1 | E149: 0 | F149: 0 | G149: 0 | H149: -2 | I149: -4 | J149: 0 | K149: 0 | L149: -2 | M149: 0 | N149: 1 | O149: 0 | P149: 0 | Q149: 1 | W149: 110 | X149: Fq26 | Y149: -9999999 | Z149: 0 | AA149: 39 | AB149: 0 | AC149: 2.4 | AD149: 0 | AE149: 0 | AF149: 0 | AI149: -9999999 | AK149: 122
A150: 127 | B150: 1.016 | C150: 127 | D150: 1 | E150: 0 | F150: 0 | G150: 0 | H150: -2 | I150: 0 | J150: -4 | K150: -4 | L150: -2 | M150: 0 | N150: 1 | O150: 0 | P150: 0 | Q150: 1 | R150: -2 | S150: 1 | T150: 0 | W150: 111 | X150: Fq27 | Y150: -9999999 | Z150: 0 | AA150: 40 | AB150: 0.2 | AC150: 2.4 | AD150: 3.7 | AE150: 2.36 | AF150: 1 | AI150: -9999999 | AK150: 123
A151: 128 | B151: 1.024 | C151: 128 | D151: 1.008 | E151: =IF(AND(D152=D151,COUNTIF($V$28:$V$39,D151)>0),SUMIF($V$28:$V$39,D151,$W$28:$W$39),0) -> 0 | F151: 0 | G151: =IF(AND(D152=D151,COUNTIF($Y$28:$Y$39,D151)>0),SUMIF($Y$28:$Y$39,D151,$Z$28:$Z$39),0) -> 0 | H151: -2 | I151: 0 | J151: -4 | K151: -4 | L151: -2.016 | M151: =IF(AND(D152=D151,COUNTIF($AG$28:$AG$43,D151)>0),SUMIF($AG$28:$AG$43,D151,$AH$28:$AH$43),0) -> 0 | N151: 1.016064 | O151: 0.032 | P151: 0.032 | Q151: 1.016064 | W151: 112 | X151: Fq28 | Y151: -9999999 | Z151: 0 | AA151: 41 | AB151: 0 | AC151: 2.4 | AD151: 0 | AE151: 0 | AF151: 0 | AI151: -9999999 | AK151: 124
A152: 129 | B152: =A152*$H$20 -> 1.032 | C152: 129 | D152: =IF(ISNUMBER(SMALL($B$23:$B$10407,C152)),SMALL($B$23:$B$10407,C152),NA()) -> 1.016 | E152: 0 | F152: 0 | G152: 0 | H152: =IF(AND(COUNTIF($AC$28:$AC$33,D152)>0,COUNTIF($AD$28:$AD$33,D152)>0),IF(D151=D152,INDEX($AE$28:$AE$33,MATCH(D152,$AC$28:$AC$33,0)),INDEX($AE$28:$AE$33,MATCH(D152,$AD$28:$AD$33,0))),IF(AND(COUNTIF($AC$28:$AC$33,D152)>0,D152=D153),0,IF(AND(COUNTIF($AD$28:$AD$33,D152)>0,D151=D152),0,IF(AND(D152>=$AC$28,D152<=$AD$28),$AE$28,IF(AND(D152>=$AC$29,D152<=$AD$29),$AE$29,IF(AND(D152>=$AC$30,D152<=$AD$30),$AE$30,IF(AND(D152>=$AC$31,D152<=$AD$31),$AE$31,IF(AND(D152>=$AC$32,D152<=$AD$32),$AE$32,IF(AND(D152>=$AC$33,D152<=$AD$33),$AE$33,0))))))))) -> -2 | I152: =IF(AND(D153=D152,COUNTIF($Y$40:$Y$179,D152)>0),SUMIF($Y$40:$Y$179,D152,$Z$40:$Z$179),0) -> 0 | J152: -4 | K152: =IF(ROUND(J152,$P$20)=ROUND(L152,$P$20),NA(),J152) -> -4 | L152: -2.032 | M152: 0 | N152: 1.032256 | O152: 0.064 | P152: =IF(ROUND(N152,$P$20)=ROUND(O152,$P$20),NA(),O152) -> 0.064 | Q152: =IF(ISNUMBER(N152),N152,"") -> 1.032256 | W152: 113 | X152: Fq1 | Y152: =IF(BM6="",-9999999,BM6) -> -9999999 | Z152: =IF(BN6="",0,BN6) -> 0 | AA152: 42 | AB152: 0 | AC152: 2.6 | AD152: 0 | AE152: 0 | AF152: 0 | AI152: -9999999 | AK152: 125
A153: 130 | B153: 1.04 | C153: 130 | D153: 1.024 | E153: 0 | F153: =F152-E152 -> 0 | G153: 0 | H153: -2 | I153: 0 | J153: =J152+G152+I152 -> -4 | K153: -4 | L153: =G152+L152+(D153-D152)*H152 -> -2.048 | M153: 0 | N153: =M152+N152-(D153-D152)*(L152+L153)/2 -> 1.048576 | O153: =M152+O152-(D153-D152)*(J152+J153)/2 -> 0.096 | P153: 0.096 | Q153: 1.048576 | R153: =IF($S$20=0,NA(),ROUND(IF(OR(AND(D152=D153,L152=L153),G152<>0,G153<>0),L153,NA()),8)) ->  | S153: =IF($S$20=0,NA(),ROUND(IF(OR(AND(D152=D153,N152=N153),M152<>0,M153<>0),N153,NA()),8)) ->  | T153: =IF($S$20=0,NA(),ROUND(IF(N153=O153,NA(),IF(OR(AND(D152=D153,O152=O153),M152<>0,M153<>0),O153,NA())),8)) ->  | U153: =IF($S$20=0,NA(),ROUND(IF(AND(D152=D153,F152<>F153),F153,NA()),8)) ->  | W153: 114 | X153: Fq2 | Y153: -9999999 | Z153: 0 | AA153: 43 | AB153: 0.2 | AC153: 2.6 | AD153: 3.3 | AE153: 1.66 | AF153: 1 | AI153: -9999999 | AK153: 126
A154: 131 | B154: 1.048 | C154: 131 | D154: 1.032 | E154: 0 | F154: 0 | G154: 0 | H154: -2 | I154: 0 | J154: -4 | K154: -4 | L154: -2.064 | M154: 0 | N154: 1.065024 | O154: 0.128 | P154: 0.128 | Q154: 1.065024 | W154: 115 | X154: Fq3 | Y154: -9999999 | Z154: 0 | AA154: 44 | AB154: 0 | AC154: 2.6 | AD154: 0 | AE154: 0 | AF154: 0 | AI154: -9999999 | AK154: 127
A155: 132 | B155: 1.056 | C155: 132 | D155: 1.04 | E155: 0 | F155: 0 | G155: 0 | H155: -2 | I155: 0 | J155: -4 | K155: -4 | L155: -2.08 | M155: 0 | N155: 1.0816 | O155: 0.16 | P155: 0.16 | Q155: 1.0816 | W155: 116 | X155: Fq4 | Y155: -9999999 | Z155: 0 | AA155: 45 | AB155: 0 | AC155: 2.8 | AD155: 0 | AE155: 0 | AF155: 0 | AI155: -9999999 | AK155: 128
A156: 133 | B156: 1.064 | C156: 133 | D156: 1.048 | E156: 0 | F156: 0 | G156: 0 | H156: -2 | I156: 0 | J156: -4 | K156: -4 | L156: -2.096 | M156: 0 | N156: 1.098304 | O156: 0.192 | P156: 0.192 | Q156: 1.098304 | W156: 117 | X156: Fq5 | Y156: -9999999 | Z156: 0 | AA156: 46 | AB156: 0.2 | AC156: 2.8 | AD156: 2.9 | AE156: 1.04 | AF156: 1 | AI156: -9999999 | AK156: 129
A157: 134 | B157: 1.072 | C157: 134 | D157: 1.056 | E157: 0 | F157: 0 | G157: 0 | H157: -2 | I157: 0 | J157: -4 | K157: -4 | L157: -2.112 | M157: 0 | N157: 1.115136 | O157: 0.224 | P157: 0.224 | Q157: 1.115136 | W157: 118 | X157: Fq6 | Y157: -9999999 | Z157: 0 | AA157: 47 | AB157: 0 | AC157: 2.8 | AD157: 0 | AE157: 0 | AF157: 0 | AI157: -9999999 | AJ157: =IF(SMALL($AI$28:$AI$219,AK157)>0,SMALL($AI$28:$AI$219,AK157),"") ->  | AK157: 130
A158: 135 | B158: 1.08 | C158: 135 | D158: 1.064 | E158: 0 | F158: 0 | G158: 0 | H158: -2 | I158: 0 | J158: -4 | K158: -4 | L158: -2.128 | M158: 0 | N158: 1.132096 | O158: 0.256 | P158: 0.256 | Q158: 1.132096 | W158: 119 | X158: Fq7 | Y158: -9999999 | Z158: 0 | AA158: 48 | AB158: 0 | AC158: 3 | AD158: 0 | AE158: 0 | AF158: 0 | AI158: -9999999 | AK158: 131
A159: 136 | B159: 1.088 | C159: 136 | D159: 1.072 | E159: 0 | F159: 0 | G159: 0 | H159: -2 | I159: 0 | J159: -4 | K159: -4 | L159: -2.144 | M159: 0 | N159: 1.149184 | O159: 0.288 | P159: 0.288 | Q159: 1.149184 | W159: 120 | X159: Fq8 | Y159: -9999999 | Z159: 0 | AA159: 49 | AB159: 0.2 | AC159: 3 | AD159: 2.5 | AE159: 0.5 | AF159: 1 | AI159: -9999999 | AK159: 132
A160: 137 | B160: 1.096 | C160: 137 | D160: 1.08 | E160: 0 | F160: 0 | G160: 0 | H160: -2 | I160: 0 | J160: -4 | K160: -4 | L160: -2.16 | M160: 0 | N160: 1.1664 | O160: 0.32 | P160: 0.32 | Q160: 1.1664 | W160: 121 | X160: Fq9 | Y160: -9999999 | Z160: 0 | AA160: 50 | AB160: 0 | AC160: 3 | AD160: 0 | AE160: 0 | AF160: 0 | AI160: -9999999 | AK160: 133
A161: 138 | B161: 1.104 | C161: 138 | D161: 1.088 | E161: 0 | F161: 0 | G161: 0 | H161: -2 | I161: 0 | J161: -4 | K161: -4 | L161: -2.176 | M161: 0 | N161: 1.183744 | O161: 0.352 | P161: 0.352 | Q161: 1.183744 | W161: 122 | X161: Fq10 | Y161: -9999999 | Z161: 0 | AA161: 51 | AB161: 0 | AC161: 3.2 | AD161: 0 | AE161: 0 | AF161: 0 | AI161: -9999999 | AK161: 134
A162: 139 | B162: 1.112 | C162: 139 | D162: 1.096 | E162: 0 | F162: 0 | G162: 0 | H162: -2 | I162: 0 | J162: -4 | K162: -4 | L162: -2.192 | M162: 0 | N162: 1.201216 | O162: 0.384 | P162: 0.384 | Q162: 1.201216 | W162: 123 | X162: Fq11 | Y162: -9999999 | Z162: 0 | AA162: 52 | AB162: 0.2 | AC162: 3.2 | AD162: 2.1 | AE162: 0.04 | AF162: 1 | AI162: -9999999 | AK162: 135
A163: 140 | B163: 1.12 | C163: 140 | D163: 1.104 | E163: 0 | F163: 0 | G163: 0 | H163: -2 | I163: 0 | J163: -4 | K163: -4 | L163: -2.208 | M163: 0 | N163: 1.218816 | O163: 0.416 | P163: 0.416 | Q163: 1.218816 | W163: 124 | X163: Fq12 | Y163: -9999999 | Z163: 0 | AA163: 53 | AB163: 0 | AC163: 3.2 | AD163: 0 | AE163: 0 | AF163: 0 | AI163: -9999999 | AK163: 136
A164: 141 | B164: 1.128 | C164: 141 | D164: 1.112 | E164: 0 | F164: 0 | G164: 0 | H164: -2 | I164: 0 | J164: -4 | K164: -4 | L164: -2.224 | M164: 0 | N164: 1.236544 | O164: 0.448 | P164: 0.448 | Q164: 1.236544 | W164: 125 | X164: Fq13 | Y164: -9999999 | Z164: 0 | AA164: 54 | AB164: 0 | AC164: 3.4 | AD164: 0 | AE164: 0 | AF164: 0 | AI164: -9999999 | AK164: 137
A165: 142 | B165: 1.136 | C165: 142 | D165: 1.12 | E165: 0 | F165: 0 | G165: 0 | H165: -2 | I165: 0 | J165: -4 | K165: -4 | L165: -2.24 | M165: 0 | N165: 1.2544 | O165: 0.48 | P165: 0.48 | Q165: 1.2544 | W165: 126 | X165: Fq14 | Y165: -9999999 | Z165: 0 | AA165: 55 | AB165: 0.2 | AC165: 3.4 | AD165: 1.7 | AE165: -0.34 | AF165: 1 | AI165: -9999999 | AK165: 138
A166: 143 | B166: 1.144 | C166: 143 | D166: 1.128 | E166: 0 | F166: 0 | G166: 0 | H166: -2 | I166: 0 | J166: -4 | K166: -4 | L166: -2.256 | M166: 0 | N166: 1.272384 | O166: 0.512 | P166: 0.512 | Q166: 1.272384 | W166: 127 | X166: Fq15 | Y166: -9999999 | Z166: 0 | AA166: 56 | AB166: 0 | AC166: 3.4 | AD166: 0 | AE166: 0 | AF166: 0 | AI166: -9999999 | AK166: 139
A167: 144 | B167: 1.152 | C167: 144 | D167: 1.136 | E167: 0 | F167: 0 | G167: 0 | H167: -2 | I167: 0 | J167: -4 | K167: -4 | L167: -2.272 | M167: 0 | N167: 1.290496 | O167: 0.544 | P167: 0.544 | Q167: 1.290496 | W167: 128 | X167: Fq16 | Y167: -9999999 | Z167: 0 | AA167: 57 | AB167: 0 | AC167: 3.6 | AD167: 0 | AE167: 0 | AF167: 0 | AI167: -9999999 | AK167: 140
A168: 145 | B168: 1.16 | C168: 145 | D168: 1.144 | E168: 0 | F168: 0 | G168: 0 | H168: -2 | I168: 0 | J168: -4 | K168: -4 | L168: -2.288 | M168: 0 | N168: 1.308736 | O168: 0.576 | P168: 0.576 | Q168: 1.308736 | W168: 129 | X168: Fq17 | Y168: -9999999 | Z168: 0 | AA168: 58 | AB168: 0.2 | AC168: 3.6 | AD168: 1.3 | AE168: -0.64 | AF168: 1 | AI168: =Y156 -> -9999999 | AK168: 141
A169: 146 | B169: 1.168 | C169: 146 | D169: 1.152 | E169: 0 | F169: 0 | G169: 0 | H169: -2 | I169: 0 | J169: -4 | K169: -4 | L169: -2.304 | M169: 0 | N169: 1.327104 | O169: 0.608 | P169: 0.608 | Q169: 1.327104 | W169: 130 | X169: Fq18 | Y169: -9999999 | Z169: 0 | AA169: 59 | AB169: 0 | AC169: 3.6 | AD169: 0 | AE169: 0 | AF169: 0 | AI169: -9999999 | AK169: 142
A170: 147 | B170: 1.176 | C170: 147 | D170: 1.16 | E170: 0 | F170: 0 | G170: 0 | H170: -2 | I170: 0 | J170: -4 | K170: -4 | L170: -2.32 | M170: 0 | N170: 1.3456 | O170: 0.64 | P170: 0.64 | Q170: 1.3456 | W170: 131 | X170: Fq19 | Y170: -9999999 | Z170: 0 | AA170: 60 | AB170: 0 | AC170: 3.8 | AD170: 0 | AE170: 0 | AF170: 0 | AI170: -9999999 | AK170: 143
A171: 148 | B171: 1.184 | C171: 148 | D171: 1.168 | E171: 0 | F171: 0 | G171: 0 | H171: -2 | I171: 0 | J171: -4 | K171: -4 | L171: -2.336 | M171: 0 | N171: 1.364224 | O171: 0.672 | P171: 0.672 | Q171: 1.364224 | W171: 132 | X171: Fq20 | Y171: -9999999 | Z171: 0 | AA171: 61 | AB171: 0.2 | AC171: 3.8 | AD171: 0.9 | AE171: -0.86 | AF171: 1 | AI171: -9999999 | AK171: 144
A172: 149 | B172: 1.192 | C172: 149 | D172: 1.176 | E172: 0 | F172: 0 | G172: 0 | H172: -2 | I172: 0 | J172: -4 | K172: -4 | L172: -2.352 | M172: 0 | N172: 1.382976 | O172: 0.704 | P172: 0.704 | Q172: 1.382976 | W172: 133 | X172: Fq21 | Y172: -9999999 | Z172: 0 | AA172: 62 | AB172: 0 | AC172: 3.8 | AD172: 0 | AE172: 0 | AF172: 0 | AI172: -9999999 | AK172: 145
A173: 150 | B173: 1.2 | C173: 150 | D173: 1.184 | E173: 0 | F173: 0 | G173: 0 | H173: -2 | I173: 0 | J173: -4 | K173: -4 | L173: -2.368 | M173: 0 | N173: 1.401856 | O173: 0.736 | P173: 0.736 | Q173: 1.401856 | W173: 134 | X173: Fq22 | Y173: -9999999 | Z173: 0 | AA173: 63 | AB173: 0 | AC173: 4 | AD173: 0 | AE173: 0 | AF173: 0 | AI173: -9999999 | AK173: 146
A174: 151 | B174: 1.208 | C174: 151 | D174: 1.192 | E174: 0 | F174: 0 | G174: 0 | H174: -2 | I174: 0 | J174: -4 | K174: -4 | L174: -2.384 | M174: 0 | N174: 1.420864 | O174: 0.768 | P174: 0.768 | Q174: 1.420864 | W174: 135 | X174: Fq23 | Y174: -9999999 | Z174: 0 | AA174: 64 | AB174: 0.2 | AC174: 4 | AD174: 0.5 | AE174: 1 | AF174: 1 | AI174: -9999999 | AK174: 147
A175: 152 | B175: 1.216 | C175: 152 | D175: 1.2 | E175: 0 | F175: 0 | G175: 0 | H175: -2 | I175: 0 | J175: -4 | K175: -4 | L175: -2.4 | M175: 0 | N175: 1.44 | O175: 0.8 | P175: 0.8 | Q175: 1.44 | W175: 136 | X175: Fq24 | Y175: -9999999 | Z175: 0 | AA175: 65 | AB175: 0 | AC175: 4 | AD175: 0 | AE175: 0 | AF175: 0 | AI175: -9999999 | AK175: 148
A176: 153 | B176: 1.224 | C176: 153 | D176: 1.208 | E176: 0 | F176: 0 | G176: 0 | H176: -2 | I176: 0 | J176: -4 | K176: -4 | L176: -2.416 | M176: 0 | N176: 1.459264 | O176: 0.832 | P176: 0.832 | Q176: 1.459264 | W176: 137 | X176: Fq25 | Y176: -9999999 | Z176: 0 | AA176: 66 | AB176: 0 | AC176: 4.2 | AD176: 0 | AE176: 0 | AF176: 0 | AI176: -9999999 | AK176: 149
A177: 154 | B177: 1.232 | C177: 154 | D177: 1.216 | E177: 0 | F177: 0 | G177: 0 | H177: -2 | I177: 0 | J177: -4 | K177: -4 | L177: -2.432 | M177: 0 | N177: 1.478656 | O177: 0.864 | P177: 0.864 | Q177: 1.478656 | W177: 138 | X177: Fq26 | Y177: -9999999 | Z177: 0 | AA177: 67 | AB177: 0.2 | AC177: 4.2 | AD177: 0.1 | AE177: 0.94 | AF177: 1 | AI177: -9999999 | AK177: 150
A178: 155 | B178: 1.24 | C178: 155 | D178: 1.224 | E178: 0 | F178: 0 | G178: 0 | H178: -2 | I178: 0 | J178: -4 | K178: -4 | L178: -2.448 | M178: 0 | N178: 1.498176 | O178: 0.896 | P178: 0.896 | Q178: 1.498176 | W178: 139 | X178: Fq27 | Y178: -9999999 | Z178: 0 | AA178: 68 | AB178: 0 | AC178: 4.2 | AD178: 0 | AE178: 0 | AF178: 0 | AI178: -9999999 | AK178: 151
A179: 156 | B179: 1.248 | C179: 156 | D179: 1.232 | E179: 0 | F179: 0 | G179: 0 | H179: -2 | I179: 0 | J179: -4 | K179: -4 | L179: -2.464 | M179: 0 | N179: 1.517824 | O179: 0.928 | P179: 0.928 | Q179: 1.517824 | W179: 140 | X179: Fq28 | Y179: -9999999 | Z179: 0 | AA179: 69 | AB179: 0 | AC179: 4.4 | AD179: 0 | AE179: 0 | AF179: 0 | AI179: -9999999 | AK179: 152
A180: 157 | B180: 1.256 | C180: 157 | D180: 1.24 | E180: 0 | F180: 0 | G180: 0 | H180: -2 | I180: 0 | J180: -4 | K180: -4 | L180: -2.48 | M180: 0 | N180: 1.5376 | O180: 0.96 | P180: 0.96 | Q180: 1.5376 | AA180: 70 | AB180: =IF(MOD(AA179,3)=0,AB179+$AB$110,0) -> 0.2 | AC180: =IF(AC179>=$AB$109,NA(),AC179+AB181) -> 4.4 | AD180: -0.3 | AE180: 0.96 | AF180: 1 | AI180: -9999999 | AK180: 153
A181: 158 | B181: 1.264 | C181: 158 | D181: 1.248 | E181: 0 | F181: 0 | G181: 0 | H181: -2 | I181: 0 | J181: -4 | K181: -4 | L181: -2.496 | M181: 0 | N181: 1.557504 | O181: 0.992 | P181: 0.992 | Q181: 1.557504 | AA181: 71 | AB181: 0 | AC181: 4.4 | AD181: =IF(ISNUMBER(AC181),IF(AB181=0,0,VLOOKUP(AC181,$D$23:$L$1100,9)),NA()) -> 0 | AE181: =IF(ISNUMBER(AC181),IF(AB181=0,0,VLOOKUP(AC181,$D$23:$N$1100,11)),NA()) -> 0 | AF181: =IF(ISNUMBER(AC181),IF(AB181=0,0,VLOOKUP(AC181,$D$23:$N$1100,3)),NA()) -> 0 | AI181: -9999999 | AK181: 154
A182: 159 | B182: 1.272 | C182: 159 | D182: 1.256 | E182: 0 | F182: 0 | G182: 0 | H182: -2 | I182: 0 | J182: -4 | K182: -4 | L182: -2.512 | M182: 0 | N182: 1.577536 | O182: 1.024 | P182: 1.024 | Q182: 1.577536 | AA182: 72 | AB182: 0 | AC182: 4.6 | AD182: 0 | AE182: 0 | AF182: 0 | AI182: -9999999 | AK182: 155
A183: 160 | B183: 1.28 | C183: 160 | D183: 1.264 | E183: 0 | F183: 0 | G183: 0 | H183: -2 | I183: 0 | J183: -4 | K183: -4 | L183: -2.528 | M183: 0 | N183: 1.597696 | O183: 1.056 | P183: 1.056 | Q183: 1.597696 | AA183: 73 | AB183: 0.2 | AC183: 4.6 | AD183: -0.7 | AE183: 1.06 | AF183: 1 | AI183: -9999999 | AK183: 156
A184: 161 | B184: 1.288 | C184: 161 | D184: 1.272 | E184: 0 | F184: 0 | G184: 0 | H184: -2 | I184: 0 | J184: -4 | K184: -4 | L184: -2.544 | M184: 0 | N184: 1.617984 | O184: 1.088 | P184: 1.088 | Q184: 1.617984 | AA184: 74 | AB184: 0 | AC184: 4.6 | AD184: 0 | AE184: 0 | AF184: 0 | AI184: -9999999 | AK184: 157
A185: 162 | B185: 1.296 | C185: 162 | D185: 1.28 | E185: 0 | F185: 0 | G185: 0 | H185: -2 | I185: 0 | J185: -4 | K185: -4 | L185: -2.56 | M185: 0 | N185: 1.6384 | O185: 1.12 | P185: 1.12 | Q185: 1.6384 | AA185: 75 | AB185: 0 | AC185: 4.8 | AD185: 0 | AE185: 0 | AF185: 0 | AI185: -9999999 | AK185: 158
A186: 163 | B186: 1.304 | C186: 163 | D186: 1.288 | E186: 0 | F186: 0 | G186: 0 | H186: -2 | I186: 0 | J186: -4 | K186: -4 | L186: -2.576 | M186: 0 | N186: 1.658944 | O186: 1.152 | P186: 1.152 | Q186: 1.658944 | AA186: 76 | AB186: 0.2 | AC186: 4.8 | AD186: -1.1 | AE186: 1.24 | AF186: 1 | AI186: -9999999 | AK186: 159
A187: 164 | B187: 1.312 | C187: 164 | D187: 1.296 | E187: 0 | F187: 0 | G187: 0 | H187: -2 | I187: 0 | J187: -4 | K187: -4 | L187: -2.592 | M187: 0 | N187: 1.679616 | O187: 1.184 | P187: 1.184 | Q187: 1.679616 | AA187: 77 | AB187: 0 | AC187: 4.8 | AD187: 0 | AE187: 0 | AF187: 0 | AI187: -9999999 | AK187: 160
A188: 165 | B188: 1.32 | C188: 165 | D188: 1.304 | E188: 0 | F188: 0 | G188: 0 | H188: -2 | I188: 0 | J188: -4 | K188: -4 | L188: -2.608 | M188: 0 | N188: 1.700416 | O188: 1.216 | P188: 1.216 | Q188: 1.700416 | AA188: 78 | AB188: 0 | AC188: 5 | AD188: 0 | AE188: 0 | AF188: 0 | AI188: -9999999 | AK188: 161
A189: 166 | B189: 1.328 | C189: 166 | D189: 1.312 | E189: 0 | F189: 0 | G189: 0 | H189: -2 | I189: 0 | J189: -4 | K189: -4 | L189: -2.624 | M189: 0 | N189: 1.721344 | O189: 1.248 | P189: 1.248 | Q189: 1.721344 | AA189: 79 | AB189: 0.2 | AC189: 5 | AD189: -1.5 | AE189: 1.5 | AF189: 1 | AI189: -9999999 | AK189: 162
A190: 167 | B190: 1.336 | C190: 167 | D190: 1.32 | E190: 0 | F190: 0 | G190: 0 | H190: -2 | I190: 0 | J190: -4 | K190: -4 | L190: -2.64 | M190: 0 | N190: 1.7424 | O190: 1.28 | P190: 1.28 | Q190: 1.7424 | AA190: 80 | AB190: 0 | AC190: 5 | AD190: 0 | AE190: 0 | AF190: 0 | AI190: -9999999 | AK190: 163
A191: 168 | B191: 1.344 | C191: 168 | D191: 1.328 | E191: 0 | F191: 0 | G191: 0 | H191: -2 | I191: 0 | J191: -4 | K191: -4 | L191: -2.656 | M191: 0 | N191: 1.763584 | O191: 1.312 | P191: 1.312 | Q191: 1.763584 | AA191: 81 | AB191: 0 | AC191: 5.2 | AD191: 0 | AE191: 0 | AF191: 0 | AI191: -9999999 | AK191: 164
A192: 169 | B192: 1.352 | C192: 169 | D192: 1.336 | E192: 0 | F192: 0 | G192: 0 | H192: -2 | I192: 0 | J192: -4 | K192: -4 | L192: -2.672 | M192: 0 | N192: 1.784896 | O192: 1.344 | P192: 1.344 | Q192: 1.784896 | AA192: 82 | AB192: 0.2 | AC192: 5.2 | AD192: -1.9 | AE192: 1.84 | AF192: 1 | AI192: =AC28 -> -999999 | AK192: 165
A193: 170 | B193: 1.36 | C193: 170 | D193: 1.344 | E193: 0 | F193: 0 | G193: 0 | H193: -2 | I193: 0 | J193: -4 | K193: -4 | L193: -2.688 | M193: 0 | N193: 1.806336 | O193: 1.376 | P193: 1.376 | Q193: 1.806336 | AA193: 83 | AB193: 0 | AC193: 5.2 | AD193: 0 | AE193: 0 | AF193: 0 | AI193: -999999 | AK193: 166
A194: 171 | B194: 1.368 | C194: 171 | D194: 1.352 | E194: 0 | F194: 0 | G194: 0 | H194: -2 | I194: 0 | J194: -4 | K194: -4 | L194: -2.704 | M194: 0 | N194: 1.827904 | O194: 1.408 | P194: 1.408 | Q194: 1.827904 | AA194: 84 | AB194: 0 | AC194: 5.4 | AD194: 0 | AE194: 0 | AF194: 0 | AI194: -999999 | AK194: 167
A195: 172 | B195: 1.376 | C195: 172 | D195: 1.36 | E195: 0 | F195: 0 | G195: 0 | H195: -2 | I195: 0 | J195: -4 | K195: -4 | L195: -2.72 | M195: 0 | N195: 1.8496 | O195: 1.44 | P195: 1.44 | Q195: 1.8496 | AA195: 85 | AB195: 0.2 | AC195: 5.4 | AD195: -2.3 | AE195: 2.26 | AF195: 1 | AI195: -999999 | AK195: 168
A196: 173 | B196: 1.384 | C196: 173 | D196: 1.368 | E196: 0 | F196: 0 | G196: 0 | H196: -2 | I196: 0 | J196: -4 | K196: -4 | L196: -2.736 | M196: 0 | N196: 1.871424 | O196: 1.472 | P196: 1.472 | Q196: 1.871424 | AA196: 86 | AB196: 0 | AC196: 5.4 | AD196: 0 | AE196: 0 | AF196: 0 | AI196: -999999 | AK196: 169
A197: 174 | B197: 1.392 | C197: 174 | D197: 1.376 | E197: 0 | F197: 0 | G197: 0 | H197: -2 | I197: 0 | J197: -4 | K197: -4 | L197: -2.752 | M197: 0 | N197: 1.893376 | O197: 1.504 | P197: 1.504 | Q197: 1.893376 | AA197: 87 | AB197: 0 | AC197: 5.6 | AD197: 0 | AE197: 0 | AF197: 0 | AI197: -999999 | AK197: 170
A198: 175 | B198: 1.4 | C198: 175 | D198: 1.384 | E198: 0 | F198: 0 | G198: 0 | H198: -2 | I198: 0 | J198: -4 | K198: -4 | L198: -2.768 | M198: 0 | N198: 1.915456 | O198: 1.536 | P198: 1.536 | Q198: 1.915456 | AA198: 88 | AB198: 0.2 | AC198: 5.6 | AD198: -2.7 | AE198: 2.76 | AF198: 1 | AI198: =AD28 -> 6 | AK198: 171
A199: 176 | B199: 1.408 | C199: 176 | D199: 1.392 | E199: 0 | F199: 0 | G199: 0 | H199: -2 | I199: 0 | J199: -4 | K199: -4 | L199: -2.784 | M199: 0 | N199: 1.937664 | O199: 1.568 | P199: 1.568 | Q199: 1.937664 | AA199: 89 | AB199: 0 | AC199: 5.6 | AD199: 0 | AE199: 0 | AF199: 0 | AI199: -999999 | AK199: 172
A200: 177 | B200: 1.416 | C200: 177 | D200: 1.4 | E200: 0 | F200: 0 | G200: 0 | H200: -2 | I200: 0 | J200: -4 | K200: -4 | L200: -2.8 | M200: 0 | N200: 1.96 | O200: 1.6 | P200: 1.6 | Q200: 1.96 | AA200: 90 | AB200: 0 | AC200: 5.8 | AD200: 0 | AE200: 0 | AF200: 0 | AI200: -999999 | AK200: 173
... 10207 more rows

Sheet FIGURE_V2 (hidden)
A1: INPUT | B1: =CALC!F2 -> s | C1: 3 | D1: 4 | E1: 5 | F1: 6 | G1: 7 | I1: 8 | J1: 9 | K1: 10 | L1: 11 | M1: 12 | N1: 13 | O1: 14 | P1: 15 | Q1: 16 | R1: 17 | S1: 18 | T1: 19 | U1: 20 | V1: 21 | W1: 22 | X1: 23 | Y1: 24 | Z1: 25 | AA1: 26 | AB1: 27 | AC1: 28 | AD1: 29 | AE1: 30 | AF1: 31 | AG1: 32 | AH1: 33 | AI1: 34 | AJ1: 35 | AK1: 36 | AL1: 37 | AM1: 38 | AN1: 39 | AO1: 40 | AP1: 41 | AQ1: 42 | AR1: 43 | AS1: 44 | AT1: 45 | AU1: 46 | AV1: 47 | AW1: 48 | AX1: 49 | BB1: 50 | BC1: 51 | BD1: 52 | BE1: 53 | BF1: 54 | BG1: 55 | BH1: 56
B2: x | C2: y | D2: loc1 | E2: loc2 | F2: rx | G2: ry | I2: x_axis | J2: =$F$33+$F$35*0 -> 0 | K2: =$F$34+$F$35*0 -> 0 | P2: csukló | Q2: =IF(B1="s",1,NA()) -> 1 | S2: görgő | Y2: nyomatékok | AS2: x | AT2: N | AU2: Ty | AV2: Ty_S | AW2: Mhz | AX2: Mhz_S | BD2: 20 | BE2: x | BF2: N | BG2: Ty | BH2: Mhz
A3: F1 | B3: =IF(HOME!L7="D",HOME!M7,HOME!M7*COS(HOME!Q7*PI()/180)) -> 1 | C3: =IF(HOME!L7="D",HOME!Q7,HOME!M7*SIN(HOME!Q7*PI()/180)) -> -2 | D3: =HOME!U7 -> 8 | F3: =HOME!Z7 -> 0 | G3: =HOME!AD7 -> 0 | J3: =$F$33+$F$35*$B$32 -> 1100 | K3: =$F$34+$F$35*0 -> 0 | P3: =$F$33+$F$35*$Q$2*B28*$E$28 -> 250 | Q3: =$F$34+$F$35*0 -> 0 | S3: =$F$33+$F$35*Q2*B29*$E$28 -> 750 | T3: =$F$34+$F$35*0 -> 0 | U3: 0 | V3: =($S$3+$C$38*COS(U3*PI()/180)) -> 760 | W3: =($T$4-$C$38)+$C$38*SIN(U3*PI()/180) -> -53.30127019 | Y3: M1 | Z3: =IF(HOME!$AI$5="",NA(),SIGN(HOME!$AI$5)) -> 1 | AB3: M2 | AC3: =IF(HOME!$AI$6="",NA(),SIGN(HOME!$AI$6)) ->  | AE3: M3 | AF3: =IF(HOME!$AI$7="",NA(),SIGN(HOME!$AI$7)) ->  | AH3: M4 | AI3: =IF(HOME!$AI$8="",NA(),SIGN(HOME!$AI$8)) ->  | AK3: M5 | AL3: =IF(HOME!$AI$9="",NA(),SIGN(HOME!$AI$9)) ->  | AN3: MA | AO3: =$U$93*IF(B1="s",NA(),SIGN(B20)) ->  | AR3: 0 | AS3: =$F$33+$F$35*CALC!D23*FIGURE_V2!$E$28 -> 0 | AT3: =$F$34+$F$35*($B$64+$C$64+$E$46*$D$64*CALC!F23*$F$46) -> -350 | AU3: =$F$34+$F$35*($B$65+$C$65+$E$49*$D$65*CALC!L23*$F$49) -> -688.2352941 | AV3: =($Y$178*($F$34+$F$35*($B$65+$C$65+$E$49*$D$65*CALC!J23*$F$49))) -> -688.2352941 | AW3: =$F$34+$F$35*($B$66+$C$66+$E$52*$D$66*CALC!N23*$F$52) -> -1360 | AX3: =$Y$178*($F$34+$F$35*($B$66+$C$66+$E$52*$D$66*CALC!O23*$F$52)) -> -1360 | BC3: 1 | BD3: =BC3*$BD$2 -> 20 | BE3: =INDEX($AS$3:$AS$10387,BD3) -> 18 | BF3: =IF(BE4=BE3,$K$72,INDEX($AT$3:$AT$10387,MATCH(BE3,$AS$3:$AS$10387,0))) -> -350 | BG3: =IF(BE4=BE3,$K$78,INDEX($AU$3:$AU$10387,MATCH(BE3,$AS$3:$AS$10387,0))) -> -688.2352941 | BH3: =IF(BE4=BE3,$K$84,INDEX($AW$3:$AW$10387,MATCH(BE3,$AS$3:$AS$10387,0))) -> -1360
A4: F2 | B4: =IF(HOME!L8="D",HOME!M8,HOME!M8*COS(HOME!Q8*PI()/180)) -> 0 | C4: =IF(HOME!L8="D",HOME!Q8,HOME!M8*SIN(HOME!Q8*PI()/180)) -> 0 | D4: =HOME!U8 -> 0 | F4: =HOME!Z8 -> 0 | G4: =HOME!AD8 -> 0 | P4: =P3+$C$35*COS(60*PI()/180) -> 275 | Q4: =Q3-$C$35*SIN(60*PI()/180) -> -43.30127019 | S4: =S3+$C$35*COS(60*PI()/180) -> 775 | T4: =T3-$C$35*SIN(60*PI()/180) -> -43.30127019 | U4: 10 | V4: 759.8480775 | W4: -51.56478841 | Y4: fí | Z4: -120 | AB4: fí | AC4: -120 | AE4: fí | AF4: -120 | AH4: fí | AI4: -120 | AK4: fí | AL4: -120 | AN4: fí | AO4: -120 | AR4: 1 | AS4: =$F$33+$F$35*CALC!D24*FIGURE_V2!$E$28 -> 0 | AT4: =$F$34+$F$35*($B$64+$C$64+$E$46*$D$64*CALC!F24*$F$46) -> -350 | AU4: =$F$34+$F$35*($B$65+$C$65+$E$49*$D$65*CALC!L24*$F$49) -> -688.2352941 | AV4: =($Y$178*($F$34+$F$35*($B$65+$C$65+$E$49*$D$65*CALC!J24*$F$49))) -> -688.2352941 | AW4: =$F$34+$F$35*($B$66+$C$66+$E$52*$D$66*CALC!N24*$F$52) -> -1360 | AX4: =$Y$178*($F$34+$F$35*($B$66+$C$66+$E$52*$D$66*CALC!O24*$F$52)) -> -1360 | AY4: =CALC!U24 ->  | AZ4: =CALC!R24 -> 0 | BA4: =CALC!S24 -> 0 | BB4: =CALC!T24 ->  | BC4: 1 | BD4: =BC4*$BD$2 -> 20 | BE4: =INDEX($AS$3:$AS$10387,BD4) -> 18 | BF4: =IF(BE5=BE4,$K$72,INDEX($AT$3:$AT$10387,MATCH(BE4,$AS$3:$AS$10387,0))) -> -350 | BG4: =IF(BE5=BE4,$K$78,INDEX($AU$3:$AU$10387,MATCH(BE4,$AS$3:$AS$10387,0))) -> -703.4823529 | BH4: =IF(BE5=BE4,$K$84,INDEX($AW$3:$AW$10387,MATCH(BE4,$AS$3:$AS$10387,0))) -> -1358.13376
A5: F3 | B5: =IF(HOME!L9="D",HOME!M9,HOME!M9*COS(HOME!Q9*PI()/180)) -> 0 | C5: =IF(HOME!L9="D",HOME!Q9,HOME!M9*SIN(HOME!Q9*PI()/180)) -> 0 | D5: =HOME!U9 -> 0 | F5: =HOME!Z9 -> 0 | G5: =HOME!AD9 -> 0 | I5: y_axis | J5: =$F$33+$F$35*0 -> 0 | K5: =$F$34+$F$35*0 -> 0 | P5: =P4-$C$35 -> 225 | Q5: =Q4 -> -43.30127019 | S5: =S4-$C$35 -> 725 | T5: =T4 -> -43.30127019 | U5: 20 | V5: 759.3969262 | W5: -49.88106876 | Y5: alfa | Z5: 240 | AB5: alfa | AC5: 240 | AE5: alfa | AF5: 240 | AH5: alfa | AI5: 240 | AK5: alfa | AL5: 240 | AN5: alfa | AO5: 240 | AR5: 2 | AS5: =$F$33+$F$35*CALC!D25*FIGURE_V2!$E$28 -> 1 | AT5: =$F$34+$F$35*($B$64+$C$64+$E$46*$D$64*CALC!F25*$F$46) -> -350 | AU5: =$F$34+$F$35*($B$65+$C$65+$E$49*$D$65*CALC!L25*$F$49) -> -689.0823529 | AV5: =($Y$178*($F$34+$F$35*($B$65+$C$65+$E$49*$D$65*CALC!J25*$F$49))) -> -688.2352941 | AW5: =$F$34+$F$35*($B$66+$C$66+$E$52*$D$66*CALC!N25*$F$52) -> -1359.99424 | AX5: =$Y$178*($F$34+$F$35*($B$66+$C$66+$E$52*$D$66*CALC!O25*$F$52)) -> -1360 | AY5: =CALC!U25 ->  | AZ5: =CALC!R25 ->  | BA5: =CALC!S25 ->  | BB5: =CALC!T25 -> 
A6: F4 | B6: =IF(HOME!L10="D",HOME!M10,HOME!M10*COS(HOME!Q10*PI()/180)) -> 0 | C6: =IF(HOME!L10="D",HOME!Q10,HOME!M10*SIN(HOME!Q10*PI()/180)) -> 0 | D6: =HOME!U10 -> 0 | F6: =HOME!Z10 -> 0 | G6: =HOME!AD10 -> 0 | J6: =$F$33+$F$35*0 -> 0 | K6: =$F$34+$F$35*150 -> 150 | P6: =P3 -> 250 | Q6: =Q3 -> 0 | S6: =S3 -> 750 | T6: =T3 -> 0 | U6: 30 | V6: 758.660254 | W6: -48.30127019 | Y6: R_k | Z6: 40 | AB6: R_k | AC6: 40 | AE6: R_k | AF6: 40 | AH6: R_k | AI6: 40 | AK6: R_k | AL6: 40 | AN6: R_k | AO6: 40 | AR6: 3 | AS6: =$F$33+$F$35*CALC!D26*FIGURE_V2!$E$28 -> 2 | AT6: =$F$34+$F$35*($B$64+$C$64+$E$46*$D$64*CALC!F26*$F$46) -> -350 | AU6: =$F$34+$F$35*($B$65+$C$65+$E$49*$D$65*CALC!L26*$F$49) -> -689.9294118 | AV6: =($Y$178*($F$34+$F$35*($B$65+$C$65+$E$49*$D$65*CALC!J26*$F$49))) -> -688.2352941 | AW6: =$F$34+$F$35*($B$66+$C$66+$E$52*$D$66*CALC!N26*$F$52) -> -1359.97696 | AX6: =$Y$178*($F$34+$F$35*($B$66+$C$66+$E$52*$D$66*CALC!O26*$F$52)) -> -1360 | AY6: =CALC!U26 ->  | AZ6: =CALC!R26 ->  | BA6: =CALC!S26 ->  | BB6: =CALC!T26 ->  | BC6: 2 | BD6: 40 | BE6: 38 | BF6: =IF(BE7=BE6,$K$72,INDEX($AT$3:$AT$10387,MATCH(BE6,$AS$3:$AS$10387,0))) -> -350 | BG6: =IF(BE7=BE6,$K$78,INDEX($AU$3:$AU$10387,MATCH(BE6,$AS$3:$AS$10387,0))) -> -688.2352941 | BH6: =IF(BE7=BE6,$K$84,INDEX($AW$3:$AW$10387,MATCH(BE6,$AS$3:$AS$10387,0))) -> -1360
A7: F5 | B7: =IF(HOME!L11="D",HOME!M11,HOME!M11*COS(HOME!Q11*PI()/180)) -> 0 | C7: =IF(HOME!L11="D",HOME!Q11,HOME!M11*SIN(HOME!Q11*PI()/180)) -> 0 | D7: =HOME!U11 -> 0 | F7: =HOME!Z11 -> 0 | G7: =HOME!AD11 -> 0 | U7: 40 | V7: 757.6604444 | W7: -46.87339409 | Y7: t | Z7: 10 | AB7: t | AC7: 10 | AE7: t | AF7: 10 | AH7: t | AI7: 10 | AK7: t | AL7: 10 | AN7: t | AO7: 10 | AR7: 4 | AS7: =$F$33+$F$35*CALC!D27*FIGURE_V2!$E$28 -> 3 | AT7: =$F$34+$F$35*($B$64+$C$64+$E$46*$D$64*CALC!F27*$F$46) -> -350 | AU7: =$F$34+$F$35*($B$65+$C$65+$E$49*$D$65*CALC!L27*$F$49) -> -690.7764706 | AV7: =($Y$178*($F$34+$F$35*($B$65+$C$65+$E$49*$D$65*CALC!J27*$F$49))) -> -688.2352941 | AW7: =$F$34+$F$35*($B$66+$C$66+$E$52*$D$66*CALC!N27*$F$52) -> -1359.94816 | AX7: =$Y$178*($F$34+$F$35*($B$66+$C$66+$E$52*$D$66*CALC!O27*$F$52)) -> -1360 | AY7: =CALC!U27 ->  | AZ7: =CALC!R27 ->  | BA7: =CALC!S27 ->  | BB7: =CALC!T27 ->  | BC7: 2 | BD7: 40 | BE7: 38 | BF7: -350 | BG7: -720.4235294 | BH7: -1351.68256
A8: F6 | B8: =IF(HOME!L12="D",HOME!M12,HOME!M12*COS(HOME!Q12*PI()/180)) -> 0 | C8: =IF(HOME!L12="D",HOME!Q12,HOME!M12*SIN(HOME!Q12*PI()/180)) -> 0 | D8: =HOME!U12 -> 0 | F8: =HOME!Z12 -> 0 | G8: =HOME!AD12 -> 0 | I8: rod | J8: =$F$33+$F$35*0 -> 0 | K8: =$F$34+$F$35*0 -> 0 | P8: =P3-$C$36/2 -> 200 | Q8: =Q4 -> -43.30127019 | S8: =S3-$C$36/2 -> 700 | T8: =T4-2*C38 -> -63.30127019 | U8: 50 | V8: 756.4278761 | W8: -45.64082576 | Y8: d | Z8: 18 | AB8: d | AC8: 18 | AE8: d | AF8: 18 | AH8: d | AI8: 18 | AK8: d | AL8: 18 | AN8: d | AO8: 18 | AR8: 5 | AS8: =$F$33+$F$35*CALC!D28*FIGURE_V2!$E$28 -> 4 | AT8: =$F$34+$F$35*($B$64+$C$64+$E$46*$D$64*CALC!F28*$F$46) -> -350 | AU8: =$F$34+$F$35*($B$65+$C$65+$E$49*$D$65*CALC!L28*$F$49) -> -691.6235294 | AV8: =($Y$178*($F$34+$F$35*($B$65+$C$65+$E$49*$D$65*CALC!J28*$F$49))) -> -688.2352941 | AW8: =$F$34+$F$35*($B$66+$C$66+$E$52*$D$66*CALC!N28*$F$52) -> -1359.90784 | AX8: =$Y$178*($F$34+$F$35*($B$66+$C$66+$E$52*$D$66*CALC!O28*$F$52)) -> -1360 | AY8: =CALC!U28 ->  | AZ8: =CALC!R28 ->  | BA8: =CALC!S28 ->  | BB8: =CALC!T28 -> 
A9: F7 | B9: =IF(HOME!L13="D",HOME!M13,HOME!M13*COS(HOME!Q13*PI()/180)) -> 0 | C9: =IF(HOME!L13="D",HOME!Q13,HOME!M13*SIN(HOME!Q13*PI()/180)) -> 0 | D9: =HOME!U13 -> 0 | F9: =HOME!Z13 -> 0 | G9: =HOME!AD13 -> 0 | J9: =$F$33+$F$35*$E$27 -> 1000 | K9: =$F$34+$F$35*0 -> 0 | P9: =P8+C36 -> 300 | Q9: =Q8 -> -43.30127019 | S9: =S8+C36 -> 800 | T9: =T8 -> -63.30127019 | U9: 60 | V9: 755 | W9: -44.64101615 | Y9: r | Z9: =Z6-Z8/2 -> 31 | AB9: r | AC9: =AC6-AC8/2 -> 31 | AE9: r | AF9: =AF6-AF8/2 -> 31 | AH9: r | AI9: =AI6-AI8/2 -> 31 | AK9: r | AL9: =AL6-AL8/2 -> 31 | AN9: r | AO9: =AO6-AO8/2 -> 31 | AR9: 6 | AS9: =$F$33+$F$35*CALC!D29*FIGURE_V2!$E$28 -> 5 | AT9: =$F$34+$F$35*($B$64+$C$64+$E$46*$D$64*CALC!F29*$F$46) -> -350 | AU9: =$F$34+$F$35*($B$65+$C$65+$E$49*$D$65*CALC!L29*$F$49) -> -692.4705882 | AV9: =($Y$178*($F$34+$F$35*($B$65+$C$65+$E$49*$D$65*CALC!J29*$F$49))) -> -688.2352941 | AW9: =$F$34+$F$35*($B$66+$C$66+$E$52*$D$66*CALC!N29*$F$52) -> -1359.856 | AX9: =$Y$178*($F$34+$F$35*($B$66+$C$66+$E$52*$D$66*CALC!O29*$F$52)) -> -1360 | AY9: =CALC!U29 ->  | AZ9: =CALC!R29 ->  | BA9: =CALC!S29 ->  | BB9: =CALC!T29 ->  | BC9: 3 | BD9: 60 | BE9: 58 | BF9: -350 | BG9: -688.2352941 | BH9: -1360
A10: F8 | B10: =IF(HOME!L14="D",HOME!M14,HOME!M14*COS(HOME!Q14*PI()/180)) -> 0 | C10: =IF(HOME!L14="D",HOME!Q14,HOME!M14*SIN(HOME!Q14*PI()/180)) -> 0 | D10: =HOME!U14 -> 0 | F10: =HOME!Z14 -> 0 | G10: =HOME!AD14 -> 0 | U10: 70 | V10: 753.4202014 | W10: -43.90434398 | Y10: R | Z10: =Z6+Z8/2 -> 49 | AB10: R | AC10: =AC6+AC8/2 -> 49 | AE10: R | AF10: =AF6+AF8/2 -> 49 | AH10: R | AI10: =AI6+AI8/2 -> 49 | AK10: R | AL10: =AL6+AL8/2 -> 49 | AN10: R | AO10: =AO6+AO8/2 -> 49 | AR10: 7 | AS10: =$F$33+$F$35*CALC!D30*FIGURE_V2!$E$28 -> 6 | AT10: =$F$34+$F$35*($B$64+$C$64+$E$46*$D$64*CALC!F30*$F$46) -> -350 | AU10: =$F$34+$F$35*($B$65+$C$65+$E$49*$D$65*CALC!L30*$F$49) -> -693.3176471 | AV10: =($Y$178*($F$34+$F$35*($B$65+$C$65+$E$49*$D$65*CALC!J30*$F$49))) -> -688.2352941 | AW10: =$F$34+$F$35*($B$66+$C$66+$E$52*$D$66*CALC!N30*$F$52) -> -1359.79264 | AX10: =$Y$178*($F$34+$F$35*($B$66+$C$66+$E$52*$D$66*CALC!O30*$F$52)) -> -1360 | AY10: =CALC!U30 ->  | AZ10: =CALC!R30 ->  | BA10: =CALC!S30 ->  | BB10: =CALC!T30 ->  | BC10: 3 | BD10: 60 | BE10: 58 | BF10: -350 | BG10: -737.3647059 | BH10: -1340.62336
A11: F9 | B11: =IF(HOME!L15="D",HOME!M15,HOME!M15*COS(HOME!Q15*PI()/180)) -> 0 | C11: =IF(HOME!L15="D",HOME!Q15,HOME!M15*SIN(HOME!Q15*PI()/180)) -> 0 | D11: =HOME!U15 -> 0 | F11: =HOME!Z15 -> 0 | G11: =HOME!AD15 -> 0 | I11: F1_shift | J11: =$F$33+$F$35*$D$3*$E$28 -> 1000 | K11: =$F$34+$F$35*0 -> 0 | L11: F1 | P11: =P8 -> 200 | Q11: =Q8-$C$37 -> -63.30127019 | S11: =S8 -> 700 | T11: =T8-$C$37 -> -83.30127019 | U11: 80 | V11: 751.7364818 | W11: -43.45319266 | Y11: =$J$53 -> 500 | Z11: =$K$53 -> 0 | AB11: =J57 -> 0 | AC11: =K57 -> 0 | AE11: =$J$61 -> 0 | AF11: =$K$61 -> 0 | AH11: =$J$65 -> 0 | AI11: =$K$65 -> 0 | AK11: =$J$69 -> 0 | AL11: =$K$69 -> 0 | AN11: =F33+F35*E28*D20 ->  | AO11: =F34 -> 0 | AR11: 8 | AS11: =$F$33+$F$35*CALC!D31*FIGURE_V2!$E$28 -> 7 | AT11: =$F$34+$F$35*($B$64+$C$64+$E$46*$D$64*CALC!F31*$F$46) -> -350 | AU11: =$F$34+$F$35*($B$65+$C$65+$E$49*$D$65*CALC!L31*$F$49) -> -694.1647059 | AV11: =($Y$178*($F$34+$F$35*($B$65+$C$65+$E$49*$D$65*CALC!J31*$F$49))) -> -688.2352941 | AW11: =$F$34+$F$35*($B$66+$C$66+$E$52*$D$66*CALC!N31*$F$52) -> -1359.71776 | AX11: =$Y$178*($F$34+$F$35*($B$66+$C$66+$E$52*$D$66*CALC!O31*$F$52)) -> -1360 | AY11: =CALC!U31 ->  | AZ11: =CALC!R31 ->  | BA11: =CALC!S31 ->  | BB11: =CALC!T31 -> 
A12: F10 | B12: =IF(HOME!L16="D",HOME!M16,HOME!M16*COS(HOME!Q16*PI()/180)) -> 0 | C12: =IF(HOME!L16="D",HOME!Q16,HOME!M16*SIN(HOME!Q16*PI()/180)) -> 0 | D12: =HOME!U16 -> 0 | F12: =HOME!Z16 -> 0 | G12: =HOME!AD16 -> 0 | J12: =IF(HOME!$Y$7="D",J11,NA()) -> 1000 | K12: =IF(HOME!$Y$7="D",$F$34+$F$35*$G$3*$E$28,NA()) -> 0 | L12: 2 | M12: =IF(AND($B$3=0,$C$3=0),NA(),IF(L12=1,J13,J13-L13*($B$3/($B$3^2+$C$3^2)^0.5))) -> 932.9179607 | N12: =IF(L12=1,K13,K13-L13*($C$3/($B$3^2+$C$3^2)^0.5)) -> 134.1640786 | P12: =IF(P11+$C$37>$P$9,NA(),P11+$C$37) -> 220 | Q12: =$Q$4 -> -43.30127019 | S12: =IF(S11+$C$37>$S$9,NA(),S11+$C$37) -> 720 | T12: =$T$4-2*$C$38 -> -63.30127019 | U12: 90 | V12: 750 | W12: -43.30127019 | AR12: 9 | AS12: =$F$33+$F$35*CALC!D32*FIGURE_V2!$E$28 -> 8 | AT12: =$F$34+$F$35*($B$64+$C$64+$E$46*$D$64*CALC!F32*$F$46) -> -350 | AU12: =$F$34+$F$35*($B$65+$C$65+$E$49*$D$65*CALC!L32*$F$49) -> -695.0117647 | AV12: =($Y$178*($F$34+$F$35*($B$65+$C$65+$E$49*$D$65*CALC!J32*$F$49))) -> -688.2352941 | AW12: =$F$34+$F$35*($B$66+$C$66+$E$52*$D$66*CALC!N32*$F$52) -> -1359.63136 | AX12: =$Y$178*($F$34+$F$35*($B$66+$C$66+$E$52*$D$66*CALC!O32*$F$52)) -> -1360 | AY12: =CALC!U32 ->  | AZ12: =CALC!R32 ->  | BA12: =CALC!S32 ->  | BB12: =CALC!T32 ->  | BC12: 4 | BD12: 80 | BE12: 78 | BF12: -350 | BG12: -688.2352941 | BH12: -1360
A13: FA | B13: =CALC!D16 -> -1 | C13: =CALC!E16 -> 8.5 | D13: =CALC!F16 -> 2 | J13: =IF(HOME!$Y$7="D",J12+$F$35*$F$3*$E$28,J11+$E$28*HOME!$Z$7*COS(HOME!$AD$7*PI()/180)) -> 1000 | K13: =IF(HOME!$Y$7="D",K12,$F$34+$F$35*$E$28*HOME!$Z$7*SIN(HOME!$AD$7*PI()/180)) -> 0 | L13: 150 | M13: =IF(AND($B$3=0,$C$3=0),NA(),IF(L12=1,J13+L13*($B$3/($B$3^2+$C$3^2)^0.5),J13)) -> 1000 | N13: =IF(L12=1,K13+L13*($C$3/($B$3^2+$C$3^2)^0.5),K13) -> 0 | U13: 100 | V13: 748.2635182 | W13: -43.45319266 | X13: 0 | Y13: =Z$3*($Z$4+$X13) -> -120 | Z13: =IF($X13>Z$5,NA(),Y$11+Z$9*COS(Y13*PI()/180)) -> 484.5 | AA13: =IF($X13>Z$5,NA(),Z$11+Z$9*SIN(Y13*PI()/180)) -> -26.84678752 | AB13: =AC$3*($Z$4+$X13) ->  | AC13: =IF($X13>AC$5,NA(),AB$11+AC$9*COS(AB13*PI()/180)) ->  | AD13: =IF($X13>AC$5,NA(),AC$11+AC$9*SIN(AB13*PI()/180)) ->  | AE13: =AF$3*($Z$4+$X13) ->  | AF13: =IF($X13>AF$5,NA(),AE$11+AF$9*COS(AE13*PI()/180)) ->  | AG13: =IF($X13>AF$5,NA(),AF$11+AF$9*SIN(AE13*PI()/180)) ->  | AH13: =AI$3*($Z$4+$X13) ->  | AI13: =IF($X13>AI$5,NA(),AH$11+AI$9*COS(AH13*PI()/180)) ->  | AJ13: =IF($X13>AI$5,NA(),AI$11+AI$9*SIN(AH13*PI()/180)) ->  | AK13: =AL$3*($Z$4+$X13) ->  | AL13: =IF($X13>AL$5,NA(),AK$11+AL$9*COS(AK13*PI()/180)) ->  | AM13: =IF($X13>AL$5,NA(),AL$11+AL$9*SIN(AK13*PI()/180)) ->  | AN13: =AO$3*($Z$4+$X13) ->  | AO13: =IF($X13>AO$5,NA(),AN$11+AO$9*COS(AN13*PI()/180)) ->  | AP13: =IF($X13>AO$5,NA(),AO$11+AO$9*SIN(AN13*PI()/180)) ->  | AR13: 10 | AS13: =$F$33+$F$35*CALC!D33*FIGURE_V2!$E$28 -> 9 | AT13: =$F$34+$F$35*($B$64+$C$64+$E$46*$D$64*CALC!F33*$F$46) -> -350 | AU13: =$F$34+$F$35*($B$65+$C$65+$E$49*$D$65*CALC!L33*$F$49) -> -695.8588235 | AV13: =($Y$178*($F$34+$F$35*($B$65+$C$65+$E$49*$D$65*CALC!J33*$F$49))) -> -688.2352941 | AW13: =$F$34+$F$35*($B$66+$C$66+$E$52*$D$66*CALC!N33*$F$52) -> -1359.53344 | AX13: =$Y$178*($F$34+$F$35*($B$66+$C$66+$E$52*$D$66*CALC!O33*$F$52)) -> -1360 | AY13: =CALC!U33 ->  | AZ13: =CALC!R33 ->  | BA13: =CALC!S33 ->  | BB13: =CALC!T33 ->  | BC13: 4 | BD13: 80 | BE13: 78 | BF13: -350 | BG13: -754.3058824 | BH13: -1324.95616
A14: FB | C14: =CALC!E17 -> 5.5 | D14: =CALC!F17 -> 6 | P14: =P12 -> 220 | Q14: =Q12-$C$37 -> -63.30127019 | S14: =S12 -> 720 | T14: =T11 -> -83.30127019 | U14: 110 | V14: 746.5797986 | W14: -43.90434398 | X14: 5 | Y14: =Z$3*($Z$4+$X14) -> -115 | Z14: =IF($X14>Z$5,NA(),Y$11+Z$9*COS(Y14*PI()/180)) -> 486.8988339 | AA14: =IF($X14>Z$5,NA(),Z$11+Z$9*SIN(Y14*PI()/180)) -> -28.0955414 | AB14: =AC$3*($Z$4+$X14) ->  | AC14: =IF($X14>AC$5,NA(),AB$11+AC$9*COS(AB14*PI()/180)) ->  | AD14: =IF($X14>AC$5,NA(),AC$11+AC$9*SIN(AB14*PI()/180)) ->  | AE14: =AF$3*($Z$4+$X14) ->  | AF14: =IF($X14>AF$5,NA(),AE$11+AF$9*COS(AE14*PI()/180)) ->  | AG14: =IF($X14>AF$5,NA(),AF$11+AF$9*SIN(AE14*PI()/180)) ->  | AH14: =AI$3*($Z$4+$X14) ->  | AI14: =IF($X14>AI$5,NA(),AH$11+AI$9*COS(AH14*PI()/180)) ->  | AJ14: =IF($X14>AI$5,NA(),AI$11+AI$9*SIN(AH14*PI()/180)) ->  | AK14: =AL$3*($Z$4+$X14) ->  | AL14: =IF($X14>AL$5,NA(),AK$11+AL$9*COS(AK14*PI()/180)) ->  | AM14: =IF($X14>AL$5,NA(),AL$11+AL$9*SIN(AK14*PI()/180)) ->  | AN14: =AO$3*($Z$4+$X14) ->  | AO14: =IF($X14>AO$5,NA(),AN$11+AO$9*COS(AN14*PI()/180)) ->  | AP14: =IF($X14>AO$5,NA(),AO$11+AO$9*SIN(AN14*PI()/180)) ->  | AR14: 11 | AS14: =$F$33+$F$35*CALC!D34*FIGURE_V2!$E$28 -> 10 | AT14: =$F$34+$F$35*($B$64+$C$64+$E$46*$D$64*CALC!F34*$F$46) -> -350 | AU14: =$F$34+$F$35*($B$65+$C$65+$E$49*$D$65*CALC!L34*$F$49) -> -696.7058824 | AV14: =($Y$178*($F$34+$F$35*($B$65+$C$65+$E$49*$D$65*CALC!J34*$F$49))) -> -688.2352941 | AW14: =$F$34+$F$35*($B$66+$C$66+$E$52*$D$66*CALC!N34*$F$52) -> -1359.424 | AX14: =$Y$178*($F$34+$F$35*($B$66+$C$66+$E$52*$D$66*CALC!O34*$F$52)) -> -1360 | AY14: =CALC!U34 ->  | AZ14: =CALC!R34 ->  | BA14: =CALC!S34 ->  | BB14: =CALC!T34 -> 
A15: M1 | B15: =HOME!AI5 -> 2 | D15: =HOME!AM5 -> 4 | F15: =HOME!AR5 -> 0 | G15: =HOME!AT5 -> 0 | I15: F2_shift | J15: =$F$33+$F$35*$D$4*$E$28 -> 0 | K15: =$F$34+$F$35*0 -> 0 | L15: F2 | P15: =IF(P14+$C$37>$P$9,NA(),P14+$C$37) -> 240 | Q15: =$Q$4 -> -43.30127019 | S15: =IF(S14+$C$37>$S$9,NA(),S14+$C$37) -> 740 | T15: =$T$4-2*$C$38 -> -63.30127019 | U15: 120 | V15: 745 | W15: -44.64101615 | X15: 10 | Y15: -110 | Z15: 489.3973756 | AA15: -29.13047124 | AR15: 12 | AS15: =$F$33+$F$35*CALC!D35*FIGURE_V2!$E$28 -> 11 | AT15: =$F$34+$F$35*($B$64+$C$64+$E$46*$D$64*CALC!F35*$F$46) -> -350 | AU15: =$F$34+$F$35*($B$65+$C$65+$E$49*$D$65*CALC!L35*$F$49) -> -697.5529412 | AV15: =($Y$178*($F$34+$F$35*($B$65+$C$65+$E$49*$D$65*CALC!J35*$F$49))) -> -688.2352941 | AW15: =$F$34+$F$35*($B$66+$C$66+$E$52*$D$66*CALC!N35*$F$52) -> -1359.30304 | AX15: =$Y$178*($F$34+$F$35*($B$66+$C$66+$E$52*$D$66*CALC!O35*$F$52)) -> -1360 | AY15: =CALC!U35 ->  | AZ15: =CALC!R35 ->  | BA15: =CALC!S35 ->  | BB15: =CALC!T35 ->  | BC15: 5 | BD15: 100 | BE15: 98 | BF15: -350 | BG15: -688.2352941 | BH15: -1360
A16: M2 | B16: =HOME!AI6 -> 0 | D16: =HOME!AM6 -> 0 | F16: =HOME!AR6 -> 0 | G16: =HOME!AT6 -> 0 | J16: =IF(HOME!$Y$8="D",J15,NA()) -> 0 | K16: =IF(HOME!$Y$8="D",$F$34+$F$35*$G$4*$E$28,NA()) -> 0 | L16: 2 | M16: =IF(AND($B$4=0,$C$4=0),NA(),IF(L16=1,J17,J17-L17*($B$4/($B$4^2+$C$4^2)^0.5))) ->  | N16: =IF(L16=1,K17,K17-L17*($C$4/($B$4^2+$C$4^2)^0.5)) ->  | U16: 130 | V16: 743.5721239 | W16: -45.64082576 | X16: 15 | Y16: -105 | Z16: 491.9766096 | AA16: -29.94370061 | AR16: 13 | AS16: =$F$33+$F$35*CALC!D36*FIGURE_V2!$E$28 -> 12 | AT16: =$F$34+$F$35*($B$64+$C$64+$E$46*$D$64*CALC!F36*$F$46) -> -350 | AU16: =$F$34+$F$35*($B$65+$C$65+$E$49*$D$65*CALC!L36*$F$49) -> -698.4 | AV16: =($Y$178*($F$34+$F$35*($B$65+$C$65+$E$49*$D$65*CALC!J36*$F$49))) -> -688.2352941 | AW16: =$F$34+$F$35*($B$66+$C$66+$E$52*$D$66*CALC!N36*$F$52) -> -1359.17056 | AX16: =$Y$178*($F$34+$F$35*($B$66+$C$66+$E$52*$D$66*CALC!O36*$F$52)) -> -1360 | AY16: =CALC!U36 ->  | AZ16: =CALC!R36 ->  | BA16: =CALC!S36 ->  | BB16: =CALC!T36 ->  | BC16: 5 | BD16: 100 | BE16: 98 | BF16: -350 | BG16: -771.2470588 | BH16: -1304.68096
A17: M3 | B17: =HOME!AI7 -> 0 | D17: =HOME!AM7 -> 0 | F17: =HOME!AR7 -> 0 | G17: =HOME!AT7 -> 0 | J17: =IF(HOME!$Y$8="D",J16+$F$35*$F$4*$E$28,J15+$E$28*HOME!$Z$8*COS(HOME!$AD$8*PI()/180)) -> 0 | K17: =IF(HOME!$Y$8="D",K16,$F$34+$F$35*$E$28*HOME!$Z$8*SIN(HOME!$AD$8*PI()/180)) -> 0 | L17: 150 | M17: =IF(AND($B$4=0,$C$4=0),NA(),IF(L16=1,J17+L17*($B$4/($B$4^2+$C$4^2)^0.5),J17)) ->  | N17: =IF(L16=1,K17+L17*($C$4/($B$4^2+$C$4^2)^0.5),K17) -> 0 | P17: =P15 -> 240 | Q17: =Q15-$C$37 -> -63.30127019 | S17: =S15 -> 740 | T17: =T14 -> -83.30127019 | U17: 140 | V17: 742.3395556 | W17: -46.87339409 | X17: 20 | Y17: -100 | Z17: 494.6169065 | AA17: -30.52904034 | AR17: 14 | AS17: =$F$33+$F$35*CALC!D37*FIGURE_V2!$E$28 -> 13 | AT17: =$F$34+$F$35*($B$64+$C$64+$E$46*$D$64*CALC!F37*$F$46) -> -350 | AU17: =$F$34+$F$35*($B$65+$C$65+$E$49*$D$65*CALC!L37*$F$49) -> -699.2470588 | AV17: =($Y$178*($F$34+$F$35*($B$65+$C$65+$E$49*$D$65*CALC!J37*$F$49))) -> -688.2352941 | AW17: =$F$34+$F$35*($B$66+$C$66+$E$52*$D$66*CALC!N37*$F$52) -> -1359.02656 | AX17: =$Y$178*($F$34+$F$35*($B$66+$C$66+$E$52*$D$66*CALC!O37*$F$52)) -> -1360 | AY17: =CALC!U37 ->  | AZ17: =CALC!R37 ->  | BA17: =CALC!S37 ->  | BB17: =CALC!T37 -> 
A18: M4 | B18: =HOME!AI8 -> 0 | D18: =HOME!AM8 -> 0 | F18: =HOME!AR8 -> 0 | G18: =HOME!AT8 -> 0 | P18: =IF(P17+$C$37>$P$9,NA(),P17+$C$37) -> 260 | Q18: =$Q$4 -> -43.30127019 | S18: =IF(S17+$C$37>$S$9,NA(),S17+$C$37) -> 760 | T18: =$T$4-2*$C$38 -> -63.30127019 | U18: 150 | V18: 741.339746 | W18: -48.30127019 | X18: 25 | Y18: -95 | Z18: 497.298172 | AA18: -30.88203564 | AR18: 15 | AS18: =$F$33+$F$35*CALC!D38*FIGURE_V2!$E$28 -> 14 | AT18: =$F$34+$F$35*($B$64+$C$64+$E$46*$D$64*CALC!F38*$F$46) -> -350 | AU18: =$F$34+$F$35*($B$65+$C$65+$E$49*$D$65*CALC!L38*$F$49) -> -700.0941176 | AV18: =($Y$178*($F$34+$F$35*($B$65+$C$65+$E$49*$D$65*CALC!J38*$F$49))) -> -688.2352941 | AW18: =$F$34+$F$35*($B$66+$C$66+$E$52*$D$66*CALC!N38*$F$52) -> -1358.87104 | AX18: =$Y$178*($F$34+$F$35*($B$66+$C$66+$E$52*$D$66*CALC!O38*$F$52)) -> -1360 | AY18: =CALC!U38 ->  | AZ18: =CALC!R38 ->  | BA18: =CALC!S38 ->  | BB18: =CALC!T38 ->  | BC18: 6 | BD18: 120 | BE18: 118 | BF18: -350 | BG18: -688.2352941 | BH18: -1360
A19: M5 | B19: =HOME!AI9 -> 0 | D19: =HOME!AM9 -> 0 | F19: =HOME!AR9 -> 0 | G19: =HOME!AT9 -> 0 | I19: F3_shift | J19: =$F$33+$F$35*$D$5*$E$28 -> 0 | K19: =$F$34+$F$35*0 -> 0 | L19: F3 | U19: 160 | V19: 740.6030738 | W19: -49.88106876 | X19: 30 | Y19: -90 | Z19: 500 | AA19: -31 | AR19: 16 | AS19: =$F$33+$F$35*CALC!D39*FIGURE_V2!$E$28 -> 15 | AT19: =$F$34+$F$35*($B$64+$C$64+$E$46*$D$64*CALC!F39*$F$46) -> -350 | AU19: =$F$34+$F$35*($B$65+$C$65+$E$49*$D$65*CALC!L39*$F$49) -> -700.9411765 | AV19: =($Y$178*($F$34+$F$35*($B$65+$C$65+$E$49*$D$65*CALC!J39*$F$49))) -> -688.2352941 | AW19: =$F$34+$F$35*($B$66+$C$66+$E$52*$D$66*CALC!N39*$F$52) -> -1358.704 | AX19: =$Y$178*($F$34+$F$35*($B$66+$C$66+$E$52*$D$66*CALC!O39*$F$52)) -> -1360 | AY19: =CALC!U39 ->  | AZ19: =CALC!R39 ->  | BA19: =CALC!S39 ->  | BB19: =CALC!T39 ->  | BC19: 6 | BD19: 120 | BE19: 118 | BF19: -350 | BG19: -788.1882353 | BH19: -1279.79776
A20: MA | B20: =CALC!N11 ->  | D20: =CALC!O11 ->  | J20: =IF(HOME!$Y$9="D",J19,NA()) -> 0 | K20: =IF(HOME!$Y$9="D",$F$34+$F$35*$G$5*$E$28,NA()) -> 0 | L20: 2 | M20: =IF(AND($B$5=0,$C$5=0),NA(),IF(L20=1,J21,J21-L21*($B$5/($B$5^2+$C$5^2)^0.5))) ->  | N20: =IF(L20=1,K21,K21-L21*($C$5/($B$5^2+$C$5^2)^0.5)) ->  | P20: =P18 -> 260 | Q20: =Q18-$C$37 -> -63.30127019 | S20: =S18 -> 760 | T20: =T17 -> -83.30127019 | U20: 170 | V20: 740.1519225 | W20: -51.56478841 | X20: 35 | Y20: -85 | Z20: 502.701828 | AA20: -30.88203564 | AR20: 17 | AS20: =$F$33+$F$35*CALC!D40*FIGURE_V2!$E$28 -> 16 | AT20: =$F$34+$F$35*($B$64+$C$64+$E$46*$D$64*CALC!F40*$F$46) -> -350 | AU20: =$F$34+$F$35*($B$65+$C$65+$E$49*$D$65*CALC!L40*$F$49) -> -701.7882353 | AV20: =($Y$178*($F$34+$F$35*($B$65+$C$65+$E$49*$D$65*CALC!J40*$F$49))) -> -688.2352941 | AW20: =$F$34+$F$35*($B$66+$C$66+$E$52*$D$66*CALC!N40*$F$52) -> -1358.52544 | AX20: =$Y$178*($F$34+$F$35*($B$66+$C$66+$E$52*$D$66*CALC!O40*$F$52)) -> -1360 | AY20: =CALC!U40 ->  | AZ20: =CALC!R40 ->  | BA20: =CALC!S40 ->  | BB20: =CALC!T40 -> 
A21: q1 | C21: =HOME!AI12 -> -2 | D21: =HOME!AM12 -> 0 | E21: =HOME!AQ12 -> 6 | J21: =IF(HOME!$Y$9="D",J20+$F$35*$F$5*$E$28,J19+$E$28*HOME!$Z$9*COS(HOME!$AD$9*PI()/180)) -> 0 | K21: =IF(HOME!$Y$9="D",K20,$F$34+$F$35*$E$28*HOME!$Z$9*SIN(HOME!$AD$9*PI()/180)) -> 0 | L21: 150 | M21: =IF(AND($B$5=0,$C$5=0),NA(),IF(L20=1,J21+L21*($B$5/($B$5^2+$C$5^2)^0.5),J21)) ->  | N21: =IF(L20=1,K21+L21*($C$5/($B$5^2+$C$5^2)^0.5),K21) -> 0 | P21: =IF(P20+$C$37>$P$9,NA(),P20+$C$37) -> 280 | Q21: =$Q$4 -> -43.30127019 | S21: =IF(S20+$C$37>$S$9,NA(),S20+$C$37) -> 780 | T21: =$T$4-2*$C$38 -> -63.30127019 | U21: 180 | V21: 740 | W21: -53.30127019 | X21: 40 | Y21: -80 | Z21: 505.3830935 | AA21: -30.52904034 | AR21: 18 | AS21: =$F$33+$F$35*CALC!D41*FIGURE_V2!$E$28 -> 17 | AT21: =$F$34+$F$35*($B$64+$C$64+$E$46*$D$64*CALC!F41*$F$46) -> -350 | AU21: =$F$34+$F$35*($B$65+$C$65+$E$49*$D$65*CALC!L41*$F$49) -> -702.6352941 | AV21: =($Y$178*($F$34+$F$35*($B$65+$C$65+$E$49*$D$65*CALC!J41*$F$49))) -> -688.2352941 | AW21: =$F$34+$F$35*($B$66+$C$66+$E$52*$D$66*CALC!N41*$F$52) -> -1358.33536 | AX21: =$Y$178*($F$34+$F$35*($B$66+$C$66+$E$52*$D$66*CALC!O41*$F$52)) -> -1360 | AY21: =CALC!U41 ->  | AZ21: =CALC!R41 ->  | BA21: =CALC!S41 ->  | BB21: =CALC!T41 ->  | BC21: 7 | BD21: 140 | BE21: 137 | BF21: -350 | BG21: -688.2352941 | BH21: -1360
A22: q2 | C22: =HOME!AI13 -> 0 | D22: =HOME!AM13 -> 0 | E22: =HOME!AQ13 -> 0 | U22: 190 | V22: 740.1519225 | W22: -55.03775197 | X22: 45 | Y22: -75 | Z22: 508.0233904 | AA22: -29.94370061 | AR22: 19 | AS22: =$F$33+$F$35*CALC!D42*FIGURE_V2!$E$28 -> 18 | AT22: =$F$34+$F$35*($B$64+$C$64+$E$46*$D$64*CALC!F42*$F$46) -> -350 | AU22: =$F$34+$F$35*($B$65+$C$65+$E$49*$D$65*CALC!L42*$F$49) -> -703.4823529 | AV22: =($Y$178*($F$34+$F$35*($B$65+$C$65+$E$49*$D$65*CALC!J42*$F$49))) -> -688.2352941 | AW22: =$F$34+$F$35*($B$66+$C$66+$E$52*$D$66*CALC!N42*$F$52) -> -1358.13376 | AX22: =$Y$178*($F$34+$F$35*($B$66+$C$66+$E$52*$D$66*CALC!O42*$F$52)) -> -1360 | AY22: =CALC!U42 ->  | AZ22: =CALC!R42 ->  | BA22: =CALC!S42 ->  | BB22: =CALC!T42 ->  | BC22: 7 | BD22: 140 | BE22: 137 | BF22: -350 | BG22: -804.2823529 | BH22: -1251.89056
A23: q3 | C23: =HOME!AI14 -> 0 | D23: =HOME!AM14 -> 0 | E23: =HOME!AQ14 -> 0 | I23: F4_shift | J23: =$F$33+$F$35*$D$6*$E$28 -> 0 | K23: =$F$34+$F$35*0 -> 0 | L23: F4 | P23: =P21 -> 280 | Q23: =Q21-$C$37 -> -63.30127019 | S23: =S21 -> 780 | T23: =T20 -> -83.30127019 | U23: 200 | V23: 740.6030738 | W23: -56.72147162 | X23: 50 | Y23: -70 | Z23: 510.6026244 | AA23: -29.13047124 | AR23: 20 | AS23: =$F$33+$F$35*CALC!D43*FIGURE_V2!$E$28 -> 19 | AT23: =$F$34+$F$35*($B$64+$C$64+$E$46*$D$64*CALC!F43*$F$46) -> -350 | AU23: =$F$34+$F$35*($B$65+$C$65+$E$49*$D$65*CALC!L43*$F$49) -> -704.3294118 | AV23: =($Y$178*($F$34+$F$35*($B$65+$C$65+$E$49*$D$65*CALC!J43*$F$49))) -> -688.2352941 | AW23: =$F$34+$F$35*($B$66+$C$66+$E$52*$D$66*CALC!N43*$F$52) -> -1357.92064 | AX23: =$Y$178*($F$34+$F$35*($B$66+$C$66+$E$52*$D$66*CALC!O43*$F$52)) -> -1360 | AY23: =CALC!U43 ->  | AZ23: =CALC!R43 ->  | BA23: =CALC!S43 ->  | BB23: =CALC!T43 -> 
A24: q4 | C24: =HOME!AI15 -> 0 | D24: =HOME!AM15 -> 0 | E24: =HOME!AQ15 -> 0 | J24: =IF(HOME!$Y$10="D",J23,NA()) -> 0 | K24: =IF(HOME!$Y$10="D",$F$34+$F$35*$G$6*$E$28,NA()) -> 0 | L24: 2 | M24: =IF(AND($B$6=0,$C$6=0),NA(),IF(L24=1,J25,J25-L25*($B$6/($B$6^2+$C$6^2)^0.5))) ->  | N24: =IF(L24=1,K25,K25-L25*($C$6/($B$6^2+$C$6^2)^0.5)) ->  | P24: =IF(P23+$C$37>$P$9,NA(),P23+$C$37) -> 300 | Q24: =$Q$4 -> -43.30127019 | S24: =IF(S23+$C$37>$S$9,NA(),S23+$C$37) -> 800 | T24: =$T$4-2*$C$38 -> -63.30127019 | U24: 210 | V24: 741.339746 | W24: -58.30127019 | X24: 55 | Y24: -65 | Z24: 513.1011661 | AA24: -28.0955414 | AR24: 21 | AS24: =$F$33+$F$35*CALC!D44*FIGURE_V2!$E$28 -> 20 | AT24: =$F$34+$F$35*($B$64+$C$64+$E$46*$D$64*CALC!F44*$F$46) -> -350 | AU24: =$F$34+$F$35*($B$65+$C$65+$E$49*$D$65*CALC!L44*$F$49) -> -705.1764706 | AV24: =($Y$178*($F$34+$F$35*($B$65+$C$65+$E$49*$D$65*CALC!J44*$F$49))) -> -688.2352941 | AW24: =$F$34+$F$35*($B$66+$C$66+$E$52*$D$66*CALC!N44*$F$52) -> -1357.696 | AX24: =$Y$178*($F$34+$F$35*($B$66+$C$66+$E$52*$D$66*CALC!O44*$F$52)) -> -1360 | AY24: =CALC!U44 ->  | AZ24: =CALC!R44 ->  | BA24: =CALC!S44 ->  | BB24: =CALC!T44 ->  | BC24: 8 | BD24: 160 | BE24: 157 | BF24: -350 | BG24: -688.2352941 | BH24: -1360
A25: q5 | C25: =HOME!AI16 -> 0 | D25: =HOME!AM16 -> 0 | E25: =HOME!AQ16 -> 0 | J25: =IF(HOME!$Y$10="D",J24+$F$35*$F$6*$E$28,J23+$E$28*HOME!$Z$10*COS(HOME!$AD$10*PI()/180)) -> 0 | K25: =IF(HOME!$Y$10="D",K24,$F$34+$F$35*$E$28*HOME!$Z$10*SIN(HOME!$AD$10*PI()/180)) -> 0 | L25: 150 | M25: =IF(AND($B$6=0,$C$6=0),NA(),IF(L24=1,J25+L25*($B$6/($B$6^2+$C$6^2)^0.5),J25)) ->  | N25: =IF(L24=1,K25+L25*($C$6/($B$6^2+$C$6^2)^0.5),K25) -> 0 | U25: 220 | V25: 742.3395556 | W25: -59.72914629 | X25: 60 | Y25: -60 | Z25: 515.5 | AA25: -26.84678752 | AR25: 22 | AS25: =$F$33+$F$35*CALC!D45*FIGURE_V2!$E$28 -> 21 | AT25: =$F$34+$F$35*($B$64+$C$64+$E$46*$D$64*CALC!F45*$F$46) -> -350 | AU25: =$F$34+$F$35*($B$65+$C$65+$E$49*$D$65*CALC!L45*$F$49) -> -706.0235294 | AV25: =($Y$178*($F$34+$F$35*($B$65+$C$65+$E$49*$D$65*CALC!J45*$F$49))) -> -688.2352941 | AW25: =$F$34+$F$35*($B$66+$C$66+$E$52*$D$66*CALC!N45*$F$52) -> -1357.45984 | AX25: =$Y$178*($F$34+$F$35*($B$66+$C$66+$E$52*$D$66*CALC!O45*$F$52)) -> -1360 | AY25: =CALC!U45 ->  | AZ25: =CALC!R45 ->  | BA25: =CALC!S45 ->  | BB25: =CALC!T45 ->  | BC25: 8 | BD25: 160 | BE25: 157 | BF25: -350 | BG25: -821.2235294 | BH25: -1218.02176
P26: =P24 -> 300 | Q26: =Q24-$C$37 -> -63.30127019 | S26: =S24 -> 800 | T26: =T23 -> -83.30127019 | U26: 230 | V26: 743.5721239 | W26: -60.96171462 | X26: 65 | Y26: -55 | Z26: 517.7808695 | AA26: -25.39371337 | AR26: 23 | AS26: =$F$33+$F$35*CALC!D46*FIGURE_V2!$E$28 -> 22 | AT26: =$F$34+$F$35*($B$64+$C$64+$E$46*$D$64*CALC!F46*$F$46) -> -350 | AU26: =$F$34+$F$35*($B$65+$C$65+$E$49*$D$65*CALC!L46*$F$49) -> -706.8705882 | AV26: =($Y$178*($F$34+$F$35*($B$65+$C$65+$E$49*$D$65*CALC!J46*$F$49))) -> -688.2352941 | AW26: =$F$34+$F$35*($B$66+$C$66+$E$52*$D$66*CALC!N46*$F$52) -> -1357.21216 | AX26: =$Y$178*($F$34+$F$35*($B$66+$C$66+$E$52*$D$66*CALC!O46*$F$52)) -> -1360 | AY26: =CALC!U46 ->  | AZ26: =CALC!R46 ->  | BA26: =CALC!S46 ->  | BB26: =CALC!T46 -> 
A27: l | B27: =HOME!C10 -> 8 | D27: normalise | E27: 1000 | I27: F5_shift | J27: =$F$33+$F$35*$D$7*$E$28 -> 0 | K27: =$F$34+$F$35*0 -> 0 | L27: F5 | P27: =IF(P26+$C$37>$P$9,NA(),P26+$C$37) ->  | Q27: =$Q$4 -> -43.30127019 | S27: =IF(S26+$C$37>$S$9,NA(),S26+$C$37) ->  | T27: =$T$4-2*$C$38 -> -63.30127019 | U27: 240 | V27: 745 | W27: -61.96152423 | X27: 70 | Y27: -50 | Z27: 519.9264159 | AA27: -23.74737774 | AR27: 24 | AS27: =$F$33+$F$35*CALC!D47*FIGURE_V2!$E$28 -> 23 | AT27: =$F$34+$F$35*($B$64+$C$64+$E$46*$D$64*CALC!F47*$F$46) -> -350 | AU27: =$F$34+$F$35*($B$65+$C$65+$E$49*$D$65*CALC!L47*$F$49) -> -707.7176471 | AV27: =($Y$178*($F$34+$F$35*($B$65+$C$65+$E$49*$D$65*CALC!J47*$F$49))) -> -688.2352941 | AW27: =$F$34+$F$35*($B$66+$C$66+$E$52*$D$66*CALC!N47*$F$52) -> -1356.95296 | AX27: =$Y$178*($F$34+$F$35*($B$66+$C$66+$E$52*$D$66*CALC!O47*$F$52)) -> -1360 | AY27: =CALC!U47 ->  | AZ27: =CALC!R47 ->  | BA27: =CALC!S47 ->  | BB27: =CALC!T47 ->  | BC27: 9 | BD27: 180 | BE27: 177 | BF27: -350 | BG27: -688.2352941 | BH27: -1360
A28: cs | B28: =HOME!F13 -> 2 | D28: ratio | E28: =E27/B27 -> 125 | J28: =IF(HOME!$Y11="D",J27,NA()) -> 0 | K28: =IF(HOME!$Y$11="D",$F$34+$F$35*$G$7*$E$28,NA()) -> 0 | L28: 2 | M28: =IF(AND($B$7=0,$C$7=0),NA(),IF(L28=1,J29,J29-L29*($B$7/($B$7^2+$C$7^2)^0.5))) ->  | N28: =IF(L28=1,K29,K29-L29*($C$7/($B$7^2+$C$7^2)^0.5)) ->  | U28: 250 | V28: 746.5797986 | W28: -62.6981964 | X28: 75 | Y28: -45 | Z28: 521.9203102 | AA28: -21.92031022 | AR28: 25 | AS28: =$F$33+$F$35*CALC!D48*FIGURE_V2!$E$28 -> 24 | AT28: =$F$34+$F$35*($B$64+$C$64+$E$46*$D$64*CALC!F48*$F$46) -> -350 | AU28: =$F$34+$F$35*($B$65+$C$65+$E$49*$D$65*CALC!L48*$F$49) -> -708.5647059 | AV28: =($Y$178*($F$34+$F$35*($B$65+$C$65+$E$49*$D$65*CALC!J48*$F$49))) -> -688.2352941 | AW28: =$F$34+$F$35*($B$66+$C$66+$E$52*$D$66*CALC!N48*$F$52) -> -1356.68224 | AX28: =$Y$178*($F$34+$F$35*($B$66+$C$66+$E$52*$D$66*CALC!O48*$F$52)) -> -1360 | AY28: =CALC!U48 ->  | AZ28: =CALC!R48 ->  | BA28: =CALC!S48 ->  | BB28: =CALC!T48 ->  | BC28: 9 | BD28: 180 | BE28: 177 | BF28: -350 | BG28: -838.1647059 | BH28: -1179.54496
A29: g | B29: =HOME!F14 -> 6 | J29: =IF(HOME!$Y$11="D",J28+$F$7*$E$28,J27+$E$28*HOME!$Z$11*COS(HOME!$AD$11*PI()/180)) -> 0 | K29: =IF(HOME!$Y$11="D",K28,$F$34+$F$35*$E$28*HOME!$Z$11*SIN(HOME!$AD$11*PI()/180)) -> 0 | L29: 150 | M29: =IF(AND($B$7=0,$C$7=0),NA(),IF(L28=1,J29+L29*($B$7/($B$7^2+$C$7^2)^0.5),J29)) ->  | N29: =IF(L28=1,K29+L29*($C$7/($B$7^2+$C$7^2)^0.5),K29) -> 0 | P29: =P27 ->  | Q29: =Q27-$C$37 -> -63.30127019 | S29: =S27 ->  | T29: =T26 -> -83.30127019 | U29: 260 | V29: 748.2635182 | W29: -63.14934772 | X29: 80 | Y29: -40 | Z29: 523.7473777 | AA29: -19.9264159 | AR29: 26 | AS29: =$F$33+$F$35*CALC!D49*FIGURE_V2!$E$28 -> 25 | AT29: =$F$34+$F$35*($B$64+$C$64+$E$46*$D$64*CALC!F49*$F$46) -> -350 | AU29: =$F$34+$F$35*($B$65+$C$65+$E$49*$D$65*CALC!L49*$F$49) -> -709.4117647 | AV29: =($Y$178*($F$34+$F$35*($B$65+$C$65+$E$49*$D$65*CALC!J49*$F$49))) -> -688.2352941 | AW29: =$F$34+$F$35*($B$66+$C$66+$E$52*$D$66*CALC!N49*$F$52) -> -1356.4 | AX29: =$Y$178*($F$34+$F$35*($B$66+$C$66+$E$52*$D$66*CALC!O49*$F$52)) -> -1360 | AY29: =CALC!U49 ->  | AZ29: =CALC!R49 ->  | BA29: =CALC!S49 ->  | BB29: =CALC!T49 -> 
A30: f | B30: =HOME!F15 -> 0 | P30: =IF(P29+$C$37>$P$9,NA(),P29+$C$37) ->  | Q30: =$Q$4 -> -43.30127019 | S30: =IF(S29+$C$37>$S$9,NA(),S29+$C$37) ->  | T30: =$T$4-2*$C$38 -> -63.30127019 | U30: 270 | V30: 750 | W30: -63.30127019 | X30: 85 | Y30: -35 | Z30: 525.3937134 | AA30: -17.78086953 | AR30: 27 | AS30: =$F$33+$F$35*CALC!D50*FIGURE_V2!$E$28 -> 26 | AT30: =$F$34+$F$35*($B$64+$C$64+$E$46*$D$64*CALC!F50*$F$46) -> -350 | AU30: =$F$34+$F$35*($B$65+$C$65+$E$49*$D$65*CALC!L50*$F$49) -> -710.2588235 | AV30: =($Y$178*($F$34+$F$35*($B$65+$C$65+$E$49*$D$65*CALC!J50*$F$49))) -> -688.2352941 | AW30: =$F$34+$F$35*($B$66+$C$66+$E$52*$D$66*CALC!N50*$F$52) -> -1356.10624 | AX30: =$Y$178*($F$34+$F$35*($B$66+$C$66+$E$52*$D$66*CALC!O50*$F$52)) -> -1360 | AY30: =CALC!U50 ->  | AZ30: =CALC!R50 ->  | BA30: =CALC!S50 ->  | BB30: =CALC!T50 ->  | BC30: 10 | BD30: 200 | BE30: 197 | BF30: -350 | BG30: -688.2352941 | BH30: -1360
I31: F6_shift | J31: =$F$33+$F$35*$D$8*$E$28 -> 0 | K31: =$F$34+$F$35*0 -> 0 | L31: F6 | U31: 280 | V31: 751.7364818 | W31: -63.14934772 | X31: 90 | Y31: -30 | Z31: 526.8467875 | AA31: -15.5 | AR31: 28 | AS31: =$F$33+$F$35*CALC!D51*FIGURE_V2!$E$28 -> 27 | AT31: =$F$34+$F$35*($B$64+$C$64+$E$46*$D$64*CALC!F51*$F$46) -> -350 | AU31: =$F$34+$F$35*($B$65+$C$65+$E$49*$D$65*CALC!L51*$F$49) -> -711.1058824 | AV31: =($Y$178*($F$34+$F$35*($B$65+$C$65+$E$49*$D$65*CALC!J51*$F$49))) -> -688.2352941 | AW31: =$F$34+$F$35*($B$66+$C$66+$E$52*$D$66*CALC!N51*$F$52) -> -1355.80096 | AX31: =$Y$178*($F$34+$F$35*($B$66+$C$66+$E$52*$D$66*CALC!O51*$F$52)) -> -1360 | AY31: =CALC!U51 ->  | AZ31: =CALC!R51 ->  | BA31: =CALC!S51 ->  | BB31: =CALC!T51 ->  | BC31: 10 | BD31: 200 | BE31: 197 | BF31: -350 | BG31: -855.1058824 | BH31: -1136.46016
A32: x_axis | B32: 1100 | C32: mm | E32: global | J32: =IF(HOME!$Y$12="D",J31,NA()) -> 0 | K32: =IF(HOME!$Y$12="D",$F$34+$F$35*$G$8*$E$28,NA()) -> 0 | L32: 2 | M32: =IF(AND($B$8=0,$C$8=0),NA(),IF(L32=1,J33,J33-L33*($B$8/($B$8^2+$C$8^2)^0.5))) ->  | N32: =IF(L32=1,K33,K33-L33*($C$8/($B$8^2+$C$8^2)^0.5)) ->  | P32: =P30 ->  | Q32: =Q30-$C$37 -> -63.30127019 | S32: =S30 ->  | T32: =T29 -> -83.30127019 | U32: 290 | V32: 753.4202014 | W32: -62.6981964 | X32: 95 | Y32: -25 | Z32: 528.0955414 | AA32: -13.10116611 | AR32: 29 | AS32: =$F$33+$F$35*CALC!D52*FIGURE_V2!$E$28 -> 28 | AT32: =$F$34+$F$35*($B$64+$C$64+$E$46*$D$64*CALC!F52*$F$46) -> -350 | AU32: =$F$34+$F$35*($B$65+$C$65+$E$49*$D$65*CALC!L52*$F$49) -> -711.9529412 | AV32: =($Y$178*($F$34+$F$35*($B$65+$C$65+$E$49*$D$65*CALC!J52*$F$49))) -> -688.2352941 | AW32: =$F$34+$F$35*($B$66+$C$66+$E$52*$D$66*CALC!N52*$F$52) -> -1355.48416 | AX32: =$Y$178*($F$34+$F$35*($B$66+$C$66+$E$52*$D$66*CALC!O52*$F$52)) -> -1360 | AY32: =CALC!U52 ->  | AZ32: =CALC!R52 ->  | BA32: =CALC!S52 ->  | BB32: =CALC!T52 -> 
A33: y_axis | B33: 300 | C33: mm | E33: move_x | F33: =HOME!H20 -> 0 | J33: =IF(HOME!$Y$12="D",J32+$F$35*$F$8*$E$28,J31+$E$28*HOME!$Z$12*COS(HOME!$AD$12*PI()/180)) -> 0 | K33: =IF(HOME!$Y$12="D",K32,$F$34+$F$35*$E$28*HOME!$Z$12*SIN(HOME!$AD$12*PI()/180)) -> 0 | L33: 150 | M33: =IF(AND($B$8=0,$C$8=0),NA(),IF(L32=1,J33+L33*($B$8/($B$8^2+$C$8^2)^0.5),J33)) ->  | N33: =IF(L32=1,K33+L33*($C$8/($B$8^2+$C$8^2)^0.5),K33) -> 0 | P33: =IF(P32+$C$37>$P$9,NA(),P32+$C$37) ->  | Q33: =$Q$4 -> -43.30127019 | S33: =IF(S32+$C$37>$S$9,NA(),S32+$C$37) ->  | T33: =$T$4-2*$C$38 -> -63.30127019 | U33: 300 | V33: 755 | W33: -61.96152423 | X33: 100 | Y33: -20 | Z33: 529.1304712 | AA33: -10.60262444 | AR33: 30 | AS33: =$F$33+$F$35*CALC!D53*FIGURE_V2!$E$28 -> 29 | AT33: =$F$34+$F$35*($B$64+$C$64+$E$46*$D$64*CALC!F53*$F$46) -> -350 | AU33: =$F$34+$F$35*($B$65+$C$65+$E$49*$D$65*CALC!L53*$F$49) -> -712.8 | AV33: =($Y$178*($F$34+$F$35*($B$65+$C$65+$E$49*$D$65*CALC!J53*$F$49))) -> -688.2352941 | AW33: =$F$34+$F$35*($B$66+$C$66+$E$52*$D$66*CALC!N53*$F$52) -> -1355.15584 | AX33: =$Y$178*($F$34+$F$35*($B$66+$C$66+$E$52*$D$66*CALC!O53*$F$52)) -> -1360 | AY33: =CALC!U53 ->  | AZ33: =CALC!R53 ->  | BA33: =CALC!S53 ->  | BB33: =CALC!T53 ->  | BC33: 11 | BD33: 220 | BE33: 217 | BF33: -350 | BG33: -688.2352941 | BH33: -1360
A34: show | B34: 1 | C34: =IF(B34=1,1,NA()) -> 1 | E34: move_y | F34: =HOME!H21 -> 0 | U34: 310 | V34: 756.4278761 | W34: -60.96171462 | X34: 105 | Y34: -15 | Z34: 529.9437006 | AA34: -8.023390398 | AR34: 31 | AS34: =$F$33+$F$35*CALC!D54*FIGURE_V2!$E$28 -> 30 | AT34: =$F$34+$F$35*($B$64+$C$64+$E$46*$D$64*CALC!F54*$F$46) -> -350 | AU34: =$F$34+$F$35*($B$65+$C$65+$E$49*$D$65*CALC!L54*$F$49) -> -713.6470588 | AV34: =($Y$178*($F$34+$F$35*($B$65+$C$65+$E$49*$D$65*CALC!J54*$F$49))) -> -688.2352941 | AW34: =$F$34+$F$35*($B$66+$C$66+$E$52*$D$66*CALC!N54*$F$52) -> -1354.816 | AX34: =$Y$178*($F$34+$F$35*($B$66+$C$66+$E$52*$D$66*CALC!O54*$F$52)) -> -1360 | AY34: =CALC!U54 ->  | AZ34: =CALC!R54 ->  | BA34: =CALC!S54 ->  | BB34: =CALC!T54 ->  | BC34: 11 | BD34: 220 | BE34: 217 | BF34: -350 | BG34: -872.0470588 | BH34: -1088.76736
A35: cs/g_hsz | B35: 50 | C35: =B35*$F$35*$C$34 -> 50 | E35: zoom | F35: =HOME!H22 -> 1 | I35: F7_shift | J35: =$F$33+$F$35*$D$9*$E$28 -> 0 | K35: =$F$34+$F$35*0 -> 0 | L35: F7 | P35: =P33 ->  | Q35: =Q33-$C$37 -> -63.30127019 | S35: =S33 ->  | T35: =T32 -> -83.30127019 | U35: 320 | V35: 757.6604444 | W35: -59.72914629 | X35: 110 | Y35: -10 | Z35: 530.5290403 | AA35: -5.383093508 | AR35: 32 | AS35: =$F$33+$F$35*CALC!D55*FIGURE_V2!$E$28 -> 31 | AT35: =$F$34+$F$35*($B$64+$C$64+$E$46*$D$64*CALC!F55*$F$46) -> -350 | AU35: =$F$34+$F$35*($B$65+$C$65+$E$49*$D$65*CALC!L55*$F$49) -> -714.4941176 | AV35: =($Y$178*($F$34+$F$35*($B$65+$C$65+$E$49*$D$65*CALC!J55*$F$49))) -> -688.2352941 | AW35: =$F$34+$F$35*($B$66+$C$66+$E$52*$D$66*CALC!N55*$F$52) -> -1354.46464 | AX35: =$Y$178*($F$34+$F$35*($B$66+$C$66+$E$52*$D$66*CALC!O55*$F$52)) -> -1360 | AY35: =CALC!U55 ->  | AZ35: =CALC!R55 ->  | BA35: =CALC!S55 ->  | BB35: =CALC!T55 -> 
A36: talaj | B36: 100 | C36: =B36*$F$35*$C$34 -> 100 | J36: =IF(HOME!$Y$13="D",J35,NA()) -> 0 | K36: =IF(HOME!$Y$13="D",$F$34+$F$35*$G$9*$E$28,NA()) -> 0 | L36: 2 | M36: =IF(AND($B$9=0,$C$9=0),NA(),IF(L36=1,J37,J37-L37*($B$9/($B$9^2+$C$9^2)^0.5))) ->  | N36: =IF(L36=1,K37,K37-L37*($C$9/($B$9^2+$C$9^2)^0.5)) ->  | P36: =IF(P35+$C$37>$P$9,NA(),P35+$C$37) ->  | Q36: =$Q$4 -> -43.30127019 | S36: =IF(S35+$C$37>$S$9,NA(),S35+$C$37) ->  | T36: =$T$4-2*$C$38 -> -63.30127019 | U36: 330 | V36: 758.660254 | W36: -58.30127019 | X36: 115 | Y36: -5 | Z36: 530.8820356 | AA36: -2.701828025 | AR36: 33 | AS36: =$F$33+$F$35*CALC!D56*FIGURE_V2!$E$28 -> 32 | AT36: =$F$34+$F$35*($B$64+$C$64+$E$46*$D$64*CALC!F56*$F$46) -> -350 | AU36: =$F$34+$F$35*($B$65+$C$65+$E$49*$D$65*CALC!L56*$F$49) -> -715.3411765 | AV36: =($Y$178*($F$34+$F$35*($B$65+$C$65+$E$49*$D$65*CALC!J56*$F$49))) -> -688.2352941 | AW36: =$F$34+$F$35*($B$66+$C$66+$E$52*$D$66*CALC!N56*$F$52) -> -1354.10176 | AX36: =$Y$178*($F$34+$F$35*($B$66+$C$66+$E$52*$D$66*CALC!O56*$F$52)) -> -1360 | AY36: =CALC!U56 ->  | AZ36: =CALC!R56 ->  | BA36: =CALC!S56 ->  | BB36: =CALC!T56 ->  | BC36: 12 | BD36: 240 | BE36: 237 | BF36: -350 | BG36: -688.2352941 | BH36: -1360
A37: sraff | B37: 20 | C37: 20 | J37: =IF(HOME!$Y$13="D",J36+$F$35*$F$9*$E$28,J35+$E$28*HOME!$Z$13*COS(HOME!$AD$13*PI()/180)) -> 0 | K37: =IF(HOME!$Y$13="D",K36,$F$34+$F$35*$E$28*HOME!$Z$13*SIN(HOME!$AD$13*PI()/180)) -> 0 | L37: 150 | M37: =IF(AND($B$9=0,$C$9=0),NA(),IF(L36=1,J37+L37*($B$9/($B$9^2+$C$9^2)^0.5),J37)) ->  | N37: =IF(L36=1,K37+L37*($C$9/($B$9^2+$C$9^2)^0.5),K37) -> 0 | U37: 340 | V37: 759.3969262 | W37: -56.72147162 | X37: 120 | Y37: 0 | Z37: 531 | AA37: 0 | AR37: 34 | AS37: =$F$33+$F$35*CALC!D57*FIGURE_V2!$E$28 -> 33 | AT37: =$F$34+$F$35*($B$64+$C$64+$E$46*$D$64*CALC!F57*$F$46) -> -350 | AU37: =$F$34+$F$35*($B$65+$C$65+$E$49*$D$65*CALC!L57*$F$49) -> -716.1882353 | AV37: =($Y$178*($F$34+$F$35*($B$65+$C$65+$E$49*$D$65*CALC!J57*$F$49))) -> -688.2352941 | AW37: =$F$34+$F$35*($B$66+$C$66+$E$52*$D$66*CALC!N57*$F$52) -> -1353.72736 | AX37: =$Y$178*($F$34+$F$35*($B$66+$C$66+$E$52*$D$66*CALC!O57*$F$52)) -> -1360 | AY37: =CALC!U57 ->  | AZ37: =CALC!R57 ->  | BA37: =CALC!S57 ->  | BB37: =CALC!T57 ->  | BC37: 12 | BD37: 240 | BE37: 237 | BF37: -350 | BG37: -888.9882353 | BH37: -1036.46656
A38: sugár | B38: 10 | C38: 10 | P38: =P36 ->  | Q38: =Q36-$C$37 -> -63.30127019 | S38: =S36 ->  | T38: =T35 -> -83.30127019 | U38: 350 | V38: 759.8480775 | W38: -55.03775197 | X38: 125 | Y38: 5 | Z38: 530.8820356 | AA38: 2.701828025 | AR38: 35 | AS38: =$F$33+$F$35*CALC!D58*FIGURE_V2!$E$28 -> 34 | AT38: =$F$34+$F$35*($B$64+$C$64+$E$46*$D$64*CALC!F58*$F$46) -> -350 | AU38: =$F$34+$F$35*($B$65+$C$65+$E$49*$D$65*CALC!L58*$F$49) -> -717.0352941 | AV38: =($Y$178*($F$34+$F$35*($B$65+$C$65+$E$49*$D$65*CALC!J58*$F$49))) -> -688.2352941 | AW38: =$F$34+$F$35*($B$66+$C$66+$E$52*$D$66*CALC!N58*$F$52) -> -1353.34144 | AX38: =$Y$178*($F$34+$F$35*($B$66+$C$66+$E$52*$D$66*CALC!O58*$F$52)) -> -1360 | AY38: =CALC!U58 ->  | AZ38: =CALC!R58 ->  | BA38: =CALC!S58 ->  | BB38: =CALC!T58 -> 
I39: F8_shift | J39: =$F$33+$F$35*$D$10*$E$28 -> 0 | K39: =$F$34+$F$35*0 -> 0 | L39: F8 | P39: =IF(P38+$C$37>$P$9,NA(),P38+$C$37) ->  | Q39: =$Q$4 -> -43.30127019 | S39: =IF(S38+$C$37>$S$9,NA(),S38+$C$37) ->  | T39: =$T$4-2*$C$38 -> -63.30127019 | U39: 360 | V39: 760 | W39: -53.30127019 | X39: 130 | Y39: 10 | Z39: 530.5290403 | AA39: 5.383093508 | AR39: 36 | AS39: =$F$33+$F$35*CALC!D59*FIGURE_V2!$E$28 -> 35 | AT39: =$F$34+$F$35*($B$64+$C$64+$E$46*$D$64*CALC!F59*$F$46) -> -350 | AU39: =$F$34+$F$35*($B$65+$C$65+$E$49*$D$65*CALC!L59*$F$49) -> -717.8823529 | AV39: =($Y$178*($F$34+$F$35*($B$65+$C$65+$E$49*$D$65*CALC!J59*$F$49))) -> -688.2352941 | AW39: =$F$34+$F$35*($B$66+$C$66+$E$52*$D$66*CALC!N59*$F$52) -> -1352.944 | AX39: =$Y$178*($F$34+$F$35*($B$66+$C$66+$E$52*$D$66*CALC!O59*$F$52)) -> -1360 | AY39: =CALC!U59 ->  | AZ39: =CALC!R59 ->  | BA39: =CALC!S59 ->  | BB39: =CALC!T59 ->  | BC39: 13 | BD39: 260 | BE39: 256 | BF39: -350 | BG39: -688.2352941 | BH39: -1360
J40: =IF(HOME!$Y$14="D",J39,NA()) -> 0 | K40: =IF(HOME!$Y$14="D",$F$34+$F$35*$G$10*$E$28,NA()) -> 0 | L40: 2 | M40: =IF(AND($B$10=0,$C$10=0),NA(),IF(L40=1,J41,J41-L41*($B$10/($B$10^2+$C$10^2)^0.5))) ->  | N40: =IF(L40=1,K41,K41-L41*($C$10/($B$10^2+$C$10^2)^0.5)) ->  | X40: 135 | Y40: 15 | Z40: 529.9437006 | AA40: 8.023390398 | AR40: 37 | AS40: =$F$33+$F$35*CALC!D60*FIGURE_V2!$E$28 -> 36 | AT40: =$F$34+$F$35*($B$64+$C$64+$E$46*$D$64*CALC!F60*$F$46) -> -350 | AU40: =$F$34+$F$35*($B$65+$C$65+$E$49*$D$65*CALC!L60*$F$49) -> -718.7294118 | AV40: =($Y$178*($F$34+$F$35*($B$65+$C$65+$E$49*$D$65*CALC!J60*$F$49))) -> -688.2352941 | AW40: =$F$34+$F$35*($B$66+$C$66+$E$52*$D$66*CALC!N60*$F$52) -> -1352.53504 | AX40: =$Y$178*($F$34+$F$35*($B$66+$C$66+$E$52*$D$66*CALC!O60*$F$52)) -> -1360 | AY40: =CALC!U60 ->  | AZ40: =CALC!R60 ->  | BA40: =CALC!S60 ->  | BB40: =CALC!T60 ->  | BC40: 13 | BD40: 260 | BE40: 256 | BF40: -250 | BG40: -455.0823529 | BH40: -1019.23264
A41: igénybevételi ábrák | D41: 10 | J41: =IF(HOME!$Y$14="D",J40+$F$35*$F$10*$E$28,J39+$E$28*HOME!$Z$14*COS(HOME!$AD$14*PI()/180)) -> 0 | K41: =IF(HOME!$Y$14="D",K40,$F$34+$F$35*$E$28*HOME!$Z$14*SIN(HOME!$AD$14*PI()/180)) -> 0 | L41: 150 | M41: =IF(AND($B$10=0,$C$10=0),NA(),IF(L40=1,J41+L41*($B$10/($B$10^2+$C$10^2)^0.5),J41)) ->  | N41: =IF(L40=1,K41+L41*($C$10/($B$10^2+$C$10^2)^0.5),K41) -> 0 | P41: =P39 ->  | Q41: =Q39-$C$37 -> -63.30127019 | S41: =S39 ->  | T41: =T38 -> -83.30127019 | X41: 140 | Y41: 20 | Z41: 529.1304712 | AA41: 10.60262444 | AR41: 38 | AS41: =$F$33+$F$35*CALC!D61*FIGURE_V2!$E$28 -> 37 | AT41: =$F$34+$F$35*($B$64+$C$64+$E$46*$D$64*CALC!F61*$F$46) -> -350 | AU41: =$F$34+$F$35*($B$65+$C$65+$E$49*$D$65*CALC!L61*$F$49) -> -719.5764706 | AV41: =($Y$178*($F$34+$F$35*($B$65+$C$65+$E$49*$D$65*CALC!J61*$F$49))) -> -688.2352941 | AW41: =$F$34+$F$35*($B$66+$C$66+$E$52*$D$66*CALC!N61*$F$52) -> -1352.11456 | AX41: =$Y$178*($F$34+$F$35*($B$66+$C$66+$E$52*$D$66*CALC!O61*$F$52)) -> -1360 | AY41: =CALC!U61 ->  | AZ41: =CALC!R61 ->  | BA41: =CALC!S61 ->  | BB41: =CALC!T61 -> 
B42: original | D42: 45 | P42: =IF(P41+$C$37>$P$9,NA(),P41+$C$37) ->  | Q42: =$Q$4 -> -43.30127019 | S42: =IF(S41+$C$37>$S$9,NA(),S41+$C$37) ->  | T42: =$T$4-2*$C$38 -> -63.30127019 | X42: 145 | Y42: 25 | Z42: 528.0955414 | AA42: 13.10116611 | AR42: 39 | AS42: =$F$33+$F$35*CALC!D62*FIGURE_V2!$E$28 -> 38 | AT42: =$F$34+$F$35*($B$64+$C$64+$E$46*$D$64*CALC!F62*$F$46) -> -350 | AU42: =$F$34+$F$35*($B$65+$C$65+$E$49*$D$65*CALC!L62*$F$49) -> -720.4235294 | AV42: =($Y$178*($F$34+$F$35*($B$65+$C$65+$E$49*$D$65*CALC!J62*$F$49))) -> -688.2352941 | AW42: =$F$34+$F$35*($B$66+$C$66+$E$52*$D$66*CALC!N62*$F$52) -> -1351.68256 | AX42: =$Y$178*($F$34+$F$35*($B$66+$C$66+$E$52*$D$66*CALC!O62*$F$52)) -> -1360 | AY42: =CALC!U62 ->  | AZ42: =CALC!R62 ->  | BA42: =CALC!S62 ->  | BB42: =CALC!T62 ->  | BC42: 14 | BD42: 280 | BE42: 276 | BF42: -350 | BG42: -688.2352941 | BH42: -1360
A43: M1/TOP | C43: 200 | D43: 45 | I43: F9_shift | J43: =$F$33+$F$35*$D$11*$E$28 -> 0 | K43: =$F$34+$F$35*0 -> 0 | L43: F9 | X43: 150 | Y43: 30 | Z43: 526.8467875 | AA43: 15.5 | AR43: 40 | AS43: =$F$33+$F$35*CALC!D63*FIGURE_V2!$E$28 -> 39 | AT43: =$F$34+$F$35*($B$64+$C$64+$E$46*$D$64*CALC!F63*$F$46) -> -350 | AU43: =$F$34+$F$35*($B$65+$C$65+$E$49*$D$65*CALC!L63*$F$49) -> -721.2705882 | AV43: =($Y$178*($F$34+$F$35*($B$65+$C$65+$E$49*$D$65*CALC!J63*$F$49))) -> -688.2352941 | AW43: =$F$34+$F$35*($B$66+$C$66+$E$52*$D$66*CALC!N63*$F$52) -> -1351.23904 | AX43: =$Y$178*($F$34+$F$35*($B$66+$C$66+$E$52*$D$66*CALC!O63*$F$52)) -> -1360 | AY43: =CALC!U63 ->  | AZ43: =CALC!R63 ->  | BA43: =CALC!S63 ->  | BB43: =CALC!T63 ->  | BC43: 14 | BD43: 280 | BE43: 276 | BF43: -250 | BG43: -472.0235294 | BH43: -1080.34624
A44: M2 | C44: 200 | J44: =IF(HOME!$Y$15="D",J43,NA()) -> 0 | K44: =IF(HOME!$Y$15="D",$F$34+$F$35*$G$11*$E$28,NA()) -> 0 | L44: 2 | M44: =IF(AND($B$11=0,$C$11=0),NA(),IF(L44=1,J45,J45-L45*($B$11/($B$11^2+$C$11^2)^0.5))) ->  | N44: =IF(L44=1,K45,K45-L45*($C$11/($B$11^2+$C$11^2)^0.5)) ->  | P44: =P42 ->  | Q44: =Q42-$C$37 -> -63.30127019 | S44: =S42 ->  | T44: =T41 -> -83.30127019 | X44: 155 | Y44: 35 | Z44: 525.3937134 | AA44: 17.78086953 | AR44: 41 | AS44: =$F$33+$F$35*CALC!D64*FIGURE_V2!$E$28 -> 40 | AT44: =$F$34+$F$35*($B$64+$C$64+$E$46*$D$64*CALC!F64*$F$46) -> -350 | AU44: =$F$34+$F$35*($B$65+$C$65+$E$49*$D$65*CALC!L64*$F$49) -> -722.1176471 | AV44: =($Y$178*($F$34+$F$35*($B$65+$C$65+$E$49*$D$65*CALC!J64*$F$49))) -> -688.2352941 | AW44: =$F$34+$F$35*($B$66+$C$66+$E$52*$D$66*CALC!N64*$F$52) -> -1350.784 | AX44: =$Y$178*($F$34+$F$35*($B$66+$C$66+$E$52*$D$66*CALC!O64*$F$52)) -> -1360 | AY44: =CALC!U64 ->  | AZ44: =CALC!R64 ->  | BA44: =CALC!S64 ->  | BB44: =CALC!T64 -> 
A45: 1 | C45: 50 | D45: base space | E45: base stretch | F45: prestrech | J45: =IF(HOME!$Y$15="D",J44+$F$35*$F$11*$E$28,J43+$E$28*HOME!$Z$15*COS(HOME!$AD$15*PI()/180)) -> 0 | K45: =IF(HOME!$Y$15="D",K44,$F$34+$F$35*$E$28*HOME!$Z$15*SIN(HOME!$AD$15*PI()/180)) -> 0 | L45: 150 | M45: =IF(AND($B$11=0,$C$11=0),NA(),IF(L44=1,J45+L45*($B$11/($B$11^2+$C$11^2)^0.5),J45)) ->  | N45: =IF(L44=1,K45+L45*($C$11/($B$11^2+$C$11^2)^0.5),K45) -> 0 | P45: =IF(P44+$C$37>$P$9,NA(),P44+$C$37) ->  | Q45: =$Q$4 -> -43.30127019 | S45: =IF(S44+$C$37>$S$9,NA(),S44+$C$37) ->  | T45: =$T$4-2*$C$38 -> -63.30127019 | X45: 160 | Y45: 40 | Z45: 523.7473777 | AA45: 19.9264159 | AR45: 42 | AS45: =$F$33+$F$35*CALC!D65*FIGURE_V2!$E$28 -> 41 | AT45: =$F$34+$F$35*($B$64+$C$64+$E$46*$D$64*CALC!F65*$F$46) -> -350 | AU45: =$F$34+$F$35*($B$65+$C$65+$E$49*$D$65*CALC!L65*$F$49) -> -722.9647059 | AV45: =($Y$178*($F$34+$F$35*($B$65+$C$65+$E$49*$D$65*CALC!J65*$F$49))) -> -688.2352941 | AW45: =$F$34+$F$35*($B$66+$C$66+$E$52*$D$66*CALC!N65*$F$52) -> -1350.31744 | AX45: =$Y$178*($F$34+$F$35*($B$66+$C$66+$E$52*$D$66*CALC!O65*$F$52)) -> -1360 | AY45: =CALC!U65 ->  | AZ45: =CALC!R65 ->  | BA45: =CALC!S65 ->  | BB45: =CALC!T65 ->  | BC45: 15 | BD45: 300 | BE45: 296 | BF45: -350 | BG45: -688.2352941 | BH45: -1360
A46: A1 | B46: =Munka1!I2*F46 -> 1 | C46: =B46*$E$46 -> 100 | D46: =IF(AND(B46=0,B47=0),0,D41) -> 10 | E46: =IF(AND(B46=0,B47=0),0,D47/(B46+B47)) -> 100 | F46: 1 | X46: 165 | Y46: 45 | Z46: 521.9203102 | AA46: 21.92031022 | AR46: 43 | AS46: =$F$33+$F$35*CALC!D66*FIGURE_V2!$E$28 -> 42 | AT46: =$F$34+$F$35*($B$64+$C$64+$E$46*$D$64*CALC!F66*$F$46) -> -350 | AU46: =$F$34+$F$35*($B$65+$C$65+$E$49*$D$65*CALC!L66*$F$49) -> -723.8117647 | AV46: =($Y$178*($F$34+$F$35*($B$65+$C$65+$E$49*$D$65*CALC!J66*$F$49))) -> -688.2352941 | AW46: =$F$34+$F$35*($B$66+$C$66+$E$52*$D$66*CALC!N66*$F$52) -> -1349.83936 | AX46: =$Y$178*($F$34+$F$35*($B$66+$C$66+$E$52*$D$66*CALC!O66*$F$52)) -> -1360 | AY46: =CALC!U66 ->  | AZ46: =CALC!R66 ->  | BA46: =CALC!S66 ->  | BB46: =CALC!T66 ->  | BC46: 15 | BD46: 300 | BE46: 296 | BF46: -250 | BG46: -488.9647059 | BH46: -1136.85184
A47: A2 | B47: =Munka1!I3*F46 -> 0 | C47: =B47*$E$46 -> 0 | D47: =C58*D46/100 -> 100 | I47: F10_shift | J47: =$F$33+$F$35*$D$12*$E$28 -> 0 | K47: =$F$34+$F$35*0 -> 0 | L47: F10 | P47: =P45 ->  | Q47: =Q45-$C$37 -> -63.30127019 | S47: =S45 ->  | T47: =T44 -> -83.30127019 | X47: 170 | Y47: 50 | Z47: 519.9264159 | AA47: 23.74737774 | AR47: 44 | AS47: =$F$33+$F$35*CALC!D67*FIGURE_V2!$E$28 -> 43 | AT47: =$F$34+$F$35*($B$64+$C$64+$E$46*$D$64*CALC!F67*$F$46) -> -350 | AU47: =$F$34+$F$35*($B$65+$C$65+$E$49*$D$65*CALC!L67*$F$49) -> -724.6588235 | AV47: =($Y$178*($F$34+$F$35*($B$65+$C$65+$E$49*$D$65*CALC!J67*$F$49))) -> -688.2352941 | AW47: =$F$34+$F$35*($B$66+$C$66+$E$52*$D$66*CALC!N67*$F$52) -> -1349.34976 | AX47: =$Y$178*($F$34+$F$35*($B$66+$C$66+$E$52*$D$66*CALC!O67*$F$52)) -> -1360 | AY47: =CALC!U67 ->  | AZ47: =CALC!R67 ->  | BA47: =CALC!S67 ->  | BB47: =CALC!T67 -> 
A48: 2 | C48: 100 | J48: =IF(HOME!$Y$16="D",J47,NA()) -> 0 | K48: =IF(HOME!$Y$16="D",$F$34+$F$35*$G$12*$E$28,NA()) -> 0 | L48: 2 | M48: =IF(AND($B$12=0,$C$12=0),NA(),IF(L48=1,J49,J49-L49*($B$12/($B$12^2+$C$12^2)^0.5))) ->  | N48: =IF(L48=1,K49,K49-L49*($C$12/($B$12^2+$C$12^2)^0.5)) ->  | P48: =IF(P47+$C$37>$P$9,NA(),P47+$C$37) ->  | Q48: =$Q$4 -> -43.30127019 | S48: =IF(S47+$C$37>$S$9,NA(),S47+$C$37) ->  | T48: =$T$4-2*$C$38 -> -63.30127019 | X48: 175 | Y48: 55 | Z48: 517.7808695 | AA48: 25.39371337 | AR48: 45 | AS48: =$F$33+$F$35*CALC!D68*FIGURE_V2!$E$28 -> 44 | AT48: =$F$34+$F$35*($B$64+$C$64+$E$46*$D$64*CALC!F68*$F$46) -> -350 | AU48: =$F$34+$F$35*($B$65+$C$65+$E$49*$D$65*CALC!L68*$F$49) -> -725.5058824 | AV48: =($Y$178*($F$34+$F$35*($B$65+$C$65+$E$49*$D$65*CALC!J68*$F$49))) -> -688.2352941 | AW48: =$F$34+$F$35*($B$66+$C$66+$E$52*$D$66*CALC!N68*$F$52) -> -1348.84864 | AX48: =$Y$178*($F$34+$F$35*($B$66+$C$66+$E$52*$D$66*CALC!O68*$F$52)) -> -1360 | AY48: =CALC!U68 ->  | AZ48: =CALC!R68 ->  | BA48: =CALC!S68 ->  | BB48: =CALC!T68 ->  | BC48: 16 | BD48: 320 | BE48: 316 | BF48: -350 | BG48: -688.2352941 | BH48: -1360
A49: B1 | B49: =Munka1!I4*F49 -> 4.5 | C49: =B49*$E$49 -> 238.2352941 | D49: =IF(AND(B49=0,B50=0),0,D42) -> 45 | E49: =IF(AND(B49=0,B50=0),0,D50/(B49+B50)) -> 52.94117647 | F49: 1 | J49: =IF(HOME!$Y$16="D",J48+$F$35*$F$12*$E$28,J47+$E$28*HOME!$Z$16*COS(HOME!$AD$16*PI()/180)) -> 0 | K49: =IF(HOME!$Y$16="D",K48,$F$34+$F$35*$E$28*HOME!$Z$16*SIN(HOME!$AD$16*PI()/180)) -> 0 | L49: 150 | M49: =IF(AND($B$12=0,$C$12=0),NA(),IF(L48=1,J49+L49*($B$12/($B$12^2+$C$12^2)^0.5),J49)) ->  | N49: =IF(L48=1,K49+L49*($C$12/($B$12^2+$C$12^2)^0.5),K49) -> 0 | X49: 180 | Y49: 60 | Z49: 515.5 | AA49: 26.84678752 | AR49: 46 | AS49: =$F$33+$F$35*CALC!D69*FIGURE_V2!$E$28 -> 45 | AT49: =$F$34+$F$35*($B$64+$C$64+$E$46*$D$64*CALC!F69*$F$46) -> -350 | AU49: =$F$34+$F$35*($B$65+$C$65+$E$49*$D$65*CALC!L69*$F$49) -> -726.3529412 | AV49: =($Y$178*($F$34+$F$35*($B$65+$C$65+$E$49*$D$65*CALC!J69*$F$49))) -> -688.2352941 | AW49: =$F$34+$F$35*($B$66+$C$66+$E$52*$D$66*CALC!N69*$F$52) -> -1348.336 | AX49: =$Y$178*($F$34+$F$35*($B$66+$C$66+$E$52*$D$66*CALC!O69*$F$52)) -> -1360 | AY49: =CALC!U69 ->  | AZ49: =CALC!R69 ->  | BA49: =CALC!S69 ->  | BB49: =CALC!T69 ->  | BC49: 16 | BD49: 320 | BE49: 316 | BF49: -250 | BG49: -505.9058824 | BH49: -1188.74944
A50: B2 | B50: =Munka1!I5*F49 -> 4 | C50: =B50*$E$49 -> 211.7647059 | D50: =C58*D49/100 -> 450 | P50: =P48 ->  | Q50: =Q48-$C$37 -> -63.30127019 | S50: =S48 ->  | T50: =T47 -> -83.30127019 | X50: 185 | Y50: 65 | Z50: 513.1011661 | AA50: 28.0955414 | AR50: 47 | AS50: =$F$33+$F$35*CALC!D70*FIGURE_V2!$E$28 -> 46 | AT50: =$F$34+$F$35*($B$64+$C$64+$E$46*$D$64*CALC!F70*$F$46) -> -350 | AU50: =$F$34+$F$35*($B$65+$C$65+$E$49*$D$65*CALC!L70*$F$49) -> -727.2 | AV50: =($Y$178*($F$34+$F$35*($B$65+$C$65+$E$49*$D$65*CALC!J70*$F$49))) -> -688.2352941 | AW50: =$F$34+$F$35*($B$66+$C$66+$E$52*$D$66*CALC!N70*$F$52) -> -1347.81184 | AX50: =$Y$178*($F$34+$F$35*($B$66+$C$66+$E$52*$D$66*CALC!O70*$F$52)) -> -1360 | AY50: =CALC!U70 ->  | AZ50: =CALC!R70 ->  | BA50: =CALC!S70 ->  | BB50: =CALC!T70 -> 
A51: 3 | C51: 100 | I51: M1_shift | J51: =$F$33+$F$35*$D$15*$E$28 -> 500 | K51: =$F$34+$F$35*0 -> 0 | P51: =IF(P50+$C$37>$P$9,NA(),P50+$C$37) ->  | Q51: =$Q$4 -> -43.30127019 | S51: =IF(S50+$C$37>$S$9,NA(),S50+$C$37) ->  | T51: =$T$4-2*$C$38 -> -63.30127019 | X51: 190 | Y51: 70 | Z51: 510.6026244 | AA51: 29.13047124 | AR51: 48 | AS51: =$F$33+$F$35*CALC!D71*FIGURE_V2!$E$28 -> 47 | AT51: =$F$34+$F$35*($B$64+$C$64+$E$46*$D$64*CALC!F71*$F$46) -> -350 | AU51: =$F$34+$F$35*($B$65+$C$65+$E$49*$D$65*CALC!L71*$F$49) -> -728.0470588 | AV51: =($Y$178*($F$34+$F$35*($B$65+$C$65+$E$49*$D$65*CALC!J71*$F$49))) -> -688.2352941 | AW51: =$F$34+$F$35*($B$66+$C$66+$E$52*$D$66*CALC!N71*$F$52) -> -1347.27616 | AX51: =$Y$178*($F$34+$F$35*($B$66+$C$66+$E$52*$D$66*CALC!O71*$F$52)) -> -1360 | AY51: =CALC!U71 ->  | AZ51: =CALC!R71 ->  | BA51: =CALC!S71 ->  | BB51: =CALC!T71 ->  | BC51: 17 | BD51: 340 | BE51: 336 | BF51: -350 | BG51: -688.2352941 | BH51: -1360
A52: C1 | B52: =Munka1!I6*F52 -> 4 | C52: =B52*$E$52 -> 360 | D52: =100-D46-D49 -> 45 | E52: =IF(AND(B52=0,B53=0),0,D53/(B52+B53)) -> 90 | F52: 1 | J52: =IF(HOME!$AQ$5="D",J51,NA()) -> 500 | K52: =IF(HOME!$AQ$5="D",$F$34+$F$35*$G$15*$E$28,NA()) -> 0 | X52: 195 | Y52: 75 | Z52: 508.0233904 | AA52: 29.94370061 | AR52: 49 | AS52: =$F$33+$F$35*CALC!D72*FIGURE_V2!$E$28 -> 48 | AT52: =$F$34+$F$35*($B$64+$C$64+$E$46*$D$64*CALC!F72*$F$46) -> -350 | AU52: =$F$34+$F$35*($B$65+$C$65+$E$49*$D$65*CALC!L72*$F$49) -> -728.8941176 | AV52: =($Y$178*($F$34+$F$35*($B$65+$C$65+$E$49*$D$65*CALC!J72*$F$49))) -> -688.2352941 | AW52: =$F$34+$F$35*($B$66+$C$66+$E$52*$D$66*CALC!N72*$F$52) -> -1346.72896 | AX52: =$Y$178*($F$34+$F$35*($B$66+$C$66+$E$52*$D$66*CALC!O72*$F$52)) -> -1360 | AY52: =CALC!U72 ->  | AZ52: =CALC!R72 ->  | BA52: =CALC!S72 ->  | BB52: =CALC!T72 ->  | BC52: 17 | BD52: 340 | BE52: 336 | BF52: -250 | BG52: -522.8470588 | BH52: -1236.03904
A53: C2 | B53: =Munka1!I7*F52 -> 1 | C53: =B53*$E$52 -> 90 | D53: =C58*D52/100 -> 450 | J53: =IF(HOME!$AQ$5="D",J52+$F$35*$F$15*$E$28,FIGURE_V2!$J$51+FIGURE_V2!$E$28*HOME!$AR$5*COS(HOME!$AT$5*PI()/180)) -> 500 | K53: =IF(HOME!$AQ$5="D",K52,FIGURE_V2!$K$51+FIGURE_V2!$E$28*HOME!$AR$5*SIN(HOME!$AT$5*PI()/180)) -> 0 | P53: =P51 ->  | Q53: =Q51-$C$37 -> -63.30127019 | S53: =S51 ->  | T53: =T50 -> -83.30127019 | X53: 200 | Y53: 80 | Z53: 505.3830935 | AA53: 30.52904034 | AR53: 50 | AS53: =$F$33+$F$35*CALC!D73*FIGURE_V2!$E$28 -> 49 | AT53: =$F$34+$F$35*($B$64+$C$64+$E$46*$D$64*CALC!F73*$F$46) -> -350 | AU53: =$F$34+$F$35*($B$65+$C$65+$E$49*$D$65*CALC!L73*$F$49) -> -729.7411765 | AV53: =($Y$178*($F$34+$F$35*($B$65+$C$65+$E$49*$D$65*CALC!J73*$F$49))) -> -688.2352941 | AW53: =$F$34+$F$35*($B$66+$C$66+$E$52*$D$66*CALC!N73*$F$52) -> -1346.17024 | AX53: =$Y$178*($F$34+$F$35*($B$66+$C$66+$E$52*$D$66*CALC!O73*$F$52)) -> -1360 | AY53: =CALC!U73 ->  | AZ53: =CALC!R73 ->  | BA53: =CALC!S73 ->  | BB53: =CALC!T73 -> 
A54: 4 | C54: 50 | P54: =IF(P53+$C$37>$P$9,NA(),P53+$C$37) ->  | Q54: =$Q$4 -> -43.30127019 | S54: =IF(S53+$C$37>$S$9,NA(),S53+$C$37) ->  | T54: =$T$4-2*$C$38 -> -63.30127019 | X54: 205 | Y54: 85 | Z54: 502.701828 | AA54: 30.88203564 | AR54: 51 | AS54: =$F$33+$F$35*CALC!D74*FIGURE_V2!$E$28 -> 50 | AT54: =$F$34+$F$35*($B$64+$C$64+$E$46*$D$64*CALC!F74*$F$46) -> -350 | AU54: =$F$34+$F$35*($B$65+$C$65+$E$49*$D$65*CALC!L74*$F$49) -> -730.5882353 | AV54: =($Y$178*($F$34+$F$35*($B$65+$C$65+$E$49*$D$65*CALC!J74*$F$49))) -> -688.2352941 | AW54: =$F$34+$F$35*($B$66+$C$66+$E$52*$D$66*CALC!N74*$F$52) -> -1345.6 | AX54: =$Y$178*($F$34+$F$35*($B$66+$C$66+$E$52*$D$66*CALC!O74*$F$52)) -> -1360 | AY54: =CALC!U74 ->  | AZ54: =CALC!R74 ->  | BA54: =CALC!S74 ->  | BB54: =CALC!T74 ->  | BC54: 18 | BD54: 360 | BE54: 356 | BF54: -350 | BG54: -688.2352941 | BH54: -1360
A55: Bottom | C55: -1500 | I55: M2_shift | J55: =$F$33+$F$35*$D$16*$E$28 -> 0 | K55: =$F$34+$F$35*0 -> 0 | X55: 210 | Y55: 90 | Z55: 500 | AA55: 31 | AR55: 52 | AS55: =$F$33+$F$35*CALC!D75*FIGURE_V2!$E$28 -> 51 | AT55: =$F$34+$F$35*($B$64+$C$64+$E$46*$D$64*CALC!F75*$F$46) -> -350 | AU55: =$F$34+$F$35*($B$65+$C$65+$E$49*$D$65*CALC!L75*$F$49) -> -731.4352941 | AV55: =($Y$178*($F$34+$F$35*($B$65+$C$65+$E$49*$D$65*CALC!J75*$F$49))) -> -688.2352941 | AW55: =$F$34+$F$35*($B$66+$C$66+$E$52*$D$66*CALC!N75*$F$52) -> -1345.01824 | AX55: =$Y$178*($F$34+$F$35*($B$66+$C$66+$E$52*$D$66*CALC!O75*$F$52)) -> -1360 | AY55: =CALC!U75 ->  | AZ55: =CALC!R75 ->  | BA55: =CALC!S75 ->  | BB55: =CALC!T75 ->  | BC55: 18 | BD55: 360 | BE55: 356 | BF55: -250 | BG55: -539.7882353 | BH55: -1278.72064
J56: =IF(HOME!$AQ$6="D",J55,NA()) -> 0 | K56: =IF(HOME!$AQ$6="D",$F$34+$F$35*$G$16*$E$28,NA()) -> 0 | P56: =P54 ->  | Q56: =Q54-$C$37 -> -63.30127019 | S56: =S54 ->  | T56: =T53 -> -83.30127019 | X56: 215 | Y56: 95 | Z56: 497.298172 | AA56: 30.88203564 | AR56: 53 | AS56: =$F$33+$F$35*CALC!D76*FIGURE_V2!$E$28 -> 52 | AT56: =$F$34+$F$35*($B$64+$C$64+$E$46*$D$64*CALC!F76*$F$46) -> -350 | AU56: =$F$34+$F$35*($B$65+$C$65+$E$49*$D$65*CALC!L76*$F$49) -> -732.2823529 | AV56: =($Y$178*($F$34+$F$35*($B$65+$C$65+$E$49*$D$65*CALC!J76*$F$49))) -> -688.2352941 | AW56: =$F$34+$F$35*($B$66+$C$66+$E$52*$D$66*CALC!N76*$F$52) -> -1344.42496 | AX56: =$Y$178*($F$34+$F$35*($B$66+$C$66+$E$52*$D$66*CALC!O76*$F$52)) -> -1360 | AY56: =CALC!U76 ->  | AZ56: =CALC!R76 ->  | BA56: =CALC!S76 ->  | BB56: =CALC!T76 -> 
B57: full range | C57: =ABS(C43)+ABS(C55) -> 1700 | J57: =IF(HOME!$AQ$6="D",J56+$F$35*$F$16*$E$28,FIGURE_V2!$J$55+FIGURE_V2!$E$28*HOME!$AR$5*COS(HOME!$AT$5*PI()/180)) -> 0 | K57: =IF(HOME!$AQ$6="D",K56,FIGURE_V2!$K$55+FIGURE_V2!$E$28*HOME!$AR$5*SIN(HOME!$AT$5*PI()/180)) -> 0 | P57: =IF(P56+$C$37>$P$9,NA(),P56+$C$37) ->  | Q57: =$Q$4 -> -43.30127019 | S57: =IF(S56+$C$37>$S$9,NA(),S56+$C$37) ->  | T57: =$T$4-2*$C$38 -> -63.30127019 | X57: 220 | Y57: 100 | Z57: 494.6169065 | AA57: 30.52904034 | AR57: 54 | AS57: =$F$33+$F$35*CALC!D77*FIGURE_V2!$E$28 -> 53 | AT57: =$F$34+$F$35*($B$64+$C$64+$E$46*$D$64*CALC!F77*$F$46) -> -350 | AU57: =$F$34+$F$35*($B$65+$C$65+$E$49*$D$65*CALC!L77*$F$49) -> -733.1294118 | AV57: =($Y$178*($F$34+$F$35*($B$65+$C$65+$E$49*$D$65*CALC!J77*$F$49))) -> -688.2352941 | AW57: =$F$34+$F$35*($B$66+$C$66+$E$52*$D$66*CALC!N77*$F$52) -> -1343.82016 | AX57: =$Y$178*($F$34+$F$35*($B$66+$C$66+$E$52*$D$66*CALC!O77*$F$52)) -> -1360 | AY57: =CALC!U77 ->  | AZ57: =CALC!R77 ->  | BA57: =CALC!S77 ->  | BB57: =CALC!T77 ->  | BC57: 19 | BD57: 380 | BE57: 375 | BF57: -350 | BG57: -688.2352941 | BH57: -1360
B58: range1 | C58: =C57-C43-C44-C45-C48-C51-C54 -> 1000 | X58: 225 | Y58: 105 | Z58: 491.9766096 | AA58: 29.94370061 | AR58: 55 | AS58: =$F$33+$F$35*CALC!D78*FIGURE_V2!$E$28 -> 54 | AT58: =$F$34+$F$35*($B$64+$C$64+$E$46*$D$64*CALC!F78*$F$46) -> -350 | AU58: =$F$34+$F$35*($B$65+$C$65+$E$49*$D$65*CALC!L78*$F$49) -> -733.9764706 | AV58: =($Y$178*($F$34+$F$35*($B$65+$C$65+$E$49*$D$65*CALC!J78*$F$49))) -> -688.2352941 | AW58: =$F$34+$F$35*($B$66+$C$66+$E$52*$D$66*CALC!N78*$F$52) -> -1343.20384 | AX58: =$Y$178*($F$34+$F$35*($B$66+$C$66+$E$52*$D$66*CALC!O78*$F$52)) -> -1360 | AY58: =CALC!U78 ->  | AZ58: =CALC!R78 ->  | BA58: =CALC!S78 ->  | BB58: =CALC!T78 ->  | BC58: 19 | BD58: 380 | BE58: 375 | BF58: -250 | BG58: -555.8823529 | BH58: -1315
I59: M3_shift | J59: =$F$33+$F$35*$D$17*$E$28 -> 0 | K59: =$F$34+$F$35*0 -> 0 | P59: =P57 ->  | Q59: =Q57-$C$37 -> -63.30127019 | S59: =S57 ->  | T59: =T56 -> -83.30127019 | X59: 230 | Y59: 110 | Z59: 489.3973756 | AA59: 29.13047124 | AR59: 56 | AS59: =$F$33+$F$35*CALC!D79*FIGURE_V2!$E$28 -> 55 | AT59: =$F$34+$F$35*($B$64+$C$64+$E$46*$D$64*CALC!F79*$F$46) -> -350 | AU59: =$F$34+$F$35*($B$65+$C$65+$E$49*$D$65*CALC!L79*$F$49) -> -734.8235294 | AV59: =($Y$178*($F$34+$F$35*($B$65+$C$65+$E$49*$D$65*CALC!J79*$F$49))) -> -688.2352941 | AW59: =$F$34+$F$35*($B$66+$C$66+$E$52*$D$66*CALC!N79*$F$52) -> -1342.576 | AX59: =$Y$178*($F$34+$F$35*($B$66+$C$66+$E$52*$D$66*CALC!O79*$F$52)) -> -1360 | AY59: =CALC!U79 ->  | AZ59: =CALC!R79 ->  | BA59: =CALC!S79 ->  | BB59: =CALC!T79 -> 
B60: o_r_1 | C60: =B46+B47+B49+B50+B52+B53 -> 14.5 | J60: =IF(HOME!$AQ$7="D",J59,NA()) -> 0 | K60: =IF(HOME!$AQ$7="D",$F$34+$F$35*$G$17*$E$28,NA()) -> 0 | P60: =IF(P59+$C$37>$P$9,NA(),P59+$C$37) ->  | Q60: =$Q$4 -> -43.30127019 | S60: =IF(S59+$C$37>$S$9,NA(),S59+$C$37) ->  | T60: =$T$4-2*$C$38 -> -63.30127019 | X60: 235 | Y60: 115 | Z60: 486.8988339 | AA60: 28.0955414 | AR60: 57 | AS60: =$F$33+$F$35*CALC!D80*FIGURE_V2!$E$28 -> 56 | AT60: =$F$34+$F$35*($B$64+$C$64+$E$46*$D$64*CALC!F80*$F$46) -> -350 | AU60: =$F$34+$F$35*($B$65+$C$65+$E$49*$D$65*CALC!L80*$F$49) -> -735.6705882 | AV60: =($Y$178*($F$34+$F$35*($B$65+$C$65+$E$49*$D$65*CALC!J80*$F$49))) -> -688.2352941 | AW60: =$F$34+$F$35*($B$66+$C$66+$E$52*$D$66*CALC!N80*$F$52) -> -1341.93664 | AX60: =$Y$178*($F$34+$F$35*($B$66+$C$66+$E$52*$D$66*CALC!O80*$F$52)) -> -1360 | AY60: =CALC!U80 ->  | AZ60: =CALC!R80 ->  | BA60: =CALC!S80 ->  | BB60: =CALC!T80 ->  | BC60: 20 | BD60: 400 | BE60: 395 | BF60: -350 | BG60: -688.2352941 | BH60: -1360
B61: ratio | C61: =C58/C60 -> 68.96551724 | J61: =IF(HOME!$AQ$7="D",J60+$F$35*$F$17*$E$28,FIGURE_V2!$J$59+FIGURE_V2!$E$28*HOME!$AR$5*COS(HOME!$AT$5*PI()/180)) -> 0 | K61: =IF(HOME!$AQ$7="D",K60,FIGURE_V2!$K$59+FIGURE_V2!$E$28*HOME!$AR$5*SIN(HOME!$AT$5*PI()/180)) -> 0 | X61: 240 | Y61: 120 | Z61: 484.5 | AA61: 26.84678752 | AR61: 58 | AS61: =$F$33+$F$35*CALC!D81*FIGURE_V2!$E$28 -> 57 | AT61: =$F$34+$F$35*($B$64+$C$64+$E$46*$D$64*CALC!F81*$F$46) -> -350 | AU61: =$F$34+$F$35*($B$65+$C$65+$E$49*$D$65*CALC!L81*$F$49) -> -736.5176471 | AV61: =($Y$178*($F$34+$F$35*($B$65+$C$65+$E$49*$D$65*CALC!J81*$F$49))) -> -688.2352941 | AW61: =$F$34+$F$35*($B$66+$C$66+$E$52*$D$66*CALC!N81*$F$52) -> -1341.28576 | AX61: =$Y$178*($F$34+$F$35*($B$66+$C$66+$E$52*$D$66*CALC!O81*$F$52)) -> -1360 | AY61: =CALC!U81 ->  | AZ61: =CALC!R81 ->  | BA61: =CALC!S81 ->  | BB61: =CALC!T81 ->  | BC61: 20 | BD61: 400 | BE61: 395 | BF61: -250 | BG61: -572.8235294 | BH61: -1348.696
P62: =P60 ->  | Q62: =Q60-$C$37 -> -63.30127019 | S62: =S60 ->  | T62: =T59 -> -83.30127019 | X62: 245 | Y62: 125 | AR62: 59 | AS62: =$F$33+$F$35*CALC!D82*FIGURE_V2!$E$28 -> 58 | AT62: =$F$34+$F$35*($B$64+$C$64+$E$46*$D$64*CALC!F82*$F$46) -> -350 | AU62: =$F$34+$F$35*($B$65+$C$65+$E$49*$D$65*CALC!L82*$F$49) -> -737.3647059 | AV62: =($Y$178*($F$34+$F$35*($B$65+$C$65+$E$49*$D$65*CALC!J82*$F$49))) -> -688.2352941 | AW62: =$F$34+$F$35*($B$66+$C$66+$E$52*$D$66*CALC!N82*$F$52) -> -1340.62336 | AX62: =$Y$178*($F$34+$F$35*($B$66+$C$66+$E$52*$D$66*CALC!O82*$F$52)) -> -1360 | AY62: =CALC!U82 ->  | AZ62: =CALC!R82 ->  | BA62: =CALC!S82 ->  | BB62: =CALC!T82 -> 
C63: move | D63: stretch | E63: y_top | F63: y_bot | I63: M4_shift | J63: =$F$33+$F$35*$D$18*$E$28 -> 0 | K63: =$F$34+$F$35*0 -> 0 | P63: =IF(P62+$C$37>$P$9,NA(),P62+$C$37) ->  | Q63: =$Q$4 -> -43.30127019 | S63: =IF(S62+$C$37>$S$9,NA(),S62+$C$37) ->  | T63: =$T$4-2*$C$38 -> -63.30127019 | X63: 250 | Y63: 130 | AR63: 60 | AS63: =$F$33+$F$35*CALC!D83*FIGURE_V2!$E$28 -> 59 | AT63: =$F$34+$F$35*($B$64+$C$64+$E$46*$D$64*CALC!F83*$F$46) -> -350 | AU63: =$F$34+$F$35*($B$65+$C$65+$E$49*$D$65*CALC!L83*$F$49) -> -738.2117647 | AV63: =($Y$178*($F$34+$F$35*($B$65+$C$65+$E$49*$D$65*CALC!J83*$F$49))) -> -688.2352941 | AW63: =$F$34+$F$35*($B$66+$C$66+$E$52*$D$66*CALC!N83*$F$52) -> -1339.94944 | AX63: =$Y$178*($F$34+$F$35*($B$66+$C$66+$E$52*$D$66*CALC!O83*$F$52)) -> -1360 | AY63: =CALC!U83 ->  | AZ63: =CALC!R83 ->  | BA63: =CALC!S83 ->  | BB63: =CALC!T83 ->  | BC63: 21 | BD63: 420 | BE63: 415 | BF63: -350 | BG63: -688.2352941 | BH63: -1360
A64: N_x | B64: =-C44-C45-C46 -> -350 | C64: 0 | D64: 1 | E64: 40 | F64: 20 | J64: =IF(HOME!$AQ$8="D",J63,NA()) -> 0 | K64: =IF(HOME!$AQ$8="D",$F$34+$F$35*$G$18*$E$28,NA()) -> 0 | X64: 255 | Y64: 135 | AR64: 61 | AS64: =$F$33+$F$35*CALC!D84*FIGURE_V2!$E$28 -> 60 | AT64: =$F$34+$F$35*($B$64+$C$64+$E$46*$D$64*CALC!F84*$F$46) -> -350 | AU64: =$F$34+$F$35*($B$65+$C$65+$E$49*$D$65*CALC!L84*$F$49) -> -739.0588235 | AV64: =($Y$178*($F$34+$F$35*($B$65+$C$65+$E$49*$D$65*CALC!J84*$F$49))) -> -688.2352941 | AW64: =$F$34+$F$35*($B$66+$C$66+$E$52*$D$66*CALC!N84*$F$52) -> -1339.264 | AX64: =$Y$178*($F$34+$F$35*($B$66+$C$66+$E$52*$D$66*CALC!O84*$F$52)) -> -1360 | AY64: =CALC!U84 ->  | AZ64: =CALC!R84 ->  | BA64: =CALC!S84 ->  | BB64: =CALC!T84 ->  | BC64: 21 | BD64: 420 | BE64: 415 | BF64: -250 | BG64: -589.7647059 | BH64: -1377.784
A65: Ty_x | B65: =B64-C47-C48-C49 -> -688.2352941 | C65: 0 | D65: 1 | E65: 40 | F65: 20 | J65: =IF(HOME!$AQ$8="D",J64+$F$35*$F$18*$E$28,FIGURE_V2!$J$63+FIGURE_V2!$E$28*HOME!$AR$5*COS(HOME!$AT$5*PI()/180)) -> 0 | K65: =IF(HOME!$AQ$8="D",K64,FIGURE_V2!$K$63+FIGURE_V2!$E$28*HOME!$AR$5*SIN(HOME!$AT$5*PI()/180)) -> 0 | X65: 260 | Y65: 140 | AR65: 62 | AS65: =$F$33+$F$35*CALC!D85*FIGURE_V2!$E$28 -> 61 | AT65: =$F$34+$F$35*($B$64+$C$64+$E$46*$D$64*CALC!F85*$F$46) -> -350 | AU65: =$F$34+$F$35*($B$65+$C$65+$E$49*$D$65*CALC!L85*$F$49) -> -739.9058824 | AV65: =($Y$178*($F$34+$F$35*($B$65+$C$65+$E$49*$D$65*CALC!J85*$F$49))) -> -688.2352941 | AW65: =$F$34+$F$35*($B$66+$C$66+$E$52*$D$66*CALC!N85*$F$52) -> -1338.56704 | AX65: =$Y$178*($F$34+$F$35*($B$66+$C$66+$E$52*$D$66*CALC!O85*$F$52)) -> -1360 | AY65: =CALC!U85 ->  | AZ65: =CALC!R85 ->  | BA65: =CALC!S85 ->  | BB65: =CALC!T85 -> 
A66: Mhz_x | B66: =B65-C50-C51-C52 -> -1360 | C66: 0 | D66: 1 | E66: 40 | F66: 20 | Q66: megoszló terhelés | S66: vert% | X66: 265 | Y66: 145 | AR66: 63 | AS66: =$F$33+$F$35*CALC!D86*FIGURE_V2!$E$28 -> 62 | AT66: =$F$34+$F$35*($B$64+$C$64+$E$46*$D$64*CALC!F86*$F$46) -> -350 | AU66: =$F$34+$F$35*($B$65+$C$65+$E$49*$D$65*CALC!L86*$F$49) -> -740.7529412 | AV66: =($Y$178*($F$34+$F$35*($B$65+$C$65+$E$49*$D$65*CALC!J86*$F$49))) -> -688.2352941 | AW66: =$F$34+$F$35*($B$66+$C$66+$E$52*$D$66*CALC!N86*$F$52) -> -1337.85856 | AX66: =$Y$178*($F$34+$F$35*($B$66+$C$66+$E$52*$D$66*CALC!O86*$F$52)) -> -1360 | AY66: =CALC!U86 ->  | AZ66: =CALC!R86 ->  | BA66: =CALC!S86 ->  | BB66: =CALC!T86 ->  | BC66: 22 | BD66: 440 | BE66: 435 | BF66: -350 | BG66: -688.2352941 | BH66: -1360
I67: M5_shift | J67: =$F$33+$F$35*$D$19*$E$28 -> 0 | K67: =$F$34+$F$35*0 -> 0 | P67: q1 | Q67: =$F$33+$F$35*$D$21*$E$28 -> 0 | R67: =$F$34+$F$35*0 -> 0 | S67: 60 | X67: 270 | Y67: 150 | AR67: 64 | AS67: =$F$33+$F$35*CALC!D87*FIGURE_V2!$E$28 -> 63 | AT67: =$F$34+$F$35*($B$64+$C$64+$E$46*$D$64*CALC!F87*$F$46) -> -350 | AU67: =$F$34+$F$35*($B$65+$C$65+$E$49*$D$65*CALC!L87*$F$49) -> -741.6 | AV67: =($Y$178*($F$34+$F$35*($B$65+$C$65+$E$49*$D$65*CALC!J87*$F$49))) -> -688.2352941 | AW67: =$F$34+$F$35*($B$66+$C$66+$E$52*$D$66*CALC!N87*$F$52) -> -1337.13856 | AX67: =$Y$178*($F$34+$F$35*($B$66+$C$66+$E$52*$D$66*CALC!O87*$F$52)) -> -1360 | AY67: =CALC!U87 ->  | AZ67: =CALC!R87 ->  | BA67: =CALC!S87 ->  | BB67: =CALC!T87 ->  | BC67: 22 | BD67: 440 | BE67: 435 | BF67: -250 | BG67: -606.7058824 | BH67: -1402.264
A68: show | J68: =IF(HOME!$AQ$9="D",J67,NA()) -> 0 | K68: =IF(HOME!$AQ$9="D",$F$34+$F$35*$G$19*$E$28,NA()) -> 0 | P68: 100 | Q68: =Q67 -> 0 | R68: =$F$34+$F$35*P69 -> 100 | S68: hor_p | T68: =Q68+S69 -> 30 | U68: =$F$34+$F$35*(P69/2+(S67/100)*(P69/2)) -> 80 | V68: 30 | W68: 0 | X68: 275 | Y68: 155 | AR68: 65 | AS68: =$F$33+$F$35*CALC!D88*FIGURE_V2!$E$28 -> 64 | AT68: =$F$34+$F$35*($B$64+$C$64+$E$46*$D$64*CALC!F88*$F$46) -> -350 | AU68: =$F$34+$F$35*($B$65+$C$65+$E$49*$D$65*CALC!L88*$F$49) -> -742.4470588 | AV68: =($Y$178*($F$34+$F$35*($B$65+$C$65+$E$49*$D$65*CALC!J88*$F$49))) -> -688.2352941 | AW68: =$F$34+$F$35*($B$66+$C$66+$E$52*$D$66*CALC!N88*$F$52) -> -1336.40704 | AX68: =$Y$178*($F$34+$F$35*($B$66+$C$66+$E$52*$D$66*CALC!O88*$F$52)) -> -1360 | AY68: =CALC!U88 ->  | AZ68: =CALC!R88 ->  | BA68: =CALC!S88 ->  | BB68: =CALC!T88 -> 
A69: Mhz_s | B69: 1 | J69: =IF(HOME!$AQ$9="D",J68+$F$35*$F$19*$E$28,FIGURE_V2!$J$67+FIGURE_V2!$E$28*HOME!$AR$5*COS(HOME!$AT$5*PI()/180)) -> 0 | K69: =IF(HOME!$AQ$9="D",K68,FIGURE_V2!$K$67+FIGURE_V2!$E$28*HOME!$AR$5*SIN(HOME!$AT$5*PI()/180)) -> 0 | P69: =IF(E21=0,NA(),-1*SIGN($C$21)*P68) -> 100 | Q69: =$F$33+$F$35*$E$21*$E$28 -> 750 | R69: =R68 -> 100 | S69: 30 | T69: =T68 -> 30 | U69: =$F$34+$F$35*(P69/2-(S67/100)*(P69/2)) -> 20 | V69: =T69+V68 -> 60 | W69: =$F$34+$F$35*(P69/2+W68) -> 50 | X69: 280 | Y69: 160 | AR69: 66 | AS69: =$F$33+$F$35*CALC!D89*FIGURE_V2!$E$28 -> 65 | AT69: =$F$34+$F$35*($B$64+$C$64+$E$46*$D$64*CALC!F89*$F$46) -> -350 | AU69: =$F$34+$F$35*($B$65+$C$65+$E$49*$D$65*CALC!L89*$F$49) -> -743.2941176 | AV69: =($Y$178*($F$34+$F$35*($B$65+$C$65+$E$49*$D$65*CALC!J89*$F$49))) -> -688.2352941 | AW69: =$F$34+$F$35*($B$66+$C$66+$E$52*$D$66*CALC!N89*$F$52) -> -1335.664 | AX69: =$Y$178*($F$34+$F$35*($B$66+$C$66+$E$52*$D$66*CALC!O89*$F$52)) -> -1360 | AY69: =CALC!U89 ->  | AZ69: =CALC!R89 ->  | BA69: =CALC!S89 ->  | BB69: =CALC!T89 ->  | BC69: 23 | BD69: =BC69*$BD$2 -> 460 | BE69: =INDEX($AS$3:$AS$10387,BD69) -> 455 | BF69: =IF(BE70=BE69,$K$72,INDEX($AT$3:$AT$10387,MATCH(BE69,$AS$3:$AS$10387,0))) -> -350 | BG69: =IF(BE70=BE69,$K$78,INDEX($AU$3:$AU$10387,MATCH(BE69,$AS$3:$AS$10387,0))) -> -688.2352941 | BH69: =IF(BE70=BE69,$K$84,INDEX($AW$3:$AW$10387,MATCH(BE69,$AS$3:$AS$10387,0))) -> -1360
Q70: =Q69 -> 750 | R70: =R67 -> 0 | X70: 285 | Y70: 165 | AR70: 67 | AS70: =$F$33+$F$35*CALC!D90*FIGURE_V2!$E$28 -> 66 | AT70: =$F$34+$F$35*($B$64+$C$64+$E$46*$D$64*CALC!F90*$F$46) -> -350 | AU70: =$F$34+$F$35*($B$65+$C$65+$E$49*$D$65*CALC!L90*$F$49) -> -744.1411765 | AV70: =($Y$178*($F$34+$F$35*($B$65+$C$65+$E$49*$D$65*CALC!J90*$F$49))) -> -688.2352941 | AW70: =$F$34+$F$35*($B$66+$C$66+$E$52*$D$66*CALC!N90*$F$52) -> -1334.90944 | AX70: =$Y$178*($F$34+$F$35*($B$66+$C$66+$E$52*$D$66*CALC!O90*$F$52)) -> -1360 | AY70: =CALC!U90 ->  | AZ70: =CALC!R90 ->  | BA70: =CALC!S90 ->  | BB70: =CALC!T90 ->  | BC70: 23 | BD70: 460 | BE70: 455 | BF70: -250 | BG70: -623.6470588 | BH70: -1422.136
S71: vert% | X71: 290 | Y71: 170 | AR71: 68 | AS71: =$F$33+$F$35*CALC!D91*FIGURE_V2!$E$28 -> 67 | AT71: =$F$34+$F$35*($B$64+$C$64+$E$46*$D$64*CALC!F91*$F$46) -> -350 | AU71: =$F$34+$F$35*($B$65+$C$65+$E$49*$D$65*CALC!L91*$F$49) -> -744.9882353 | AV71: =($Y$178*($F$34+$F$35*($B$65+$C$65+$E$49*$D$65*CALC!J91*$F$49))) -> -688.2352941 | AW71: =$F$34+$F$35*($B$66+$C$66+$E$52*$D$66*CALC!N91*$F$52) -> -1334.14336 | AX71: =$Y$178*($F$34+$F$35*($B$66+$C$66+$E$52*$D$66*CALC!O91*$F$52)) -> -1360 | AY71: =CALC!U91 ->  | AZ71: =CALC!R91 ->  | BA71: =CALC!S91 ->  | BB71: =CALC!T91 -> 
I72: N_axis_x | J72: =$F$33+$F$35*0 -> 0 | K72: =$F$34+$F$35*($B$64+$C$64) -> -350 | P72: q2 | Q72: =$F$33+$F$35*$D$22*$E$28 -> 0 | R72: =$F$34+$F$35*0 -> 0 | S72: 60 | X72: 295 | Y72: 175 | AR72: 69 | AS72: =$F$33+$F$35*CALC!D92*FIGURE_V2!$E$28 -> 68 | AT72: =$F$34+$F$35*($B$64+$C$64+$E$46*$D$64*CALC!F92*$F$46) -> -350 | AU72: =$F$34+$F$35*($B$65+$C$65+$E$49*$D$65*CALC!L92*$F$49) -> -745.8352941 | AV72: =($Y$178*($F$34+$F$35*($B$65+$C$65+$E$49*$D$65*CALC!J92*$F$49))) -> -688.2352941 | AW72: =$F$34+$F$35*($B$66+$C$66+$E$52*$D$66*CALC!N92*$F$52) -> -1333.36576 | AX72: =$Y$178*($F$34+$F$35*($B$66+$C$66+$E$52*$D$66*CALC!O92*$F$52)) -> -1360 | AY72: =CALC!U92 ->  | AZ72: =CALC!R92 ->  | BA72: =CALC!S92 ->  | BB72: =CALC!T92 ->  | BC72: 24 | BD72: 480 | BE72: 475 | BF72: -350 | BG72: -688.2352941 | BH72: -1360
J73: =$F$33+$F$35*$B$32 -> 1100 | K73: =K72 -> -350 | P73: 100 | Q73: =Q72 -> 0 | R73: =$F$34+$F$35*P74 ->  | S73: hor_p | T73: =Q73+S74 -> 30 | U73: =$F$34+$F$35*(P74/2+(S72/100)*(P74/2)) ->  | V73: 30 | W73: 0 | X73: 300 | Y73: 180 | AR73: 70 | AS73: =$F$33+$F$35*CALC!D93*FIGURE_V2!$E$28 -> 69 | AT73: =$F$34+$F$35*($B$64+$C$64+$E$46*$D$64*CALC!F93*$F$46) -> -350 | AU73: =$F$34+$F$35*($B$65+$C$65+$E$49*$D$65*CALC!L93*$F$49) -> -746.6823529 | AV73: =($Y$178*($F$34+$F$35*($B$65+$C$65+$E$49*$D$65*CALC!J93*$F$49))) -> -688.2352941 | AW73: =$F$34+$F$35*($B$66+$C$66+$E$52*$D$66*CALC!N93*$F$52) -> -1332.57664 | AX73: =$Y$178*($F$34+$F$35*($B$66+$C$66+$E$52*$D$66*CALC!O93*$F$52)) -> -1360 | AY73: =CALC!U93 ->  | AZ73: =CALC!R93 ->  | BA73: =CALC!S93 ->  | BB73: =CALC!T93 ->  | BC73: 24 | BD73: 480 | BE73: 475 | BF73: -250 | BG73: -640.5882353 | BH73: -1437.4
P74: =IF(E22=0,NA(),-1*SIGN($C$22)*P73) ->  | Q74: =$F$33+$F$35*$E$22*$E$28 -> 0 | R74: =R73 ->  | S74: 30 | T74: =T73 -> 30 | U74: =$F$34+$F$35*(P74/2-(S72/100)*(P74/2)) ->  | V74: =T74+V73 -> 60 | W74: =$F$34+$F$35*(P74/2+W73) ->  | X74: 305 | Y74: 185 | AR74: 71 | AS74: =$F$33+$F$35*CALC!D94*FIGURE_V2!$E$28 -> 70 | AT74: =$F$34+$F$35*($B$64+$C$64+$E$46*$D$64*CALC!F94*$F$46) -> -350 | AU74: =$F$34+$F$35*($B$65+$C$65+$E$49*$D$65*CALC!L94*$F$49) -> -747.5294118 | AV74: =($Y$178*($F$34+$F$35*($B$65+$C$65+$E$49*$D$65*CALC!J94*$F$49))) -> -688.2352941 | AW74: =$F$34+$F$35*($B$66+$C$66+$E$52*$D$66*CALC!N94*$F$52) -> -1331.776 | AX74: =$Y$178*($F$34+$F$35*($B$66+$C$66+$E$52*$D$66*CALC!O94*$F$52)) -> -1360 | AY74: =CALC!U94 ->  | AZ74: =CALC!R94 ->  | BA74: =CALC!S94 ->  | BB74: =CALC!T94 -> 
I75: N_axis_y | J75: =$F$33+$F$35*0 -> 0 | K75: =$F$34+$F$35*($B$64+$C$64-$D$64*$C$47-F64) -> -370 | Q75: =Q74 -> 0 | R75: =R72 -> 0 | X75: 310 | Y75: 190 | AR75: 72 | AS75: =$F$33+$F$35*CALC!D95*FIGURE_V2!$E$28 -> 71 | AT75: =$F$34+$F$35*($B$64+$C$64+$E$46*$D$64*CALC!F95*$F$46) -> -350 | AU75: =$F$34+$F$35*($B$65+$C$65+$E$49*$D$65*CALC!L95*$F$49) -> -748.3764706 | AV75: =($Y$178*($F$34+$F$35*($B$65+$C$65+$E$49*$D$65*CALC!J95*$F$49))) -> -688.2352941 | AW75: =$F$34+$F$35*($B$66+$C$66+$E$52*$D$66*CALC!N95*$F$52) -> -1330.96384 | AX75: =$Y$178*($F$34+$F$35*($B$66+$C$66+$E$52*$D$66*CALC!O95*$F$52)) -> -1360 | AY75: =CALC!U95 ->  | AZ75: =CALC!R95 ->  | BA75: =CALC!S95 ->  | BB75: =CALC!T95 ->  | BC75: 25 | BD75: 500 | BE75: 495 | BF75: -350 | BG75: -688.2352941 | BH75: -1360
J76: =$F$33+$F$35*0 -> 0 | K76: =$F$34+$F$35*($B$64+$C$64+$D$64*$C$46+E64) -> -210 | S76: vert% | X76: 315 | Y76: 195 | AR76: 73 | AS76: =$F$33+$F$35*CALC!D96*FIGURE_V2!$E$28 -> 72 | AT76: =$F$34+$F$35*($B$64+$C$64+$E$46*$D$64*CALC!F96*$F$46) -> -350 | AU76: =$F$34+$F$35*($B$65+$C$65+$E$49*$D$65*CALC!L96*$F$49) -> -749.2235294 | AV76: =($Y$178*($F$34+$F$35*($B$65+$C$65+$E$49*$D$65*CALC!J96*$F$49))) -> -688.2352941 | AW76: =$F$34+$F$35*($B$66+$C$66+$E$52*$D$66*CALC!N96*$F$52) -> -1330.14016 | AX76: =$Y$178*($F$34+$F$35*($B$66+$C$66+$E$52*$D$66*CALC!O96*$F$52)) -> -1360 | AY76: =CALC!U96 ->  | AZ76: =CALC!R96 ->  | BA76: =CALC!S96 ->  | BB76: =CALC!T96 ->  | BC76: 25 | BD76: 500 | BE76: 495 | BF76: -250 | BG76: -657.5294118 | BH76: -1448.056
P77: q3 | Q77: =$F$33+$F$35*$D$23*$E$28 -> 0 | R77: =$F$34+$F$35*0 -> 0 | S77: 60 | X77: 320 | Y77: 200 | AR77: 74 | AS77: =$F$33+$F$35*CALC!D97*FIGURE_V2!$E$28 -> 73 | AT77: =$F$34+$F$35*($B$64+$C$64+$E$46*$D$64*CALC!F97*$F$46) -> -350 | AU77: =$F$34+$F$35*($B$65+$C$65+$E$49*$D$65*CALC!L97*$F$49) -> -750.0705882 | AV77: =($Y$178*($F$34+$F$35*($B$65+$C$65+$E$49*$D$65*CALC!J97*$F$49))) -> -688.2352941 | AW77: =$F$34+$F$35*($B$66+$C$66+$E$52*$D$66*CALC!N97*$F$52) -> -1329.30496 | AX77: =$Y$178*($F$34+$F$35*($B$66+$C$66+$E$52*$D$66*CALC!O97*$F$52)) -> -1360 | AY77: =CALC!U97 ->  | AZ77: =CALC!R97 ->  | BA77: =CALC!S97 ->  | BB77: =CALC!T97 -> 
I78: T_axis_x | J78: =$F$33+$F$35*0 -> 0 | K78: =$F$34+$F$35*($B$65+$C$65) -> -688.2352941 | P78: 100 | Q78: =Q77 -> 0 | R78: =$F$34+$F$35*P79 ->  | S78: hor_p | T78: =Q78+S79 -> 30 | U78: =$F$34+$F$35*(P79/2+(S77/100)*(P79/2)) ->  | V78: 30 | W78: 0 | X78: 325 | Y78: =Z$3*($Z$4+$X78) -> 205 | Z78: =IF($X78>Z$5,NA(),Y$11+Z$9*COS(Y78*PI()/180)) ->  | AA78: =IF($X78>Z$5,NA(),Z$11+Z$9*SIN(Y78*PI()/180)) ->  | AB78: =AC$3*($Z$4+$X78) ->  | AC78: =IF($X78>AC$5,NA(),AB$11+AC$9*COS(AB78*PI()/180)) ->  | AD78: =IF($X78>AC$5,NA(),AC$11+AC$9*SIN(AB78*PI()/180)) ->  | AE78: =AF$3*($Z$4+$X78) ->  | AF78: =IF($X78>AF$5,NA(),AE$11+AF$9*COS(AE78*PI()/180)) ->  | AG78: =IF($X78>AF$5,NA(),AF$11+AF$9*SIN(AE78*PI()/180)) ->  | AH78: =AI$3*($Z$4+$X78) ->  | AI78: =IF($X78>AI$5,NA(),AH$11+AI$9*COS(AH78*PI()/180)) ->  | AJ78: =IF($X78>AI$5,NA(),AI$11+AI$9*SIN(AH78*PI()/180)) ->  | AK78: =AL$3*($Z$4+$X78) ->  | AL78: =IF($X78>AL$5,NA(),AK$11+AL$9*COS(AK78*PI()/180)) ->  | AM78: =IF($X78>AL$5,NA(),AL$11+AL$9*SIN(AK78*PI()/180)) ->  | AN78: =AO$3*($Z$4+$X78) ->  | AO78: =IF($X78>AO$5,NA(),AN$11+AO$9*COS(AN78*PI()/180)) ->  | AP78: =IF($X78>AO$5,NA(),AO$11+AO$9*SIN(AN78*PI()/180)) ->  | AR78: 75 | AS78: =$F$33+$F$35*CALC!D98*FIGURE_V2!$E$28 -> 74 | AT78: =$F$34+$F$35*($B$64+$C$64+$E$46*$D$64*CALC!F98*$F$46) -> -350 | AU78: =$F$34+$F$35*($B$65+$C$65+$E$49*$D$65*CALC!L98*$F$49) -> -750.9176471 | AV78: =($Y$178*($F$34+$F$35*($B$65+$C$65+$E$49*$D$65*CALC!J98*$F$49))) -> -688.2352941 | AW78: =$F$34+$F$35*($B$66+$C$66+$E$52*$D$66*CALC!N98*$F$52) -> -1328.45824 | AX78: =$Y$178*($F$34+$F$35*($B$66+$C$66+$E$52*$D$66*CALC!O98*$F$52)) -> -1360 | AY78: =CALC!U98 ->  | AZ78: =CALC!R98 ->  | BA78: =CALC!S98 ->  | BB78: =CALC!T98 ->  | BC78: =IF(ISNUMBER(BC3),BC3+25,NA()) -> 26 | BD78: 520 | BE78: 514 | BF78: -350 | BG78: -688.2352941 | BH78: -1360
J79: =$F$33+$F$35*$B$32 -> 1100 | K79: =K78 -> -688.2352941 | P79: =IF(E23=0,NA(),-1*SIGN($C$23)*P78) ->  | Q79: =$F$33+$F$35*$E$23*$E$28 -> 0 | R79: =R78 ->  | S79: 30 | T79: =T78 -> 30 | U79: =$F$34+$F$35*(P79/2-(S77/100)*(P79/2)) ->  | V79: =T79+V78 -> 60 | W79: =$F$34+$F$35*(P79/2+W78) ->  | X79: 330 | Y79: 210 | AR79: 76 | AS79: =$F$33+$F$35*CALC!D99*FIGURE_V2!$E$28 -> 75 | AT79: =$F$34+$F$35*($B$64+$C$64+$E$46*$D$64*CALC!F99*$F$46) -> -350 | AU79: =$F$34+$F$35*($B$65+$C$65+$E$49*$D$65*CALC!L99*$F$49) -> -751.7647059 | AV79: =($Y$178*($F$34+$F$35*($B$65+$C$65+$E$49*$D$65*CALC!J99*$F$49))) -> -688.2352941 | AW79: =$F$34+$F$35*($B$66+$C$66+$E$52*$D$66*CALC!N99*$F$52) -> -1327.6 | AX79: =$Y$178*($F$34+$F$35*($B$66+$C$66+$E$52*$D$66*CALC!O99*$F$52)) -> -1360 | AY79: =CALC!U99 ->  | AZ79: =CALC!R99 ->  | BA79: =CALC!S99 ->  | BB79: =CALC!T99 ->  | BC79: =IF(ISNUMBER(BC4),BC4+25,NA()) -> 26 | BD79: 520 | BE79: 514 | BF79: -250 | BG79: -673.6235294 | BH79: -1273.91104
Q80: =Q79 -> 0 | R80: =R77 -> 0 | X80: 335 | Y80: 215 | AR80: 77 | AS80: =$F$33+$F$35*CALC!D100*FIGURE_V2!$E$28 -> 76 | AT80: =$F$34+$F$35*($B$64+$C$64+$E$46*$D$64*CALC!F100*$F$46) -> -350 | AU80: =$F$34+$F$35*($B$65+$C$65+$E$49*$D$65*CALC!L100*$F$49) -> -752.6117647 | AV80: =($Y$178*($F$34+$F$35*($B$65+$C$65+$E$49*$D$65*CALC!J100*$F$49))) -> -688.2352941 | AW80: =$F$34+$F$35*($B$66+$C$66+$E$52*$D$66*CALC!N100*$F$52) -> -1326.73024 | AX80: =$Y$178*($F$34+$F$35*($B$66+$C$66+$E$52*$D$66*CALC!O100*$F$52)) -> -1360 | AY80: =CALC!U100 ->  | AZ80: =CALC!R100 ->  | BA80: =CALC!S100 ->  | BB80: =CALC!T100 -> 
I81: T_axis_y | J81: =$F$33+$F$35*0 -> 0 | K81: =$F$34+$F$35*($B$65+$C$65-$D$65*C50-F65) -> -920 | S81: vert% | X81: 340 | Y81: 220 | AR81: 78 | AS81: =$F$33+$F$35*CALC!D101*FIGURE_V2!$E$28 -> 77 | AT81: =$F$34+$F$35*($B$64+$C$64+$E$46*$D$64*CALC!F101*$F$46) -> -350 | AU81: =$F$34+$F$35*($B$65+$C$65+$E$49*$D$65*CALC!L101*$F$49) -> -753.4588235 | AV81: =($Y$178*($F$34+$F$35*($B$65+$C$65+$E$49*$D$65*CALC!J101*$F$49))) -> -688.2352941 | AW81: =$F$34+$F$35*($B$66+$C$66+$E$52*$D$66*CALC!N101*$F$52) -> -1325.84896 | AX81: =$Y$178*($F$34+$F$35*($B$66+$C$66+$E$52*$D$66*CALC!O101*$F$52)) -> -1360 | AY81: =CALC!U101 ->  | AZ81: =CALC!R101 ->  | BA81: =CALC!S101 ->  | BB81: =CALC!T101 ->  | BC81: 27 | BD81: 540 | BE81: 534 | BF81: -350 | BG81: -688.2352941 | BH81: -1360
J82: =$F$33+$F$35*0 -> 0 | K82: =$F$34+$F$35*($B$65+$C$65+$D$65*C49+E64) -> -410 | P82: q4 | Q82: =$F$33+$F$35*$D$24*$E$28 -> 0 | R82: =$F$34+$F$35*0 -> 0 | S82: 60 | X82: 345 | Y82: 225 | AR82: 79 | AS82: =$F$33+$F$35*CALC!D102*FIGURE_V2!$E$28 -> 78 | AT82: =$F$34+$F$35*($B$64+$C$64+$E$46*$D$64*CALC!F102*$F$46) -> -350 | AU82: =$F$34+$F$35*($B$65+$C$65+$E$49*$D$65*CALC!L102*$F$49) -> -754.3058824 | AV82: =($Y$178*($F$34+$F$35*($B$65+$C$65+$E$49*$D$65*CALC!J102*$F$49))) -> -688.2352941 | AW82: =$F$34+$F$35*($B$66+$C$66+$E$52*$D$66*CALC!N102*$F$52) -> -1324.95616 | AX82: =$Y$178*($F$34+$F$35*($B$66+$C$66+$E$52*$D$66*CALC!O102*$F$52)) -> -1360 | AY82: =CALC!U102 ->  | AZ82: =CALC!R102 ->  | BA82: =CALC!S102 ->  | BB82: =CALC!T102 ->  | BC82: 27 | BD82: 540 | BE82: 534 | BF82: -250 | BG82: -690.5647059 | BH82: -1275.58144
P83: 100 | Q83: =Q82 -> 0 | R83: =$F$34+$F$35*P84 ->  | S83: hor_p | T83: =Q83+S84 -> 30 | U83: =$F$34+$F$35*(P84/2+(S82/100)*(P84/2)) ->  | X83: 350 | Y83: 230 | AR83: 80 | AS83: =$F$33+$F$35*CALC!D103*FIGURE_V2!$E$28 -> 79 | AT83: =$F$34+$F$35*($B$64+$C$64+$E$46*$D$64*CALC!F103*$F$46) -> -350 | AU83: =$F$34+$F$35*($B$65+$C$65+$E$49*$D$65*CALC!L103*$F$49) -> -755.1529412 | AV83: =($Y$178*($F$34+$F$35*($B$65+$C$65+$E$49*$D$65*CALC!J103*$F$49))) -> -688.2352941 | AW83: =$F$34+$F$35*($B$66+$C$66+$E$52*$D$66*CALC!N103*$F$52) -> -1324.05184 | AX83: =$Y$178*($F$34+$F$35*($B$66+$C$66+$E$52*$D$66*CALC!O103*$F$52)) -> -1360 | AY83: =CALC!U103 ->  | AZ83: =CALC!R103 ->  | BA83: =CALC!S103 ->  | BB83: =CALC!T103 -> 
I84: M_axis_x | J84: =$F$33+$F$35*0 -> 0 | K84: =$F$34+$F$35*($B$66+$C$66) -> -1360 | P84: =IF(E24=0,NA(),-1*SIGN($C$24)*P83) ->  | Q84: =$F$33+$F$35*$E$24*$E$28 -> 0 | R84: =R83 ->  | S84: 30 | T84: =T83 -> 30 | U84: =$F$34+$F$35*(P84/2-(S82/100)*(P84/2)) ->  | V84: 30 | W84: 0 | X84: 355 | Y84: 235 | AR84: 81 | AS84: =$F$33+$F$35*CALC!D104*FIGURE_V2!$E$28 -> 80 | AT84: =$F$34+$F$35*($B$64+$C$64+$E$46*$D$64*CALC!F104*$F$46) -> -350 | AU84: =$F$34+$F$35*($B$65+$C$65+$E$49*$D$65*CALC!L104*$F$49) -> -756 | AV84: =($Y$178*($F$34+$F$35*($B$65+$C$65+$E$49*$D$65*CALC!J104*$F$49))) -> -688.2352941 | AW84: =$F$34+$F$35*($B$66+$C$66+$E$52*$D$66*CALC!N104*$F$52) -> -1323.136 | AX84: =$Y$178*($F$34+$F$35*($B$66+$C$66+$E$52*$D$66*CALC!O104*$F$52)) -> -1360 | AY84: =CALC!U104 ->  | AZ84: =CALC!R104 ->  | BA84: =CALC!S104 ->  | BB84: =CALC!T104 ->  | BC84: 28 | BD84: 560 | BE84: 554 | BF84: -350 | BG84: -688.2352941 | BH84: -1360
J85: =$F$33+$F$35*$B$32 -> 1100 | K85: =K84 -> -1360 | Q85: =Q84 -> 0 | R85: =R82 -> 0 | V85: =T84+V84 -> 60 | W85: =$F$34+$F$35*(P84/2+W84) ->  | X85: 360 | Y85: 240 | AR85: 82 | AS85: =$F$33+$F$35*CALC!D105*FIGURE_V2!$E$28 -> 81 | AT85: =$F$34+$F$35*($B$64+$C$64+$E$46*$D$64*CALC!F105*$F$46) -> -350 | AU85: =$F$34+$F$35*($B$65+$C$65+$E$49*$D$65*CALC!L105*$F$49) -> -756.8470588 | AV85: =($Y$178*($F$34+$F$35*($B$65+$C$65+$E$49*$D$65*CALC!J105*$F$49))) -> -688.2352941 | AW85: =$F$34+$F$35*($B$66+$C$66+$E$52*$D$66*CALC!N105*$F$52) -> -1322.20864 | AX85: =$Y$178*($F$34+$F$35*($B$66+$C$66+$E$52*$D$66*CALC!O105*$F$52)) -> -1360 | AY85: =CALC!U105 ->  | AZ85: =CALC!R105 ->  | BA85: =CALC!S105 ->  | BB85: =CALC!T105 ->  | BC85: 28 | BD85: 560 | BE85: 554 | BF85: -250 | BG85: -707.5058824 | BH85: -1272.64384
S86: vert% | AR86: 83 | AS86: =$F$33+$F$35*CALC!D106*FIGURE_V2!$E$28 -> 82 | AT86: =$F$34+$F$35*($B$64+$C$64+$E$46*$D$64*CALC!F106*$F$46) -> -350 | AU86: =$F$34+$F$35*($B$65+$C$65+$E$49*$D$65*CALC!L106*$F$49) -> -757.6941176 | AV86: =($Y$178*($F$34+$F$35*($B$65+$C$65+$E$49*$D$65*CALC!J106*$F$49))) -> -688.2352941 | AW86: =$F$34+$F$35*($B$66+$C$66+$E$52*$D$66*CALC!N106*$F$52) -> -1321.26976 | AX86: =$Y$178*($F$34+$F$35*($B$66+$C$66+$E$52*$D$66*CALC!O106*$F$52)) -> -1360 | AY86: =CALC!U106 ->  | AZ86: =CALC!R106 ->  | BA86: =CALC!S106 ->  | BB86: =CALC!T106 -> 
A87: méretvonalak | I87: M_axis_y | J87: =$F$33+$F$35*0 -> 0 | K87: =$F$34+$F$35*($B$66+$C$66-$D$66*$C$53-F66) -> -1470 | P87: q5 | Q87: =$F$33+$F$35*$D$25*$E$28 -> 0 | R87: =$F$34+$F$35*0 -> 0 | S87: 60 | X87: 0 | Y87: =Z$3*($Z$4+$X87) -> -120 | Z87: =IF($X87>Z$5,NA(),Y$11+Z$10*COS(Y87*PI()/180)) -> 475.5 | AA87: =IF($X87>Z$5,NA(),Z$11+Z$10*SIN(Y87*PI()/180)) -> -42.43524479 | AB87: =AC$3*($Z$4+$X87) ->  | AC87: =IF($X87>AC$5,NA(),AB$11+AC$10*COS(AB87*PI()/180)) ->  | AD87: =IF($X87>AC$5,NA(),AC$11+AC$10*SIN(AB87*PI()/180)) ->  | AE87: =AF$3*($Z$4+$X87) ->  | AF87: =IF($X87>AF$5,NA(),AE$11+AF$10*COS(AE87*PI()/180)) ->  | AG87: =IF($X87>AF$5,NA(),AF$11+AF$10*SIN(AE87*PI()/180)) ->  | AH87: =AI$3*($Z$4+$X87) ->  | AI87: =IF($X87>AI$5,NA(),AH$11+AI$10*COS(AH87*PI()/180)) ->  | AJ87: =IF($X87>AI$5,NA(),AI$11+AI$10*SIN(AH87*PI()/180)) ->  | AK87: =AL$3*($Z$4+$X87) ->  | AL87: =IF($X87>AL$5,NA(),AK$11+AL$10*COS(AK87*PI()/180)) ->  | AM87: =IF($X87>AL$5,NA(),AL$11+AL$10*SIN(AK87*PI()/180)) ->  | AN87: =AO$3*($Z$4+$X87) ->  | AO87: =IF($X87>AO$5,NA(),AN$11+AO$10*COS(AN87*PI()/180)) ->  | AP87: =IF($X87>AO$5,NA(),AO$11+AO$10*SIN(AN87*PI()/180)) ->  | AR87: 84 | AS87: =$F$33+$F$35*CALC!D107*FIGURE_V2!$E$28 -> 83 | AT87: =$F$34+$F$35*($B$64+$C$64+$E$46*$D$64*CALC!F107*$F$46) -> -350 | AU87: =$F$34+$F$35*($B$65+$C$65+$E$49*$D$65*CALC!L107*$F$49) -> -758.5411765 | AV87: =($Y$178*($F$34+$F$35*($B$65+$C$65+$E$49*$D$65*CALC!J107*$F$49))) -> -688.2352941 | AW87: =$F$34+$F$35*($B$66+$C$66+$E$52*$D$66*CALC!N107*$F$52) -> -1320.31936 | AX87: =$Y$178*($F$34+$F$35*($B$66+$C$66+$E$52*$D$66*CALC!O107*$F$52)) -> -1360 | AY87: =CALC!U107 ->  | AZ87: =CALC!R107 ->  | BA87: =CALC!S107 ->  | BB87: =CALC!T107 ->  | BC87: 29 | BD87: 580 | BE87: 574 | BF87: -350 | BG87: -688.2352941 | BH87: -1360
A88: 220 | B88: 5 | C88: 240 | J88: =$F$33+$F$35*0 -> 0 | K88: =$F$34+$F$35*($B$66+$C$66+$D$66*$C$52+E66) -> -960 | P88: 100 | Q88: =Q87 -> 0 | R88: =$F$34+$F$35*P89 ->  | S88: hor_p | T88: =Q88+S89 -> 30 | U88: =$F$34+$F$35*(P89/2+(S87/100)*(P89/2)) ->  | V88: 30 | W88: 0 | X88: 5 | Y88: =Z$3*($Z$4+$X88) -> -115 | Z88: =IF($X88>Z$5,NA(),Y$11+Z$10*COS(Y88*PI()/180)) -> 479.2917052 | AA88: =IF($X88>Z$5,NA(),Z$11+Z$10*SIN(Y88*PI()/180)) -> -44.40908156 | AB88: =AC$3*($Z$4+$X88) ->  | AC88: =IF($X88>AC$5,NA(),AB$11+AC$10*COS(AB88*PI()/180)) ->  | AD88: =IF($X88>AC$5,NA(),AC$11+AC$10*SIN(AB88*PI()/180)) ->  | AE88: =AF$3*($Z$4+$X88) ->  | AF88: =IF($X88>AF$5,NA(),AE$11+AF$10*COS(AE88*PI()/180)) ->  | AG88: =IF($X88>AF$5,NA(),AF$11+AF$10*SIN(AE88*PI()/180)) ->  | AH88: =AI$3*($Z$4+$X88) ->  | AI88: =IF($X88>AI$5,NA(),AH$11+AI$10*COS(AH88*PI()/180)) ->  | AJ88: =IF($X88>AI$5,NA(),AI$11+AI$10*SIN(AH88*PI()/180)) ->  | AK88: =AL$3*($Z$4+$X88) ->  | AL88: =IF($X88>AL$5,NA(),AK$11+AL$10*COS(AK88*PI()/180)) ->  | AM88: =IF($X88>AL$5,NA(),AL$11+AL$10*SIN(AK88*PI()/180)) ->  | AN88: =AO$3*($Z$4+$X88) ->  | AO88: =IF($X88>AO$5,NA(),AN$11+AO$10*COS(AN88*PI()/180)) ->  | AP88: =IF($X88>AO$5,NA(),AO$11+AO$10*SIN(AN88*PI()/180)) ->  | AR88: 85 | AS88: =$F$33+$F$35*CALC!D108*FIGURE_V2!$E$28 -> 84 | AT88: =$F$34+$F$35*($B$64+$C$64+$E$46*$D$64*CALC!F108*$F$46) -> -350 | AU88: =$F$34+$F$35*($B$65+$C$65+$E$49*$D$65*CALC!L108*$F$49) -> -759.3882353 | AV88: =($Y$178*($F$34+$F$35*($B$65+$C$65+$E$49*$D$65*CALC!J108*$F$49))) -> -688.2352941 | AW88: =$F$34+$F$35*($B$66+$C$66+$E$52*$D$66*CALC!N108*$F$52) -> -1319.35744 | AX88: =$Y$178*($F$34+$F$35*($B$66+$C$66+$E$52*$D$66*CALC!O108*$F$52)) -> -1360 | AY88: =CALC!U108 ->  | AZ88: =CALC!R108 ->  | BA88: =CALC!S108 ->  | BB88: =CALC!T108 ->  | BC88: 29 | BD88: 580 | BE88: 574 | BF88: -250 | BG88: -724.4470588 | BH88: -1265.09824
A89: =I92 -> 0 | B89: =IF(ISNUMBER(A89),A89,"") -> 0 | C89: =IF(A90=A89,NA(),A89) -> 0 | D89: =$F$34+$F$35*$A$88 -> 220 | E89: =(C89+C90)/2 -> 125 | F89: =$F$34+$F$35*$C$88 -> 240 | G89: =C90-C89 -> 250 | P89: =IF(E25=0,NA(),-1*SIGN($C$25)*P88) ->  | Q89: =$F$33+$F$35*$E$25*$E$28 -> 0 | R89: =R88 ->  | S89: 30 | T89: =T88 -> 30 | U89: =$F$34+$F$35*(P89/2-(S87/100)*(P89/2)) ->  | V89: =T89+V88 -> 60 | W89: =$F$34+$F$35*(P89/2+W88) ->  | X89: 10 | Y89: -110 | Z89: 483.241013 | AA89: -46.04493842 | AR89: 86 | AS89: =$F$33+$F$35*CALC!D109*FIGURE_V2!$E$28 -> 85 | AT89: =$F$34+$F$35*($B$64+$C$64+$E$46*$D$64*CALC!F109*$F$46) -> -350 | AU89: =$F$34+$F$35*($B$65+$C$65+$E$49*$D$65*CALC!L109*$F$49) -> -760.2352941 | AV89: =($Y$178*($F$34+$F$35*($B$65+$C$65+$E$49*$D$65*CALC!J109*$F$49))) -> -688.2352941 | AW89: =$F$34+$F$35*($B$66+$C$66+$E$52*$D$66*CALC!N109*$F$52) -> -1318.384 | AX89: =$Y$178*($F$34+$F$35*($B$66+$C$66+$E$52*$D$66*CALC!O109*$F$52)) -> -1360 | AY89: =CALC!U109 ->  | AZ89: =CALC!R109 ->  | BA89: =CALC!S109 ->  | BB89: =CALC!T109 -> 
A90: =I95 -> 250 | B90: =IF(ISNUMBER(A90),A90,"") -> 250 | C90: =IF(A90=A89,NA(),A90) -> 250 | D90: =$F$34+$F$35*$A$88 -> 220 | E90: =(C92+C93)/2 -> 375 | F90: =$F$34+$F$35*$C$88 -> 240 | G90: =C93-C92 -> 250 | I90: show | J90: 1 | L90: 1 | Q90: =Q89 -> 0 | R90: =R87 -> 0 | X90: 15 | Y90: -105 | Z90: 487.3178668 | AA90: -47.33036549 | AR90: 87 | AS90: =$F$33+$F$35*CALC!D110*FIGURE_V2!$E$28 -> 86 | AT90: =$F$34+$F$35*($B$64+$C$64+$E$46*$D$64*CALC!F110*$F$46) -> -350 | AU90: =$F$34+$F$35*($B$65+$C$65+$E$49*$D$65*CALC!L110*$F$49) -> -761.0823529 | AV90: =($Y$178*($F$34+$F$35*($B$65+$C$65+$E$49*$D$65*CALC!J110*$F$49))) -> -688.2352941 | AW90: =$F$34+$F$35*($B$66+$C$66+$E$52*$D$66*CALC!N110*$F$52) -> -1317.39904 | AX90: =$Y$178*($F$34+$F$35*($B$66+$C$66+$E$52*$D$66*CALC!O110*$F$52)) -> -1360 | AY90: =CALC!U110 ->  | AZ90: =CALC!R110 ->  | BA90: =CALC!S110 ->  | BB90: =CALC!T110 ->  | BC90: 30 | BD90: 600 | BE90: 594 | BF90: -350 | BG90: -688.2352941 | BH90: -1360
E91: =(C95+C96)/2 -> 625 | F91: 240 | G91: =C96-C95 -> 250 | I91: verticals | J91: 1 | K91: 1.5 | L91: 1 | M91: 1 | X91: 20 | Y91: -100 | Z91: 491.4912393 | AA91: -48.2555799 | AR91: 88 | AS91: =$F$33+$F$35*CALC!D111*FIGURE_V2!$E$28 -> 87 | AT91: =$F$34+$F$35*($B$64+$C$64+$E$46*$D$64*CALC!F111*$F$46) -> -350 | AU91: =$F$34+$F$35*($B$65+$C$65+$E$49*$D$65*CALC!L111*$F$49) -> -761.9294118 | AV91: =($Y$178*($F$34+$F$35*($B$65+$C$65+$E$49*$D$65*CALC!J111*$F$49))) -> -688.2352941 | AW91: =$F$34+$F$35*($B$66+$C$66+$E$52*$D$66*CALC!N111*$F$52) -> -1316.40256 | AX91: =$Y$178*($F$34+$F$35*($B$66+$C$66+$E$52*$D$66*CALC!O111*$F$52)) -> -1360 | AY91: =CALC!U111 ->  | AZ91: =CALC!R111 ->  | BA91: =CALC!S111 ->  | BB91: =CALC!T111 ->  | BC91: 30 | BD91: 600 | BE91: 594 | BF91: -250 | BG91: -741.3882353 | BH91: -1252.94464
A92: =I95 -> 250 | B92: 250 | C92: =IF(A93=A92,NA(),A92) -> 250 | D92: =$F$34+$F$35*$A$88 -> 220 | E92: =(C98+C99)/2 ->  | F92: 240 | G92: =C99-C98 ->  | I92: =IF(ISNUMBER(CALC!BV5),$F$33+$F$35*CALC!BV5*FIGURE_V2!$E$28,NA()) -> 0 | J92: =$F$34+$F$35*$C$55*$J$91 -> -1500 | L92: =IF(CALC!Y40>0,$F$33+$F$35*CALC!Y40*FIGURE_V2!$E$28,NA()) -> 125 | M92: =$F$34+$F$35*$C$55*$L$91 -> -1500 | S92: támasztóerők | X92: 25 | Y92: -95 | Z92: 495.7293686 | AA92: -48.81354021 | AR92: 89 | AS92: =$F$33+$F$35*CALC!D112*FIGURE_V2!$E$28 -> 88 | AT92: =$F$34+$F$35*($B$64+$C$64+$E$46*$D$64*CALC!F112*$F$46) -> -350 | AU92: =$F$34+$F$35*($B$65+$C$65+$E$49*$D$65*CALC!L112*$F$49) -> -762.7764706 | AV92: =($Y$178*($F$34+$F$35*($B$65+$C$65+$E$49*$D$65*CALC!J112*$F$49))) -> -688.2352941 | AW92: =$F$34+$F$35*($B$66+$C$66+$E$52*$D$66*CALC!N112*$F$52) -> -1315.39456 | AX92: =$Y$178*($F$34+$F$35*($B$66+$C$66+$E$52*$D$66*CALC!O112*$F$52)) -> -1360 | AY92: =CALC!U112 ->  | AZ92: =CALC!R112 ->  | BA92: =CALC!S112 ->  | BB92: =CALC!T112 -> 
A93: =I98 -> 500 | B93: 500 | C93: =IF(A93=A92,NA(),A93) -> 500 | D93: =$F$34+$F$35*$A$88 -> 220 | E93: =(C101+C102)/2 -> 875 | F93: 240 | G93: =C102-C101 -> 250 | I93: =I92 -> 0 | J93: =$F$34+$F$35*$C$43*$K$91 -> 300 | L93: =L92 -> 125 | M93: =$F$34+$F$35*$C$43*$M$91 -> 200 | S93: show | T93: 1 | U93: =IF(OR(T93=0,B13=FALSE,B20=FALSE),NA(),1) -> 1 | X93: 30 | Y93: -90 | Z93: 500 | AA93: -49 | AR93: 90 | AS93: =$F$33+$F$35*CALC!D113*FIGURE_V2!$E$28 -> 89 | AT93: =$F$34+$F$35*($B$64+$C$64+$E$46*$D$64*CALC!F113*$F$46) -> -350 | AU93: =$F$34+$F$35*($B$65+$C$65+$E$49*$D$65*CALC!L113*$F$49) -> -763.6235294 | AV93: =($Y$178*($F$34+$F$35*($B$65+$C$65+$E$49*$D$65*CALC!J113*$F$49))) -> -688.2352941 | AW93: =$F$34+$F$35*($B$66+$C$66+$E$52*$D$66*CALC!N113*$F$52) -> -1314.37504 | AX93: =$Y$178*($F$34+$F$35*($B$66+$C$66+$E$52*$D$66*CALC!O113*$F$52)) -> -1360 | AY93: =CALC!U113 ->  | AZ93: =CALC!R113 ->  | BA93: =CALC!S113 ->  | BB93: =CALC!T113 ->  | BC93: 31 | BD93: 620 | BE93: 614 | BF93: -350 | BG93: -688.2352941 | BH93: -1360
E94: =(C104+C105)/2 ->  | F94: 240 | G94: =C105-C104 ->  | P94: fal | Q94: =IF(B1="w",1,0) -> 0 | S94: loc | X94: 35 | Y94: -85 | Z94: 504.2706314 | AA94: -48.81354021 | AR94: 91 | AS94: =$F$33+$F$35*CALC!D114*FIGURE_V2!$E$28 -> 90 | AT94: =$F$34+$F$35*($B$64+$C$64+$E$46*$D$64*CALC!F114*$F$46) -> -350 | AU94: =$F$34+$F$35*($B$65+$C$65+$E$49*$D$65*CALC!L114*$F$49) -> -764.4705882 | AV94: =($Y$178*($F$34+$F$35*($B$65+$C$65+$E$49*$D$65*CALC!J114*$F$49))) -> -688.2352941 | AW94: =$F$34+$F$35*($B$66+$C$66+$E$52*$D$66*CALC!N114*$F$52) -> -1313.344 | AX94: =$Y$178*($F$34+$F$35*($B$66+$C$66+$E$52*$D$66*CALC!O114*$F$52)) -> -1360 | AY94: =CALC!U114 ->  | AZ94: =CALC!R114 ->  | BA94: =CALC!S114 ->  | BB94: =CALC!T114 ->  | BC94: 31 | BD94: 620 | BE94: 614 | BF94: -250 | BG94: -758.3294118 | BH94: -1236.18304
A95: =I98 -> 500 | B95: 500 | C95: =IF(A96=A95,NA(),A95) -> 500 | D95: =$F$34+$F$35*$A$88 -> 220 | E95: =(C107+C108)/2 ->  | F95: 240 | G95: =C108-C107 ->  | I95: =IF(ISNUMBER(CALC!BV6),$F$33+$F$35*CALC!BV6*FIGURE_V2!$E$28,NA()) -> 250 | J95: =$F$34+$F$35*$C$55*$J$91 -> -1500 | L95: =IF(CALC!Y41>0,$F$33+$F$35*CALC!Y41*FIGURE_V2!$E$28,NA()) -> 375 | M95: =$F$34+$F$35*$C$55*$L$91 -> -1500 | P95: =IF(Q94=1,1,NA()) ->  | Q95: 70 | R95: Fax | S95: =U93*$F$33+$F$35*$D$13*$E$28 -> 250 | T95: =F34 -> 0 | U95: 2 | V95: =IF(B13=0,NA(),IF(U95=1,S95,S95-SIGN(B13)*U96)) -> 350 | W95: =T95 -> 0 | X95: 40 | Y95: -80 | Z95: 508.5087607 | AA95: -48.2555799 | AR95: 92 | AS95: =$F$33+$F$35*CALC!D115*FIGURE_V2!$E$28 -> 91 | AT95: =$F$34+$F$35*($B$64+$C$64+$E$46*$D$64*CALC!F115*$F$46) -> -350 | AU95: =$F$34+$F$35*($B$65+$C$65+$E$49*$D$65*CALC!L115*$F$49) -> -765.3176471 | AV95: =($Y$178*($F$34+$F$35*($B$65+$C$65+$E$49*$D$65*CALC!J115*$F$49))) -> -688.2352941 | AW95: =$F$34+$F$35*($B$66+$C$66+$E$52*$D$66*CALC!N115*$F$52) -> -1312.30144 | AX95: =$Y$178*($F$34+$F$35*($B$66+$C$66+$E$52*$D$66*CALC!O115*$F$52)) -> -1360 | AY95: =CALC!U115 ->  | AZ95: =CALC!R115 ->  | BA95: =CALC!S115 ->  | BB95: =CALC!T115 -> 
A96: =I101 -> 750 | B96: 750 | C96: =IF(A96=A95,NA(),A96) -> 750 | D96: =$F$34+$F$35*$A$88 -> 220 | E96: =(C110+C111)/2 ->  | F96: 240 | G96: =C111-C110 ->  | I96: =I95 -> 250 | J96: =$F$34+$F$35*$C$43*$K$91 -> 300 | L96: =L95 -> 375 | M96: =$F$34+$F$35*$C$43*$M$91 -> 200 | Q96: 70 | U96: 100 | V96: =IF(B13=0,NA(),IF(U95=1,SIGN(B13)*(S95+B13),S95)) -> 250 | W96: =T95 -> 0 | X96: 45 | Y96: -75 | Z96: 512.6821332 | AA96: -47.33036549 | AR96: 93 | AS96: =$F$33+$F$35*CALC!D116*FIGURE_V2!$E$28 -> 92 | AT96: =$F$34+$F$35*($B$64+$C$64+$E$46*$D$64*CALC!F116*$F$46) -> -350 | AU96: =$F$34+$F$35*($B$65+$C$65+$E$49*$D$65*CALC!L116*$F$49) -> -766.1647059 | AV96: =($Y$178*($F$34+$F$35*($B$65+$C$65+$E$49*$D$65*CALC!J116*$F$49))) -> -688.2352941 | AW96: =$F$34+$F$35*($B$66+$C$66+$E$52*$D$66*CALC!N116*$F$52) -> -1311.24736 | AX96: =$Y$178*($F$34+$F$35*($B$66+$C$66+$E$52*$D$66*CALC!O116*$F$52)) -> -1360 | AY96: =CALC!U116 ->  | AZ96: =CALC!R116 ->  | BA96: =CALC!S116 ->  | BB96: =CALC!T116 ->  | BC96: 32 | BD96: 640 | BE96: 633 | BF96: -350 | BG96: -688.2352941 | BH96: -1360
E97: =(C113+C114)/2 ->  | F97: 240 | G97: =C114-C113 ->  | Q97: 20 | X97: 50 | Y97: -70 | Z97: 516.758987 | AA97: -46.04493842 | AR97: 94 | AS97: =$F$33+$F$35*CALC!D117*FIGURE_V2!$E$28 -> 93 | AT97: =$F$34+$F$35*($B$64+$C$64+$E$46*$D$64*CALC!F117*$F$46) -> -350 | AU97: =$F$34+$F$35*($B$65+$C$65+$E$49*$D$65*CALC!L117*$F$49) -> -767.0117647 | AV97: =($Y$178*($F$34+$F$35*($B$65+$C$65+$E$49*$D$65*CALC!J117*$F$49))) -> -688.2352941 | AW97: =$F$34+$F$35*($B$66+$C$66+$E$52*$D$66*CALC!N117*$F$52) -> -1310.18176 | AX97: =$Y$178*($F$34+$F$35*($B$66+$C$66+$E$52*$D$66*CALC!O117*$F$52)) -> -1360 | AY97: =CALC!U117 ->  | AZ97: =CALC!R117 ->  | BA97: =CALC!S117 ->  | BB97: =CALC!T117 ->  | BC97: 32 | BD97: 640 | BE97: 633 | BF97: -250 | BG97: -774.4235294 | BH97: -1215.99136
A98: =I101 -> 750 | B98: 750 | C98: =IF(A99=A98,NA(),A98) ->  | D98: =$F$34+$F$35*$A$88 -> 220 | E98: =(C116+C117)/2 ->  | F98: 240 | G98: =C117-C116 ->  | I98: =IF(ISNUMBER(CALC!BV7),$F$33+$F$35*CALC!BV7*FIGURE_V2!$E$28,NA()) -> 500 | J98: =$F$34+$F$35*$C$55*$J$91 -> -1500 | L98: =IF(CALC!Y42>0,$F$33+$F$35*CALC!Y42*FIGURE_V2!$E$28,NA()) -> 625 | M98: =$F$34+$F$35*$C$55*$L$91 -> -1500 | R98: Fay | S98: =S95 -> 250 | T98: =IF(B1="s",Q11,IF(B1="w",F34)) -> -63.30127019 | U98: 2 | V98: =S98 -> 250 | W98: =IF(C13=0,NA(),IF(C13>0,T98-U99,T98)) -> -163.3012702 | X98: 55 | Y98: -65 | Z98: 520.7082948 | AA98: -44.40908156 | AR98: 95 | AS98: =$F$33+$F$35*CALC!D118*FIGURE_V2!$E$28 -> 94 | AT98: =$F$34+$F$35*($B$64+$C$64+$E$46*$D$64*CALC!F118*$F$46) -> -350 | AU98: =$F$34+$F$35*($B$65+$C$65+$E$49*$D$65*CALC!L118*$F$49) -> -767.8588235 | AV98: =($Y$178*($F$34+$F$35*($B$65+$C$65+$E$49*$D$65*CALC!J118*$F$49))) -> -688.2352941 | AW98: =$F$34+$F$35*($B$66+$C$66+$E$52*$D$66*CALC!N118*$F$52) -> -1309.10464 | AX98: =$Y$178*($F$34+$F$35*($B$66+$C$66+$E$52*$D$66*CALC!O118*$F$52)) -> -1360 | AY98: =CALC!U118 ->  | AZ98: =CALC!R118 ->  | BA98: =CALC!S118 ->  | BB98: =CALC!T118 -> 
A99: =I104 -> 750 | B99: 750 | C99: =IF(A99=A98,NA(),A99) ->  | D99: =$F$34+$F$35*$A$88 -> 220 | E99: =(C119+C120)/2 ->  | F99: 240 | G99: =C120-C119 ->  | I99: =I98 -> 500 | J99: =$F$34+$F$35*$C$43*$K$91 -> 300 | L99: =L98 -> 625 | M99: =$F$34+$F$35*$C$43*$M$91 -> 200 | U99: 100 | V99: =S98 -> 250 | W99: =IF(C13=0,NA(),IF(C13>0,T98,T98-U99)) -> -63.30127019 | X99: 60 | Y99: -60 | Z99: 524.5 | AA99: -42.43524479 | AR99: 96 | AS99: =$F$33+$F$35*CALC!D119*FIGURE_V2!$E$28 -> 95 | AT99: =$F$34+$F$35*($B$64+$C$64+$E$46*$D$64*CALC!F119*$F$46) -> -350 | AU99: =$F$34+$F$35*($B$65+$C$65+$E$49*$D$65*CALC!L119*$F$49) -> -768.7058824 | AV99: =($Y$178*($F$34+$F$35*($B$65+$C$65+$E$49*$D$65*CALC!J119*$F$49))) -> -688.2352941 | AW99: =$F$34+$F$35*($B$66+$C$66+$E$52*$D$66*CALC!N119*$F$52) -> -1308.016 | AX99: =$Y$178*($F$34+$F$35*($B$66+$C$66+$E$52*$D$66*CALC!O119*$F$52)) -> -1360 | AY99: =CALC!U119 ->  | AZ99: =CALC!R119 ->  | BA99: =CALC!S119 ->  | BB99: =CALC!T119 ->  | BC99: 33 | BD99: 660 | BE99: 653 | BF99: -350 | BG99: -688.2352941 | BH99: -1360
E100: =(C122+C123)/2 ->  | F100: 240 | G100: =C123-C122 ->  | X100: 65 | Y100: -55 | Z100: 528.1052454 | AA100: -40.13845017 | AR100: 97 | AS100: =$F$33+$F$35*CALC!D120*FIGURE_V2!$E$28 -> 96 | AT100: =$F$34+$F$35*($B$64+$C$64+$E$46*$D$64*CALC!F120*$F$46) -> -350 | AU100: =$F$34+$F$35*($B$65+$C$65+$E$49*$D$65*CALC!L120*$F$49) -> -769.5529412 | AV100: =($Y$178*($F$34+$F$35*($B$65+$C$65+$E$49*$D$65*CALC!J120*$F$49))) -> -688.2352941 | AW100: =$F$34+$F$35*($B$66+$C$66+$E$52*$D$66*CALC!N120*$F$52) -> -1306.91584 | AX100: =$Y$178*($F$34+$F$35*($B$66+$C$66+$E$52*$D$66*CALC!O120*$F$52)) -> -1360 | AY100: =CALC!U120 ->  | AZ100: =CALC!R120 ->  | BA100: =CALC!S120 ->  | BB100: =CALC!T120 ->  | BC100: 33 | BD100: 660 | BE100: 653 | BF100: -250 | BG100: -791.3647059 | BH100: -1190.24416
A101: =I104 -> 750 | B101: 750 | C101: =IF(A102=A101,NA(),A101) -> 750 | D101: =$F$34+$F$35*$A$88 -> 220 | E101: =(C125+C126)/2 ->  | F101: 240 | G101: =C126-C125 ->  | I101: =IF(ISNUMBER(CALC!BV8),$F$33+$F$35*CALC!BV8*FIGURE_V2!$E$28,NA()) -> 750 | J101: =$F$34+$F$35*$C$55*$J$91 -> -1500 | L101: =IF(CALC!Y43>0,$F$33+$F$35*CALC!Y43*FIGURE_V2!$E$28,NA()) ->  | M101: =$F$34+$F$35*$C$55*$L$91 -> -1500 | R101: Fby | S101: =IF(B1="w",NA(),U93*$F$33+$F$35*$D$14*$E$28) -> 750 | T101: =T11 -> -83.30127019 | U101: 2 | V101: =S101 -> 750 | W101: =IF(C14=0,NA(),IF(C14>0,T101-U102,T101)) -> -183.3012702 | X101: 70 | Y101: -50 | Z101: 531.4965929 | AA101: -37.53617771 | AR101: 98 | AS101: =$F$33+$F$35*CALC!D121*FIGURE_V2!$E$28 -> 97 | AT101: =$F$34+$F$35*($B$64+$C$64+$E$46*$D$64*CALC!F121*$F$46) -> -350 | AU101: =$F$34+$F$35*($B$65+$C$65+$E$49*$D$65*CALC!L121*$F$49) -> -770.4 | AV101: =($Y$178*($F$34+$F$35*($B$65+$C$65+$E$49*$D$65*CALC!J121*$F$49))) -> -688.2352941 | AW101: =$F$34+$F$35*($B$66+$C$66+$E$52*$D$66*CALC!N121*$F$52) -> -1305.80416 | AX101: =$Y$178*($F$34+$F$35*($B$66+$C$66+$E$52*$D$66*CALC!O121*$F$52)) -> -1360 | AY101: =CALC!U121 ->  | AZ101: =CALC!R121 ->  | BA101: =CALC!S121 ->  | BB101: =CALC!T121 -> 
A102: =I107 -> 1000 | B102: 1000 | C102: =IF(A102=A101,NA(),A102) -> 1000 | D102: =$F$34+$F$35*$A$88 -> 220 | E102: =(C128+C129)/2 ->  | F102: 240 | G102: =C129-C128 ->  | I102: =I101 -> 750 | J102: =$F$34+$F$35*$C$43*$K$91 -> 300 | L102: =L101 ->  | M102: =$F$34+$F$35*$C$43*$M$91 -> 200 | U102: 100 | V102: =S101 -> 750 | W102: =IF(C14=0,NA(),IF(C14>0,T101,T101-U102)) -> -83.30127019 | X102: 75 | Y102: -45 | Z102: 534.6482323 | AA102: -34.64823228 | AR102: 99 | AS102: =$F$33+$F$35*CALC!D122*FIGURE_V2!$E$28 -> 98 | AT102: =$F$34+$F$35*($B$64+$C$64+$E$46*$D$64*CALC!F122*$F$46) -> -350 | AU102: =$F$34+$F$35*($B$65+$C$65+$E$49*$D$65*CALC!L122*$F$49) -> -771.2470588 | AV102: =($Y$178*($F$34+$F$35*($B$65+$C$65+$E$49*$D$65*CALC!J122*$F$49))) -> -688.2352941 | AW102: =$F$34+$F$35*($B$66+$C$66+$E$52*$D$66*CALC!N122*$F$52) -> -1304.68096 | AX102: =$Y$178*($F$34+$F$35*($B$66+$C$66+$E$52*$D$66*CALC!O122*$F$52)) -> -1360 | AY102: =CALC!U122 ->  | AZ102: =CALC!R122 ->  | BA102: =CALC!S122 ->  | BB102: =CALC!T122 ->  | BC102: 34 | BD102: 680 | BE102: 673 | BF102: -350 | BG102: -688.2352941 | BH102: -1360
E103: =(C131+C132)/2 ->  | F103: 240 | G103: =C132-C131 ->  | P103: =$P$95*$F$33+$F$35*B30*$E$28 ->  | Q103: =$F$34+$F$35*Q95 -> 70 | X103: 80 | Y103: -40 | Z103: 537.5361777 | AA103: -31.49659287 | AR103: 100 | AS103: =$F$33+$F$35*CALC!D123*FIGURE_V2!$E$28 -> 99 | AT103: =$F$34+$F$35*($B$64+$C$64+$E$46*$D$64*CALC!F123*$F$46) -> -350 | AU103: =$F$34+$F$35*($B$65+$C$65+$E$49*$D$65*CALC!L123*$F$49) -> -772.0941176 | AV103: =($Y$178*($F$34+$F$35*($B$65+$C$65+$E$49*$D$65*CALC!J123*$F$49))) -> -688.2352941 | AW103: =$F$34+$F$35*($B$66+$C$66+$E$52*$D$66*CALC!N123*$F$52) -> -1303.54624 | AX103: =$Y$178*($F$34+$F$35*($B$66+$C$66+$E$52*$D$66*CALC!O123*$F$52)) -> -1360 | AY103: =CALC!U123 ->  | AZ103: =CALC!R123 ->  | BA103: =CALC!S123 ->  | BB103: =CALC!T123 ->  | BC103: 34 | BD103: 680 | BE103: 673 | BF103: -250 | BG103: -808.3058824 | BH103: -1159.88896
A104: =I107 -> 1000 | B104: 1000 | C104: =IF(A105=A104,NA(),A104) ->  | D104: =$F$34+$F$35*$A$88 -> 220 | E104: =(C134+C135)/2 ->  | F104: 240 | G104: =C135-C134 ->  | I104: =IF(ISNUMBER(CALC!BV9),$F$33+$F$35*CALC!BV9*FIGURE_V2!$E$28,NA()) -> 750 | J104: =$F$34+$F$35*$C$55*$J$91 -> -1500 | L104: =IF(CALC!Y44>0,$F$33+$F$35*CALC!Y44*FIGURE_V2!$E$28,NA()) ->  | M104: =$F$34+$F$35*$C$55*$L$91 -> -1500 | P104: =P103 ->  | Q104: =$F$34-$F$35*Q95 -> -70 | X104: 85 | Y104: -35 | Z104: 540.1384502 | AA104: -28.10524538 | AR104: 101 | AS104: =$F$33+$F$35*CALC!D124*FIGURE_V2!$E$28 -> 100 | AT104: =$F$34+$F$35*($B$64+$C$64+$E$46*$D$64*CALC!F124*$F$46) -> -350 | AU104: =$F$34+$F$35*($B$65+$C$65+$E$49*$D$65*CALC!L124*$F$49) -> -772.9411765 | AV104: =($Y$178*($F$34+$F$35*($B$65+$C$65+$E$49*$D$65*CALC!J124*$F$49))) -> -688.2352941 | AW104: =$F$34+$F$35*($B$66+$C$66+$E$52*$D$66*CALC!N124*$F$52) -> -1302.4 | AX104: =$Y$178*($F$34+$F$35*($B$66+$C$66+$E$52*$D$66*CALC!O124*$F$52)) -> -1360 | AY104: =CALC!U124 ->  | AZ104: =CALC!R124 ->  | BA104: =CALC!S124 ->  | BB104: =CALC!T124 -> 
A105: =I110 ->  | C105: =IF(A105=A104,NA(),A105) ->  | D105: =$F$34+$F$35*$A$88 -> 220 | E105: =(C137+C138)/2 ->  | F105: 240 | G105: =C138-C137 ->  | I105: =I104 -> 750 | J105: =$F$34+$F$35*$C$43*$K$91 -> 300 | L105: =L104 ->  | M105: =$F$34+$F$35*$C$43*$M$91 -> 200 | X105: 90 | Y105: -30 | Z105: 542.4352448 | AA105: -24.5 | AR105: 102 | AS105: =$F$33+$F$35*CALC!D125*FIGURE_V2!$E$28 -> 101 | AT105: =$F$34+$F$35*($B$64+$C$64+$E$46*$D$64*CALC!F125*$F$46) -> -350 | AU105: =$F$34+$F$35*($B$65+$C$65+$E$49*$D$65*CALC!L125*$F$49) -> -773.7882353 | AV105: =($Y$178*($F$34+$F$35*($B$65+$C$65+$E$49*$D$65*CALC!J125*$F$49))) -> -688.2352941 | AW105: =$F$34+$F$35*($B$66+$C$66+$E$52*$D$66*CALC!N125*$F$52) -> -1301.24224 | AX105: =$Y$178*($F$34+$F$35*($B$66+$C$66+$E$52*$D$66*CALC!O125*$F$52)) -> -1360 | AY105: =CALC!U125 ->  | AZ105: =CALC!R125 ->  | BA105: =CALC!S125 ->  | BB105: =CALC!T125 ->  | BC105: 35 | BD105: 700 | BE105: 693 | BF105: -350 | BG105: -688.2352941 | BH105: -1360
E106: =(C140+C141)/2 ->  | F106: 240 | G106: =C141-C140 ->  | P106: =IF($B$30<$B$27,$P$103-$Q$97,$P$103) ->  | Q106: =Q104 -> -70 | S106: labels | T106: -10 | U106: -30 | X106: 95 | Y106: -25 | Z106: 544.4090816 | AA106: -20.70829483 | AR106: 103 | AS106: =$F$33+$F$35*CALC!D126*FIGURE_V2!$E$28 -> 102 | AT106: =$F$34+$F$35*($B$64+$C$64+$E$46*$D$64*CALC!F126*$F$46) -> -350 | AU106: =$F$34+$F$35*($B$65+$C$65+$E$49*$D$65*CALC!L126*$F$49) -> -774.6352941 | AV106: =($Y$178*($F$34+$F$35*($B$65+$C$65+$E$49*$D$65*CALC!J126*$F$49))) -> -688.2352941 | AW106: =$F$34+$F$35*($B$66+$C$66+$E$52*$D$66*CALC!N126*$F$52) -> -1300.07296 | AX106: =$Y$178*($F$34+$F$35*($B$66+$C$66+$E$52*$D$66*CALC!O126*$F$52)) -> -1360 | AY106: =CALC!U126 ->  | AZ106: =CALC!R126 ->  | BA106: =CALC!S126 ->  | BB106: =CALC!T126 ->  | BC106: 35 | BD106: 700 | BE106: 693 | BF106: -250 | BG106: -825.2470588 | BH106: -1124.92576
A107: =I110 ->  | C107: =IF(A108=A107,NA(),A107) ->  | D107: =$F$34+$F$35*$A$88 -> 220 | E107: =(C143+C144)/2 ->  | F107: 240 | G107: =C144-C143 ->  | I107: =IF(ISNUMBER(CALC!BV10),$F$33+$F$35*CALC!BV10*FIGURE_V2!$E$28,NA()) -> 1000 | J107: =$F$34+$F$35*$C$55*$J$91 -> -1500 | L107: =IF(CALC!Y45>0,$F$33+$F$35*CALC!Y45*FIGURE_V2!$E$28,NA()) ->  | M107: =$F$34+$F$35*$C$55*$L$91 -> -1500 | P107: =IF($B$30<$B$27,$P$103,$P$103+$Q$97) ->  | Q107: =IF(Q106+$Q$97>$Q$103,NA(),Q106+$Q$97) -> -50 | S107: x | T107: =J3+T106 -> 1090 | U107: =K3+U106 -> -30 | X107: 100 | Y107: -20 | Z107: 546.0449384 | AA107: -16.75898702 | AR107: 104 | AS107: =$F$33+$F$35*CALC!D127*FIGURE_V2!$E$28 -> 103 | AT107: =$F$34+$F$35*($B$64+$C$64+$E$46*$D$64*CALC!F127*$F$46) -> -350 | AU107: =$F$34+$F$35*($B$65+$C$65+$E$49*$D$65*CALC!L127*$F$49) -> -775.4823529 | AV107: =($Y$178*($F$34+$F$35*($B$65+$C$65+$E$49*$D$65*CALC!J127*$F$49))) -> -688.2352941 | AW107: =$F$34+$F$35*($B$66+$C$66+$E$52*$D$66*CALC!N127*$F$52) -> -1298.89216 | AX107: =$Y$178*($F$34+$F$35*($B$66+$C$66+$E$52*$D$66*CALC!O127*$F$52)) -> -1360 | AY107: =CALC!U127 ->  | AZ107: =CALC!R127 ->  | BA107: =CALC!S127 ->  | BB107: =CALC!T127 -> 
A108: =I113 ->  | C108: =IF(A108=A107,NA(),A108) ->  | D108: =$F$34+$F$35*$A$88 -> 220 | E108: =(C146+C147)/2 ->  | F108: 240 | G108: =C147-C146 ->  | I108: =I107 -> 1000 | J108: =$F$34+$F$35*$C$43*$K$91 -> 300 | L108: =L107 ->  | M108: =$F$34+$F$35*$C$43*$M$91 -> 200 | S108: x | T108: =J3+T106 -> 1090 | U108: =K73+U106 -> -380 | X108: 105 | Y108: -15 | Z108: 547.3303655 | AA108: -12.68213321 | AR108: 105 | AS108: =$F$33+$F$35*CALC!D128*FIGURE_V2!$E$28 -> 104 | AT108: =$F$34+$F$35*($B$64+$C$64+$E$46*$D$64*CALC!F128*$F$46) -> -350 | AU108: =$F$34+$F$35*($B$65+$C$65+$E$49*$D$65*CALC!L128*$F$49) -> -776.3294118 | AV108: =($Y$178*($F$34+$F$35*($B$65+$C$65+$E$49*$D$65*CALC!J128*$F$49))) -> -688.2352941 | AW108: =$F$34+$F$35*($B$66+$C$66+$E$52*$D$66*CALC!N128*$F$52) -> -1297.69984 | AX108: =$Y$178*($F$34+$F$35*($B$66+$C$66+$E$52*$D$66*CALC!O128*$F$52)) -> -1360 | AY108: =CALC!U128 ->  | AZ108: =CALC!R128 ->  | BA108: =CALC!S128 ->  | BB108: =CALC!T128 ->  | BC108: 36 | BD108: 720 | BE108: 713 | BF108: -350 | BG108: -688.2352941 | BH108: -1360
E109: =(C149+C150)/2 ->  | F109: 240 | G109: =C150-C149 ->  | P109: =IF($B$30<$B$27,$P$103-$Q$97,$P$103) ->  | Q109: =Q107 -> -50 | S109: x | T109: =J3+T106 -> 1090 | U109: =K79+U106 -> -718.2352941 | X109: 110 | Y109: -10 | Z109: 548.2555799 | AA109: -8.508760706 | AR109: 106 | AS109: =$F$33+$F$35*CALC!D129*FIGURE_V2!$E$28 -> 105 | AT109: =$F$34+$F$35*($B$64+$C$64+$E$46*$D$64*CALC!F129*$F$46) -> -350 | AU109: =$F$34+$F$35*($B$65+$C$65+$E$49*$D$65*CALC!L129*$F$49) -> -777.1764706 | AV109: =($Y$178*($F$34+$F$35*($B$65+$C$65+$E$49*$D$65*CALC!J129*$F$49))) -> -688.2352941 | AW109: =$F$34+$F$35*($B$66+$C$66+$E$52*$D$66*CALC!N129*$F$52) -> -1296.496 | AX109: =$Y$178*($F$34+$F$35*($B$66+$C$66+$E$52*$D$66*CALC!O129*$F$52)) -> -1360 | AY109: =CALC!U129 ->  | AZ109: =CALC!R129 ->  | BA109: =CALC!S129 ->  | BB109: =CALC!T129 ->  | BC109: 36 | BD109: 720 | BE109: 713 | BF109: -250 | BG109: -842.1882353 | BH109: -1085.35456
A110: =I114 ->  | C110: =IF(A111=A110,NA(),A110) ->  | D110: =$F$34+$F$35*$A$88 -> 220 | E110: =(C152+C153)/2 ->  | F110: 240 | G110: =C153-C152 ->  | I110: =IF(ISNUMBER(CALC!BV11),$F$33+$F$35*CALC!BV11*FIGURE_V2!$E$28,NA()) ->  | J110: =$F$34+$F$35*$C$55*$J$91 -> -1500 | L110: =IF(CALC!Y46>0,$F$33+$F$35*CALC!Y46*FIGURE_V2!$E$28,NA()) ->  | M110: =$F$34+$F$35*$C$55*$L$91 -> -1500 | P110: =IF($B$30<$B$27,$P$103,$P$103+$Q$97) ->  | Q110: =IF(Q109+$Q$97>$Q$103,NA(),Q109+$Q$97) -> -30 | S110: x | T110: =J3+T106 -> 1090 | U110: =K85+U106 -> -1390 | X110: 115 | Y110: -5 | Z110: 548.8135402 | AA110: -4.270631395 | AR110: 107 | AS110: =$F$33+$F$35*CALC!D130*FIGURE_V2!$E$28 -> 106 | AT110: =$F$34+$F$35*($B$64+$C$64+$E$46*$D$64*CALC!F130*$F$46) -> -350 | AU110: =$F$34+$F$35*($B$65+$C$65+$E$49*$D$65*CALC!L130*$F$49) -> -778.0235294 | AV110: =($Y$178*($F$34+$F$35*($B$65+$C$65+$E$49*$D$65*CALC!J130*$F$49))) -> -688.2352941 | AW110: =$F$34+$F$35*($B$66+$C$66+$E$52*$D$66*CALC!N130*$F$52) -> -1295.28064 | AX110: =$Y$178*($F$34+$F$35*($B$66+$C$66+$E$52*$D$66*CALC!O130*$F$52)) -> -1360 | AY110: =CALC!U130 ->  | AZ110: =CALC!R130 ->  | BA110: =CALC!S130 ->  | BB110: =CALC!T130 -> 
A111: =I116 ->  | C111: =IF(A111=A110,NA(),A111) ->  | D111: =$F$34+$F$35*$A$88 -> 220 | E111: =(C155+C156)/2 ->  | F111: 240 | G111: =C156-C155 ->  | I111: =I110 ->  | J111: =$F$34+$F$35*$C$43*$K$91 -> 300 | L111: =L110 ->  | M111: =$F$34+$F$35*$C$43*$M$91 -> 200 | T111: -20 | U111: 0 | X111: 120 | Y111: 0 | Z111: 549 | AA111: 0 | AR111: 108 | AS111: =$F$33+$F$35*CALC!D131*FIGURE_V2!$E$28 -> 107 | AT111: =$F$34+$F$35*($B$64+$C$64+$E$46*$D$64*CALC!F131*$F$46) -> -350 | AU111: =$F$34+$F$35*($B$65+$C$65+$E$49*$D$65*CALC!L131*$F$49) -> -778.8705882 | AV111: =($Y$178*($F$34+$F$35*($B$65+$C$65+$E$49*$D$65*CALC!J131*$F$49))) -> -688.2352941 | AW111: =$F$34+$F$35*($B$66+$C$66+$E$52*$D$66*CALC!N131*$F$52) -> -1294.05376 | AX111: =$Y$178*($F$34+$F$35*($B$66+$C$66+$E$52*$D$66*CALC!O131*$F$52)) -> -1360 | AY111: =CALC!U131 ->  | AZ111: =CALC!R131 ->  | BA111: =CALC!S131 ->  | BB111: =CALC!T131 ->  | BC111: 37 | BD111: 740 | BE111: 733 | BF111: -350 | BG111: -688.2352941 | BH111: -1360
E112: =(C158+C159)/2 ->  | F112: 240 | G112: =C159-C158 ->  | P112: =IF($B$30<$B$27,$P$103-$Q$97,$P$103) ->  | Q112: =Q110 -> -30 | S112: y | T112: =J6+T111 -> -20 | U112: =K6+U111 -> 150 | X112: 125 | Y112: 5 | Z112: 548.8135402 | AA112: 4.270631395 | AR112: 109 | AS112: =$F$33+$F$35*CALC!D132*FIGURE_V2!$E$28 -> 108 | AT112: =$F$34+$F$35*($B$64+$C$64+$E$46*$D$64*CALC!F132*$F$46) -> -350 | AU112: =$F$34+$F$35*($B$65+$C$65+$E$49*$D$65*CALC!L132*$F$49) -> -779.7176471 | AV112: =($Y$178*($F$34+$F$35*($B$65+$C$65+$E$49*$D$65*CALC!J132*$F$49))) -> -688.2352941 | AW112: =$F$34+$F$35*($B$66+$C$66+$E$52*$D$66*CALC!N132*$F$52) -> -1292.81536 | AX112: =$Y$178*($F$34+$F$35*($B$66+$C$66+$E$52*$D$66*CALC!O132*$F$52)) -> -1360 | AY112: =CALC!U132 ->  | AZ112: =CALC!R132 ->  | BA112: =CALC!S132 ->  | BB112: =CALC!T132 ->  | BC112: 37 | BD112: 740 | BE112: 733 | BF112: -250 | BG112: -859.1294118 | BH112: -1041.17536
A113: =I117 ->  | C113: =IF(A114=A113,NA(),A113) ->  | D113: =$F$34+$F$35*$A$88 -> 220 | E113: =(C161+C162)/2 ->  | F113: 240 | G113: =C162-C161 ->  | I113: =IF(ISNUMBER(CALC!BV12),$F$33+$F$35*CALC!BV12*FIGURE_V2!$E$28,NA()) ->  | J113: =$F$34+$F$35*$C$55*$J$91 -> -1500 | L113: =IF(CALC!Y47>0,$F$33+$F$35*CALC!Y47*FIGURE_V2!$E$28,NA()) ->  | M113: =$F$34+$F$35*$C$55*$L$91 -> -1500 | P113: =IF($B$30<$B$27,$P$103,$P$103+$Q$97) ->  | Q113: =IF(Q112+$Q$97>$Q$103,NA(),Q112+$Q$97) -> -10 | T113: -40 | U113: 0 | V113: -20 | X113: 130 | Y113: 10 | Z113: 548.2555799 | AA113: 8.508760706 | AR113: 110 | AS113: =$F$33+$F$35*CALC!D133*FIGURE_V2!$E$28 -> 109 | AT113: =$F$34+$F$35*($B$64+$C$64+$E$46*$D$64*CALC!F133*$F$46) -> -350 | AU113: =$F$34+$F$35*($B$65+$C$65+$E$49*$D$65*CALC!L133*$F$49) -> -780.5647059 | AV113: =($Y$178*($F$34+$F$35*($B$65+$C$65+$E$49*$D$65*CALC!J133*$F$49))) -> -688.2352941 | AW113: =$F$34+$F$35*($B$66+$C$66+$E$52*$D$66*CALC!N133*$F$52) -> -1291.56544 | AX113: =$Y$178*($F$34+$F$35*($B$66+$C$66+$E$52*$D$66*CALC!O133*$F$52)) -> -1360 | AY113: =CALC!U133 ->  | AZ113: =CALC!R133 ->  | BA113: =CALC!S133 ->  | BB113: =CALC!T133 -> 
A114: =I119 ->  | C114: =IF(A114=A113,NA(),A114) ->  | D114: =$F$34+$F$35*$A$88 -> 220 | E114: =(C164+C165)/2 ->  | F114: 240 | G114: =C165-C164 ->  | I114: =I113 ->  | J114: =$F$34+$F$35*$C$43*$K$91 -> 300 | L114: =L113 ->  | M114: =$F$34+$F$35*$C$43*$M$91 -> 200 | S114: N | T114: =J75+T113 -> -40 | U114: =K76+U113 -> -210 | X114: 135 | Y114: 15 | Z114: 547.3303655 | AA114: 12.68213321 | AR114: 111 | AS114: =$F$33+$F$35*CALC!D134*FIGURE_V2!$E$28 -> 110 | AT114: =$F$34+$F$35*($B$64+$C$64+$E$46*$D$64*CALC!F134*$F$46) -> -350 | AU114: =$F$34+$F$35*($B$65+$C$65+$E$49*$D$65*CALC!L134*$F$49) -> -781.4117647 | AV114: =($Y$178*($F$34+$F$35*($B$65+$C$65+$E$49*$D$65*CALC!J134*$F$49))) -> -688.2352941 | AW114: =$F$34+$F$35*($B$66+$C$66+$E$52*$D$66*CALC!N134*$F$52) -> -1290.304 | AX114: =$Y$178*($F$34+$F$35*($B$66+$C$66+$E$52*$D$66*CALC!O134*$F$52)) -> -1360 | AY114: =CALC!U134 ->  | AZ114: =CALC!R134 ->  | BA114: =CALC!S134 ->  | BB114: =CALC!T134 ->  | BC114: =IF(ISNUMBER(BC39),BC39+25,NA()) -> 38 | BD114: 760 | BE114: 752 | BF114: -350 | BG114: -688.2352941 | BH114: -1360
E115: =(C167+C168)/2 ->  | F115: 240 | G115: =C168-C167 ->  | P115: =IF($B$30<$B$27,$P$103-$Q$97,$P$103) ->  | Q115: =Q113 -> -10 | T115: =J75+T113 -> -40 | U115: =K76+V113 -> -230 | X115: 140 | Y115: 20 | Z115: 546.0449384 | AA115: 16.75898702 | AR115: 112 | AS115: =$F$33+$F$35*CALC!D135*FIGURE_V2!$E$28 -> 111 | AT115: =$F$34+$F$35*($B$64+$C$64+$E$46*$D$64*CALC!F135*$F$46) -> -350 | AU115: =$F$34+$F$35*($B$65+$C$65+$E$49*$D$65*CALC!L135*$F$49) -> -782.2588235 | AV115: =($Y$178*($F$34+$F$35*($B$65+$C$65+$E$49*$D$65*CALC!J135*$F$49))) -> -688.2352941 | AW115: =$F$34+$F$35*($B$66+$C$66+$E$52*$D$66*CALC!N135*$F$52) -> -1289.03104 | AX115: =$Y$178*($F$34+$F$35*($B$66+$C$66+$E$52*$D$66*CALC!O135*$F$52)) -> -1360 | AY115: =CALC!U135 ->  | AZ115: =CALC!R135 ->  | BA115: =CALC!S135 ->  | BB115: =CALC!T135 ->  | BC115: 38 | BD115: 760 | BE115: 752 | BF115: -250 | BG115: -582.3529412 | BH115: -1002.88
A116: =I119 ->  | C116: =IF(A117=A116,NA(),A116) ->  | D116: =$F$34+$F$35*$A$88 -> 220 | E116: =(C170+C171)/2 ->  | F116: 240 | G116: =C171-C170 ->  | I116: =IF(ISNUMBER(CALC!BV13),$F$33+$F$35*CALC!BV13*FIGURE_V2!$E$28,NA()) ->  | J116: =$F$34+$F$35*$C$55*$J$91 -> -1500 | L116: =IF(CALC!Y48>0,$F$33+$F$35*CALC!Y48*FIGURE_V2!$E$28,NA()) ->  | M116: =$F$34+$F$35*$C$55*$L$91 -> -1500 | P116: =IF($B$30<$B$27,$P$103,$P$103+$Q$97) ->  | Q116: =IF(Q115+$Q$97>$Q$103,NA(),Q115+$Q$97) -> 10 | S116: Ty | T116: =J81+T113 -> -40 | U116: =K82+U113 -> -410 | X116: 145 | Y116: 25 | Z116: 544.4090816 | AA116: 20.70829483 | AR116: 113 | AS116: =$F$33+$F$35*CALC!D136*FIGURE_V2!$E$28 -> 112 | AT116: =$F$34+$F$35*($B$64+$C$64+$E$46*$D$64*CALC!F136*$F$46) -> -350 | AU116: =$F$34+$F$35*($B$65+$C$65+$E$49*$D$65*CALC!L136*$F$49) -> -783.1058824 | AV116: =($Y$178*($F$34+$F$35*($B$65+$C$65+$E$49*$D$65*CALC!J136*$F$49))) -> -688.2352941 | AW116: =$F$34+$F$35*($B$66+$C$66+$E$52*$D$66*CALC!N136*$F$52) -> -1287.74656 | AX116: =$Y$178*($F$34+$F$35*($B$66+$C$66+$E$52*$D$66*CALC!O136*$F$52)) -> -1360 | AY116: =CALC!U136 ->  | AZ116: =CALC!R136 ->  | BA116: =CALC!S136 ->  | BB116: =CALC!T136 -> 
A117: =I122 ->  | C117: =IF(A117=A116,NA(),A117) ->  | D117: =$F$34+$F$35*$A$88 -> 220 | E117: =(C173+C174)/2 ->  | F117: 240 | G117: =C174-C173 ->  | I117: =I116 ->  | J117: =$F$34+$F$35*$C$43*$K$91 -> 300 | L117: =L116 ->  | M117: =$F$34+$F$35*$C$43*$M$91 -> 200 | T117: =J81+T113 -> -40 | U117: =K82+V113 -> -430 | X117: 150 | Y117: 30 | Z117: 542.4352448 | AA117: 24.5 | AR117: 114 | AS117: =$F$33+$F$35*CALC!D137*FIGURE_V2!$E$28 -> 113 | AT117: =$F$34+$F$35*($B$64+$C$64+$E$46*$D$64*CALC!F137*$F$46) -> -350 | AU117: =$F$34+$F$35*($B$65+$C$65+$E$49*$D$65*CALC!L137*$F$49) -> -783.9529412 | AV117: =($Y$178*($F$34+$F$35*($B$65+$C$65+$E$49*$D$65*CALC!J137*$F$49))) -> -688.2352941 | AW117: =$F$34+$F$35*($B$66+$C$66+$E$52*$D$66*CALC!N137*$F$52) -> -1286.45056 | AX117: =$Y$178*($F$34+$F$35*($B$66+$C$66+$E$52*$D$66*CALC!O137*$F$52)) -> -1360 | AY117: =CALC!U137 ->  | AZ117: =CALC!R137 ->  | BA117: =CALC!S137 ->  | BB117: =CALC!T137 ->  | BC117: 39 | BD117: 780 | BE117: 772 | BF117: -350 | BG117: -688.2352941 | BH117: -1360
E118: =(C176+C177)/2 ->  | F118: 240 | G118: =C177-C176 ->  | P118: =IF($B$30<$B$27,$P$103-$Q$97,$P$103) ->  | Q118: =Q116 -> 10 | S118: Mhz | T118: =J87+T113 -> -40 | U118: =K88+U113 -> -960 | X118: 155 | Y118: 35 | Z118: 540.1384502 | AA118: 28.10524538 | AR118: 115 | AS118: =$F$33+$F$35*CALC!D138*FIGURE_V2!$E$28 -> 114 | AT118: =$F$34+$F$35*($B$64+$C$64+$E$46*$D$64*CALC!F138*$F$46) -> -350 | AU118: =$F$34+$F$35*($B$65+$C$65+$E$49*$D$65*CALC!L138*$F$49) -> -784.8 | AV118: =($Y$178*($F$34+$F$35*($B$65+$C$65+$E$49*$D$65*CALC!J138*$F$49))) -> -688.2352941 | AW118: =$F$34+$F$35*($B$66+$C$66+$E$52*$D$66*CALC!N138*$F$52) -> -1285.14304 | AX118: =$Y$178*($F$34+$F$35*($B$66+$C$66+$E$52*$D$66*CALC!O138*$F$52)) -> -1360 | AY118: =CALC!U138 ->  | AZ118: =CALC!R138 ->  | BA118: =CALC!S138 ->  | BB118: =CALC!T138 ->  | BC118: 39 | BD118: 780 | BE118: 772 | BF118: -250 | BG118: -582.3529412 | BH118: -1031.68
A119: =I122 ->  | C119: =IF(A120=A119,NA(),A119) ->  | D119: =$F$34+$F$35*$A$88 -> 220 | E119: =(C179+C180)/2 ->  | F119: 240 | G119: =C180-C179 ->  | I119: =IF(ISNUMBER(CALC!BV14),$F$33+$F$35*CALC!BV14*FIGURE_V2!$E$28,NA()) ->  | J119: =$F$34+$F$35*$C$55*$J$91 -> -1500 | L119: =IF(CALC!Y49>0,$F$33+$F$35*CALC!Y49*FIGURE_V2!$E$28,NA()) ->  | M119: =$F$34+$F$35*$C$55*$L$91 -> -1500 | P119: =IF($B$30<$B$27,$P$103,$P$103+$Q$97) ->  | Q119: =IF(Q118+$Q$97>$Q$103,NA(),Q118+$Q$97) -> 30 | T119: =J87+T113 -> -40 | U119: =K88+V113 -> -980 | X119: 160 | Y119: 40 | Z119: 537.5361777 | AA119: 31.49659287 | AR119: 116 | AS119: =$F$33+$F$35*CALC!D139*FIGURE_V2!$E$28 -> 115 | AT119: =$F$34+$F$35*($B$64+$C$64+$E$46*$D$64*CALC!F139*$F$46) -> -350 | AU119: =$F$34+$F$35*($B$65+$C$65+$E$49*$D$65*CALC!L139*$F$49) -> -785.6470588 | AV119: =($Y$178*($F$34+$F$35*($B$65+$C$65+$E$49*$D$65*CALC!J139*$F$49))) -> -688.2352941 | AW119: =$F$34+$F$35*($B$66+$C$66+$E$52*$D$66*CALC!N139*$F$52) -> -1283.824 | AX119: =$Y$178*($F$34+$F$35*($B$66+$C$66+$E$52*$D$66*CALC!O139*$F$52)) -> -1360 | AY119: =CALC!U139 ->  | AZ119: =CALC!R139 ->  | BA119: =CALC!S139 ->  | BB119: =CALC!T139 -> 
A120: =I125 ->  | C120: =IF(A120=A119,NA(),A120) ->  | D120: =$F$34+$F$35*$A$88 -> 220 | E120: =(C182+C183)/2 ->  | F120: 240 | G120: =C183-C182 ->  | I120: =I119 ->  | J120: =$F$34+$F$35*$C$43*$K$91 -> 300 | L120: =L119 ->  | M120: =$F$34+$F$35*$C$43*$M$91 -> 200 | S120: erők | X120: 165 | Y120: 45 | Z120: 534.6482323 | AA120: 34.64823228 | AR120: 117 | AS120: =$F$33+$F$35*CALC!D140*FIGURE_V2!$E$28 -> 116 | AT120: =$F$34+$F$35*($B$64+$C$64+$E$46*$D$64*CALC!F140*$F$46) -> -350 | AU120: =$F$34+$F$35*($B$65+$C$65+$E$49*$D$65*CALC!L140*$F$49) -> -786.4941176 | AV120: =($Y$178*($F$34+$F$35*($B$65+$C$65+$E$49*$D$65*CALC!J140*$F$49))) -> -688.2352941 | AW120: =$F$34+$F$35*($B$66+$C$66+$E$52*$D$66*CALC!N140*$F$52) -> -1282.49344 | AX120: =$Y$178*($F$34+$F$35*($B$66+$C$66+$E$52*$D$66*CALC!O140*$F$52)) -> -1360 | AY120: =CALC!U140 ->  | AZ120: =CALC!R140 ->  | BA120: =CALC!S140 ->  | BB120: =CALC!T140 ->  | BC120: 40 | BD120: 800 | BE120: 792 | BF120: -350 | BG120: -688.2352941 | BH120: -1360
E121: =(C185+C186)/2 ->  | F121: 240 | G121: =C186-C185 ->  | P121: =IF($B$30<$B$27,$P$103-$Q$97,$P$103) ->  | Q121: =Q119 -> 30 | R121: F1 | S121: 30 | T121: =M12+(S121/100)*(M13-M12) -> 953.0425725 | U121: =N12+(S121/100)*(N13-N12) -> 93.91485505 | X121: 170 | Y121: 50 | Z121: 531.4965929 | AA121: 37.53617771 | AR121: 118 | AS121: =$F$33+$F$35*CALC!D141*FIGURE_V2!$E$28 -> 117 | AT121: =$F$34+$F$35*($B$64+$C$64+$E$46*$D$64*CALC!F141*$F$46) -> -350 | AU121: =$F$34+$F$35*($B$65+$C$65+$E$49*$D$65*CALC!L141*$F$49) -> -787.3411765 | AV121: =($Y$178*($F$34+$F$35*($B$65+$C$65+$E$49*$D$65*CALC!J141*$F$49))) -> -688.2352941 | AW121: =$F$34+$F$35*($B$66+$C$66+$E$52*$D$66*CALC!N141*$F$52) -> -1281.15136 | AX121: =$Y$178*($F$34+$F$35*($B$66+$C$66+$E$52*$D$66*CALC!O141*$F$52)) -> -1360 | AY121: =CALC!U141 ->  | AZ121: =CALC!R141 ->  | BA121: =CALC!S141 ->  | BB121: =CALC!T141 ->  | BC121: 40 | BD121: 800 | BE121: 792 | BF121: -250 | BG121: -582.3529412 | BH121: -1060.48
A122: =I125 ->  | C122: =IF(A123=A122,NA(),A122) ->  | D122: =$F$34+$F$35*$A$88 -> 220 | E122: =(C188+C189)/2 ->  | F122: 240 | G122: =C189-C188 ->  | I122: =IF(ISNUMBER(CALC!BV15),$F$33+$F$35*CALC!BV15*FIGURE_V2!$E$28,NA()) ->  | J122: =$F$34+$F$35*$C$55*$J$91 -> -1500 | L122: =IF(CALC!Y50>0,$F$33+$F$35*CALC!Y50*FIGURE_V2!$E$28,NA()) ->  | M122: =$F$34+$F$35*$C$55*$L$91 -> -1500 | P122: =IF($B$30<$B$27,$P$103,$P$103+$Q$97) ->  | Q122: =IF(Q121+$Q$97>$Q$103,NA(),Q121+$Q$97) -> 50 | S122: -20 | T122: =T121+(S122/100)*(N12-N13) -> 926.2097567 | U122: =U121+(S122/100)*(M13-M12) -> 80.49844719 | X122: 175 | Y122: 55 | Z122: 528.1052454 | AA122: 40.13845017 | AR122: 119 | AS122: =$F$33+$F$35*CALC!D142*FIGURE_V2!$E$28 -> 118 | AT122: =$F$34+$F$35*($B$64+$C$64+$E$46*$D$64*CALC!F142*$F$46) -> -350 | AU122: =$F$34+$F$35*($B$65+$C$65+$E$49*$D$65*CALC!L142*$F$49) -> -788.1882353 | AV122: =($Y$178*($F$34+$F$35*($B$65+$C$65+$E$49*$D$65*CALC!J142*$F$49))) -> -688.2352941 | AW122: =$F$34+$F$35*($B$66+$C$66+$E$52*$D$66*CALC!N142*$F$52) -> -1279.79776 | AX122: =$Y$178*($F$34+$F$35*($B$66+$C$66+$E$52*$D$66*CALC!O142*$F$52)) -> -1360 | AY122: =CALC!U142 ->  | AZ122: =CALC!R142 ->  | BA122: =CALC!S142 ->  | BB122: =CALC!T142 -> 
A123: =I128 ->  | C123: =IF(A123=A122,NA(),A123) ->  | D123: =$F$34+$F$35*$A$88 -> 220 | E123: =(C191+C192)/2 ->  | F123: 240 | G123: =C192-C191 ->  | I123: =I122 ->  | J123: =$F$34+$F$35*$C$43*$K$91 -> 300 | L123: =L122 ->  | M123: =$F$34+$F$35*$C$43*$M$91 -> 200 | X123: 180 | Y123: 60 | Z123: 524.5 | AA123: 42.43524479 | AR123: 120 | AS123: =$F$33+$F$35*CALC!D143*FIGURE_V2!$E$28 -> 119 | AT123: =$F$34+$F$35*($B$64+$C$64+$E$46*$D$64*CALC!F143*$F$46) -> -350 | AU123: =$F$34+$F$35*($B$65+$C$65+$E$49*$D$65*CALC!L143*$F$49) -> -789.0352941 | AV123: =($Y$178*($F$34+$F$35*($B$65+$C$65+$E$49*$D$65*CALC!J143*$F$49))) -> -688.2352941 | AW123: =$F$34+$F$35*($B$66+$C$66+$E$52*$D$66*CALC!N143*$F$52) -> -1278.43264 | AX123: =$Y$178*($F$34+$F$35*($B$66+$C$66+$E$52*$D$66*CALC!O143*$F$52)) -> -1360 | AY123: =CALC!U143 ->  | AZ123: =CALC!R143 ->  | BA123: =CALC!S143 ->  | BB123: =CALC!T143 ->  | BC123: 41 | BD123: 820 | BE123: 812 | BF123: -350 | BG123: -688.2352941 | BH123: -1360
E124: =(C194+C195)/2 ->  | F124: 240 | G124: =C195-C194 ->  | P124: =IF($B$30<$B$27,$P$103-$Q$97,$P$103) ->  | Q124: =Q122 -> 50 | X124: 185 | Y124: 65 | Z124: 520.7082948 | AA124: 44.40908156 | AR124: 121 | AS124: =$F$33+$F$35*CALC!D144*FIGURE_V2!$E$28 -> 120 | AT124: =$F$34+$F$35*($B$64+$C$64+$E$46*$D$64*CALC!F144*$F$46) -> -350 | AU124: =$F$34+$F$35*($B$65+$C$65+$E$49*$D$65*CALC!L144*$F$49) -> -789.8823529 | AV124: =($Y$178*($F$34+$F$35*($B$65+$C$65+$E$49*$D$65*CALC!J144*$F$49))) -> -688.2352941 | AW124: =$F$34+$F$35*($B$66+$C$66+$E$52*$D$66*CALC!N144*$F$52) -> -1277.056 | AX124: =$Y$178*($F$34+$F$35*($B$66+$C$66+$E$52*$D$66*CALC!O144*$F$52)) -> -1360 | AY124: =CALC!U144 ->  | AZ124: =CALC!R144 ->  | BA124: =CALC!S144 ->  | BB124: =CALC!T144 ->  | BC124: 41 | BD124: 820 | BE124: 812 | BF124: -250 | BG124: -582.3529412 | BH124: -1089.28
A125: =I128 ->  | C125: =IF(A126=A125,NA(),A125) ->  | D125: =$F$34+$F$35*$A$88 -> 220 | E125: =(C197+C198)/2 ->  | F125: 240 | G125: =C198-C197 ->  | I125: =IF(ISNUMBER(CALC!BV16),$F$33+$F$35*CALC!BV16*FIGURE_V2!$E$28,NA()) ->  | J125: =$F$34+$F$35*$C$55*$J$91 -> -1500 | L125: =IF(CALC!Y51>0,$F$33+$F$35*CALC!Y51*FIGURE_V2!$E$28,NA()) ->  | M125: =$F$34+$F$35*$C$55*$L$91 -> -1500 | P125: =IF($B$30<$B$27,$P$103,$P$103+$Q$97) ->  | Q125: =IF(Q124+$Q$97>$Q$103,NA(),Q124+$Q$97) -> 70 | R125: F2 | S125: 30 | T125: =M16+(S125/100)*(M17-M16) ->  | U125: =N16+(S125/100)*(N17-N16) ->  | X125: 190 | Y125: 70 | Z125: 516.758987 | AA125: 46.04493842 | AR125: 122 | AS125: =$F$33+$F$35*CALC!D145*FIGURE_V2!$E$28 -> 121 | AT125: =$F$34+$F$35*($B$64+$C$64+$E$46*$D$64*CALC!F145*$F$46) -> -350 | AU125: =$F$34+$F$35*($B$65+$C$65+$E$49*$D$65*CALC!L145*$F$49) -> -790.7294118 | AV125: =($Y$178*($F$34+$F$35*($B$65+$C$65+$E$49*$D$65*CALC!J145*$F$49))) -> -688.2352941 | AW125: =$F$34+$F$35*($B$66+$C$66+$E$52*$D$66*CALC!N145*$F$52) -> -1275.66784 | AX125: =$Y$178*($F$34+$F$35*($B$66+$C$66+$E$52*$D$66*CALC!O145*$F$52)) -> -1360 | AY125: =CALC!U145 ->  | AZ125: =CALC!R145 ->  | BA125: =CALC!S145 ->  | BB125: =CALC!T145 -> 
A126: =I131 ->  | C126: =IF(A126=A125,NA(),A126) ->  | D126: =$F$34+$F$35*$A$88 -> 220 | E126: =(C200+C201)/2 ->  | F126: 240 | G126: =C201-C200 ->  | I126: =I125 ->  | J126: =$F$34+$F$35*$C$43*$K$91 -> 300 | L126: =L125 ->  | M126: =$F$34+$F$35*$C$43*$M$91 -> 200 | S126: -20 | T126: =T125+(S126/100)*(N16-N17) ->  | U126: =U125+(S126/100)*(M17-M16) ->  | X126: 195 | Y126: 75 | Z126: 512.6821332 | AA126: 47.33036549 | AR126: 123 | AS126: =$F$33+$F$35*CALC!D146*FIGURE_V2!$E$28 -> 122 | AT126: =$F$34+$F$35*($B$64+$C$64+$E$46*$D$64*CALC!F146*$F$46) -> -350 | AU126: =$F$34+$F$35*($B$65+$C$65+$E$49*$D$65*CALC!L146*$F$49) -> -791.5764706 | AV126: =($Y$178*($F$34+$F$35*($B$65+$C$65+$E$49*$D$65*CALC!J146*$F$49))) -> -688.2352941 | AW126: =$F$34+$F$35*($B$66+$C$66+$E$52*$D$66*CALC!N146*$F$52) -> -1274.26816 | AX126: =$Y$178*($F$34+$F$35*($B$66+$C$66+$E$52*$D$66*CALC!O146*$F$52)) -> -1360 | AY126: =CALC!U146 ->  | AZ126: =CALC!R146 ->  | BA126: =CALC!S146 ->  | BB126: =CALC!T146 ->  | BC126: 42 | BD126: 840 | BE126: 832 | BF126: -350 | BG126: -688.2352941 | BH126: -1360
E127: =(C203+C204)/2 ->  | F127: 240 | G127: =C204-C203 ->  | P127: =IF($B$30<$B$27,$P$103-$Q$97,$P$103) ->  | Q127: =Q125 -> 70 | X127: 200 | Y127: 80 | Z127: 508.5087607 | AA127: 48.2555799 | AR127: 124 | AS127: =$F$33+$F$35*CALC!D147*FIGURE_V2!$E$28 -> 123 | AT127: =$F$34+$F$35*($B$64+$C$64+$E$46*$D$64*CALC!F147*$F$46) -> -350 | AU127: =$F$34+$F$35*($B$65+$C$65+$E$49*$D$65*CALC!L147*$F$49) -> -792.4235294 | AV127: =($Y$178*($F$34+$F$35*($B$65+$C$65+$E$49*$D$65*CALC!J147*$F$49))) -> -688.2352941 | AW127: =$F$34+$F$35*($B$66+$C$66+$E$52*$D$66*CALC!N147*$F$52) -> -1272.85696 | AX127: =$Y$178*($F$34+$F$35*($B$66+$C$66+$E$52*$D$66*CALC!O147*$F$52)) -> -1360 | AY127: =CALC!U147 ->  | AZ127: =CALC!R147 ->  | BA127: =CALC!S147 ->  | BB127: =CALC!T147 ->  | BC127: 42 | BD127: 840 | BE127: 832 | BF127: -250 | BG127: -582.3529412 | BH127: -1118.08
A128: =I131 ->  | C128: =IF(A129=A128,NA(),A128) ->  | D128: =$F$34+$F$35*$A$88 -> 220 | E128: =(C206+C207)/2 ->  | F128: 240 | G128: =C207-C206 ->  | I128: =IF(ISNUMBER(CALC!BV17),$F$33+$F$35*CALC!BV17*FIGURE_V2!$E$28,NA()) ->  | J128: =$F$34+$F$35*$C$55*$J$91 -> -1500 | L128: =IF(CALC!Y52>0,$F$33+$F$35*CALC!Y52*FIGURE_V2!$E$28,NA()) ->  | M128: =$F$34+$F$35*$C$55*$L$91 -> -1500 | P128: =IF($B$30<$B$27,$P$103,$P$103+$Q$97) ->  | Q128: =IF(Q127+$Q$97>$Q$103,NA(),Q127+$Q$97) ->  | X128: 205 | Y128: 85 | Z128: 504.2706314 | AA128: 48.81354021 | AR128: 125 | AS128: =$F$33+$F$35*CALC!D148*FIGURE_V2!$E$28 -> 124 | AT128: =$F$34+$F$35*($B$64+$C$64+$E$46*$D$64*CALC!F148*$F$46) -> -350 | AU128: =$F$34+$F$35*($B$65+$C$65+$E$49*$D$65*CALC!L148*$F$49) -> -793.2705882 | AV128: =($Y$178*($F$34+$F$35*($B$65+$C$65+$E$49*$D$65*CALC!J148*$F$49))) -> -688.2352941 | AW128: =$F$34+$F$35*($B$66+$C$66+$E$52*$D$66*CALC!N148*$F$52) -> -1271.43424 | AX128: =$Y$178*($F$34+$F$35*($B$66+$C$66+$E$52*$D$66*CALC!O148*$F$52)) -> -1360 | AY128: =CALC!U148 ->  | AZ128: =CALC!R148 ->  | BA128: =CALC!S148 ->  | BB128: =CALC!T148 -> 
A129: =I134 ->  | C129: =IF(A129=A128,NA(),A129) ->  | D129: =$F$34+$F$35*$A$88 -> 220 | I129: =I128 ->  | J129: =$F$34+$F$35*$C$43*$K$91 -> 300 | L129: =L128 ->  | M129: =$F$34+$F$35*$C$43*$M$91 -> 200 | R129: F3 | S129: 30 | T129: =M20+(S129/100)*(M21-M20) ->  | U129: =N20+(S129/100)*(N21-N20) ->  | X129: 210 | Y129: 90 | Z129: 500 | AA129: 49 | AR129: 126 | AS129: =$F$33+$F$35*CALC!D149*FIGURE_V2!$E$28 -> 125 | AT129: =$F$34+$F$35*($B$64+$C$64+$E$46*$D$64*CALC!F149*$F$46) -> -350 | AU129: =$F$34+$F$35*($B$65+$C$65+$E$49*$D$65*CALC!L149*$F$49) -> -794.1176471 | AV129: =($Y$178*($F$34+$F$35*($B$65+$C$65+$E$49*$D$65*CALC!J149*$F$49))) -> -688.2352941 | AW129: =$F$34+$F$35*($B$66+$C$66+$E$52*$D$66*CALC!N149*$F$52) -> -1270 | AX129: =$Y$178*($F$34+$F$35*($B$66+$C$66+$E$52*$D$66*CALC!O149*$F$52)) -> -1360 | AY129: =CALC!U149 ->  | AZ129: =CALC!R149 ->  | BA129: =CALC!S149 ->  | BB129: =CALC!T149 ->  | BC129: 43 | BD129: 860 | BE129: 852 | BF129: -350 | BG129: -688.2352941 | BH129: -1360
P130: =IF($B$30<$B$27,$P$103-$Q$97,$P$103) ->  | Q130: =Q128 ->  | S130: -20 | T130: =T129+(S130/100)*(N20-N21) ->  | U130: =U129+(S130/100)*(M21-M20) ->  | X130: 215 | Y130: 95 | Z130: 495.7293686 | AA130: 48.81354021 | AR130: 127 | AS130: =$F$33+$F$35*CALC!D150*FIGURE_V2!$E$28 -> 125 | AT130: =$F$34+$F$35*($B$64+$C$64+$E$46*$D$64*CALC!F150*$F$46) -> -350 | AU130: =$F$34+$F$35*($B$65+$C$65+$E$49*$D$65*CALC!L150*$F$49) -> -794.1176471 | AV130: =($Y$178*($F$34+$F$35*($B$65+$C$65+$E$49*$D$65*CALC!J150*$F$49))) -> -900 | AW130: =$F$34+$F$35*($B$66+$C$66+$E$52*$D$66*CALC!N150*$F$52) -> -1270 | AX130: =$Y$178*($F$34+$F$35*($B$66+$C$66+$E$52*$D$66*CALC!O150*$F$52)) -> -1360 | AY130: =CALC!U150 ->  | AZ130: =CALC!R150 -> -2 | BA130: =CALC!S150 -> 1 | BB130: =CALC!T150 -> 0 | BC130: 43 | BD130: 860 | BE130: 852 | BF130: -250 | BG130: -582.3529412 | BH130: -1146.88
A131: =I134 ->  | C131: =IF(A132=A131,NA(),A131) ->  | D131: =$F$34+$F$35*$A$88 -> 220 | I131: =IF(ISNUMBER(CALC!BV18),$F$33+$F$35*CALC!BV18*FIGURE_V2!$E$28,NA()) ->  | J131: =$F$34+$F$35*$C$55*$J$91 -> -1500 | L131: =IF(CALC!Y53>0,$F$33+$F$35*CALC!Y53*FIGURE_V2!$E$28,NA()) ->  | M131: =$F$34+$F$35*$C$55*$L$91 -> -1500 | P131: =IF($B$30<$B$27,$P$103,$P$103+$Q$97) ->  | Q131: =IF(Q130+$Q$97>$Q$103,NA(),Q130+$Q$97) ->  | X131: 220 | Y131: 100 | Z131: 491.4912393 | AA131: 48.2555799 | AR131: 128 | AS131: =$F$33+$F$35*CALC!D151*FIGURE_V2!$E$28 -> 126 | AT131: =$F$34+$F$35*($B$64+$C$64+$E$46*$D$64*CALC!F151*$F$46) -> -350 | AU131: =$F$34+$F$35*($B$65+$C$65+$E$49*$D$65*CALC!L151*$F$49) -> -794.9647059 | AV131: =($Y$178*($F$34+$F$35*($B$65+$C$65+$E$49*$D$65*CALC!J151*$F$49))) -> -900 | AW131: =$F$34+$F$35*($B$66+$C$66+$E$52*$D$66*CALC!N151*$F$52) -> -1268.55424 | AX131: =$Y$178*($F$34+$F$35*($B$66+$C$66+$E$52*$D$66*CALC!O151*$F$52)) -> -1357.12 | AY131: =CALC!U151 ->  | AZ131: =CALC!R151 ->  | BA131: =CALC!S151 ->  | BB131: =CALC!T151 -> 
A132: =I137 ->  | C132: =IF(A132=A131,NA(),A132) ->  | D132: =$F$34+$F$35*$A$88 -> 220 | I132: =I131 ->  | J132: =$F$34+$F$35*$C$43*$K$91 -> 300 | L132: =L131 ->  | M132: =$F$34+$F$35*$C$43*$M$91 -> 200 | X132: 225 | Y132: 105 | Z132: 487.3178668 | AA132: 47.33036549 | AR132: 129 | AS132: =$F$33+$F$35*CALC!D152*FIGURE_V2!$E$28 -> 127 | AT132: =$F$34+$F$35*($B$64+$C$64+$E$46*$D$64*CALC!F152*$F$46) -> -350 | AU132: =$F$34+$F$35*($B$65+$C$65+$E$49*$D$65*CALC!L152*$F$49) -> -795.8117647 | AV132: =($Y$178*($F$34+$F$35*($B$65+$C$65+$E$49*$D$65*CALC!J152*$F$49))) -> -900 | AW132: =$F$34+$F$35*($B$66+$C$66+$E$52*$D$66*CALC!N152*$F$52) -> -1267.09696 | AX132: =$Y$178*($F$34+$F$35*($B$66+$C$66+$E$52*$D$66*CALC!O152*$F$52)) -> -1354.24 | AY132: =CALC!U152 ->  | AZ132: =CALC!R152 ->  | BA132: =CALC!S152 ->  | BB132: =CALC!T152 ->  | BC132: 44 | BD132: =BC132*$BD$2 -> 880 | BE132: =INDEX($AS$3:$AS$10387,BD132) -> 872 | BF132: -350 | BG132: -688.2352941 | BH132: -1360
P133: =IF($B$30<$B$27,$P$103-$Q$97,$P$103) ->  | Q133: =Q131 ->  | R133: F4 | S133: 30 | T133: =M24+(S133/100)*(M25-M24) ->  | U133: =N24+(S133/100)*(N25-N24) ->  | X133: 230 | Y133: 110 | Z133: 483.241013 | AA133: 46.04493842 | AR133: 130 | AS133: =$F$33+$F$35*CALC!D153*FIGURE_V2!$E$28 -> 128 | AT133: =$F$34+$F$35*($B$64+$C$64+$E$46*$D$64*CALC!F153*$F$46) -> -350 | AU133: =$F$34+$F$35*($B$65+$C$65+$E$49*$D$65*CALC!L153*$F$49) -> -796.6588235 | AV133: =($Y$178*($F$34+$F$35*($B$65+$C$65+$E$49*$D$65*CALC!J153*$F$49))) -> -900 | AW133: =$F$34+$F$35*($B$66+$C$66+$E$52*$D$66*CALC!N153*$F$52) -> -1265.62816 | AX133: =$Y$178*($F$34+$F$35*($B$66+$C$66+$E$52*$D$66*CALC!O153*$F$52)) -> -1351.36 | AY133: =CALC!U153 ->  | AZ133: =CALC!R153 ->  | BA133: =CALC!S153 ->  | BB133: =CALC!T153 ->  | BC133: 44 | BD133: 880 | BE133: 872 | BF133: =IF(BE134=BE133,$K$72,INDEX($AT$3:$AT$10387,MATCH(BE133,$AS$3:$AS$10387,0))) -> -250 | BG133: =IF(BE134=BE133,$K$78,INDEX($AU$3:$AU$10387,MATCH(BE133,$AS$3:$AS$10387,0))) -> -582.3529412 | BH133: =IF(BE134=BE133,$K$84,INDEX($AW$3:$AW$10387,MATCH(BE133,$AS$3:$AS$10387,0))) -> -1175.68
A134: =I137 ->  | C134: =IF(A135=A134,NA(),A134) ->  | D134: =$F$34+$F$35*$A$88 -> 220 | I134: =IF(ISNUMBER(CALC!BV19),$F$33+$F$35*CALC!BV19*FIGURE_V2!$E$28,NA()) ->  | J134: =$F$34+$F$35*$C$55*$J$91 -> -1500 | L134: =IF(CALC!Y54>0,$F$33+$F$35*CALC!Y54*FIGURE_V2!$E$28,NA()) ->  | M134: =$F$34+$F$35*$C$55*$L$91 -> -1500 | P134: =IF($B$30<$B$27,$P$103,$P$103+$Q$97) ->  | Q134: =IF(Q133+$Q$97>$Q$103,NA(),Q133+$Q$97) ->  | S134: -20 | T134: =T133+(S134/100)*(N24-N25) ->  | U134: =U133+(S134/100)*(M25-M24) ->  | X134: 235 | Y134: 115 | Z134: 479.2917052 | AA134: 44.40908156 | AR134: 131 | AS134: =$F$33+$F$35*CALC!D154*FIGURE_V2!$E$28 -> 129 | AT134: =$F$34+$F$35*($B$64+$C$64+$E$46*$D$64*CALC!F154*$F$46) -> -350 | AU134: =$F$34+$F$35*($B$65+$C$65+$E$49*$D$65*CALC!L154*$F$49) -> -797.5058824 | AV134: =($Y$178*($F$34+$F$35*($B$65+$C$65+$E$49*$D$65*CALC!J154*$F$49))) -> -900 | AW134: =$F$34+$F$35*($B$66+$C$66+$E$52*$D$66*CALC!N154*$F$52) -> -1264.14784 | AX134: =$Y$178*($F$34+$F$35*($B$66+$C$66+$E$52*$D$66*CALC!O154*$F$52)) -> -1348.48 | AY134: =CALC!U154 ->  | AZ134: =CALC!R154 ->  | BA134: =CALC!S154 ->  | BB134: =CALC!T154 -> 
A135: =I140 ->  | C135: =IF(A135=A134,NA(),A135) ->  | D135: =$F$34+$F$35*$A$88 -> 220 | I135: =I134 ->  | J135: =$F$34+$F$35*$C$43*$K$91 -> 300 | L135: =L134 ->  | M135: =$F$34+$F$35*$C$43*$M$91 -> 200 | X135: 240 | Y135: 120 | Z135: 475.5 | AA135: 42.43524479 | AR135: 132 | AS135: =$F$33+$F$35*CALC!D155*FIGURE_V2!$E$28 -> 130 | AT135: =$F$34+$F$35*($B$64+$C$64+$E$46*$D$64*CALC!F155*$F$46) -> -350 | AU135: =$F$34+$F$35*($B$65+$C$65+$E$49*$D$65*CALC!L155*$F$49) -> -798.3529412 | AV135: =($Y$178*($F$34+$F$35*($B$65+$C$65+$E$49*$D$65*CALC!J155*$F$49))) -> -900 | AW135: =$F$34+$F$35*($B$66+$C$66+$E$52*$D$66*CALC!N155*$F$52) -> -1262.656 | AX135: =$Y$178*($F$34+$F$35*($B$66+$C$66+$E$52*$D$66*CALC!O155*$F$52)) -> -1345.6 | AY135: =CALC!U155 ->  | AZ135: =CALC!R155 ->  | BA135: =CALC!S155 ->  | BB135: =CALC!T155 ->  | BC135: 45 | BD135: 900 | BE135: 892 | BF135: -350 | BG135: -688.2352941 | BH135: -1360
P136: =IF($B$30<$B$27,$P$103-$Q$97,$P$103) ->  | Q136: =Q134 ->  | X136: 245 | Y136: 125 | AR136: 133 | AS136: =$F$33+$F$35*CALC!D156*FIGURE_V2!$E$28 -> 131 | AT136: =$F$34+$F$35*($B$64+$C$64+$E$46*$D$64*CALC!F156*$F$46) -> -350 | AU136: =$F$34+$F$35*($B$65+$C$65+$E$49*$D$65*CALC!L156*$F$49) -> -799.2 | AV136: =($Y$178*($F$34+$F$35*($B$65+$C$65+$E$49*$D$65*CALC!J156*$F$49))) -> -900 | AW136: =$F$34+$F$35*($B$66+$C$66+$E$52*$D$66*CALC!N156*$F$52) -> -1261.15264 | AX136: =$Y$178*($F$34+$F$35*($B$66+$C$66+$E$52*$D$66*CALC!O156*$F$52)) -> -1342.72 | AY136: =CALC!U156 ->  | AZ136: =CALC!R156 ->  | BA136: =CALC!S156 ->  | BB136: =CALC!T156 ->  | BC136: 45 | BD136: 900 | BE136: 892 | BF136: -250 | BG136: -582.3529412 | BH136: -1204.48
A137: =I140 ->  | C137: =IF(A138=A137,NA(),A137) ->  | D137: =$F$34+$F$35*$A$88 -> 220 | I137: =IF(ISNUMBER(CALC!BV20),$F$33+$F$35*CALC!BV20*FIGURE_V2!$E$28,NA()) ->  | J137: =$F$34+$F$35*$C$55*$J$91 -> -1500 | L137: =IF(CALC!Y55>0,$F$33+$F$35*CALC!Y55*FIGURE_V2!$E$28,NA()) ->  | M137: =$F$34+$F$35*$C$55*$L$91 -> -1500 | P137: =IF($B$30<$B$27,$P$103,$P$103+$Q$97) ->  | Q137: =IF(Q136+$Q$97>$Q$103,NA(),Q136+$Q$97) ->  | R137: F5 | S137: 30 | T137: =M28+(S137/100)*(M29-M28) ->  | U137: =N28+(S137/100)*(N29-N28) ->  | X137: 250 | Y137: 130 | AR137: 134 | AS137: =$F$33+$F$35*CALC!D157*FIGURE_V2!$E$28 -> 132 | AT137: =$F$34+$F$35*($B$64+$C$64+$E$46*$D$64*CALC!F157*$F$46) -> -350 | AU137: =$F$34+$F$35*($B$65+$C$65+$E$49*$D$65*CALC!L157*$F$49) -> -800.0470588 | AV137: =($Y$178*($F$34+$F$35*($B$65+$C$65+$E$49*$D$65*CALC!J157*$F$49))) -> -900 | AW137: =$F$34+$F$35*($B$66+$C$66+$E$52*$D$66*CALC!N157*$F$52) -> -1259.63776 | AX137: =$Y$178*($F$34+$F$35*($B$66+$C$66+$E$52*$D$66*CALC!O157*$F$52)) -> -1339.84 | AY137: =CALC!U157 ->  | AZ137: =CALC!R157 ->  | BA137: =CALC!S157 ->  | BB137: =CALC!T157 -> 
A138: =I143 ->  | C138: =IF(A138=A137,NA(),A138) ->  | D138: =$F$34+$F$35*$A$88 -> 220 | I138: =I137 ->  | J138: =$F$34+$F$35*$C$43*$K$91 -> 300 | L138: =L137 ->  | M138: =$F$34+$F$35*$C$43*$M$91 -> 200 | S138: -20 | T138: =T137+(S138/100)*(N28-N29) ->  | U138: =U137+(S138/100)*(M29-M28) ->  | X138: 255 | Y138: 135 | AR138: 135 | AS138: =$F$33+$F$35*CALC!D158*FIGURE_V2!$E$28 -> 133 | AT138: =$F$34+$F$35*($B$64+$C$64+$E$46*$D$64*CALC!F158*$F$46) -> -350 | AU138: =$F$34+$F$35*($B$65+$C$65+$E$49*$D$65*CALC!L158*$F$49) -> -800.8941176 | AV138: =($Y$178*($F$34+$F$35*($B$65+$C$65+$E$49*$D$65*CALC!J158*$F$49))) -> -900 | AW138: =$F$34+$F$35*($B$66+$C$66+$E$52*$D$66*CALC!N158*$F$52) -> -1258.11136 | AX138: =$Y$178*($F$34+$F$35*($B$66+$C$66+$E$52*$D$66*CALC!O158*$F$52)) -> -1336.96 | AY138: =CALC!U158 ->  | AZ138: =CALC!R158 ->  | BA138: =CALC!S158 ->  | BB138: =CALC!T158 ->  | BC138: 46 | BD138: 920 | BE138: 912 | BF138: -350 | BG138: -688.2352941 | BH138: -1360
P139: =IF($B$30<$B$27,$P$103-$Q$97,$P$103) ->  | Q139: =Q137 ->  | X139: 260 | Y139: 140 | AR139: 136 | AS139: =$F$33+$F$35*CALC!D159*FIGURE_V2!$E$28 -> 134 | AT139: =$F$34+$F$35*($B$64+$C$64+$E$46*$D$64*CALC!F159*$F$46) -> -350 | AU139: =$F$34+$F$35*($B$65+$C$65+$E$49*$D$65*CALC!L159*$F$49) -> -801.7411765 | AV139: =($Y$178*($F$34+$F$35*($B$65+$C$65+$E$49*$D$65*CALC!J159*$F$49))) -> -900 | AW139: =$F$34+$F$35*($B$66+$C$66+$E$52*$D$66*CALC!N159*$F$52) -> -1256.57344 | AX139: =$Y$178*($F$34+$F$35*($B$66+$C$66+$E$52*$D$66*CALC!O159*$F$52)) -> -1334.08 | AY139: =CALC!U159 ->  | AZ139: =CALC!R159 ->  | BA139: =CALC!S159 ->  | BB139: =CALC!T159 ->  | BC139: 46 | BD139: 920 | BE139: 912 | BF139: -250 | BG139: -582.3529412 | BH139: -1233.28
A140: =I143 ->  | C140: =IF(A141=A140,NA(),A140) ->  | D140: =$F$34+$F$35*$A$88 -> 220 | I140: =IF(ISNUMBER(CALC!BV21),$F$33+$F$35*CALC!BV21*FIGURE_V2!$E$28,NA()) ->  | J140: =$F$34+$F$35*$C$55*$J$91 -> -1500 | L140: =IF(CALC!Y56>0,$F$33+$F$35*CALC!Y56*FIGURE_V2!$E$28,NA()) ->  | M140: =$F$34+$F$35*$C$55*$L$91 -> -1500 | P140: =IF($B$30<$B$27,$P$103,$P$103+$Q$97) ->  | Q140: =IF(Q139+$Q$97>$Q$103,NA(),Q139+$Q$97) ->  | X140: 265 | Y140: 145 | AR140: 137 | AS140: =$F$33+$F$35*CALC!D160*FIGURE_V2!$E$28 -> 135 | AT140: =$F$34+$F$35*($B$64+$C$64+$E$46*$D$64*CALC!F160*$F$46) -> -350 | AU140: =$F$34+$F$35*($B$65+$C$65+$E$49*$D$65*CALC!L160*$F$49) -> -802.5882353 | AV140: =($Y$178*($F$34+$F$35*($B$65+$C$65+$E$49*$D$65*CALC!J160*$F$49))) -> -900 | AW140: =$F$34+$F$35*($B$66+$C$66+$E$52*$D$66*CALC!N160*$F$52) -> -1255.024 | AX140: =$Y$178*($F$34+$F$35*($B$66+$C$66+$E$52*$D$66*CALC!O160*$F$52)) -> -1331.2 | AY140: =CALC!U160 ->  | AZ140: =CALC!R160 ->  | BA140: =CALC!S160 ->  | BB140: =CALC!T160 -> 
A141: =I146 ->  | C141: =IF(A141=A140,NA(),A141) ->  | D141: =$F$34+$F$35*$A$88 -> 220 | I141: =I140 ->  | J141: =$F$34+$F$35*$C$43*$K$91 -> 300 | L141: =L140 ->  | M141: =$F$34+$F$35*$C$43*$M$91 -> 200 | R141: F6 | S141: 30 | T141: =M32+(S141/100)*(M33-M32) ->  | U141: =N32+(S141/100)*(N33-N32) ->  | X141: 270 | Y141: 150 | AR141: 138 | AS141: =$F$33+$F$35*CALC!D161*FIGURE_V2!$E$28 -> 136 | AT141: =$F$34+$F$35*($B$64+$C$64+$E$46*$D$64*CALC!F161*$F$46) -> -350 | AU141: =$F$34+$F$35*($B$65+$C$65+$E$49*$D$65*CALC!L161*$F$49) -> -803.4352941 | AV141: =($Y$178*($F$34+$F$35*($B$65+$C$65+$E$49*$D$65*CALC!J161*$F$49))) -> -900 | AW141: =$F$34+$F$35*($B$66+$C$66+$E$52*$D$66*CALC!N161*$F$52) -> -1253.46304 | AX141: =$Y$178*($F$34+$F$35*($B$66+$C$66+$E$52*$D$66*CALC!O161*$F$52)) -> -1328.32 | AY141: =CALC!U161 ->  | AZ141: =CALC!R161 ->  | BA141: =CALC!S161 ->  | BB141: =CALC!T161 ->  | BC141: 47 | BD141: 940 | BE141: 932 | BF141: -350 | BG141: -688.2352941 | BH141: -1360
P142: =IF($B$30<$B$27,$P$103-$Q$97,$P$103) ->  | Q142: =Q140 ->  | S142: -20 | T142: =T141+(S142/100)*(N32-N33) ->  | U142: =U141+(S142/100)*(M33-M32) ->  | X142: 275 | Y142: 155 | AR142: 139 | AS142: =$F$33+$F$35*CALC!D162*FIGURE_V2!$E$28 -> 137 | AT142: =$F$34+$F$35*($B$64+$C$64+$E$46*$D$64*CALC!F162*$F$46) -> -350 | AU142: =$F$34+$F$35*($B$65+$C$65+$E$49*$D$65*CALC!L162*$F$49) -> -804.2823529 | AV142: =($Y$178*($F$34+$F$35*($B$65+$C$65+$E$49*$D$65*CALC!J162*$F$49))) -> -900 | AW142: =$F$34+$F$35*($B$66+$C$66+$E$52*$D$66*CALC!N162*$F$52) -> -1251.89056 | AX142: =$Y$178*($F$34+$F$35*($B$66+$C$66+$E$52*$D$66*CALC!O162*$F$52)) -> -1325.44 | AY142: =CALC!U162 ->  | AZ142: =CALC!R162 ->  | BA142: =CALC!S162 ->  | BB142: =CALC!T162 ->  | BC142: 47 | BD142: 940 | BE142: 932 | BF142: -250 | BG142: -582.3529412 | BH142: -1262.08
A143: =I146 ->  | C143: =IF(A144=A143,NA(),A143) ->  | D143: =$F$34+$F$35*$A$88 -> 220 | I143: =IF(ISNUMBER(CALC!BV22),$F$33+$F$35*CALC!BV22*FIGURE_V2!$E$28,NA()) ->  | J143: =$F$34+$F$35*$C$55*$J$91 -> -1500 | L143: =IF(CALC!Y57>0,$F$33+$F$35*CALC!Y57*FIGURE_V2!$E$28,NA()) ->  | M143: =$F$34+$F$35*$C$55*$L$91 -> -1500 | P143: =IF($B$30<$B$27,$P$103,$P$103+$Q$97) ->  | Q143: =IF(Q142+$Q$97>$Q$103,NA(),Q142+$Q$97) ->  | X143: 280 | Y143: 160 | AR143: 140 | AS143: =$F$33+$F$35*CALC!D163*FIGURE_V2!$E$28 -> 138 | AT143: =$F$34+$F$35*($B$64+$C$64+$E$46*$D$64*CALC!F163*$F$46) -> -350 | AU143: =$F$34+$F$35*($B$65+$C$65+$E$49*$D$65*CALC!L163*$F$49) -> -805.1294118 | AV143: =($Y$178*($F$34+$F$35*($B$65+$C$65+$E$49*$D$65*CALC!J163*$F$49))) -> -900 | AW143: =$F$34+$F$35*($B$66+$C$66+$E$52*$D$66*CALC!N163*$F$52) -> -1250.30656 | AX143: =$Y$178*($F$34+$F$35*($B$66+$C$66+$E$52*$D$66*CALC!O163*$F$52)) -> -1322.56 | AY143: =CALC!U163 ->  | AZ143: =CALC!R163 ->  | BA143: =CALC!S163 ->  | BB143: =CALC!T163 -> 
A144: =I149 ->  | C144: =IF(A144=A143,NA(),A144) ->  | D144: =$F$34+$F$35*$A$88 -> 220 | I144: =I143 ->  | J144: =$F$34+$F$35*$C$43*$K$91 -> 300 | L144: =L143 ->  | M144: =$F$34+$F$35*$C$43*$M$91 -> 200 | X144: 285 | Y144: 165 | AR144: 141 | AS144: =$F$33+$F$35*CALC!D164*FIGURE_V2!$E$28 -> 139 | AT144: =$F$34+$F$35*($B$64+$C$64+$E$46*$D$64*CALC!F164*$F$46) -> -350 | AU144: =$F$34+$F$35*($B$65+$C$65+$E$49*$D$65*CALC!L164*$F$49) -> -805.9764706 | AV144: =($Y$178*($F$34+$F$35*($B$65+$C$65+$E$49*$D$65*CALC!J164*$F$49))) -> -900 | AW144: =$F$34+$F$35*($B$66+$C$66+$E$52*$D$66*CALC!N164*$F$52) -> -1248.71104 | AX144: =$Y$178*($F$34+$F$35*($B$66+$C$66+$E$52*$D$66*CALC!O164*$F$52)) -> -1319.68 | AY144: =CALC!U164 ->  | AZ144: =CALC!R164 ->  | BA144: =CALC!S164 ->  | BB144: =CALC!T164 ->  | BC144: =IF(ISNUMBER(BC69),BC69+25,NA()) -> 48 | BD144: 960 | BE144: 952 | BF144: -350 | BG144: -688.2352941 | BH144: -1360
P145: =IF($B$30<$B$27,$P$103-$Q$97,$P$103) ->  | Q145: =Q143 ->  | R145: F7 | S145: 30 | T145: =M36+(S145/100)*(M37-M36) ->  | U145: =N36+(S145/100)*(N37-N36) ->  | X145: 290 | Y145: 170 | AR145: 142 | AS145: =$F$33+$F$35*CALC!D165*FIGURE_V2!$E$28 -> 140 | AT145: =$F$34+$F$35*($B$64+$C$64+$E$46*$D$64*CALC!F165*$F$46) -> -350 | AU145: =$F$34+$F$35*($B$65+$C$65+$E$49*$D$65*CALC!L165*$F$49) -> -806.8235294 | AV145: =($Y$178*($F$34+$F$35*($B$65+$C$65+$E$49*$D$65*CALC!J165*$F$49))) -> -900 | AW145: =$F$34+$F$35*($B$66+$C$66+$E$52*$D$66*CALC!N165*$F$52) -> -1247.104 | AX145: =$Y$178*($F$34+$F$35*($B$66+$C$66+$E$52*$D$66*CALC!O165*$F$52)) -> -1316.8 | AY145: =CALC!U165 ->  | AZ145: =CALC!R165 ->  | BA145: =CALC!S165 ->  | BB145: =CALC!T165 ->  | BC145: 48 | BD145: 960 | BE145: 952 | BF145: -250 | BG145: -582.3529412 | BH145: -1290.88
A146: =I149 ->  | C146: =IF(A147=A146,NA(),A146) ->  | D146: =$F$34+$F$35*$A$88 -> 220 | I146: =IF(ISNUMBER(CALC!BV23),$F$33+$F$35*CALC!BV23*FIGURE_V2!$E$28,NA()) ->  | J146: =$F$34+$F$35*$C$55*$J$91 -> -1500 | L146: =IF(CALC!Y58>0,$F$33+$F$35*CALC!Y58*FIGURE_V2!$E$28,NA()) ->  | M146: =$F$34+$F$35*$C$55*$L$91 -> -1500 | P146: =IF($B$30<$B$27,$P$103,$P$103+$Q$97) ->  | Q146: =IF(Q145+$Q$97>$Q$103,NA(),Q145+$Q$97) ->  | S146: -20 | T146: =T145+(S146/100)*(N36-N37) ->  | U146: =U145+(S146/100)*(M37-M36) ->  | X146: 295 | Y146: 175 | AR146: 143 | AS146: =$F$33+$F$35*CALC!D166*FIGURE_V2!$E$28 -> 141 | AT146: =$F$34+$F$35*($B$64+$C$64+$E$46*$D$64*CALC!F166*$F$46) -> -350 | AU146: =$F$34+$F$35*($B$65+$C$65+$E$49*$D$65*CALC!L166*$F$49) -> -807.6705882 | AV146: =($Y$178*($F$34+$F$35*($B$65+$C$65+$E$49*$D$65*CALC!J166*$F$49))) -> -900 | AW146: =$F$34+$F$35*($B$66+$C$66+$E$52*$D$66*CALC!N166*$F$52) -> -1245.48544 | AX146: =$Y$178*($F$34+$F$35*($B$66+$C$66+$E$52*$D$66*CALC!O166*$F$52)) -> -1313.92 | AY146: =CALC!U166 ->  | AZ146: =CALC!R166 ->  | BA146: =CALC!S166 ->  | BB146: =CALC!T166 -> 
A147: =I152 ->  | C147: =IF(A147=A146,NA(),A147) ->  | D147: =$F$34+$F$35*$A$88 -> 220 | I147: =I146 ->  | J147: =$F$34+$F$35*$C$43*$K$91 -> 300 | L147: =L146 ->  | M147: =$F$34+$F$35*$C$43*$M$91 -> 200 | X147: 300 | Y147: 180 | AR147: 144 | AS147: =$F$33+$F$35*CALC!D167*FIGURE_V2!$E$28 -> 142 | AT147: =$F$34+$F$35*($B$64+$C$64+$E$46*$D$64*CALC!F167*$F$46) -> -350 | AU147: =$F$34+$F$35*($B$65+$C$65+$E$49*$D$65*CALC!L167*$F$49) -> -808.5176471 | AV147: =($Y$178*($F$34+$F$35*($B$65+$C$65+$E$49*$D$65*CALC!J167*$F$49))) -> -900 | AW147: =$F$34+$F$35*($B$66+$C$66+$E$52*$D$66*CALC!N167*$F$52) -> -1243.85536 | AX147: =$Y$178*($F$34+$F$35*($B$66+$C$66+$E$52*$D$66*CALC!O167*$F$52)) -> -1311.04 | AY147: =CALC!U167 ->  | AZ147: =CALC!R167 ->  | BA147: =CALC!S167 ->  | BB147: =CALC!T167 ->  | BC147: 49 | BD147: 980 | BE147: 972 | BF147: -350 | BG147: -688.2352941 | BH147: -1360
P148: =IF($B$30<$B$27,$P$103-$Q$97,$P$103) ->  | Q148: =Q146 ->  | X148: 305 | Y148: 185 | AR148: 145 | AS148: =$F$33+$F$35*CALC!D168*FIGURE_V2!$E$28 -> 143 | AT148: =$F$34+$F$35*($B$64+$C$64+$E$46*$D$64*CALC!F168*$F$46) -> -350 | AU148: =$F$34+$F$35*($B$65+$C$65+$E$49*$D$65*CALC!L168*$F$49) -> -809.3647059 | AV148: =($Y$178*($F$34+$F$35*($B$65+$C$65+$E$49*$D$65*CALC!J168*$F$49))) -> -900 | AW148: =$F$34+$F$35*($B$66+$C$66+$E$52*$D$66*CALC!N168*$F$52) -> -1242.21376 | AX148: =$Y$178*($F$34+$F$35*($B$66+$C$66+$E$52*$D$66*CALC!O168*$F$52)) -> -1308.16 | AY148: =CALC!U168 ->  | AZ148: =CALC!R168 ->  | BA148: =CALC!S168 ->  | BB148: =CALC!T168 ->  | BC148: 49 | BD148: 980 | BE148: 972 | BF148: -250 | BG148: -582.3529412 | BH148: -1319.68
A149: =I152 ->  | C149: =IF(A150=A149,NA(),A149) ->  | D149: =$F$34+$F$35*$A$88 -> 220 | I149: =IF(ISNUMBER(CALC!BV24),$F$33+$F$35*CALC!BV24*FIGURE_V2!$E$28,NA()) ->  | J149: =$F$34+$F$35*$C$55*$J$91 -> -1500 | L149: =IF(CALC!Y59>0,$F$33+$F$35*CALC!Y59*FIGURE_V2!$E$28,NA()) ->  | M149: =$F$34+$F$35*$C$55*$L$91 -> -1500 | P149: =IF($B$30<$B$27,$P$103,$P$103+$Q$97) ->  | Q149: =IF(Q148+$Q$97>$Q$103,NA(),Q148+$Q$97) ->  | R149: F8 | S149: 30 | T149: =M40+(S149/100)*(M41-M40) ->  | U149: =N40+(S149/100)*(N41-N40) ->  | X149: 310 | Y149: 190 | AR149: 146 | AS149: =$F$33+$F$35*CALC!D169*FIGURE_V2!$E$28 -> 144 | AT149: =$F$34+$F$35*($B$64+$C$64+$E$46*$D$64*CALC!F169*$F$46) -> -350 | AU149: =$F$34+$F$35*($B$65+$C$65+$E$49*$D$65*CALC!L169*$F$49) -> -810.2117647 | AV149: =($Y$178*($F$34+$F$35*($B$65+$C$65+$E$49*$D$65*CALC!J169*$F$49))) -> -900 | AW149: =$F$34+$F$35*($B$66+$C$66+$E$52*$D$66*CALC!N169*$F$52) -> -1240.56064 | AX149: =$Y$178*($F$34+$F$35*($B$66+$C$66+$E$52*$D$66*CALC!O169*$F$52)) -> -1305.28 | AY149: =CALC!U169 ->  | AZ149: =CALC!R169 ->  | BA149: =CALC!S169 ->  | BB149: =CALC!T169 -> 
A150: =I155 ->  | C150: =IF(A150=A149,NA(),A150) ->  | D150: =$F$34+$F$35*$A$88 -> 220 | I150: =I149 ->  | J150: =$F$34+$F$35*$C$43*$K$91 -> 300 | L150: =L149 ->  | M150: =$F$34+$F$35*$C$43*$M$91 -> 200 | S150: -20 | T150: =T149+(S150/100)*(N40-N41) ->  | U150: =U149+(S150/100)*(M41-M40) ->  | X150: 315 | Y150: 195 | AR150: 147 | AS150: =$F$33+$F$35*CALC!D170*FIGURE_V2!$E$28 -> 145 | AT150: =$F$34+$F$35*($B$64+$C$64+$E$46*$D$64*CALC!F170*$F$46) -> -350 | AU150: =$F$34+$F$35*($B$65+$C$65+$E$49*$D$65*CALC!L170*$F$49) -> -811.0588235 | AV150: =($Y$178*($F$34+$F$35*($B$65+$C$65+$E$49*$D$65*CALC!J170*$F$49))) -> -900 | AW150: =$F$34+$F$35*($B$66+$C$66+$E$52*$D$66*CALC!N170*$F$52) -> -1238.896 | AX150: =$Y$178*($F$34+$F$35*($B$66+$C$66+$E$52*$D$66*CALC!O170*$F$52)) -> -1302.4 | AY150: =CALC!U170 ->  | AZ150: =CALC!R170 ->  | BA150: =CALC!S170 ->  | BB150: =CALC!T170 ->  | BC150: 50 | BD150: 1000 | BE150: 992 | BF150: -350 | BG150: -688.2352941 | BH150: -1360
P151: =IF($B$30<$B$27,$P$103-$Q$97,$P$103) ->  | Q151: =Q149 ->  | X151: 320 | Y151: 200 | AR151: 148 | AS151: =$F$33+$F$35*CALC!D171*FIGURE_V2!$E$28 -> 146 | AT151: =$F$34+$F$35*($B$64+$C$64+$E$46*$D$64*CALC!F171*$F$46) -> -350 | AU151: =$F$34+$F$35*($B$65+$C$65+$E$49*$D$65*CALC!L171*$F$49) -> -811.9058824 | AV151: =($Y$178*($F$34+$F$35*($B$65+$C$65+$E$49*$D$65*CALC!J171*$F$49))) -> -900 | AW151: =$F$34+$F$35*($B$66+$C$66+$E$52*$D$66*CALC!N171*$F$52) -> -1237.21984 | AX151: =$Y$178*($F$34+$F$35*($B$66+$C$66+$E$52*$D$66*CALC!O171*$F$52)) -> -1299.52 | AY151: =CALC!U171 ->  | AZ151: =CALC!R171 ->  | BA151: =CALC!S171 ->  | BB151: =CALC!T171 ->  | BC151: 50 | BD151: 1000 | BE151: 992 | BF151: -250 | BG151: -582.3529412 | BH151: -1348.48
A152: =I155 ->  | C152: =IF(A153=A152,NA(),A152) ->  | D152: =$F$34+$F$35*$A$88 -> 220 | I152: =IF(ISNUMBER(CALC!BV25),$F$33+$F$35*CALC!BV25*FIGURE_V2!$E$28,NA()) ->  | J152: =$F$34+$F$35*$C$55*$J$91 -> -1500 | L152: =IF(CALC!Y60>0,$F$33+$F$35*CALC!Y60*FIGURE_V2!$E$28,NA()) ->  | M152: =$F$34+$F$35*$C$55*$L$91 -> -1500 | P152: =IF($B$30<$B$27,$P$103,$P$103+$Q$97) ->  | Q152: =IF(Q151+$Q$97>$Q$103,NA(),Q151+$Q$97) ->  | X152: 325 | Y152: =Z$3*($Z$4+$X152) -> 205 | Z152: =IF($X152>Z$5,NA(),Y$11+Z$10*COS(Y152*PI()/180)) ->  | AA152: =IF($X152>Z$5,NA(),Z$11+Z$10*SIN(Y152*PI()/180)) ->  | AB152: =AC$3*($Z$4+$X152) ->  | AC152: =IF($X152>AC$5,NA(),AB$11+AC$10*COS(AB152*PI()/180)) ->  | AD152: =IF($X152>AC$5,NA(),AC$11+AC$10*SIN(AB152*PI()/180)) ->  | AE152: =AF$3*($Z$4+$X152) ->  | AF152: =IF($X152>AF$5,NA(),AE$11+AF$10*COS(AE152*PI()/180)) ->  | AG152: =IF($X152>AF$5,NA(),AF$11+AF$10*SIN(AE152*PI()/180)) ->  | AH152: =AI$3*($Z$4+$X152) ->  | AI152: =IF($X152>AI$5,NA(),AH$11+AI$10*COS(AH152*PI()/180)) ->  | AJ152: =IF($X152>AI$5,NA(),AI$11+AI$10*SIN(AH152*PI()/180)) ->  | AK152: =AL$3*($Z$4+$X152) ->  | AL152: =IF($X152>AL$5,NA(),AK$11+AL$10*COS(AK152*PI()/180)) ->  | AM152: =IF($X152>AL$5,NA(),AL$11+AL$10*SIN(AK152*PI()/180)) ->  | AN152: =AO$3*($Z$4+$X152) ->  | AO152: =IF($X152>AO$5,NA(),AN$11+AO$10*COS(AN152*PI()/180)) ->  | AP152: =IF($X152>AO$5,NA(),AO$11+AO$10*SIN(AN152*PI()/180)) ->  | AR152: 149 | AS152: =$F$33+$F$35*CALC!D172*FIGURE_V2!$E$28 -> 147 | AT152: =$F$34+$F$35*($B$64+$C$64+$E$46*$D$64*CALC!F172*$F$46) -> -350 | AU152: =$F$34+$F$35*($B$65+$C$65+$E$49*$D$65*CALC!L172*$F$49) -> -812.7529412 | AV152: =($Y$178*($F$34+$F$35*($B$65+$C$65+$E$49*$D$65*CALC!J172*$F$49))) -> -900 | AW152: =$F$34+$F$35*($B$66+$C$66+$E$52*$D$66*CALC!N172*$F$52) -> -1235.53216 | AX152: =$Y$178*($F$34+$F$35*($B$66+$C$66+$E$52*$D$66*CALC!O172*$F$52)) -> -1296.64 | AY152: =CALC!U172 ->  | AZ152: =CALC!R172 ->  | BA152: =CALC!S172 ->  | BB152: =CALC!T172 -> 
A153: =I158 ->  | C153: =IF(A153=A152,NA(),A153) ->  | D153: =$F$34+$F$35*$A$88 -> 220 | I153: =I152 ->  | J153: =$F$34+$F$35*$C$43*$K$91 -> 300 | L153: =L152 ->  | M153: =$F$34+$F$35*$C$43*$M$91 -> 200 | R153: F9 | S153: 30 | T153: =M44+(S153/100)*(M45-M44) ->  | U153: =N44+(S153/100)*(N45-N44) ->  | X153: 330 | Y153: 210 | AR153: 150 | AS153: =$F$33+$F$35*CALC!D173*FIGURE_V2!$E$28 -> 148 | AT153: =$F$34+$F$35*($B$64+$C$64+$E$46*$D$64*CALC!F173*$F$46) -> -350 | AU153: =$F$34+$F$35*($B$65+$C$65+$E$49*$D$65*CALC!L173*$F$49) -> -813.6 | AV153: =($Y$178*($F$34+$F$35*($B$65+$C$65+$E$49*$D$65*CALC!J173*$F$49))) -> -900 | AW153: =$F$34+$F$35*($B$66+$C$66+$E$52*$D$66*CALC!N173*$F$52) -> -1233.83296 | AX153: =$Y$178*($F$34+$F$35*($B$66+$C$66+$E$52*$D$66*CALC!O173*$F$52)) -> -1293.76 | AY153: =CALC!U173 ->  | AZ153: =CALC!R173 ->  | BA153: =CALC!S173 ->  | BB153: =CALC!T173 ->  | BC153: 51 | BD153: 1020
B154: =IF(ISNUMBER(A154),A154,"") ->  | P154: =IF($B$30<$B$27,$P$103-$Q$97,$P$103) ->  | Q154: =Q152 ->  | S154: -20 | T154: =T153+(S154/100)*(N44-N45) ->  | U154: =U153+(S154/100)*(M45-M44) ->  | X154: 335 | Y154: 215 | AR154: 151 | AS154: =$F$33+$F$35*CALC!D174*FIGURE_V2!$E$28 -> 149 | AT154: =$F$34+$F$35*($B$64+$C$64+$E$46*$D$64*CALC!F174*$F$46) -> -350 | AU154: =$F$34+$F$35*($B$65+$C$65+$E$49*$D$65*CALC!L174*$F$49) -> -814.4470588 | AV154: =($Y$178*($F$34+$F$35*($B$65+$C$65+$E$49*$D$65*CALC!J174*$F$49))) -> -900 | AW154: =$F$34+$F$35*($B$66+$C$66+$E$52*$D$66*CALC!N174*$F$52) -> -1232.12224 | AX154: =$Y$178*($F$34+$F$35*($B$66+$C$66+$E$52*$D$66*CALC!O174*$F$52)) -> -1290.88 | AY154: =CALC!U174 ->  | AZ154: =CALC!R174 ->  | BA154: =CALC!S174 ->  | BB154: =CALC!T174 ->  | BC154: 51 | BD154: 1020
A155: =I158 ->  | C155: =IF(A156=A155,NA(),A155) ->  | D155: =$F$34+$F$35*$A$88 -> 220 | I155: =IF(ISNUMBER(CALC!BV26),$F$33+$F$35*CALC!BV26*FIGURE_V2!$E$28,NA()) ->  | J155: =$F$34+$F$35*$C$55*$J$91 -> -1500 | L155: =IF(CALC!Y61>0,$F$33+$F$35*CALC!Y61*FIGURE_V2!$E$28,NA()) ->  | M155: =$F$34+$F$35*$C$55*$L$91 -> -1500 | P155: =IF($B$30<$B$27,$P$103,$P$103+$Q$97) ->  | Q155: =IF(Q154+$Q$97>$Q$103,NA(),Q154+$Q$97) ->  | X155: 340 | Y155: 220 | AR155: 152 | AS155: =$F$33+$F$35*CALC!D175*FIGURE_V2!$E$28 -> 150 | AT155: =$F$34+$F$35*($B$64+$C$64+$E$46*$D$64*CALC!F175*$F$46) -> -350 | AU155: =$F$34+$F$35*($B$65+$C$65+$E$49*$D$65*CALC!L175*$F$49) -> -815.2941176 | AV155: =($Y$178*($F$34+$F$35*($B$65+$C$65+$E$49*$D$65*CALC!J175*$F$49))) -> -900 | AW155: =$F$34+$F$35*($B$66+$C$66+$E$52*$D$66*CALC!N175*$F$52) -> -1230.4 | AX155: =$Y$178*($F$34+$F$35*($B$66+$C$66+$E$52*$D$66*CALC!O175*$F$52)) -> -1288 | AY155: =CALC!U175 ->  | AZ155: =CALC!R175 ->  | BA155: =CALC!S175 ->  | BB155: =CALC!T175 -> 
A156: =I161 ->  | C156: =IF(A156=A155,NA(),A156) ->  | D156: =$F$34+$F$35*$A$88 -> 220 | I156: =I155 ->  | J156: =$F$34+$F$35*$C$43*$K$91 -> 300 | L156: =L155 ->  | M156: =$F$34+$F$35*$C$43*$M$91 -> 200 | X156: 345 | Y156: 225 | AR156: 153 | AS156: =$F$33+$F$35*CALC!D176*FIGURE_V2!$E$28 -> 151 | AT156: =$F$34+$F$35*($B$64+$C$64+$E$46*$D$64*CALC!F176*$F$46) -> -350 | AU156: =$F$34+$F$35*($B$65+$C$65+$E$49*$D$65*CALC!L176*$F$49) -> -816.1411765 | AV156: =($Y$178*($F$34+$F$35*($B$65+$C$65+$E$49*$D$65*CALC!J176*$F$49))) -> -900 | AW156: =$F$34+$F$35*($B$66+$C$66+$E$52*$D$66*CALC!N176*$F$52) -> -1228.66624 | AX156: =$Y$178*($F$34+$F$35*($B$66+$C$66+$E$52*$D$66*CALC!O176*$F$52)) -> -1285.12 | AY156: =CALC!U176 ->  | AZ156: =CALC!R176 ->  | BA156: =CALC!S176 ->  | BB156: =CALC!T176 ->  | BC156: 52 | BD156: 1040
P157: =IF($B$30<$B$27,$P$103-$Q$97,$P$103) ->  | Q157: =Q155 ->  | R157: F10 | S157: 30 | T157: =M48+(S157/100)*(M49-M48) ->  | U157: =N48+(S157/100)*(N49-N48) ->  | X157: 350 | Y157: 230 | AR157: 154 | AS157: =$F$33+$F$35*CALC!D177*FIGURE_V2!$E$28 -> 152 | AT157: =$F$34+$F$35*($B$64+$C$64+$E$46*$D$64*CALC!F177*$F$46) -> -350 | AU157: =$F$34+$F$35*($B$65+$C$65+$E$49*$D$65*CALC!L177*$F$49) -> -816.9882353 | AV157: =($Y$178*($F$34+$F$35*($B$65+$C$65+$E$49*$D$65*CALC!J177*$F$49))) -> -900 | AW157: =$F$34+$F$35*($B$66+$C$66+$E$52*$D$66*CALC!N177*$F$52) -> -1226.92096 | AX157: =$Y$178*($F$34+$F$35*($B$66+$C$66+$E$52*$D$66*CALC!O177*$F$52)) -> -1282.24 | AY157: =CALC!U177 ->  | AZ157: =CALC!R177 ->  | BA157: =CALC!S177 ->  | BB157: =CALC!T177 ->  | BC157: 52 | BD157: 1040
A158: =I161 ->  | C158: =IF(A159=A158,NA(),A158) ->  | D158: =$F$34+$F$35*$A$88 -> 220 | I158: =IF(ISNUMBER(CALC!BV27),$F$33+$F$35*CALC!BV27*FIGURE_V2!$E$28,NA()) ->  | J158: =$F$34+$F$35*$C$55*$J$91 -> -1500 | L158: =IF(CALC!Y62>0,$F$33+$F$35*CALC!Y62*FIGURE_V2!$E$28,NA()) ->  | M158: =$F$34+$F$35*$C$55*$L$91 -> -1500 | P158: =IF($B$30<$B$27,$P$103,$P$103+$Q$97) ->  | Q158: =IF(Q157+$Q$97>$Q$103,NA(),Q157+$Q$97) ->  | S158: -20 | T158: =T157+(S158/100)*(N48-N49) ->  | U158: =U157+(S158/100)*(M49-M48) ->  | X158: 355 | Y158: 235 | AR158: 155 | AS158: =$F$33+$F$35*CALC!D178*FIGURE_V2!$E$28 -> 153 | AT158: =$F$34+$F$35*($B$64+$C$64+$E$46*$D$64*CALC!F178*$F$46) -> -350 | AU158: =$F$34+$F$35*($B$65+$C$65+$E$49*$D$65*CALC!L178*$F$49) -> -817.8352941 | AV158: =($Y$178*($F$34+$F$35*($B$65+$C$65+$E$49*$D$65*CALC!J178*$F$49))) -> -900 | AW158: =$F$34+$F$35*($B$66+$C$66+$E$52*$D$66*CALC!N178*$F$52) -> -1225.16416 | AX158: =$Y$178*($F$34+$F$35*($B$66+$C$66+$E$52*$D$66*CALC!O178*$F$52)) -> -1279.36 | AY158: =CALC!U178 ->  | AZ158: =CALC!R178 ->  | BA158: =CALC!S178 ->  | BB158: =CALC!T178 -> 
A159: =I164 ->  | C159: =IF(A159=A158,NA(),A159) ->  | D159: =$F$34+$F$35*$A$88 -> 220 | I159: =I158 ->  | J159: =$F$34+$F$35*$C$43*$K$91 -> 300 | L159: =L158 ->  | M159: =$F$34+$F$35*$C$43*$M$91 -> 200 | X159: 360 | Y159: 240 | AR159: 156 | AS159: =$F$33+$F$35*CALC!D179*FIGURE_V2!$E$28 -> 154 | AT159: =$F$34+$F$35*($B$64+$C$64+$E$46*$D$64*CALC!F179*$F$46) -> -350 | AU159: =$F$34+$F$35*($B$65+$C$65+$E$49*$D$65*CALC!L179*$F$49) -> -818.6823529 | AV159: =($Y$178*($F$34+$F$35*($B$65+$C$65+$E$49*$D$65*CALC!J179*$F$49))) -> -900 | AW159: =$F$34+$F$35*($B$66+$C$66+$E$52*$D$66*CALC!N179*$F$52) -> -1223.39584 | AX159: =$Y$178*($F$34+$F$35*($B$66+$C$66+$E$52*$D$66*CALC!O179*$F$52)) -> -1276.48 | AY159: =CALC!U179 ->  | AZ159: =CALC!R179 ->  | BA159: =CALC!S179 ->  | BB159: =CALC!T179 ->  | BC159: 53 | BD159: 1060
R160: Fax | T160: 30 | U160: -30 | AR160: 157 | AS160: =$F$33+$F$35*CALC!D180*FIGURE_V2!$E$28 -> 155 | AT160: =$F$34+$F$35*($B$64+$C$64+$E$46*$D$64*CALC!F180*$F$46) -> -350 | AU160: =$F$34+$F$35*($B$65+$C$65+$E$49*$D$65*CALC!L180*$F$49) -> -819.5294118 | AV160: =($Y$178*($F$34+$F$35*($B$65+$C$65+$E$49*$D$65*CALC!J180*$F$49))) -> -900 | AW160: =$F$34+$F$35*($B$66+$C$66+$E$52*$D$66*CALC!N180*$F$52) -> -1221.616 | AX160: =$Y$178*($F$34+$F$35*($B$66+$C$66+$E$52*$D$66*CALC!O180*$F$52)) -> -1273.6 | AY160: =CALC!U180 ->  | AZ160: =CALC!R180 ->  | BA160: =CALC!S180 ->  | BB160: =CALC!T180 ->  | BC160: =IF(ISNUMBER(BC85),BC85+25,NA()) -> 53 | BD160: 1060
A161: =I164 ->  | C161: =IF(A162=A161,NA(),A161) ->  | D161: =$F$34+$F$35*$A$88 -> 220 | I161: =IF(ISNUMBER(CALC!BV28),$F$33+$F$35*CALC!BV28*FIGURE_V2!$E$28,NA()) ->  | J161: =$F$34+$F$35*$C$55*$J$91 -> -1500 | L161: =IF(CALC!Y63>0,$F$33+$F$35*CALC!Y63*FIGURE_V2!$E$28,NA()) ->  | M161: =$F$34+$F$35*$C$55*$L$91 -> -1500 | T161: =V95+T160 -> 380 | U161: =W95+U160 -> -30 | Y161: =Z3*(Z4+Z5) -> 120 | Z161: =Y11+Z9*COS(Y161*PI()/180) -> 484.5 | AA161: =Z11+Z9*SIN(Y161*PI()/180) -> 26.84678752 | AB161: =AC3*(AC4+AC5) ->  | AC161: =AB11+AC9*COS(AB161*PI()/180) ->  | AD161: =AC11+AC9*SIN(AB161*PI()/180) ->  | AE161: =AF3*(AF4+AF5) ->  | AF161: =AE11+AF9*COS(AE161*PI()/180) ->  | AG161: =AF11+AF9*SIN(AE161*PI()/180) ->  | AH161: =AI3*(AI4+AI5) ->  | AI161: =AH11+AI9*COS(AH161*PI()/180) ->  | AJ161: =AI11+AI9*SIN(AH161*PI()/180) ->  | AK161: =AL3*(AL4+AL5) ->  | AL161: =AK11+AL9*COS(AK161*PI()/180) ->  | AM161: =AL11+AL9*SIN(AK161*PI()/180) ->  | AN161: =AO3*(AO4+AO5) ->  | AO161: =AN11+AO9*COS(AN161*PI()/180) ->  | AP161: =AO11+AO9*SIN(AN161*PI()/180) ->  | AR161: 158 | AS161: =$F$33+$F$35*CALC!D181*FIGURE_V2!$E$28 -> 156 | AT161: =$F$34+$F$35*($B$64+$C$64+$E$46*$D$64*CALC!F181*$F$46) -> -350 | AU161: =$F$34+$F$35*($B$65+$C$65+$E$49*$D$65*CALC!L181*$F$49) -> -820.3764706 | AV161: =($Y$178*($F$34+$F$35*($B$65+$C$65+$E$49*$D$65*CALC!J181*$F$49))) -> -900 | AW161: =$F$34+$F$35*($B$66+$C$66+$E$52*$D$66*CALC!N181*$F$52) -> -1219.82464 | AX161: =$Y$178*($F$34+$F$35*($B$66+$C$66+$E$52*$D$66*CALC!O181*$F$52)) -> -1270.72 | AY161: =CALC!U181 ->  | AZ161: =CALC!R181 ->  | BA161: =CALC!S181 ->  | BB161: =CALC!T181 -> 
A162: =I167 ->  | C162: =IF(A162=A161,NA(),A162) ->  | D162: =$F$34+$F$35*$A$88 -> 220 | I162: =I161 ->  | J162: =$F$34+$F$35*$C$43*$K$91 -> 300 | L162: =L161 ->  | M162: =$F$34+$F$35*$C$43*$M$91 -> 200 | Z162: =Y11+(Z9-Z7)*COS(Y161*PI()/180) -> 489.5 | AA162: =Z11+(Z9-Z7)*SIN(Y161*PI()/180) -> 18.18653348 | AC162: =AB11+(AC9-AC7)*COS(AB161*PI()/180) ->  | AD162: =AC11+(AC9-AC7)*SIN(AB161*PI()/180) ->  | AF162: =AE11+(AF9-AF7)*COS(AE161*PI()/180) ->  | AG162: =AF11+(AF9-AF7)*SIN(AE161*PI()/180) ->  | AI162: =AH11+(AI9-AI7)*COS(AH161*PI()/180) ->  | AJ162: =AI11+(AI9-AI7)*SIN(AH161*PI()/180) ->  | AL162: =AK11+(AL9-AL7)*COS(AK161*PI()/180) ->  | AM162: =AL11+(AL9-AL7)*SIN(AK161*PI()/180) ->  | AO162: =AN11+(AO9-AO7)*COS(AN161*PI()/180) ->  | AP162: =AO11+(AO9-AO7)*SIN(AN161*PI()/180) ->  | AR162: 159 | AS162: =$F$33+$F$35*CALC!D182*FIGURE_V2!$E$28 -> 157 | AT162: =$F$34+$F$35*($B$64+$C$64+$E$46*$D$64*CALC!F182*$F$46) -> -350 | AU162: =$F$34+$F$35*($B$65+$C$65+$E$49*$D$65*CALC!L182*$F$49) -> -821.2235294 | AV162: =($Y$178*($F$34+$F$35*($B$65+$C$65+$E$49*$D$65*CALC!J182*$F$49))) -> -900 | AW162: =$F$34+$F$35*($B$66+$C$66+$E$52*$D$66*CALC!N182*$F$52) -> -1218.02176 | AX162: =$Y$178*($F$34+$F$35*($B$66+$C$66+$E$52*$D$66*CALC!O182*$F$52)) -> -1267.84 | AY162: =CALC!U182 ->  | AZ162: =CALC!R182 ->  | BA162: =CALC!S182 ->  | BB162: =CALC!T182 ->  | BC162: =IF(ISNUMBER(BC87),BC87+25,NA()) -> 54 | BD162: 1080
R163: Fya | T163: 40 | U163: 0 | AR163: 160 | AS163: =$F$33+$F$35*CALC!D183*FIGURE_V2!$E$28 -> 158 | AT163: =$F$34+$F$35*($B$64+$C$64+$E$46*$D$64*CALC!F183*$F$46) -> -350 | AU163: =$F$34+$F$35*($B$65+$C$65+$E$49*$D$65*CALC!L183*$F$49) -> -822.0705882 | AV163: =($Y$178*($F$34+$F$35*($B$65+$C$65+$E$49*$D$65*CALC!J183*$F$49))) -> -900 | AW163: =$F$34+$F$35*($B$66+$C$66+$E$52*$D$66*CALC!N183*$F$52) -> -1216.20736 | AX163: =$Y$178*($F$34+$F$35*($B$66+$C$66+$E$52*$D$66*CALC!O183*$F$52)) -> -1264.96 | AY163: =CALC!U183 ->  | AZ163: =CALC!R183 ->  | BA163: =CALC!S183 ->  | BB163: =CALC!T183 ->  | BC163: 54 | BD163: 1080
A164: =I167 ->  | C164: =IF(A165=A164,NA(),A164) ->  | D164: =$F$34+$F$35*$A$88 -> 220 | I164: =IF(ISNUMBER(CALC!BV29),$F$33+$F$35*CALC!BV29*FIGURE_V2!$E$28,NA()) ->  | J164: =$F$34+$F$35*$C$55*$J$91 -> -1500 | L164: =IF(CALC!Y64>0,$F$33+$F$35*CALC!Y64*FIGURE_V2!$E$28,NA()) ->  | M164: =$F$34+$F$35*$C$55*$L$91 -> -1500 | T164: =V98+T163 -> 290 | U164: =MIN(W98:W99)+U163 -> -163.3012702 | Z164: =Y11+Z10*COS(Y161*PI()/180) -> 475.5 | AA164: =Z11+Z10*SIN(Y161*PI()/180) -> 42.43524479 | AC164: =AB11+AC10*COS(AB161*PI()/180) ->  | AD164: =AC11+AC10*SIN(AB161*PI()/180) ->  | AF164: =AE11+AF10*COS(AE161*PI()/180) ->  | AG164: =AF11+AF10*SIN(AE161*PI()/180) ->  | AI164: =AH11+AI10*COS(AH161*PI()/180) ->  | AJ164: =AI11+AI10*SIN(AH161*PI()/180) ->  | AL164: =AK11+AL10*COS(AK161*PI()/180) ->  | AM164: =AL11+AL10*SIN(AK161*PI()/180) ->  | AO164: =AN11+AO10*COS(AN161*PI()/180) ->  | AP164: =AO11+AO10*SIN(AN161*PI()/180) ->  | AR164: 161 | AS164: =$F$33+$F$35*CALC!D184*FIGURE_V2!$E$28 -> 159 | AT164: =$F$34+$F$35*($B$64+$C$64+$E$46*$D$64*CALC!F184*$F$46) -> -350 | AU164: =$F$34+$F$35*($B$65+$C$65+$E$49*$D$65*CALC!L184*$F$49) -> -822.9176471 | AV164: =($Y$178*($F$34+$F$35*($B$65+$C$65+$E$49*$D$65*CALC!J184*$F$49))) -> -900 | AW164: =$F$34+$F$35*($B$66+$C$66+$E$52*$D$66*CALC!N184*$F$52) -> -1214.38144 | AX164: =$Y$178*($F$34+$F$35*($B$66+$C$66+$E$52*$D$66*CALC!O184*$F$52)) -> -1262.08 | AY164: =CALC!U184 ->  | AZ164: =CALC!R184 ->  | BA164: =CALC!S184 ->  | BB164: =CALC!T184 -> 
A165: =I170 ->  | C165: =IF(A165=A164,NA(),A165) ->  | D165: =$F$34+$F$35*$A$88 -> 220 | I165: =I164 ->  | J165: =$F$34+$F$35*$C$43*$K$91 -> 300 | L165: =L164 ->  | M165: =$F$34+$F$35*$C$43*$M$91 -> 200 | Z165: =Y11+(Z10+Z7)*COS(Y161*PI()/180) -> 470.5 | AA165: =Z11+(Z10+Z7)*SIN(Y161*PI()/180) -> 51.09549882 | AC165: =AB11+(AC10+AC7)*COS(AB161*PI()/180) ->  | AD165: =AC11+(AC10+AC7)*SIN(AB161*PI()/180) ->  | AF165: =AE11+(AF10+AF7)*COS(AE161*PI()/180) ->  | AG165: =AF11+(AF10+AF7)*SIN(AE161*PI()/180) ->  | AI165: =AH11+(AI10+AI7)*COS(AH161*PI()/180) ->  | AJ165: =AI11+(AI10+AI7)*SIN(AH161*PI()/180) ->  | AL165: =AK11+(AL10+AL7)*COS(AK161*PI()/180) ->  | AM165: =AL11+(AL10+AL7)*SIN(AK161*PI()/180) ->  | AO165: =AN11+(AO10+AO7)*COS(AN161*PI()/180) ->  | AP165: =AO11+(AO10+AO7)*SIN(AN161*PI()/180) ->  | AR165: 162 | AS165: =$F$33+$F$35*CALC!D185*FIGURE_V2!$E$28 -> 160 | AT165: =$F$34+$F$35*($B$64+$C$64+$E$46*$D$64*CALC!F185*$F$46) -> -350 | AU165: =$F$34+$F$35*($B$65+$C$65+$E$49*$D$65*CALC!L185*$F$49) -> -823.7647059 | AV165: =($Y$178*($F$34+$F$35*($B$65+$C$65+$E$49*$D$65*CALC!J185*$F$49))) -> -900 | AW165: =$F$34+$F$35*($B$66+$C$66+$E$52*$D$66*CALC!N185*$F$52) -> -1212.544 | AX165: =$Y$178*($F$34+$F$35*($B$66+$C$66+$E$52*$D$66*CALC!O185*$F$52)) -> -1259.2 | AY165: =CALC!U185 ->  | AZ165: =CALC!R185 ->  | BA165: =CALC!S185 ->  | BB165: =CALC!T185 ->  | BC165: 55 | BD165: 1100
R166: Fby | T166: 40 | U166: 0 | AR166: 163 | AS166: =$F$33+$F$35*CALC!D186*FIGURE_V2!$E$28 -> 161 | AT166: =$F$34+$F$35*($B$64+$C$64+$E$46*$D$64*CALC!F186*$F$46) -> -350 | AU166: =$F$34+$F$35*($B$65+$C$65+$E$49*$D$65*CALC!L186*$F$49) -> -824.6117647 | AV166: =($Y$178*($F$34+$F$35*($B$65+$C$65+$E$49*$D$65*CALC!J186*$F$49))) -> -900 | AW166: =$F$34+$F$35*($B$66+$C$66+$E$52*$D$66*CALC!N186*$F$52) -> -1210.69504 | AX166: =$Y$178*($F$34+$F$35*($B$66+$C$66+$E$52*$D$66*CALC!O186*$F$52)) -> -1256.32 | AY166: =CALC!U186 ->  | AZ166: =CALC!R186 ->  | BA166: =CALC!S186 ->  | BB166: =CALC!T186 ->  | BC166: 55 | BD166: 1100
A167: =I170 ->  | C167: =IF(A168=A167,NA(),A167) ->  | D167: =$F$34+$F$35*$A$88 -> 220 | I167: =IF(ISNUMBER(CALC!BV30),$F$33+$F$35*CALC!BV30*FIGURE_V2!$E$28,NA()) ->  | J167: =$F$34+$F$35*$C$55*$J$91 -> -1500 | L167: =IF(CALC!Y65>0,$F$33+$F$35*CALC!Y65*FIGURE_V2!$E$28,NA()) ->  | M167: =$F$34+$F$35*$C$55*$L$91 -> -1500 | T167: =V101+T166 -> 790 | U167: =MIN(W101:W102)+U166 -> -183.3012702 | Z167: =Z162 -> 489.5 | AA167: =AA162 -> 18.18653348 | AC167: =AC162 ->  | AD167: =AD162 ->  | AF167: =AF162 ->  | AG167: =AG162 ->  | AI167: =AI162 ->  | AJ167: =AJ162 ->  | AL167: =AL162 ->  | AM167: =AM162 ->  | AO167: =AO162 ->  | AP167: =AP162 ->  | AR167: 164 | AS167: =$F$33+$F$35*CALC!D187*FIGURE_V2!$E$28 -> 162 | AT167: =$F$34+$F$35*($B$64+$C$64+$E$46*$D$64*CALC!F187*$F$46) -> -350 | AU167: =$F$34+$F$35*($B$65+$C$65+$E$49*$D$65*CALC!L187*$F$49) -> -825.4588235 | AV167: =($Y$178*($F$34+$F$35*($B$65+$C$65+$E$49*$D$65*CALC!J187*$F$49))) -> -900 | AW167: =$F$34+$F$35*($B$66+$C$66+$E$52*$D$66*CALC!N187*$F$52) -> -1208.83456 | AX167: =$Y$178*($F$34+$F$35*($B$66+$C$66+$E$52*$D$66*CALC!O187*$F$52)) -> -1253.44 | AY167: =CALC!U187 ->  | AZ167: =CALC!R187 ->  | BA167: =CALC!S187 ->  | BB167: =CALC!T187 -> 
A168: =I173 ->  | C168: =IF(A168=A167,NA(),A168) ->  | D168: =$F$34+$F$35*$A$88 -> 220 | I168: =I167 ->  | J168: =$F$34+$F$35*$C$43*$K$91 -> 300 | L168: =L167 ->  | M168: =$F$34+$F$35*$C$43*$M$91 -> 200 | Z168: =Z174+AA175 -> 463.5455173 | AA168: =AA174-Z175 -> 25.14101615 | AC168: =AC174+AD175 ->  | AD168: =AD174-AC175 ->  | AF168: =AF174+AG175 ->  | AG168: =AG174-AF175 ->  | AI168: =AI174+AJ175 ->  | AJ168: =AJ174-AI175 ->  | AL168: =AL174+AM175 ->  | AM168: =AM174-AL175 ->  | AO168: =AO174+AP175 ->  | AP168: =AP174-AO175 ->  | AR168: 165 | AS168: =$F$33+$F$35*CALC!D188*FIGURE_V2!$E$28 -> 163 | AT168: =$F$34+$F$35*($B$64+$C$64+$E$46*$D$64*CALC!F188*$F$46) -> -350 | AU168: =$F$34+$F$35*($B$65+$C$65+$E$49*$D$65*CALC!L188*$F$49) -> -826.3058824 | AV168: =($Y$178*($F$34+$F$35*($B$65+$C$65+$E$49*$D$65*CALC!J188*$F$49))) -> -900 | AW168: =$F$34+$F$35*($B$66+$C$66+$E$52*$D$66*CALC!N188*$F$52) -> -1206.96256 | AX168: =$Y$178*($F$34+$F$35*($B$66+$C$66+$E$52*$D$66*CALC!O188*$F$52)) -> -1250.56 | AY168: =CALC!U188 ->  | AZ168: =CALC!R188 ->  | BA168: =CALC!S188 ->  | BB168: =CALC!T188 ->  | BC168: 56 | BD168: 1120
AR169: 166 | AS169: =$F$33+$F$35*CALC!D189*FIGURE_V2!$E$28 -> 164 | AT169: =$F$34+$F$35*($B$64+$C$64+$E$46*$D$64*CALC!F189*$F$46) -> -350 | AU169: =$F$34+$F$35*($B$65+$C$65+$E$49*$D$65*CALC!L189*$F$49) -> -827.1529412 | AV169: =($Y$178*($F$34+$F$35*($B$65+$C$65+$E$49*$D$65*CALC!J189*$F$49))) -> -900 | AW169: =$F$34+$F$35*($B$66+$C$66+$E$52*$D$66*CALC!N189*$F$52) -> -1205.07904 | AX169: =$Y$178*($F$34+$F$35*($B$66+$C$66+$E$52*$D$66*CALC!O189*$F$52)) -> -1247.68 | AY169: =CALC!U189 ->  | AZ169: =CALC!R189 ->  | BA169: =CALC!S189 ->  | BB169: =CALC!T189 ->  | BC169: 56 | BD169: 1120
A170: =I173 ->  | C170: =IF(A171=A170,NA(),A170) ->  | D170: =$F$34+$F$35*$A$88 -> 220 | I170: =IF(ISNUMBER(CALC!BV31),$F$33+$F$35*CALC!BV31*FIGURE_V2!$E$28,NA()) ->  | J170: =$F$34+$F$35*$C$55*$J$91 -> -1500 | L170: =IF(CALC!Y66>0,$F$33+$F$35*CALC!Y66*FIGURE_V2!$E$28,NA()) ->  | M170: =$F$34+$F$35*$C$55*$L$91 -> -1500 | S170: nyomatékok | Z170: =Z168 -> 463.5455173 | AA170: =AA168 -> 25.14101615 | AC170: =AC168 ->  | AD170: =AD168 ->  | AF170: =AF168 ->  | AG170: =AG168 ->  | AI170: =AI168 ->  | AJ170: =AJ168 ->  | AL170: =AL168 ->  | AM170: =AM168 ->  | AO170: =AO168 ->  | AP170: =AP168 ->  | AR170: 167 | AS170: =$F$33+$F$35*CALC!D190*FIGURE_V2!$E$28 -> 165 | AT170: =$F$34+$F$35*($B$64+$C$64+$E$46*$D$64*CALC!F190*$F$46) -> -350 | AU170: =$F$34+$F$35*($B$65+$C$65+$E$49*$D$65*CALC!L190*$F$49) -> -828 | AV170: =($Y$178*($F$34+$F$35*($B$65+$C$65+$E$49*$D$65*CALC!J190*$F$49))) -> -900 | AW170: =$F$34+$F$35*($B$66+$C$66+$E$52*$D$66*CALC!N190*$F$52) -> -1203.184 | AX170: =$Y$178*($F$34+$F$35*($B$66+$C$66+$E$52*$D$66*CALC!O190*$F$52)) -> -1244.8 | AY170: =CALC!U190 ->  | AZ170: =CALC!R190 ->  | BA170: =CALC!S190 ->  | BB170: =CALC!T190 -> 
A171: =I176 ->  | C171: =IF(A171=A170,NA(),A171) ->  | D171: =$F$34+$F$35*$A$88 -> 220 | I171: =I170 ->  | J171: =$F$34+$F$35*$C$43*$K$91 -> 300 | L171: =L170 ->  | M171: =$F$34+$F$35*$C$43*$M$91 -> 200 | R171: M1 | S171: 20 | T171: =ABS($Z$3)*$J$53+($Z$6*S172/100)*COS((IF($B$15>0,($Z$4+$Z$5+$S$171),($Z$4-$S$171))*PI()/180)) -> 438.7164446 | U171: =ABS($Z$3)*$K$53+($Z$6*S172/100)*SIN((IF($B$15>0,($Z$4+$Z$5+$S$171),($Z$4-$S$171))*PI()/180)) -> 51.42300877 | Z171: =Z165 -> 470.5 | AA171: =AA165 -> 51.09549882 | AC171: =AC165 ->  | AD171: =AD165 ->  | AF171: =AF165 ->  | AG171: =AG165 ->  | AI171: =AI165 ->  | AJ171: =AJ165 ->  | AL171: =AL165 ->  | AM171: =AM165 ->  | AO171: =AO165 ->  | AP171: =AP165 ->  | AR171: 168 | AS171: =$F$33+$F$35*CALC!D191*FIGURE_V2!$E$28 -> 166 | AT171: =$F$34+$F$35*($B$64+$C$64+$E$46*$D$64*CALC!F191*$F$46) -> -350 | AU171: =$F$34+$F$35*($B$65+$C$65+$E$49*$D$65*CALC!L191*$F$49) -> -828.8470588 | AV171: =($Y$178*($F$34+$F$35*($B$65+$C$65+$E$49*$D$65*CALC!J191*$F$49))) -> -900 | AW171: =$F$34+$F$35*($B$66+$C$66+$E$52*$D$66*CALC!N191*$F$52) -> -1201.27744 | AX171: =$Y$178*($F$34+$F$35*($B$66+$C$66+$E$52*$D$66*CALC!O191*$F$52)) -> -1241.92 | AY171: =CALC!U191 ->  | AZ171: =CALC!R191 ->  | BA171: =CALC!S191 ->  | BB171: =CALC!T191 ->  | BC171: 57 | BD171: 1140
S172: 200 | AR172: 169 | AS172: =$F$33+$F$35*CALC!D192*FIGURE_V2!$E$28 -> 167 | AT172: =$F$34+$F$35*($B$64+$C$64+$E$46*$D$64*CALC!F192*$F$46) -> -350 | AU172: =$F$34+$F$35*($B$65+$C$65+$E$49*$D$65*CALC!L192*$F$49) -> -829.6941176 | AV172: =($Y$178*($F$34+$F$35*($B$65+$C$65+$E$49*$D$65*CALC!J192*$F$49))) -> -900 | AW172: =$F$34+$F$35*($B$66+$C$66+$E$52*$D$66*CALC!N192*$F$52) -> -1199.35936 | AX172: =$Y$178*($F$34+$F$35*($B$66+$C$66+$E$52*$D$66*CALC!O192*$F$52)) -> -1239.04 | AY172: =CALC!U192 ->  | AZ172: =CALC!R192 ->  | BA172: =CALC!S192 ->  | BB172: =CALC!T192 ->  | BC172: 57 | BD172: 1140
A173: =I176 ->  | C173: =IF(A174=A173,NA(),A173) ->  | D173: =$F$34+$F$35*$A$88 -> 220 | I173: =IF(ISNUMBER(CALC!BV32),$F$33+$F$35*CALC!BV32*FIGURE_V2!$E$28,NA()) ->  | J173: =$F$34+$F$35*$C$55*$J$91 -> -1500 | L173: =IF(CALC!Y67>0,$F$33+$F$35*CALC!Y67*FIGURE_V2!$E$28,NA()) ->  | M173: =$F$34+$F$35*$C$55*$L$91 -> -1500 | AR173: 170 | AS173: =$F$33+$F$35*CALC!D193*FIGURE_V2!$E$28 -> 168 | AT173: =$F$34+$F$35*($B$64+$C$64+$E$46*$D$64*CALC!F193*$F$46) -> -350 | AU173: =$F$34+$F$35*($B$65+$C$65+$E$49*$D$65*CALC!L193*$F$49) -> -830.5411765 | AV173: =($Y$178*($F$34+$F$35*($B$65+$C$65+$E$49*$D$65*CALC!J193*$F$49))) -> -900 | AW173: =$F$34+$F$35*($B$66+$C$66+$E$52*$D$66*CALC!N193*$F$52) -> -1197.42976 | AX173: =$Y$178*($F$34+$F$35*($B$66+$C$66+$E$52*$D$66*CALC!O193*$F$52)) -> -1236.16 | AY173: =CALC!U193 ->  | AZ173: =CALC!R193 ->  | BA173: =CALC!S193 ->  | BB173: =CALC!T193 -> 
A174: =I179 ->  | C174: =IF(A174=A173,NA(),A174) ->  | D174: =$F$34+$F$35*$A$88 -> 220 | I174: =I173 ->  | J174: =$F$34+$F$35*$C$43*$K$91 -> 300 | L174: =L173 ->  | M174: =$F$34+$F$35*$C$43*$M$91 -> 200 | R174: M2 | S174: 20 | T174: =ABS($AC$3)*$J$57+($AC$6*S175/100)*COS((IF($B$16>0,($AC$4+$AC$5+$S$171),($AC$4-$S$171))*PI()/180)) ->  | U174: =ABS($AC$3)*$K$57+($AC$6*S175/100)*SIN((IF($B$16>0,($AC$4+$AC$5+$S$171),($AC$4-$S$171))*PI()/180)) ->  | Z174: =(Z161+Z164)/2 -> 480 | AA174: =(AA161+AA164)/2 -> 34.64101615 | AC174: =(AC161+AC164)/2 ->  | AD174: =(AD161+AD164)/2 ->  | AF174: =(AF161+AF164)/2 ->  | AG174: =(AG161+AG164)/2 ->  | AI174: =(AI161+AI164)/2 ->  | AJ174: =(AJ161+AJ164)/2 ->  | AL174: =(AL161+AL164)/2 ->  | AM174: =(AM161+AM164)/2 ->  | AO174: =(AO161+AO164)/2 ->  | AP174: =(AP161+AP164)/2 ->  | AR174: 171 | AS174: =$F$33+$F$35*CALC!D194*FIGURE_V2!$E$28 -> 169 | AT174: =$F$34+$F$35*($B$64+$C$64+$E$46*$D$64*CALC!F194*$F$46) -> -350 | AU174: =$F$34+$F$35*($B$65+$C$65+$E$49*$D$65*CALC!L194*$F$49) -> -831.3882353 | AV174: =($Y$178*($F$34+$F$35*($B$65+$C$65+$E$49*$D$65*CALC!J194*$F$49))) -> -900 | AW174: =$F$34+$F$35*($B$66+$C$66+$E$52*$D$66*CALC!N194*$F$52) -> -1195.48864 | AX174: =$Y$178*($F$34+$F$35*($B$66+$C$66+$E$52*$D$66*CALC!O194*$F$52)) -> -1233.28 | AY174: =CALC!U194 ->  | AZ174: =CALC!R194 ->  | BA174: =CALC!S194 ->  | BB174: =CALC!T194 ->  | BC174: 58 | BD174: 1160
S175: 200 | Z175: =Z3*(Z162-Z174) -> 9.5 | AA175: =Z3*(AA162-AA174) -> -16.45448267 | AC175: =AC3*(AC162-AC174) ->  | AD175: =AC3*(AD162-AD174) ->  | AF175: =AF3*(AF162-AF174) ->  | AG175: =AF3*(AG162-AG174) ->  | AI175: =AI3*(AI162-AI174) ->  | AJ175: =AI3*(AJ162-AJ174) ->  | AL175: =AL3*(AL162-AL174) ->  | AM175: =AL3*(AM162-AM174) ->  | AO175: =AO3*(AO162-AO174) ->  | AP175: =AO3*(AP162-AP174) ->  | AR175: 172 | AS175: =$F$33+$F$35*CALC!D195*FIGURE_V2!$E$28 -> 170 | AT175: =$F$34+$F$35*($B$64+$C$64+$E$46*$D$64*CALC!F195*$F$46) -> -350 | AU175: =$F$34+$F$35*($B$65+$C$65+$E$49*$D$65*CALC!L195*$F$49) -> -832.2352941 | AV175: =($Y$178*($F$34+$F$35*($B$65+$C$65+$E$49*$D$65*CALC!J195*$F$49))) -> -900 | AW175: =$F$34+$F$35*($B$66+$C$66+$E$52*$D$66*CALC!N195*$F$52) -> -1193.536 | AX175: =$Y$178*($F$34+$F$35*($B$66+$C$66+$E$52*$D$66*CALC!O195*$F$52)) -> -1230.4 | AY175: =CALC!U195 ->  | AZ175: =CALC!R195 ->  | BA175: =CALC!S195 ->  | BB175: =CALC!T195 ->  | BC175: 58 | BD175: 1160
A176: =I179 ->  | C176: =IF(A177=A176,NA(),A176) ->  | D176: =$F$34+$F$35*$A$88 -> 220 | I176: =IF(ISNUMBER(CALC!BV33),$F$33+$F$35*CALC!BV33*FIGURE_V2!$E$28,NA()) ->  | J176: =$F$34+$F$35*$C$55*$J$91 -> -1500 | L176: =IF(CALC!Y68>0,$F$33+$F$35*CALC!Y68*FIGURE_V2!$E$28,NA()) ->  | M176: =$F$34+$F$35*$C$55*$L$91 -> -1500 | AR176: 173 | AS176: =$F$33+$F$35*CALC!D196*FIGURE_V2!$E$28 -> 171 | AT176: =$F$34+$F$35*($B$64+$C$64+$E$46*$D$64*CALC!F196*$F$46) -> -350 | AU176: =$F$34+$F$35*($B$65+$C$65+$E$49*$D$65*CALC!L196*$F$49) -> -833.0823529 | AV176: =($Y$178*($F$34+$F$35*($B$65+$C$65+$E$49*$D$65*CALC!J196*$F$49))) -> -900 | AW176: =$F$34+$F$35*($B$66+$C$66+$E$52*$D$66*CALC!N196*$F$52) -> -1191.57184 | AX176: =$Y$178*($F$34+$F$35*($B$66+$C$66+$E$52*$D$66*CALC!O196*$F$52)) -> -1227.52 | AY176: =CALC!U196 ->  | AZ176: =CALC!R196 ->  | BA176: =CALC!S196 ->  | BB176: =CALC!T196 -> 
A177: =I182 ->  | C177: =IF(A177=A176,NA(),A177) ->  | D177: =$F$34+$F$35*$A$88 -> 220 | I177: =I176 ->  | J177: =$F$34+$F$35*$C$43*$K$91 -> 300 | L177: =L176 ->  | M177: =$F$34+$F$35*$C$43*$M$91 -> 200 | R177: M3 | S177: 20 | T177: =ABS($AF$3)*$J$61+($AF$6*S178/100)*COS((IF($B$17>0,($AF$4+$AF$5+$S$171),($AF$4-$S$171))*PI()/180)) ->  | U177: =ABS($AF$3)*$K$61+($AF$6*S178/100)*SIN((IF($B$17>0,($AF$4+$AF$5+$S$171),($AF$4-$S$171))*PI()/180)) ->  | AR177: 174 | AS177: =$F$33+$F$35*CALC!D197*FIGURE_V2!$E$28 -> 172 | AT177: =$F$34+$F$35*($B$64+$C$64+$E$46*$D$64*CALC!F197*$F$46) -> -350 | AU177: =$F$34+$F$35*($B$65+$C$65+$E$49*$D$65*CALC!L197*$F$49) -> -833.9294118 | AV177: =($Y$178*($F$34+$F$35*($B$65+$C$65+$E$49*$D$65*CALC!J197*$F$49))) -> -900 | AW177: =$F$34+$F$35*($B$66+$C$66+$E$52*$D$66*CALC!N197*$F$52) -> -1189.59616 | AX177: =$Y$178*($F$34+$F$35*($B$66+$C$66+$E$52*$D$66*CALC!O197*$F$52)) -> -1224.64 | AY177: =CALC!U197 ->  | AZ177: =CALC!R197 ->  | BA177: =CALC!S197 ->  | BB177: =CALC!T197 ->  | BC177: 59 | BD177: 1180 | BE177: 0 | BF177: -350 | BG177: -688.2352941 | BH177: -1360
S178: 200 | Y178: =IF(B69=0,NA(),1) -> 1 | AD178: 40 | AL178: label | AM178: x | AN178: y | AR178: 175 | AS178: =$F$33+$F$35*CALC!D198*FIGURE_V2!$E$28 -> 173 | AT178: =$F$34+$F$35*($B$64+$C$64+$E$46*$D$64*CALC!F198*$F$46) -> -350 | AU178: =$F$34+$F$35*($B$65+$C$65+$E$49*$D$65*CALC!L198*$F$49) -> -834.7764706 | AV178: =($Y$178*($F$34+$F$35*($B$65+$C$65+$E$49*$D$65*CALC!J198*$F$49))) -> -900 | AW178: =$F$34+$F$35*($B$66+$C$66+$E$52*$D$66*CALC!N198*$F$52) -> -1187.60896 | AX178: =$Y$178*($F$34+$F$35*($B$66+$C$66+$E$52*$D$66*CALC!O198*$F$52)) -> -1221.76 | AY178: =CALC!U198 ->  | AZ178: =CALC!R198 ->  | BA178: =CALC!S198 ->  | BB178: =CALC!T198 ->  | BC178: 59 | BD178: 1180 | BE178: 0 | BF178: -350 | BG178: -688.2352941 | BH178: -1360
A179: =I182 ->  | C179: =IF(A180=A179,NA(),A179) ->  | D179: =$F$34+$F$35*$A$88 -> 220 | I179: =IF(ISNUMBER(CALC!BV34),$F$33+$F$35*CALC!BV34*FIGURE_V2!$E$28,NA()) ->  | J179: =$F$34+$F$35*$C$55*$J$91 -> -1500 | L179: =IF(CALC!Y69>0,$F$33+$F$35*CALC!Y69*FIGURE_V2!$E$28,NA()) ->  | M179: =$F$34+$F$35*$C$55*$L$91 -> -1500 | Y179: =$F$33+$F$35*$Y$178*CALC!BA50*FIGURE_V2!$E$28 -> 0 | Z179: =$F$34+$F$35*($B$66+$C$66+$E$52*$D$66*CALC!BB50*$F$52) -> -1360 | AA179: =$F$33+$F$35*$Y$178*CALC!BC50*FIGURE_V2!$E$28 -> 125 | AB179: =$F$34+$F$35*($B$66+$C$66+$E$52*$D$66*CALC!BD50*$F$52) -> -1360 | AC179: =AA179-(AA179-Y179)*($AD$178/100) -> 75 | AD179: =((Z180-Z179)/(Y180-Y179))*(AC179-Y179)+Z179+(AB179-AB180)/2 -> -1342 | AE179: 1 | AF179: 1 | AG179: =AY4 ->  | AH179: =AS4 -> 0 | AI179: =AT4 -> -350 | AJ179: =IF(ISNUMBER(AG179),AE179,"") ->  | AK179: =SMALL($AJ$179:$AJ$4886,AE179) -> 253 | AL179: =IF(ISNUMBER(VLOOKUP(AK179,$AE$179:$AJ$4886,3)),VLOOKUP(AK179,$AE$179:$AJ$4886,3),"") -> 1 | AM179: =IF(ISNUMBER(VLOOKUP(AK179,$AE$179:$AJ$4886,4)),VLOOKUP(AK179,$AE$179:$AJ$4886,4),0) -> 250 | AN179: =IF(ISNUMBER(VLOOKUP(AK179,$AE$179:$AJ$4886,5)),VLOOKUP(AK179,$AE$179:$AJ$4886,5),0) -> -250 | AR179: 176 | AS179: =$F$33+$F$35*CALC!D199*FIGURE_V2!$E$28 -> 174 | AT179: =$F$34+$F$35*($B$64+$C$64+$E$46*$D$64*CALC!F199*$F$46) -> -350 | AU179: =$F$34+$F$35*($B$65+$C$65+$E$49*$D$65*CALC!L199*$F$49) -> -835.6235294 | AV179: =($Y$178*($F$34+$F$35*($B$65+$C$65+$E$49*$D$65*CALC!J199*$F$49))) -> -900 | AW179: =$F$34+$F$35*($B$66+$C$66+$E$52*$D$66*CALC!N199*$F$52) -> -1185.61024 | AX179: =$Y$178*($F$34+$F$35*($B$66+$C$66+$E$52*$D$66*CALC!O199*$F$52)) -> -1218.88 | AY179: =CALC!U199 ->  | AZ179: =CALC!R199 ->  | BA179: =CALC!S199 ->  | BB179: =CALC!T199 -> 
A180: =I185 ->  | C180: =IF(A180=A179,NA(),A180) ->  | D180: =$F$34+$F$35*$A$88 -> 220 | I180: =I179 ->  | J180: =$F$34+$F$35*$C$43*$K$91 -> 300 | L180: =L179 ->  | M180: =$F$34+$F$35*$C$43*$M$91 -> 200 | R180: M4 | S180: 20 | T180: =ABS($AI$3)*$J$65+($AI$6*S181/100)*COS((IF($B$18>0,($AI$4+$AI$5+$S$171),($AI$4-$S$171))*PI()/180)) ->  | U180: =ABS($AI$3)*$K$65+($AI$6*S181/100)*SIN((IF($B$18>0,($AI$4+$AI$5+$S$171),($AI$4-$S$171))*PI()/180)) ->  | Y180: =$F$33+$F$35*$Y$178*CALC!BA51*FIGURE_V2!$E$28 -> 250 | Z180: =$F$34+$F$35*($B$66+$C$66+$E$52*$D$66*CALC!BB51*$F$52) -> -1000 | AA180: =$F$33+$F$35*$Y$178*CALC!BC51*FIGURE_V2!$E$28 -> 125 | AB180: =$F$34+$F$35*($B$66+$C$66+$E$52*$D$66*CALC!BD51*$F$52) -> -1180 | AC180: =AA180-(AA180-Y180)*($AD$178/100) -> 175 | AD180: =((Z180-Z179)/(Y180-Y179))*(AC180-Y179)+Z179+(AB179-AB180)/2 -> -1198 | AE180: 2 | AF180: 2 | AH180: =AS5 -> 1 | AI180: =AT5 -> -350 | AK180: 1008 | AL180: =IF(ISNUMBER(VLOOKUP(AK180,$AE$179:$AJ$4886,3)),VLOOKUP(AK180,$AE$179:$AJ$4886,3),"") -> 0 | AM180: =IF(ISNUMBER(VLOOKUP(AK180,$AE$179:$AJ$4886,4)),VLOOKUP(AK180,$AE$179:$AJ$4886,4),0) -> 1000 | AN180: =IF(ISNUMBER(VLOOKUP(AK180,$AE$179:$AJ$4886,5)),VLOOKUP(AK180,$AE$179:$AJ$4886,5),0) -> -350 | AR180: 177 | AS180: =$F$33+$F$35*CALC!D200*FIGURE_V2!$E$28 -> 175 | AT180: =$F$34+$F$35*($B$64+$C$64+$E$46*$D$64*CALC!F200*$F$46) -> -350 | AU180: =$F$34+$F$35*($B$65+$C$65+$E$49*$D$65*CALC!L200*$F$49) -> -836.4705882 | AV180: =($Y$178*($F$34+$F$35*($B$65+$C$65+$E$49*$D$65*CALC!J200*$F$49))) -> -900 | AW180: =$F$34+$F$35*($B$66+$C$66+$E$52*$D$66*CALC!N200*$F$52) -> -1183.6 | AX180: =$Y$178*($F$34+$F$35*($B$66+$C$66+$E$52*$D$66*CALC!O200*$F$52)) -> -1216 | AY180: =CALC!U200 ->  | AZ180: =CALC!R200 ->  | BA180: =CALC!S200 ->  | BB180: =CALC!T200 ->  | BC180: 60 | BD180: 1200 | BE180: 0 | BF180: -350 | BG180: -688.2352941 | BH180: -1360
S181: 200 | AE181: 3 | AF181: 3 | AH181: 2 | AI181: -350 | AK181: 1178 | AL181: 0 | AM181: 0 | AN181: -688.2352941 | AR181: 178 | AS181: =$F$33+$F$35*CALC!D201*FIGURE_V2!$E$28 -> 176 | AT181: =$F$34+$F$35*($B$64+$C$64+$E$46*$D$64*CALC!F201*$F$46) -> -350 | AU181: =$F$34+$F$35*($B$65+$C$65+$E$49*$D$65*CALC!L201*$F$49) -> -837.3176471 | AV181: =($Y$178*($F$34+$F$35*($B$65+$C$65+$E$49*$D$65*CALC!J201*$F$49))) -> -900 | AW181: =$F$34+$F$35*($B$66+$C$66+$E$52*$D$66*CALC!N201*$F$52) -> -1181.57824 | AX181: =$Y$178*($F$34+$F$35*($B$66+$C$66+$E$52*$D$66*CALC!O201*$F$52)) -> -1213.12 | AY181: =CALC!U201 ->  | AZ181: =CALC!R201 ->  | BA181: =CALC!S201 ->  | BB181: =CALC!T201 ->  | BC181: 60 | BD181: 1200 | BE181: 0 | BF181: -350 | BG181: -688.2352941 | BH181: -1360
A182: =I185 ->  | C182: =IF(A183=A182,NA(),A182) ->  | D182: =$F$34+$F$35*$A$88 -> 220 | I182: =IF(ISNUMBER(CALC!BV35),$F$33+$F$35*CALC!BV35*FIGURE_V2!$E$28,NA()) ->  | J182: =$F$34+$F$35*$C$55*$J$91 -> -1500 | L182: =IF(CALC!Y70>0,$F$33+$F$35*CALC!Y70*FIGURE_V2!$E$28,NA()) ->  | M182: =$F$34+$F$35*$C$55*$L$91 -> -1500 | Y182: =$F$33+$F$35*$Y$178*CALC!BA53*FIGURE_V2!$E$28 -> 250 | Z182: =$F$34+$F$35*($B$66+$C$66+$E$52*$D$66*CALC!BB53*$F$52) -> -1000 | AA182: =$F$33+$F$35*$Y$178*CALC!BC53*FIGURE_V2!$E$28 -> 375 | AB182: =$F$34+$F$35*($B$66+$C$66+$E$52*$D$66*CALC!BD53*$F$52) -> -1405 | AC182: 325 | AD182: =((Z183-Z182)/(Y183-Y182))*(AC182-Y182)+Z182+(AB182-AB183)/2 -> -1225 | AE182: 4 | AF182: 4 | AH182: 3 | AI182: -350 | AK182: 1304 | AL182: -2 | AM182: 125 | AN182: -794.1176471 | AR182: 179 | AS182: =$F$33+$F$35*CALC!D202*FIGURE_V2!$E$28 -> 177 | AT182: =$F$34+$F$35*($B$64+$C$64+$E$46*$D$64*CALC!F202*$F$46) -> -350 | AU182: =$F$34+$F$35*($B$65+$C$65+$E$49*$D$65*CALC!L202*$F$49) -> -838.1647059 | AV182: =($Y$178*($F$34+$F$35*($B$65+$C$65+$E$49*$D$65*CALC!J202*$F$49))) -> -900 | AW182: =$F$34+$F$35*($B$66+$C$66+$E$52*$D$66*CALC!N202*$F$52) -> -1179.54496 | AX182: =$Y$178*($F$34+$F$35*($B$66+$C$66+$E$52*$D$66*CALC!O202*$F$52)) -> -1210.24 | AY182: =CALC!U202 ->  | AZ182: =CALC!R202 ->  | BA182: =CALC!S202 ->  | BB182: =CALC!T202 -> 
A183: =I188 ->  | C183: =IF(A183=A182,NA(),A183) ->  | D183: =$F$34+$F$35*$A$88 -> 220 | I183: =I182 ->  | J183: =$F$34+$F$35*$C$43*$K$91 -> 300 | L183: =L182 ->  | M183: =$F$34+$F$35*$C$43*$M$91 -> 200 | R183: M5 | S183: 20 | T183: =ABS($AL$3)*$J$69+($AL$6*S184/100)*COS((IF($B$19>0,($AL$4+$AL$5+$S$171),($AL$4-$S$171))*PI()/180)) ->  | U183: =ABS($AL$3)*$K$69+($AL$6*S184/100)*SIN((IF($B$19>0,($AL$4+$AL$5+$S$171),($AL$4-$S$171))*PI()/180)) ->  | Y183: =$F$33+$F$35*$Y$178*CALC!BA54*FIGURE_V2!$E$28 -> 500 | Z183: =$F$34+$F$35*($B$66+$C$66+$E$52*$D$66*CALC!BB54*$F$52) -> -1450 | AA183: =$F$33+$F$35*$Y$178*CALC!BC54*FIGURE_V2!$E$28 -> 375 | AB183: =$F$34+$F$35*($B$66+$C$66+$E$52*$D$66*CALC!BD54*$F$52) -> -1225 | AC183: 425 | AD183: =((Z183-Z182)/(Y183-Y182))*(AC183-Y182)+Z182+(AB182-AB183)/2 -> -1405 | AE183: 5 | AF183: 5 | AH183: 4 | AI183: -350 | AK183: 1429 | AL183: -4 | AM183: 250 | AN183: -900 | AR183: 180 | AS183: =$F$33+$F$35*CALC!D203*FIGURE_V2!$E$28 -> 178 | AT183: =$F$34+$F$35*($B$64+$C$64+$E$46*$D$64*CALC!F203*$F$46) -> -350 | AU183: =$F$34+$F$35*($B$65+$C$65+$E$49*$D$65*CALC!L203*$F$49) -> -839.0117647 | AV183: =($Y$178*($F$34+$F$35*($B$65+$C$65+$E$49*$D$65*CALC!J203*$F$49))) -> -900 | AW183: =$F$34+$F$35*($B$66+$C$66+$E$52*$D$66*CALC!N203*$F$52) -> -1177.50016 | AX183: =$Y$178*($F$34+$F$35*($B$66+$C$66+$E$52*$D$66*CALC!O203*$F$52)) -> -1207.36 | AY183: =CALC!U203 ->  | AZ183: =CALC!R203 ->  | BA183: =CALC!S203 ->  | BB183: =CALC!T203 ->  | BC183: 61 | BD183: 1220 | BE183: 0 | BF183: -350 | BG183: -688.2352941 | BH183: -1360
S184: 200 | AE184: 6 | AF184: 6 | AH184: 5 | AI184: -350 | AK184: 1430 | AL184: 4.5 | AM184: 250 | AN184: -450 | AR184: 181 | AS184: =$F$33+$F$35*CALC!D204*FIGURE_V2!$E$28 -> 179 | AT184: =$F$34+$F$35*($B$64+$C$64+$E$46*$D$64*CALC!F204*$F$46) -> -350 | AU184: =$F$34+$F$35*($B$65+$C$65+$E$49*$D$65*CALC!L204*$F$49) -> -839.8588235 | AV184: =($Y$178*($F$34+$F$35*($B$65+$C$65+$E$49*$D$65*CALC!J204*$F$49))) -> -900 | AW184: =$F$34+$F$35*($B$66+$C$66+$E$52*$D$66*CALC!N204*$F$52) -> -1175.44384 | AX184: =$Y$178*($F$34+$F$35*($B$66+$C$66+$E$52*$D$66*CALC!O204*$F$52)) -> -1204.48 | AY184: =CALC!U204 ->  | AZ184: =CALC!R204 ->  | BA184: =CALC!S204 ->  | BB184: =CALC!T204 ->  | BC184: 61 | BD184: 1220 | BE184: 0 | BF184: -350 | BG184: -688.2352941 | BH184: -1360
